{"text_format":"1","workbook":"xlsx","n_sheets":5,"sheets":["申込手順","入力シート","申込","入力規則","申込選手一覧（個人）"],"not_rendered":{"charts":0,"images":0,"macros":1,"external_links":0,"defined_names":1,"comments":0,"pivot_tables":0},"unopened":[],"bounds":{"document_bytes":16777216,"sheet_cells":100000,"rows_first":2000,"rows_last":500,"rows_between":2000,"halvings":0,"cell_chars":16384,"cell_head_chars":4096},"cells_cut":0,"cells_raw":0,"read":"whole","date_system":"1900"}

{"sheet":"申込手順","index":0,"n_rows":20,"n_cols":7,"rows_kept":20,"cut":false,"hidden":false,"merged":[[13,1,14,11],[15,1,16,11],[17,0,18,0],[17,1,18,11],[19,0,20,0],[19,1,20,11],[6,0,6,10],[7,0,7,8],[10,0,10,10],[11,0,12,0],[11,1,12,11],[0,0,1,0],[0,1,1,3],[0,6,1,11],[2,1,3,11],[4,0,5,0],[4,1,5,11]]}
["①","入力シートに必要事項を記入し",null,null,null,null,"をクリックしてください。　郵送用の申込用紙が印刷されます。"]
[]
[null,"※用紙は「B5」でお願いします。　(個人は2名でB5　1枚　に印刷されます）"]
[]
["②","印刷された、申込用紙に「公印」を押して、期日までに所定の申込先に郵送してください。（こちらが正式申込となります）"]
[]
["　　　　郵送：〒544-0021　　大阪市生野区勝山南3-1-4　　    ℡　06-6712-0371"]
["　　　　　　大阪府立　桃谷高等学校　　澤中隆光　先生"]
[]
["　　　　申込締切日：令和元年 5 月 17 日（金）正午　※郵送・メール共"]
["　　　"]
["③","入力済みのファイルを　ファイル＞名前を付けて保存＞で　"]
[]
[null,"　　　ファイル名を　「　学校番号（数字３桁）＋（学校名）　」に変更して保存してください。"]
[]
[null,"　　　　　　　　例）八尾高校（学校番号434）＝　434（八尾）"]
[]
["④","③で保存したファイルをメールに添付して　teitu@highschool.osakajudo.info　に送信してください"]
[]
["⑤","申込メールを受理した旨の、確認メールが数日中に返信されます"]

{"sheet":"入力シート","index":1,"n_rows":251,"n_cols":197,"rows_kept":251,"cut":false,"hidden":false,"merged":[[34,6,35,7],[32,6,32,7],[41,6,41,7],[37,8,39,21],[38,6,39,7],[32,2,35,5],[40,6,40,7],[48,2,51,5],[36,2,39,5],[40,2,43,5],[33,6,33,7],[32,8,32,21],[33,8,35,21],[52,2,55,5],[42,22,43,23],[41,22,41,23],[36,6,36,7],[52,8,52,21],[44,8,44,21],[44,2,47,5],[42,6,43,7],[40,8,40,21],[37,6,37,7],[40,22,40,23],[41,8,43,21],[54,22,55,23],[36,8,36,21],[38,22,39,23],[36,22,36,23],[37,22,37,23],[49,6,49,7],[49,8,51,21],[50,6,51,7],[48,8,48,21],[48,6,48,7],[52,6,52,7],[77,8,79,21],[53,22,53,23],[44,6,44,7],[45,8,47,21],[45,6,45,7],[46,6,47,7],[44,22,44,23],[53,8,55,21],[61,22,61,23],[66,22,67,23],[53,6,53,7],[54,6,55,7],[65,22,65,23],[50,22,51,23],[46,22,47,23],[45,22,45,23],[56,22,56,23],[49,22,49,23],[52,22,52,23],[48,22,48,23],[77,22,77,23],[78,22,79,23],[76,8,76,21],[68,8,68,21],[88,2,91,5],[102,6,103,7],[96,2,99,5],[96,6,96,7],[90,6,91,7],[89,6,89,7],[93,6,93,7],[84,2,87,5],[76,6,76,7],[85,6,85,7],[81,6,81,7],[80,6,80,7],[78,6,79,7],[82,6,83,7],[84,6,84,7],[92,2,95,5],[126,22,127,23],[124,22,124,23],[129,24,131,37],[109,75,109,78],[107,75,107,78],[116,41,119,43],[113,24,115,37],[112,49,115,53],[108,75,108,78],[115,75,115,78],[129,22,129,23],[130,22,131,23],[121,24,123,37],[125,24,127,37],[124,24,124,37],[128,22,128,23],[125,22,125,23],[108,59,111,61],[104,59,107,61],[109,24,111,37],[112,41,115,43],[112,62,115,62],[113,71,113,74],[111,66,111,70],[104,2,107,5],[104,6,104,7],[108,8,108,21],[104,8,104,21],[109,8,111,21],[113,22,113,23],[112,71,112,74],[105,22,105,23],[112,66,112,70],[106,66,106,70],[110,66,110,70],[112,54,115,57],[110,6,111,7],[109,71,109,74],[112,63,115,65],[108,6,108,7],[104,22,104,23],[112,8,112,21],[105,8,107,21],[112,58,115,58],[104,41,107,43],[108,24,108,37],[111,71,111,74],[115,71,115,74],[98,66,98,70],[99,75,99,78],[100,75,100,78],[101,71,101,74],[96,71,96,74],[99,71,99,74],[108,66,108,70],[109,66,109,70],[102,71,102,74],[106,71,106,74],[103,75,103,78],[100,71,100,74],[76,22,76,23],[80,54,83,57],[89,24,91,37],[92,24,92,37],[96,59,99,61],[88,38,91,40],[96,49,99,53],[92,44,95,48],[96,41,99,43],[85,24,87,37],[84,24,84,37],[96,58,99,58],[88,59,91,61],[96,38,99,40],[96,44,99,48],[88,41,91,43],[92,59,95,61],[88,22,88,23],[84,54,87,57],[84,38,87,40],[84,41,87,43],[84,58,87,58],[84,44,87,48],[97,24,99,37],[56,2,59,5],[61,6,61,7],[64,2,67,5],[56,6,56,7],[57,6,57,7],[58,6,59,7],[74,22,75,23],[69,22,69,23],[57,22,57,23],[60,22,60,23],[58,22,59,23],[68,22,68,23],[69,6,69,7],[66,6,67,7],[72,6,72,7],[73,6,73,7],[74,6,75,7],[62,6,63,7],[56,8,56,21],[57,8,59,21],[65,8,67,21],[64,8,64,21],[64,6,64,7],[65,6,65,7],[72,8,72,21],[69,8,71,21],[70,22,71,23],[60,2,63,5],[77,24,79,37],[80,41,83,43],[76,38,79,40],[80,38,83,40],[60,6,60,7],[68,41,71,43],[68,2,71,5],[72,2,75,5],[68,6,68,7],[70,6,71,7],[77,6,77,7],[76,2,79,5],[80,2,83,5],[73,22,73,23],[72,22,72,23],[73,8,75,21],[60,8,60,21],[62,22,63,23],[61,8,63,21],[64,24,64,37],[1,52,1,54],[2,52,2,54],[3,52,3,54],[7,35,7,49],[5,15,6,50],[7,50,7,65],[11,41,11,43],[8,47,10,49],[12,62,15,62],[12,49,15,53],[13,24,15,37],[12,41,15,43],[12,59,15,61],[12,58,15,58],[12,54,15,57],[7,6,7,34],[11,49,11,53],[11,44,11,48],[12,24,12,37],[11,38,11,40],[14,22,15,23],[12,44,15,48],[24,2,27,5],[25,6,25,7],[24,6,24,7],[26,6,27,7],[1,2,2,10],[5,6,6,10],[29,6,29,7],[21,8,23,21],[20,8,20,21],[28,6,28,7],[28,8,28,21],[24,8,24,21],[25,8,27,21],[12,8,12,21],[28,2,31,5],[30,6,31,7],[5,2,6,5],[11,6,11,37],[14,6,15,7],[13,8,15,21],[8,35,10,46],[12,22,12,23],[12,38,15,40],[13,22,13,23],[7,2,7,5],[8,6,10,24],[8,2,10,5],[13,6,13,7],[17,8,19,21],[16,8,16,21],[17,22,17,23],[16,2,19,5],[16,6,16,7],[16,24,16,37],[17,24,19,37],[16,22,16,23],[18,22,19,23],[20,2,23,5],[18,6,19,7],[22,6,23,7],[8,25,10,34],[17,6,17,7],[11,2,11,5],[12,2,15,5],[12,6,12,7],[20,54,23,57],[20,24,20,37],[16,44,19,48],[16,38,19,40],[21,6,21,7],[20,6,20,7],[20,22,20,23],[21,22,21,23],[21,24,23,37],[24,59,27,61],[24,58,27,58],[20,59,23,61],[8,62,10,65],[11,54,11,65],[20,63,23,65],[12,63,15,65],[20,62,23,62],[16,54,19,57],[16,59,19,61],[20,58,23,58],[16,62,19,62],[16,63,19,65],[16,58,19,58],[8,50,10,61],[24,63,27,65],[24,62,27,62],[24,54,27,57],[20,49,23,53],[33,24,35,37],[24,41,27,43],[24,38,27,40],[26,22,27,23],[24,22,24,23],[25,22,25,23],[24,49,27,53],[16,41,19,43],[16,49,19,53],[20,38,23,40],[20,44,23,48],[20,41,23,43],[22,22,23,23],[32,49,35,53],[29,8,31,21],[33,22,33,23],[30,22,31,23],[29,22,29,23],[28,44,31,48],[32,44,35,48],[24,44,27,48],[28,24,28,37],[45,24,47,37],[37,24,39,37],[36,38,39,40],[36,24,36,37],[40,24,40,37],[29,24,31,37],[32,24,32,37],[32,22,32,23],[25,24,27,37],[28,22,28,23],[28,38,31,40],[34,22,35,23],[24,24,24,37],[32,38,35,40],[32,41,35,43],[28,41,31,43],[36,49,39,53],[28,49,31,53],[40,58,43,58],[36,54,39,57],[28,58,31,58],[28,62,31,62],[32,54,35,57],[28,54,31,57],[28,59,31,61],[48,24,48,37],[44,24,44,37],[49,24,51,37],[56,24,56,37],[60,24,60,37],[61,24,63,37],[57,24,59,37],[36,44,39,48],[56,44,59,48],[36,41,39,43],[41,24,43,37],[52,24,52,37],[53,24,55,37],[40,44,43,48],[44,44,47,48],[52,44,55,48],[60,38,63,40],[48,44,51,48],[56,41,59,43],[60,41,63,43],[48,41,51,43],[56,38,59,40],[44,38,47,40],[60,49,63,53],[48,38,51,40],[52,38,55,40],[48,54,51,57],[44,41,47,43],[40,41,43,43],[40,38,43,40],[56,49,59,53],[52,41,55,43],[52,49,55,53],[48,49,51,53],[40,49,43,53],[40,54,43,57],[52,54,55,57],[60,44,63,48],[44,54,47,57],[44,49,47,53],[44,59,47,61],[48,62,51,62],[36,62,39,62],[56,58,59,58],[68,59,71,61],[52,58,55,58],[64,59,67,61],[68,54,71,57],[60,59,63,61],[60,58,63,58],[52,59,55,61],[56,59,59,61],[44,62,47,62],[40,62,43,62],[36,58,39,58],[44,58,47,58],[48,63,51,65],[28,63,31,65],[56,54,59,57],[64,54,67,57],[60,54,63,57],[52,63,55,65],[36,63,39,65],[40,63,43,65],[44,63,47,65],[32,63,35,65],[32,59,35,61],[32,58,35,58],[64,62,67,62],[60,62,63,62],[36,59,39,61],[40,59,43,61],[64,58,67,58],[60,63,63,65],[56,63,59,65],[52,62,55,62],[56,62,59,62],[32,62,35,62],[48,58,51,58],[48,59,51,61],[64,22,64,23],[64,38,67,40],[68,38,71,40],[65,24,67,37],[69,24,71,37],[68,24,68,37],[68,71,68,74],[68,63,71,65],[70,66,70,70],[71,66,71,70],[68,66,68,70],[70,71,70,74],[71,71,71,74],[64,41,67,43],[64,44,67,48],[68,44,71,48],[68,62,71,62],[68,58,71,58],[64,63,67,65],[64,49,67,53],[68,49,71,53],[76,24,76,37],[76,62,79,62],[76,66,76,70],[72,41,75,43],[72,54,75,57],[72,63,75,65],[72,66,72,70],[72,58,75,58],[76,58,79,58],[72,49,75,53],[74,66,74,70],[73,66,73,70],[72,62,75,62],[75,66,75,70],[76,44,79,48],[76,41,79,43],[72,59,75,61],[72,38,75,40],[73,24,75,37],[76,59,79,61],[76,49,79,53],[76,54,79,57],[72,24,72,37],[80,66,80,70],[80,59,83,61],[82,22,83,23],[85,22,85,23],[84,22,84,23],[81,22,81,23],[81,24,83,37],[73,75,73,78],[74,75,74,78],[75,75,75,78],[77,71,77,74],[78,75,78,78],[79,71,79,74],[78,71,78,74],[81,66,81,70],[80,62,83,62],[80,63,83,65],[78,66,78,70],[82,66,82,70],[77,66,77,70],[76,63,79,65],[79,66,79,70],[82,71,82,74],[72,44,75,48],[92,41,95,43],[100,38,103,40],[92,38,95,40],[100,41,103,43],[100,54,103,57],[92,58,95,58],[101,66,101,70],[80,8,80,21],[84,8,84,21],[80,49,83,53],[80,44,83,48],[80,24,80,37],[80,22,80,23],[84,63,87,65],[87,66,87,70],[86,66,86,70],[83,66,83,70],[84,66,84,70],[84,49,87,53],[84,59,87,61],[84,62,87,62],[85,66,85,70],[86,22,87,23],[80,58,83,58],[100,24,100,37],[105,24,107,37],[88,24,88,37],[105,6,105,7],[106,6,107,7],[88,6,88,7],[101,8,103,21],[89,8,91,21],[100,8,100,21],[89,22,89,23],[90,22,91,23],[96,8,96,21],[94,22,95,23],[93,22,93,23],[92,8,92,21],[102,22,103,23],[88,8,88,21],[101,24,103,37],[92,6,92,7],[104,24,104,37],[93,24,95,37],[93,8,95,21],[94,6,95,7],[92,22,92,23],[125,6,125,7],[113,8,115,21],[116,8,116,21],[96,22,96,23],[97,22,97,23],[100,22,100,23],[98,22,99,23],[110,22,111,23],[97,8,99,21],[118,22,119,23],[116,22,116,23],[117,22,117,23],[117,6,117,7],[98,6,99,7],[116,6,116,7],[114,6,115,7],[122,22,123,23],[109,22,109,23],[101,22,101,23],[117,8,119,21],[120,6,120,7],[106,22,107,23],[108,22,108,23],[109,6,109,7],[128,2,131,5],[129,6,129,7],[130,6,131,7],[124,2,127,5],[124,6,124,7],[81,8,83,21],[85,8,87,21],[101,6,101,7],[100,6,100,7],[97,6,97,7],[122,6,123,7],[124,8,124,21],[121,8,123,21],[120,2,123,5],[129,8,131,21],[128,8,128,21],[128,6,128,7],[125,8,127,21],[112,2,115,5],[86,6,87,7],[126,6,127,7],[116,2,119,5],[108,2,111,5],[100,2,103,5],[118,6,119,7],[113,6,113,7],[121,6,121,7],[112,22,112,23],[112,38,115,40],[114,22,115,23],[112,24,112,37],[120,22,120,23],[116,38,119,40],[120,8,120,21],[112,6,112,7],[121,22,121,23],[120,24,120,37],[117,24,119,37],[116,24,116,37],[96,24,96,37],[104,38,107,40],[108,41,111,43],[108,38,111,40],[88,63,91,65],[92,63,95,65],[102,66,102,70],[100,59,103,61],[108,44,111,48],[88,54,91,57],[88,49,91,53],[88,44,91,48],[88,58,91,58],[108,58,111,58],[96,62,99,62],[96,63,99,65],[100,58,103,58],[100,62,103,62],[104,63,107,65],[104,58,107,58],[108,62,111,62],[100,44,103,48],[104,49,107,53],[104,44,107,48],[92,49,95,53],[108,54,111,57],[108,49,111,53],[88,62,91,62],[94,66,94,70],[92,66,92,70],[92,62,95,62],[97,71,97,74],[103,71,103,74],[98,71,98,74],[88,66,88,70],[91,66,91,70],[99,66,99,70],[95,66,95,70],[89,66,89,70],[93,66,93,70],[90,66,90,70],[96,66,96,70],[104,54,107,57],[92,54,95,57],[96,54,99,57],[97,66,97,70],[100,49,103,53],[110,71,110,74],[116,59,119,61],[116,49,119,53],[103,66,103,70],[112,59,115,61],[108,71,108,74],[100,63,103,65],[116,63,119,65],[107,66,107,70],[100,66,100,70],[104,71,104,74],[116,58,119,58],[104,66,104,70],[105,66,105,70],[108,63,111,65],[104,62,107,62],[117,66,117,70],[115,66,115,70],[105,71,105,74],[107,71,107,74],[114,66,114,70],[114,71,114,74],[113,66,113,70],[117,71,117,74],[116,71,116,74],[124,59,127,61],[124,54,127,57],[120,44,123,48],[124,63,127,65],[125,66,125,70],[124,44,127,48],[120,49,123,53],[120,54,123,57],[120,59,123,61],[122,66,122,70],[120,58,123,58],[120,63,123,65],[121,66,121,70],[120,66,120,70],[120,62,123,62],[116,62,119,62],[124,66,124,70],[112,44,115,48],[116,44,119,48],[124,49,127,53],[116,54,119,57],[128,24,128,37],[120,38,123,40],[122,71,122,74],[124,38,127,40],[124,41,127,43],[124,62,127,62],[126,71,126,74],[128,54,131,57],[128,41,131,43],[128,38,131,40],[120,41,123,43],[129,71,129,74],[128,62,131,62],[127,66,127,70],[128,49,131,53],[128,59,131,61],[128,58,131,58],[124,58,127,58],[128,44,131,48],[128,63,131,65],[4,68,5,84],[69,75,69,78],[72,71,72,74],[74,71,74,74],[68,75,68,78],[71,75,71,78],[129,75,129,78],[119,75,119,78],[119,71,119,74],[121,71,121,74],[123,66,123,70],[69,66,69,70],[76,75,76,78],[69,71,69,74],[94,75,94,78],[80,71,80,74],[84,71,84,74],[127,71,127,74],[119,66,119,70],[116,66,116,70],[118,66,118,70],[126,66,126,70],[155,66,155,70],[152,66,152,70],[152,71,152,74],[153,71,153,74],[153,66,153,70],[140,66,140,70],[140,71,140,74],[137,71,137,74],[137,66,137,70],[144,71,144,74],[143,66,143,70],[144,66,144,70],[145,66,145,70],[145,71,145,74],[138,66,138,70],[138,71,138,74],[142,71,142,74],[142,66,142,70],[154,66,154,70],[146,66,146,70],[143,71,143,74],[151,66,151,70],[150,66,150,70],[145,75,145,78],[118,75,118,78],[116,75,116,78],[132,75,132,78],[139,71,139,74],[139,66,139,70],[141,66,141,70],[134,71,134,74],[136,75,136,78],[137,75,137,78],[135,75,135,78],[134,66,134,70],[132,71,132,74],[133,71,133,74],[133,66,133,70],[134,75,134,78],[147,66,147,70],[149,66,149,70],[136,66,136,70],[120,71,120,74],[141,71,141,74],[135,66,135,70],[128,71,128,74],[146,71,146,74],[148,66,148,70],[130,66,130,70],[104,75,104,78],[132,66,132,70],[131,66,131,70],[133,75,133,78],[131,75,131,78],[130,75,130,78],[130,71,130,74],[131,71,131,74],[128,75,128,78],[123,71,123,74],[128,66,128,70],[124,75,124,78],[125,71,125,74],[124,71,124,74],[127,75,127,78],[126,75,126,78],[129,66,129,70],[123,75,123,78],[111,75,111,78],[114,75,114,78],[113,75,113,78],[112,75,112,78],[105,75,105,78],[84,75,84,78],[86,71,86,74],[70,75,70,78],[73,71,73,74],[86,75,86,78],[89,71,89,74],[75,71,75,74],[76,71,76,74],[82,75,82,78],[83,71,83,74],[83,75,83,78],[80,75,80,78],[81,71,81,74],[81,75,81,78],[72,75,72,78],[77,75,77,78],[79,75,79,78],[87,71,87,74],[88,75,88,78],[89,75,89,78],[85,71,85,74],[85,75,85,78],[87,75,87,78],[88,71,88,74],[135,71,135,74],[121,75,121,78],[122,75,122,78],[136,71,136,74],[120,75,120,78],[97,75,97,78],[95,75,95,78],[98,75,98,78],[96,75,96,78],[101,75,101,78],[102,75,102,78],[95,71,95,74],[110,75,110,78],[106,75,106,78],[91,71,91,74],[90,75,90,78],[93,75,93,78],[93,71,93,74],[94,71,94,74],[91,75,91,78],[125,75,125,78],[117,75,117,78],[118,71,118,74],[90,71,90,74],[92,71,92,74],[92,75,92,78],[155,75,155,78],[138,75,138,78],[143,75,143,78],[140,75,140,78],[139,75,139,78],[148,71,148,74],[148,75,148,78],[144,75,144,78],[155,71,155,74],[147,75,147,78],[147,71,147,74],[149,71,149,74],[150,71,150,74],[151,75,151,78],[150,75,150,78],[149,75,149,78],[153,75,153,78],[151,71,151,74],[154,75,154,78],[154,71,154,74],[152,75,152,78],[142,75,142,78],[141,75,141,78],[146,75,146,78]]}
[null,null,null,null,null,null,null,null,null,null,null,null,null,null,null,null,null,null,null,null,null,null,null,null,null,null,null,null,null,null,null,null,null,null,null,null,null,null,null,null,null,null,null,null,null,null,null,null,null,null,null,null,null,null,null,null,null,null,null,null,null,null,null,null,null,null,null,null,null,null,null,null,null,null,null,null,null,null,null,null,null,null,null,null,null,null,null,null,null,null,null,null,null,null,null,null,null,null,null,null,null,null,null,null,null,null,null,null,null,null,null,null,null,null,null,null,null,null,null,null,null,null,null,null,null,null,null,null,null,null,null,null,null,null,null,null,null,null,null,null,null,null,null,null,null,null,null,null,null,null,null,null,null,null,null,null,null,null,null,null,null,null,null,null,null,null,null,null,null,null,null,null,null,null,null,null,null,null,null,null,null,null,null,null,"学年","段位","西暦","月","日","個人戦年度","ランク","男子階級","入賞","女子階級","登録番号","校名","校名略"]
[null,null,"男女個人",null,null,null,null,null,null,null,null,{"$f":"VLOOKUP(C9,$GM$3:$GO$252,3)","v":{"$error":"#N/A"}},null,null,null,null,null,null,null,null,null,null,null,null,"男子階級：M65(-65kg),M75(-75kg),M90(-90kg),M+90(90kg超)",null,null,null,null,null,null,null,null,null,null,null,null,null,null,null,null,null,null,null,null,null,null,null,null,null,null,null,null,null,null,"必須入力"]
[null,null,null,null,null,null,null,null,null,null,null,null,null,null,null,null,null,null,null,null,null,null,null,null,"女子階級：F52(52㎏)F63(63kg),F+63(63kg超)",null,null,null,null,null,null,null,null,null,null,null,null,null,null,null,null,null,null,null,null,null,null,null,null,null,null,null,null,null,null,"リストから選択",null,null,null,null,null,null,null,null,null,null,null,null,null,null,null,null,null,null,null,null,null,null,null,null,null,null,null,null,null,null,null,null,null,null,null,null,null,null,null,null,null,null,null,null,null,null,null,null,null,null,null,null,null,null,null,null,null,null,null,null,null,null,null,null,null,null,null,null,null,null,null,null,null,null,null,null,null,null,null,null,null,null,null,null,null,null,null,null,null,null,null,null,null,null,null,null,null,null,null,null,null,null,null,null,null,null,null,null,null,null,null,null,null,null,null,null,null,null,null,null,null,null,null,null,null,null,null,null,1,"無",1996,1,1,25,"A",48,1,"M  65",301,"旭","　 旭　 "]
[null,null,null,null,null,null,null,null,null,null,null,null,null,null,null,null,null,null,null,null,null,null,null,null,"　上記","※　上記の男子４階級、女子３階級から選択",null,null,null,null,null,null,null,null,null,null,null,null,null,null,null,null,null,null,null,null,null,null,null,null,null,null,null,null,null,"直接入力",null,null,null,null,null,null,null,null,null,null,null,null,null,null,null,null,null,null,null,null,null,null,null,null,null,null,null,null,null,null,null,null,null,null,null,null,null,null,null,null,null,null,null,null,null,null,null,null,null,null,null,null,null,null,null,null,null,null,null,null,null,null,null,null,null,null,null,null,null,null,null,null,null,null,null,null,null,null,null,null,null,null,null,null,null,null,null,null,null,null,null,null,null,null,null,null,null,null,null,null,null,null,null,null,null,null,null,null,null,null,null,null,null,null,null,null,null,null,null,null,null,null,null,null,null,null,null,null,2,"初",1997,2,2,26,"B",52,2,"M  75",302,"枚方なぎさ","枚方なぎ"]
[null,null,null,null,null,null,null,null,null,null,null,null,null,null,null,null,null,null,null,null,null,null,null,null,null,null,null,null,null,null,null,null,null,null,null,null,null,null,null,null,null,null,null,null,null,null,null,null,null,null,null,null,null,null,null,null,null,null,null,null,null,null,null,null,null,null,null,null,null,null,null,null,null,null,null,null,null,null,null,null,null,null,null,null,null,null,null,null,null,null,null,null,null,null,null,null,null,null,null,null,null,null,null,null,null,null,null,null,null,null,null,null,null,null,null,null,null,null,null,null,null,null,null,null,null,null,null,null,null,null,null,null,null,null,null,null,null,null,null,null,null,null,null,null,null,null,null,null,null,null,null,null,null,null,null,null,null,null,null,null,null,null,null,null,null,null,null,null,null,null,null,null,null,null,null,null,null,null,null,null,null,null,null,null,3,"弐",1998,3,3,27,"C",57,3,"M  90",303,"大手前","大 手 前"]
[null,null,{"$f":"ROUND(COUNTA(C13:F132)/2,0)","v":0},null,null,null,{"$f":"COUNTA(C9:BN11)","v":4},null,null,null,null,null,null,null,null,"第５０回　全国定通大会大阪府選考会",null,null,null,null,null,null,null,null,null,null,null,null,null,null,null,null,null,null,null,null,null,null,null,null,null,null,null,null,null,null,null,null,null,null,null,null,null,null,null,null,null,null,null,null,null,null,null,null,null,null,null,null,null,null,null,null,null,null,null,null,null,null,null,null,null,null,null,null,null,null,null,null,null,null,null,null,null,null,null,null,null,null,null,null,null,null,null,null,null,null,null,null,null,null,null,null,null,null,null,null,null,null,null,null,null,null,null,null,null,null,null,null,null,null,null,null,null,null,null,null,null,null,null,null,null,null,null,null,null,null,null,null,null,null,null,null,null,null,null,null,null,null,null,null,null,null,null,null,null,null,null,null,null,null,null,null,null,null,null,null,null,null,null,null,null,null,null,null,4,"参",1999,4,4,28,"D",63,null,"M+90",304,"勝山","勝　　山"]
[null,null,null,null,null,null,null,null,null,null,null,null,null,null,null,null,null,null,null,null,null,null,null,null,null,null,null,null,null,null,null,null,null,null,null,null,null,null,null,null,null,null,null,null,null,null,null,null,null,null,null,null,null,null,null,null,null,null,null,null,null,null,null,null,null,null,null,null,null,null,null,null,null,null,null,null,null,null,null,null,null,null,null,null,null,null,null,null,null,null,null,null,null,null,null,null,null,null,null,null,null,null,null,null,null,null,null,null,null,null,null,null,null,null,null,null,null,null,null,null,null,null,null,null,null,null,null,null,null,null,null,null,null,null,null,null,null,null,null,null,null,null,null,null,null,null,null,null,null,null,null,null,null,null,null,null,null,null,null,null,null,null,null,null,null,null,null,null,null,null,null,null,null,null,null,null,null,null,null,null,null,null,null,null,null,null,2000,5,5,29,null,70,null,"F  52",305,"門真なみはや","門真なみ"]
[null,null,"学校番号",null,null,null,"学　　　　校　　　　名",null,null,null,null,null,null,null,null,null,null,null,null,null,null,null,null,null,null,null,null,null,null,null,null,null,null,null,null,"監督名",null,null,null,null,null,null,null,null,null,null,null,null,null,null,"校長名",null,null,null,null,null,null,null,null,null,null,null,null,null,null,null,null,null,null,null,null,null,null,null,null,null,null,null,null,null,null,null,null,null,null,null,null,null,null,null,null,null,null,null,null,null,null,null,null,null,null,null,null,null,null,null,null,null,null,null,null,null,null,null,null,null,null,null,null,null,null,null,null,null,null,null,null,null,null,null,null,null,null,null,null,null,null,null,null,null,null,null,null,null,null,null,null,null,null,null,null,null,null,null,null,null,null,null,null,null,null,null,null,null,null,null,null,null,null,null,null,null,null,null,null,null,null,null,null,null,null,null,null,null,null,null,2001,6,6,30,null,78,null,"F  63",306,"門真西","門 真 西"]
[null,null,null,null,null,null,{"$f":"IF(C9=\"\",\"\",VLOOKUP(C9,$GM$3:$GO$252,2))","v":""},null,null,null,null,null,null,null,null,null,null,null,null,null,null,null,null,null,null,"高等学校",null,null,null,null,null,null,null,null,null,null,null,null,null,null,null,null,null,null,null,null,null,"印",null,null,null,null,null,null,null,null,null,null,null,null,null,null,"印",null,null,null,null,null,null,null,null,null,null,null,null,null,null,null,null,null,null,null,null,null,null,null,null,null,null,null,null,null,null,null,null,null,null,null,null,null,null,null,null,null,null,null,null,null,null,null,null,null,null,null,null,null,null,null,null,null,null,null,null,null,null,null,null,null,null,null,null,null,null,null,null,null,null,null,null,null,null,null,null,null,null,null,null,null,null,null,null,null,null,null,null,null,null,null,null,null,null,null,null,null,null,null,null,null,null,null,null,null,null,null,null,null,null,null,null,null,null,null,null,null,null,null,2002,7,7,31,null,"78超",null,"F+63",308,"香里丘","香 里 丘"]
[null,null,null,null,null,null,null,null,null,null,null,null,null,null,null,null,null,null,null,null,null,null,null,null,null,null,null,null,null,null,null,null,null,null,null,null,null,null,null,null,null,null,null,null,null,null,null,null,null,null,null,null,null,null,null,null,null,null,null,null,null,null,null,null,null,null,null,null,null,null,null,null,null,null,null,null,null,null,null,null,null,null,null,null,null,null,null,null,null,null,null,null,null,null,null,null,null,null,null,null,null,null,null,null,null,null,null,null,null,null,null,null,null,null,null,null,null,null,null,null,null,null,null,null,null,null,null,null,null,null,null,null,null,null,null,null,null,null,null,null,null,null,null,null,null,null,null,null,null,null,null,null,null,null,null,null,null,null,null,null,null,null,null,null,null,null,null,null,null,null,null,null,null,null,null,null,null,null,null,null,null,null,null,null,null,null,2003,8,8,32,null,null,null,null,309,"高津","高　　津"]
[null,null,null,null,null,null,null,null,null,null,null,null,null,null,null,null,null,null,null,null,null,null,null,null,null,null,null,null,null,null,null,null,null,null,null,null,null,null,null,null,null,null,null,null,null,null,null,null,null,null,null,null,null,null,null,null,null,null,null,null,null,null,null,null,null,null,null,null,null,null,null,null,null,null,null,null,null,null,null,null,null,null,null,null,null,null,null,null,null,null,null,null,null,null,null,null,null,null,null,null,null,null,null,null,null,null,null,null,null,null,null,null,null,null,null,null,null,null,null,null,null,null,null,null,null,null,null,null,null,null,null,null,null,null,null,null,null,null,null,null,null,null,null,null,null,null,null,null,null,null,null,null,null,null,null,null,null,null,null,null,null,null,null,null,null,null,null,null,null,null,null,null,null,null,null,null,null,null,null,null,null,null,null,null,null,null,2004,9,9,33,null,null,null,null,310,"四條畷","四 條 畷"]
[null,null,"階級",null,null,null,"選手名",null,null,null,null,null,null,null,null,null,null,null,null,null,null,null,null,null,null,null,null,null,null,null,null,null,null,null,null,null,null,null,"学年",null,null,"段位",null,null,"体重（kg）",null,null,null,null,"身長（cm）",null,null,null,null,"生年月日（西暦）",null,null,null,null,null,null,null,null,null,null,null,null,null,null,null,null,null,null,null,null,null,null,null,null,null,null,null,null,null,null,null,null,null,null,null,null,null,null,null,null,null,null,null,null,null,null,null,null,null,null,null,null,null,null,null,null,null,null,null,null,null,null,null,null,null,null,null,null,null,null,null,null,null,null,null,null,null,null,null,null,null,null,null,null,null,null,null,null,null,null,null,null,null,null,null,null,null,null,null,null,null,null,null,null,null,null,null,null,null,null,null,null,null,null,null,null,null,null,null,null,null,null,null,null,null,null,null,null,null,null,null,2005,10,10,34,null,null,null,null,311,"清水谷","清 水 谷"]
[null,null,null,null,null,null,"ふりがな",null,null,null,null,null,null,null,null,null,null,null,null,null,null,null,null,null,null,null,null,null,null,null,null,null,null,null,null,null,null,null,null,null,null,null,null,null,null,null,null,null,null,null,null,null,null,null,null,null,null,null,"・",null,null,null,"・",null,null,null,null,null,null,null,null,null,null,null,null,null,null,null,null,null,null,null,null,null,null,null,null,null,null,null,null,null,null,null,null,null,null,null,null,null,null,null,null,null,null,null,null,null,null,null,null,null,null,null,null,null,null,null,null,null,null,null,null,null,null,null,null,null,null,null,null,null,null,null,null,null,null,null,null,null,null,null,null,null,null,null,null,null,null,null,null,null,null,null,null,null,null,null,null,null,null,null,null,null,null,null,null,null,null,null,null,null,null,null,null,null,null,null,null,null,null,null,null,null,null,null,2006,11,11,35,null,null,null,null,312,"緑風冠","緑 風 冠"]
[null,null,null,null,null,null,"（姓）",null,null,null,null,null,null,null,null,null,null,null,null,null,null,null,"（名）",null,null,null,null,null,null,null,null,null,null,null,null,null,null,null,null,null,null,null,null,null,null,null,null,null,null,null,null,null,null,null,null,null,null,null,null,null,null,null,null,null,null,null,null,null,null,null,null,null,null,null,null,null,null,null,null,null,null,null,null,null,null,null,null,null,null,null,null,null,null,null,null,null,null,null,null,null,null,null,null,null,null,null,null,null,null,null,null,null,null,null,null,null,null,null,null,null,null,null,null,null,null,null,null,null,null,null,null,null,null,null,null,null,null,null,null,null,null,null,null,null,null,null,null,null,null,null,null,null,null,null,null,null,null,null,null,null,null,null,null,null,null,null,null,null,null,null,null,null,null,null,null,null,null,null,null,null,null,null,null,null,null,null,2007,12,12,36,null,null,null,null,313,"かわち野","かわち野"]
[null,null,null,null,null,null,null,null,null,null,null,null,null,null,null,null,null,null,null,null,null,null,null,null,null,null,null,null,null,null,null,null,null,null,null,null,null,null,null,null,null,null,null,null,null,null,null,null,null,null,null,null,null,null,null,null,null,null,null,null,null,null,null,null,null,null,null,null,null,null,null,null,null,null,null,null,null,null,null,null,null,null,null,null,null,null,null,null,null,null,null,null,null,null,null,null,null,null,null,null,null,null,null,null,null,null,null,null,null,null,null,null,null,null,null,null,null,null,null,null,null,null,null,null,null,null,null,null,null,null,null,null,null,null,null,null,null,null,null,null,null,null,null,null,null,null,null,null,null,null,null,null,null,null,null,null,null,null,null,null,null,null,null,null,null,null,null,null,null,null,null,null,null,null,null,null,null,null,null,null,null,null,null,null,null,null,2008,null,13,37,null,null,null,null,314,"長尾","長　　尾"]
[null,null,null,null,null,null,null,null,null,null,null,null,null,null,null,null,null,null,null,null,null,null,null,null,null,null,null,null,null,null,null,null,null,null,null,null,null,null,null,null,null,null,null,null,null,null,null,null,null,null,null,null,null,null,null,null,null,null,null,null,null,null,null,null,null,null,null,null,null,null,null,null,null,null,null,null,null,null,null,null,null,null,null,null,null,null,null,null,null,null,null,null,null,null,null,null,null,null,null,null,null,null,null,null,null,null,null,null,null,null,null,null,null,null,null,null,null,null,null,null,null,null,null,null,null,null,null,null,null,null,null,null,null,null,null,null,null,null,null,null,null,null,null,null,null,null,null,null,null,null,null,null,null,null,null,null,null,null,null,null,null,null,null,null,null,null,null,null,null,null,null,null,null,null,null,null,null,null,null,null,null,null,null,null,null,null,2009,null,14,38,null,null,null,null,315,"西寝屋川","西寝屋川"]
[null,null,null,null,null,null,"ふりがな",null,null,null,null,null,null,null,null,null,null,null,null,null,null,null,null,null,null,null,null,null,null,null,null,null,null,null,null,null,null,null,null,null,null,null,null,null,null,null,null,null,null,null,null,null,null,null,null,null,null,null,"・",null,null,null,"・",null,null,null,null,null,null,null,null,null,null,null,null,null,null,null,null,null,null,null,null,null,null,null,null,null,null,null,null,null,null,null,null,null,null,null,null,null,null,null,null,null,null,null,null,null,null,null,null,null,null,null,null,null,null,null,null,null,null,null,null,null,null,null,null,null,null,null,null,null,null,null,null,null,null,null,null,null,null,null,null,null,null,null,null,null,null,null,null,null,null,null,null,null,null,null,null,null,null,null,null,null,null,null,null,null,null,null,null,null,null,null,null,null,null,null,null,null,null,null,null,null,null,null,2010,null,15,39,null,null,null,null,316,"寝屋川","寝 屋 川"]
[null,null,null,null,null,null,"（姓）",null,null,null,null,null,null,null,null,null,null,null,null,null,null,null,"（名）",null,null,null,null,null,null,null,null,null,null,null,null,null,null,null,null,null,null,null,null,null,null,null,null,null,null,null,null,null,null,null,null,null,null,null,null,null,null,null,null,null,null,null,null,null,null,null,null,null,null,null,null,null,null,null,null,null,null,null,null,null,null,null,null,null,null,null,null,null,null,null,null,null,null,null,null,null,null,null,null,null,null,null,null,null,null,null,null,null,null,null,null,null,null,null,null,null,null,null,null,null,null,null,null,null,null,null,null,null,null,null,null,null,null,null,null,null,null,null,null,null,null,null,null,null,null,null,null,null,null,null,null,null,null,null,null,null,null,null,null,null,null,null,null,null,null,null,null,null,null,null,null,null,null,null,null,null,null,null,null,null,null,null,2011,null,16,40,null,null,null,null,317,"北かわち皐が丘","北かわち"]
[null,null,null,null,null,null,null,null,null,null,null,null,null,null,null,null,null,null,null,null,null,null,null,null,null,null,null,null,null,null,null,null,null,null,null,null,null,null,null,null,null,null,null,null,null,null,null,null,null,null,null,null,null,null,null,null,null,null,null,null,null,null,null,null,null,null,null,null,null,null,null,null,null,null,null,null,null,null,null,null,null,null,null,null,null,null,null,null,null,null,null,null,null,null,null,null,null,null,null,null,null,null,null,null,null,null,null,null,null,null,null,null,null,null,null,null,null,null,null,null,null,null,null,null,null,null,null,null,null,null,null,null,null,null,null,null,null,null,null,null,null,null,null,null,null,null,null,null,null,null,null,null,null,null,null,null,null,null,null,null,null,null,null,null,null,null,null,null,null,null,null,null,null,null,null,null,null,null,null,null,null,null,null,null,null,null,2012,null,17,41,null,null,null,null,318,"枚方","枚　　方"]
[null,null,null,null,null,null,null,null,null,null,null,null,null,null,null,null,null,null,null,null,null,null,null,null,null,null,null,null,null,null,null,null,null,null,null,null,null,null,null,null,null,null,null,null,null,null,null,null,null,null,null,null,null,null,null,null,null,null,null,null,null,null,null,null,null,null,null,null,null,null,null,null,null,null,null,null,null,null,null,null,null,null,null,null,null,null,null,null,null,null,null,null,null,null,null,null,null,null,null,null,null,null,null,null,null,null,null,null,null,null,null,null,null,null,null,null,null,null,null,null,null,null,null,null,null,null,null,null,null,null,null,null,null,null,null,null,null,null,null,null,null,null,null,null,null,null,null,null,null,null,null,null,null,null,null,null,null,null,null,null,null,null,null,null,null,null,null,null,null,null,null,null,null,null,null,null,null,null,null,null,null,null,null,null,null,null,2013,null,18,42,null,null,null,null,319,"牧野","牧　　野"]
[null,null,null,null,null,null,"ふりがな",null,null,null,null,null,null,null,null,null,null,null,null,null,null,null,null,null,null,null,null,null,null,null,null,null,null,null,null,null,null,null,null,null,null,null,null,null,null,null,null,null,null,null,null,null,null,null,null,null,null,null,"・",null,null,null,"・",null,null,null,null,null,null,null,null,null,null,null,null,null,null,null,null,null,null,null,null,null,null,null,null,null,null,null,null,null,null,null,null,null,null,null,null,null,null,null,null,null,null,null,null,null,null,null,null,null,null,null,null,null,null,null,null,null,null,null,null,null,null,null,null,null,null,null,null,null,null,null,null,null,null,null,null,null,null,null,null,null,null,null,null,null,null,null,null,null,null,null,null,null,null,null,null,null,null,null,null,null,null,null,null,null,null,null,null,null,null,null,null,null,null,null,null,null,null,null,null,null,null,null,2014,null,19,43,null,null,null,null,320,"茨田","茨　　田"]
[null,null,null,null,null,null,"（姓）",null,null,null,null,null,null,null,null,null,null,null,null,null,null,null,"（名）",null,null,null,null,null,null,null,null,null,null,null,null,null,null,null,null,null,null,null,null,null,null,null,null,null,null,null,null,null,null,null,null,null,null,null,null,null,null,null,null,null,null,null,null,null,null,null,null,null,null,null,null,null,null,null,null,null,null,null,null,null,null,null,null,null,null,null,null,null,null,null,null,null,null,null,null,null,null,null,null,null,null,null,null,null,null,null,null,null,null,null,null,null,null,null,null,null,null,null,null,null,null,null,null,null,null,null,null,null,null,null,null,null,null,null,null,null,null,null,null,null,null,null,null,null,null,null,null,null,null,null,null,null,null,null,null,null,null,null,null,null,null,null,null,null,null,null,null,null,null,null,null,null,null,null,null,null,null,null,null,null,null,null,2015,null,20,44,null,null,null,null,322,"芦間","芦　　間"]
[null,null,null,null,null,null,null,null,null,null,null,null,null,null,null,null,null,null,null,null,null,null,null,null,null,null,null,null,null,null,null,null,null,null,null,null,null,null,null,null,null,null,null,null,null,null,null,null,null,null,null,null,null,null,null,null,null,null,null,null,null,null,null,null,null,null,null,null,null,null,null,null,null,null,null,null,null,null,null,null,null,null,null,null,null,null,null,null,null,null,null,null,null,null,null,null,null,null,null,null,null,null,null,null,null,null,null,null,null,null,null,null,null,null,null,null,null,null,null,null,null,null,null,null,null,null,null,null,null,null,null,null,null,null,null,null,null,null,null,null,null,null,null,null,null,null,null,null,null,null,null,null,null,null,null,null,null,null,null,null,null,null,null,null,null,null,null,null,null,null,null,null,null,null,null,null,null,null,null,null,null,null,null,null,null,null,2016,null,21,45,null,null,null,null,323,"守口東","守 口 東"]
[null,null,null,null,null,null,null,null,null,null,null,null,null,null,null,null,null,null,null,null,null,null,null,null,null,null,null,null,null,null,null,null,null,null,null,null,null,null,null,null,null,null,null,null,null,null,null,null,null,null,null,null,null,null,null,null,null,null,null,null,null,null,null,null,null,null,null,null,null,null,null,null,null,null,null,null,null,null,null,null,null,null,null,null,null,null,null,null,null,null,null,null,null,null,null,null,null,null,null,null,null,null,null,null,null,null,null,null,null,null,null,null,null,null,null,null,null,null,null,null,null,null,null,null,null,null,null,null,null,null,null,null,null,null,null,null,null,null,null,null,null,null,null,null,null,null,null,null,null,null,null,null,null,null,null,null,null,null,null,null,null,null,null,null,null,null,null,null,null,null,null,null,null,null,null,null,null,null,null,null,null,null,null,null,null,null,2017,null,22,46,null,null,null,null,324,"夕陽丘","夕 陽 丘"]
[null,null,null,null,null,null,"ふりがな",null,null,null,null,null,null,null,null,null,null,null,null,null,null,null,null,null,null,null,null,null,null,null,null,null,null,null,null,null,null,null,null,null,null,null,null,null,null,null,null,null,null,null,null,null,null,null,null,null,null,null,"・",null,null,null,"・",null,null,null,null,null,null,null,null,null,null,null,null,null,null,null,null,null,null,null,null,null,null,null,null,null,null,null,null,null,null,null,null,null,null,null,null,null,null,null,null,null,null,null,null,null,null,null,null,null,null,null,null,null,null,null,null,null,null,null,null,null,null,null,null,null,null,null,null,null,null,null,null,null,null,null,null,null,null,null,null,null,null,null,null,null,null,null,null,null,null,null,null,null,null,null,null,null,null,null,null,null,null,null,null,null,null,null,null,null,null,null,null,null,null,null,null,null,null,null,null,null,null,null,2018,null,23,47,null,null,null,null,325,"城東工科","城東工科"]
[null,null,null,null,null,null,"（姓）",null,null,null,null,null,null,null,null,null,null,null,null,null,null,null,"（名）",null,null,null,null,null,null,null,null,null,null,null,null,null,null,null,null,null,null,null,null,null,null,null,null,null,null,null,null,null,null,null,null,null,null,null,null,null,null,null,null,null,null,null,null,null,null,null,null,null,null,null,null,null,null,null,null,null,null,null,null,null,null,null,null,null,null,null,null,null,null,null,null,null,null,null,null,null,null,null,null,null,null,null,null,null,null,null,null,null,null,null,null,null,null,null,null,null,null,null,null,null,null,null,null,null,null,null,null,null,null,null,null,null,null,null,null,null,null,null,null,null,null,null,null,null,null,null,null,null,null,null,null,null,null,null,null,null,null,null,null,null,null,null,null,null,null,null,null,null,null,null,null,null,null,null,null,null,null,null,null,null,null,null,2019,null,24,48,null,null,null,null,326,"成城","成　　城"]
[null,null,null,null,null,null,null,null,null,null,null,null,null,null,null,null,null,null,null,null,null,null,null,null,null,null,null,null,null,null,null,null,null,null,null,null,null,null,null,null,null,null,null,null,null,null,null,null,null,null,null,null,null,null,null,null,null,null,null,null,null,null,null,null,null,null,null,null,null,null,null,null,null,null,null,null,null,null,null,null,null,null,null,null,null,null,null,null,null,null,null,null,null,null,null,null,null,null,null,null,null,null,null,null,null,null,null,null,null,null,null,null,null,null,null,null,null,null,null,null,null,null,null,null,null,null,null,null,null,null,null,null,null,null,null,null,null,null,null,null,null,null,null,null,null,null,null,null,null,null,null,null,null,null,null,null,null,null,null,null,null,null,null,null,null,null,null,null,null,null,null,null,null,null,null,null,null,null,null,null,null,null,null,null,null,null,2020,null,25,49,null,null,null,null,327,"淀川工科","淀川工科"]
[null,null,null,null,null,null,null,null,null,null,null,null,null,null,null,null,null,null,null,null,null,null,null,null,null,null,null,null,null,null,null,null,null,null,null,null,null,null,null,null,null,null,null,null,null,null,null,null,null,null,null,null,null,null,null,null,null,null,null,null,null,null,null,null,null,null,null,null,null,null,null,null,null,null,null,null,null,null,null,null,null,null,null,null,null,null,null,null,null,null,null,null,null,null,null,null,null,null,null,null,null,null,null,null,null,null,null,null,null,null,null,null,null,null,null,null,null,null,null,null,null,null,null,null,null,null,null,null,null,null,null,null,null,null,null,null,null,null,null,null,null,null,null,null,null,null,null,null,null,null,null,null,null,null,null,null,null,null,null,null,null,null,null,null,null,null,null,null,null,null,null,null,null,null,null,null,null,null,null,null,null,null,null,null,null,null,null,null,26,50,null,null,null,null,329,"扇町総合","扇町総合"]
[null,null,null,null,null,null,"ふりがな",null,null,null,null,null,null,null,null,null,null,null,null,null,null,null,null,null,null,null,null,null,null,null,null,null,null,null,null,null,null,null,null,null,null,null,null,null,null,null,null,null,null,null,null,null,null,null,null,null,null,null,"・",null,null,null,"・",null,null,null,null,null,null,null,null,null,null,null,null,null,null,null,null,null,null,null,null,null,null,null,null,null,null,null,null,null,null,null,null,null,null,null,null,null,null,null,null,null,null,null,null,null,null,null,null,null,null,null,null,null,null,null,null,null,null,null,null,null,null,null,null,null,null,null,null,null,null,null,null,null,null,null,null,null,null,null,null,null,null,null,null,null,null,null,null,null,null,null,null,null,null,null,null,null,null,null,null,null,null,null,null,null,null,null,null,null,null,null,null,null,null,null,null,null,null,null,null,null,null,null,null,null,27,51,null,null,null,null,330,"大阪市立","大阪市立"]
[null,null,null,null,null,null,"（姓）",null,null,null,null,null,null,null,null,null,null,null,null,null,null,null,"（名）",null,null,null,null,null,null,null,null,null,null,null,null,null,null,null,null,null,null,null,null,null,null,null,null,null,null,null,null,null,null,null,null,null,null,null,null,null,null,null,null,null,null,null,null,null,null,null,null,null,null,null,null,null,null,null,null,null,null,null,null,null,null,null,null,null,null,null,null,null,null,null,null,null,null,null,null,null,null,null,null,null,null,null,null,null,null,null,null,null,null,null,null,null,null,null,null,null,null,null,null,null,null,null,null,null,null,null,null,null,null,null,null,null,null,null,null,null,null,null,null,null,null,null,null,null,null,null,null,null,null,null,null,null,null,null,null,null,null,null,null,null,null,null,null,null,null,null,null,null,null,null,null,null,null,null,null,null,null,null,null,null,null,null,null,null,28,52,null,null,null,null,331,"桜宮","桜　　宮"]
[null,null,null,null,null,null,null,null,null,null,null,null,null,null,null,null,null,null,null,null,null,null,null,null,null,null,null,null,null,null,null,null,null,null,null,null,null,null,null,null,null,null,null,null,null,null,null,null,null,null,null,null,null,null,null,null,null,null,null,null,null,null,null,null,null,null,null,null,null,null,null,null,null,null,null,null,null,null,null,null,null,null,null,null,null,null,null,null,null,null,null,null,null,null,null,null,null,null,null,null,null,null,null,null,null,null,null,null,null,null,null,null,null,null,null,null,null,null,null,null,null,null,null,null,null,null,null,null,null,null,null,null,null,null,null,null,null,null,null,null,null,null,null,null,null,null,null,null,null,null,null,null,null,null,null,null,null,null,null,null,null,null,null,null,null,null,null,null,null,null,null,null,null,null,null,null,null,null,null,null,null,null,null,null,null,null,null,null,29,53,null,null,null,null,332,"汎愛","汎　　愛"]
[null,null,null,null,null,null,null,null,null,null,null,null,null,null,null,null,null,null,null,null,null,null,null,null,null,null,null,null,null,null,null,null,null,null,null,null,null,null,null,null,null,null,null,null,null,null,null,null,null,null,null,null,null,null,null,null,null,null,null,null,null,null,null,null,null,null,null,null,null,null,null,null,null,null,null,null,null,null,null,null,null,null,null,null,null,null,null,null,null,null,null,null,null,null,null,null,null,null,null,null,null,null,null,null,null,null,null,null,null,null,null,null,null,null,null,null,null,null,null,null,null,null,null,null,null,null,null,null,null,null,null,null,null,null,null,null,null,null,null,null,null,null,null,null,null,null,null,null,null,null,null,null,null,null,null,null,null,null,null,null,null,null,null,null,null,null,null,null,null,null,null,null,null,null,null,null,null,null,null,null,null,null,null,null,null,null,null,null,30,54,null,null,null,null,333,"東","　 東　 "]
[null,null,null,null,null,null,"ふりがな",null,null,null,null,null,null,null,null,null,null,null,null,null,null,null,null,null,null,null,null,null,null,null,null,null,null,null,null,null,null,null,null,null,null,null,null,null,null,null,null,null,null,null,null,null,null,null,null,null,null,null,"・",null,null,null,"・",null,null,null,null,null,null,null,null,null,null,null,null,null,null,null,null,null,null,null,null,null,null,null,null,null,null,null,null,null,null,null,null,null,null,null,null,null,null,null,null,null,null,null,null,null,null,null,null,null,null,null,null,null,null,null,null,null,null,null,null,null,null,null,null,null,null,null,null,null,null,null,null,null,null,null,null,null,null,null,null,null,null,null,null,null,null,null,null,null,null,null,null,null,null,null,null,null,null,null,null,null,null,null,null,null,null,null,null,null,null,null,null,null,null,null,null,null,null,null,null,null,null,null,null,null,31,55,null,null,null,null,334,"南","　 南　 "]
[null,null,null,null,null,null,"（姓）",null,null,null,null,null,null,null,null,null,null,null,null,null,null,null,"（名）",null,null,null,null,null,null,null,null,null,null,null,null,null,null,null,null,null,null,null,null,null,null,null,null,null,null,null,null,null,null,null,null,null,null,null,null,null,null,null,null,null,null,null,null,null,null,null,null,null,null,null,null,null,null,null,null,null,null,null,null,null,null,null,null,null,null,null,null,null,null,null,null,null,null,null,null,null,null,null,null,null,null,null,null,null,null,null,null,null,null,null,null,null,null,null,null,null,null,null,null,null,null,null,null,null,null,null,null,null,null,null,null,null,null,null,null,null,null,null,null,null,null,null,null,null,null,null,null,null,null,null,null,null,null,null,null,null,null,null,null,null,null,null,null,null,null,null,null,null,null,null,null,null,null,null,null,null,null,null,null,null,null,null,null,null,null,null,null,null,null,null,335,"生野工業","生野工業"]
[null,null,null,null,null,null,null,null,null,null,null,null,null,null,null,null,null,null,null,null,null,null,null,null,null,null,null,null,null,null,null,null,null,null,null,null,null,null,null,null,null,null,null,null,null,null,null,null,null,null,null,null,null,null,null,null,null,null,null,null,null,null,null,null,null,null,null,null,null,null,null,null,null,null,null,null,null,null,null,null,null,null,null,null,null,null,null,null,null,null,null,null,null,null,null,null,null,null,null,null,null,null,null,null,null,null,null,null,null,null,null,null,null,null,null,null,null,null,null,null,null,null,null,null,null,null,null,null,null,null,null,null,null,null,null,null,null,null,null,null,null,null,null,null,null,null,null,null,null,null,null,null,null,null,null,null,null,null,null,null,null,null,null,null,null,null,null,null,null,null,null,null,null,null,null,null,null,null,null,null,null,null,null,null,null,null,null,null,null,null,null,null,null,null,336,"都島工業","都島工業"]
[null,null,null,null,null,null,null,null,null,null,null,null,null,null,null,null,null,null,null,null,null,null,null,null,null,null,null,null,null,null,null,null,null,null,null,null,null,null,null,null,null,null,null,null,null,null,null,null,null,null,null,null,null,null,null,null,null,null,null,null,null,null,null,null,null,null,null,null,null,null,null,null,null,null,null,null,null,null,null,null,null,null,null,null,null,null,null,null,null,null,null,null,null,null,null,null,null,null,null,null,null,null,null,null,null,null,null,null,null,null,null,null,null,null,null,null,null,null,null,null,null,null,null,null,null,null,null,null,null,null,null,null,null,null,null,null,null,null,null,null,null,null,null,null,null,null,null,null,null,null,null,null,null,null,null,null,null,null,null,null,null,null,null,null,null,null,null,null,null,null,null,null,null,null,null,null,null,null,null,null,null,null,null,null,null,null,null,null,null,null,null,null,null,null,338,"常翔学園","常翔学園"]
[null,null,null,null,null,null,"ふりがな",null,null,null,null,null,null,null,null,null,null,null,null,null,null,null,null,null,null,null,null,null,null,null,null,null,null,null,null,null,null,null,null,null,null,null,null,null,null,null,null,null,null,null,null,null,null,null,null,null,null,null,"・",null,null,null,"・",null,null,null,null,null,null,null,null,null,null,null,null,null,null,null,null,null,null,null,null,null,null,null,null,null,null,null,null,null,null,null,null,null,null,null,null,null,null,null,null,null,null,null,null,null,null,null,null,null,null,null,null,null,null,null,null,null,null,null,null,null,null,null,null,null,null,null,null,null,null,null,null,null,null,null,null,null,null,null,null,null,null,null,null,null,null,null,null,null,null,null,null,null,null,null,null,null,null,null,null,null,null,null,null,null,null,null,null,null,null,null,null,null,null,null,null,null,null,null,null,null,null,null,null,null,null,null,null,null,null,null,339,"大阪産業大学附属","大産大附"]
[null,null,null,null,null,null,"（姓）",null,null,null,null,null,null,null,null,null,null,null,null,null,null,null,"（名）",null,null,null,null,null,null,null,null,null,null,null,null,null,null,null,null,null,null,null,null,null,null,null,null,null,null,null,null,null,null,null,null,null,null,null,null,null,null,null,null,null,null,null,null,null,null,null,null,null,null,null,null,null,null,null,null,null,null,null,null,null,null,null,null,null,null,null,null,null,null,null,null,null,null,null,null,null,null,null,null,null,null,null,null,null,null,null,null,null,null,null,null,null,null,null,null,null,null,null,null,null,null,null,null,null,null,null,null,null,null,null,null,null,null,null,null,null,null,null,null,null,null,null,null,null,null,null,null,null,null,null,null,null,null,null,null,null,null,null,null,null,null,null,null,null,null,null,null,null,null,null,null,null,null,null,null,null,null,null,null,null,null,null,null,null,null,null,null,null,null,null,340,"追手門大手前","追手門大"]
[null,null,null,null,null,null,null,null,null,null,null,null,null,null,null,null,null,null,null,null,null,null,null,null,null,null,null,null,null,null,null,null,null,null,null,null,null,null,null,null,null,null,null,null,null,null,null,null,null,null,null,null,null,null,null,null,null,null,null,null,null,null,null,null,null,null,null,null,null,null,null,null,null,null,null,null,null,null,null,null,null,null,null,null,null,null,null,null,null,null,null,null,null,null,null,null,null,null,null,null,null,null,null,null,null,null,null,null,null,null,null,null,null,null,null,null,null,null,null,null,null,null,null,null,null,null,null,null,null,null,null,null,null,null,null,null,null,null,null,null,null,null,null,null,null,null,null,null,null,null,null,null,null,null,null,null,null,null,null,null,null,null,null,null,null,null,null,null,null,null,null,null,null,null,null,null,null,null,null,null,null,null,null,null,null,null,null,null,null,null,null,null,null,null,341,"常翔啓光学園","常翔啓光"]
[null,null,null,null,null,null,null,null,null,null,null,null,null,null,null,null,null,null,null,null,null,null,null,null,null,null,null,null,null,null,null,null,null,null,null,null,null,null,null,null,null,null,null,null,null,null,null,null,null,null,null,null,null,null,null,null,null,null,null,null,null,null,null,null,null,null,null,null,null,null,null,null,null,null,null,null,null,null,null,null,null,null,null,null,null,null,null,null,null,null,null,null,null,null,null,null,null,null,null,null,null,null,null,null,null,null,null,null,null,null,null,null,null,null,null,null,null,null,null,null,null,null,null,null,null,null,null,null,null,null,null,null,null,null,null,null,null,null,null,null,null,null,null,null,null,null,null,null,null,null,null,null,null,null,null,null,null,null,null,null,null,null,null,null,null,null,null,null,null,null,null,null,null,null,null,null,null,null,null,null,null,null,null,null,null,null,null,null,null,null,null,null,null,null,342,"大阪偕星学園","大阪偕星"]
[null,null,null,null,null,null,"ふりがな",null,null,null,null,null,null,null,null,null,null,null,null,null,null,null,null,null,null,null,null,null,null,null,null,null,null,null,null,null,null,null,null,null,null,null,null,null,null,null,null,null,null,null,null,null,null,null,null,null,null,null,"・",null,null,null,"・",null,null,null,null,null,null,null,null,null,null,null,null,null,null,null,null,null,null,null,null,null,null,null,null,null,null,null,null,null,null,null,null,null,null,null,null,null,null,null,null,null,null,null,null,null,null,null,null,null,null,null,null,null,null,null,null,null,null,null,null,null,null,null,null,null,null,null,null,null,null,null,null,null,null,null,null,null,null,null,null,null,null,null,null,null,null,null,null,null,null,null,null,null,null,null,null,null,null,null,null,null,null,null,null,null,null,null,null,null,null,null,null,null,null,null,null,null,null,null,null,null,null,null,null,null,null,null,null,null,null,null,343,"太成学院大学","太成学院"]
[null,null,null,null,null,null,"（姓）",null,null,null,null,null,null,null,null,null,null,null,null,null,null,null,"（名）",null,null,null,null,null,null,null,null,null,null,null,null,null,null,null,null,null,null,null,null,null,null,null,null,null,null,null,null,null,null,null,null,null,null,null,null,null,null,null,null,null,null,null,null,null,null,null,null,null,null,null,null,null,null,null,null,null,null,null,null,null,null,null,null,null,null,null,null,null,null,null,null,null,null,null,null,null,null,null,null,null,null,null,null,null,null,null,null,null,null,null,null,null,null,null,null,null,null,null,null,null,null,null,null,null,null,null,null,null,null,null,null,null,null,null,null,null,null,null,null,null,null,null,null,null,null,null,null,null,null,null,null,null,null,null,null,null,null,null,null,null,null,null,null,null,null,null,null,null,null,null,null,null,null,null,null,null,null,null,null,null,null,null,null,null,null,null,null,null,null,null,344,"電通大","電 通 大"]
[null,null,null,null,null,null,null,null,null,null,null,null,null,null,null,null,null,null,null,null,null,null,null,null,null,null,null,null,null,null,null,null,null,null,null,null,null,null,null,null,null,null,null,null,null,null,null,null,null,null,null,null,null,null,null,null,null,null,null,null,null,null,null,null,null,null,null,null,null,null,null,null,null,null,null,null,null,null,null,null,null,null,null,null,null,null,null,null,null,null,null,null,null,null,null,null,null,null,null,null,null,null,null,null,null,null,null,null,null,null,null,null,null,null,null,null,null,null,null,null,null,null,null,null,null,null,null,null,null,null,null,null,null,null,null,null,null,null,null,null,null,null,null,null,null,null,null,null,null,null,null,null,null,null,null,null,null,null,null,null,null,null,null,null,null,null,null,null,null,null,null,null,null,null,null,null,null,null,null,null,null,null,null,null,null,null,null,null,null,null,null,null,null,null,345,"同志社香里","同志社香"]
[null,null,null,null,null,null,null,null,null,null,null,null,null,null,null,null,null,null,null,null,null,null,null,null,null,null,null,null,null,null,null,null,null,null,null,null,null,null,null,null,null,null,null,null,null,null,null,null,null,null,null,null,null,null,null,null,null,null,null,null,null,null,null,null,null,null,null,null,null,null,null,null,null,null,null,null,null,null,null,null,null,null,null,null,null,null,null,null,null,null,null,null,null,null,null,null,null,null,null,null,null,null,null,null,null,null,null,null,null,null,null,null,null,null,null,null,null,null,null,null,null,null,null,null,null,null,null,null,null,null,null,null,null,null,null,null,null,null,null,null,null,null,null,null,null,null,null,null,null,null,null,null,null,null,null,null,null,null,null,null,null,null,null,null,null,null,null,null,null,null,null,null,null,null,null,null,null,null,null,null,null,null,null,null,null,null,null,null,null,null,null,null,null,null,346,"開明","開　　明"]
[null,null,null,null,null,null,"ふりがな",null,null,null,null,null,null,null,null,null,null,null,null,null,null,null,null,null,null,null,null,null,null,null,null,null,null,null,null,null,null,null,null,null,null,null,null,null,null,null,null,null,null,null,null,null,null,null,null,null,null,null,"・",null,null,null,"・",null,null,null,null,null,null,null,null,null,null,null,null,null,null,null,null,null,null,null,null,null,null,null,null,null,null,null,null,null,null,null,null,null,null,null,null,null,null,null,null,null,null,null,null,null,null,null,null,null,null,null,null,null,null,null,null,null,null,null,null,null,null,null,null,null,null,null,null,null,null,null,null,null,null,null,null,null,null,null,null,null,null,null,null,null,null,null,null,null,null,null,null,null,null,null,null,null,null,null,null,null,null,null,null,null,null,null,null,null,null,null,null,null,null,null,null,null,null,null,null,null,null,null,null,null,null,null,null,null,null,null,347,"東海大学付属仰星","東海仰星"]
[null,null,null,null,null,null,"（姓）",null,null,null,null,null,null,null,null,null,null,null,null,null,null,null,"（名）",null,null,null,null,null,null,null,null,null,null,null,null,null,null,null,null,null,null,null,null,null,null,null,null,null,null,null,null,null,null,null,null,null,null,null,null,null,null,null,null,null,null,null,null,null,null,null,null,null,null,null,null,null,null,null,null,null,null,null,null,null,null,null,null,null,null,null,null,null,null,null,null,null,null,null,null,null,null,null,null,null,null,null,null,null,null,null,null,null,null,null,null,null,null,null,null,null,null,null,null,null,null,null,null,null,null,null,null,null,null,null,null,null,null,null,null,null,null,null,null,null,null,null,null,null,null,null,null,null,null,null,null,null,null,null,null,null,null,null,null,null,null,null,null,null,null,null,null,null,null,null,null,null,null,null,null,null,null,null,null,null,null,null,null,null,null,null,null,null,null,null,348,"泉尾","泉　　尾"]
[null,null,null,null,null,null,null,null,null,null,null,null,null,null,null,null,null,null,null,null,null,null,null,null,null,null,null,null,null,null,null,null,null,null,null,null,null,null,null,null,null,null,null,null,null,null,null,null,null,null,null,null,null,null,null,null,null,null,null,null,null,null,null,null,null,null,null,null,null,null,null,null,null,null,null,null,null,null,null,null,null,null,null,null,null,null,null,null,null,null,null,null,null,null,null,null,null,null,null,null,null,null,null,null,null,null,null,null,null,null,null,null,null,null,null,null,null,null,null,null,null,null,null,null,null,null,null,null,null,null,null,null,null,null,null,null,null,null,null,null,null,null,null,null,null,null,null,null,null,null,null,null,null,null,null,null,null,null,null,null,null,null,null,null,null,null,null,null,null,null,null,null,null,null,null,null,null,null,null,null,null,null,null,null,null,null,null,null,null,null,null,null,null,null,349,"和泉","和　　泉"]
[null,null,null,null,null,null,null,null,null,null,null,null,null,null,null,null,null,null,null,null,null,null,null,null,null,null,null,null,null,null,null,null,null,null,null,null,null,null,null,null,null,null,null,null,null,null,null,null,null,null,null,null,null,null,null,null,null,null,null,null,null,null,null,null,null,null,null,null,null,null,null,null,null,null,null,null,null,null,null,null,null,null,null,null,null,null,null,null,null,null,null,null,null,null,null,null,null,null,null,null,null,null,null,null,null,null,null,null,null,null,null,null,null,null,null,null,null,null,null,null,null,null,null,null,null,null,null,null,null,null,null,null,null,null,null,null,null,null,null,null,null,null,null,null,null,null,null,null,null,null,null,null,null,null,null,null,null,null,null,null,null,null,null,null,null,null,null,null,null,null,null,null,null,null,null,null,null,null,null,null,null,null,null,null,null,null,null,null,null,null,null,null,null,null,350,"泉大津","泉 大 津"]
[null,null,null,null,null,null,"ふりがな",null,null,null,null,null,null,null,null,null,null,null,null,null,null,null,null,null,null,null,null,null,null,null,null,null,null,null,null,null,null,null,null,null,null,null,null,null,null,null,null,null,null,null,null,null,null,null,null,null,null,null,"・",null,null,null,"・",null,null,null,null,null,null,null,null,null,null,null,null,null,null,null,null,null,null,null,null,null,null,null,null,null,null,null,null,null,null,null,null,null,null,null,null,null,null,null,null,null,null,null,null,null,null,null,null,null,null,null,null,null,null,null,null,null,null,null,null,null,null,null,null,null,null,null,null,null,null,null,null,null,null,null,null,null,null,null,null,null,null,null,null,null,null,null,null,null,null,null,null,null,null,null,null,null,null,null,null,null,null,null,null,null,null,null,null,null,null,null,null,null,null,null,null,null,null,null,null,null,null,null,null,null,null,null,null,null,null,null,351,"泉鳥取","泉 鳥 取"]
[null,null,null,null,null,null,"（姓）",null,null,null,null,null,null,null,null,null,null,null,null,null,null,null,"（名）",null,null,null,null,null,null,null,null,null,null,null,null,null,null,null,null,null,null,null,null,null,null,null,null,null,null,null,null,null,null,null,null,null,null,null,null,null,null,null,null,null,null,null,null,null,null,null,null,null,null,null,null,null,null,null,null,null,null,null,null,null,null,null,null,null,null,null,null,null,null,null,null,null,null,null,null,null,null,null,null,null,null,null,null,null,null,null,null,null,null,null,null,null,null,null,null,null,null,null,null,null,null,null,null,null,null,null,null,null,null,null,null,null,null,null,null,null,null,null,null,null,null,null,null,null,null,null,null,null,null,null,null,null,null,null,null,null,null,null,null,null,null,null,null,null,null,null,null,null,null,null,null,null,null,null,null,null,null,null,null,null,null,null,null,null,null,null,null,null,null,null,352,"市岡","市　　岡"]
[null,null,null,null,null,null,null,null,null,null,null,null,null,null,null,null,null,null,null,null,null,null,null,null,null,null,null,null,null,null,null,null,null,null,null,null,null,null,null,null,null,null,null,null,null,null,null,null,null,null,null,null,null,null,null,null,null,null,null,null,null,null,null,null,null,null,null,null,null,null,null,null,null,null,null,null,null,null,null,null,null,null,null,null,null,null,null,null,null,null,null,null,null,null,null,null,null,null,null,null,null,null,null,null,null,null,null,null,null,null,null,null,null,null,null,null,null,null,null,null,null,null,null,null,null,null,null,null,null,null,null,null,null,null,null,null,null,null,null,null,null,null,null,null,null,null,null,null,null,null,null,null,null,null,null,null,null,null,null,null,null,null,null,null,null,null,null,null,null,null,null,null,null,null,null,null,null,null,null,null,null,null,null,null,null,null,null,null,null,null,null,null,null,null,353,"今宮","今　　宮"]
[null,null,null,null,null,null,null,null,null,null,null,null,null,null,null,null,null,null,null,null,null,null,null,null,null,null,null,null,null,null,null,null,null,null,null,null,null,null,null,null,null,null,null,null,null,null,null,null,null,null,null,null,null,null,null,null,null,null,null,null,null,null,null,null,null,null,null,null,null,null,null,null,null,null,null,null,null,null,null,null,null,null,null,null,null,null,null,null,null,null,null,null,null,null,null,null,null,null,null,null,null,null,null,null,null,null,null,null,null,null,null,null,null,null,null,null,null,null,null,null,null,null,null,null,null,null,null,null,null,null,null,null,null,null,null,null,null,null,null,null,null,null,null,null,null,null,null,null,null,null,null,null,null,null,null,null,null,null,null,null,null,null,null,null,null,null,null,null,null,null,null,null,null,null,null,null,null,null,null,null,null,null,null,null,null,null,null,null,null,null,null,null,null,null,354,"鳳","　 鳳　 "]
[null,null,null,null,null,null,"ふりがな",null,null,null,null,null,null,null,null,null,null,null,null,null,null,null,null,null,null,null,null,null,null,null,null,null,null,null,null,null,null,null,null,null,null,null,null,null,null,null,null,null,null,null,null,null,null,null,null,null,null,null,"・",null,null,null,"・",null,null,null,null,null,null,null,null,null,null,null,null,null,null,null,null,null,null,null,null,null,null,null,null,null,null,null,null,null,null,null,null,null,null,null,null,null,null,null,null,null,null,null,null,null,null,null,null,null,null,null,null,null,null,null,null,null,null,null,null,null,null,null,null,null,null,null,null,null,null,null,null,null,null,null,null,null,null,null,null,null,null,null,null,null,null,null,null,null,null,null,null,null,null,null,null,null,null,null,null,null,null,null,null,null,null,null,null,null,null,null,null,null,null,null,null,null,null,null,null,null,null,null,null,null,null,null,null,null,null,null,355,"貝塚","貝　　塚"]
[null,null,null,null,null,null,"（姓）",null,null,null,null,null,null,null,null,null,null,null,null,null,null,null,"（名）",null,null,null,null,null,null,null,null,null,null,null,null,null,null,null,null,null,null,null,null,null,null,null,null,null,null,null,null,null,null,null,null,null,null,null,null,null,null,null,null,null,null,null,null,null,null,null,null,null,null,null,null,null,null,null,null,null,null,null,null,null,null,null,null,null,null,null,null,null,null,null,null,null,null,null,null,null,null,null,null,null,null,null,null,null,null,null,null,null,null,null,null,null,null,null,null,null,null,null,null,null,null,null,null,null,null,null,null,null,null,null,null,null,null,null,null,null,null,null,null,null,null,null,null,null,null,null,null,null,null,null,null,null,null,null,null,null,null,null,null,null,null,null,null,null,null,null,null,null,null,null,null,null,null,null,null,null,null,null,null,null,null,null,null,null,null,null,null,null,null,null,356,"貝塚南","貝 塚 南"]
[null,null,null,null,null,null,null,null,null,null,null,null,null,null,null,null,null,null,null,null,null,null,null,null,null,null,null,null,null,null,null,null,null,null,null,null,null,null,null,null,null,null,null,null,null,null,null,null,null,null,null,null,null,null,null,null,null,null,null,null,null,null,null,null,null,null,null,null,null,null,null,null,null,null,null,null,null,null,null,null,null,null,null,null,null,null,null,null,null,null,null,null,null,null,null,null,null,null,null,null,null,null,null,null,null,null,null,null,null,null,null,null,null,null,null,null,null,null,null,null,null,null,null,null,null,null,null,null,null,null,null,null,null,null,null,null,null,null,null,null,null,null,null,null,null,null,null,null,null,null,null,null,null,null,null,null,null,null,null,null,null,null,null,null,null,null,null,null,null,null,null,null,null,null,null,null,null,null,null,null,null,null,null,null,null,null,null,null,null,null,null,null,null,null,357,"金岡","金　　岡"]
[null,null,null,null,null,null,null,null,null,null,null,null,null,null,null,null,null,null,null,null,null,null,null,null,null,null,null,null,null,null,null,null,null,null,null,null,null,null,null,null,null,null,null,null,null,null,null,null,null,null,null,null,null,null,null,null,null,null,null,null,null,null,null,null,null,null,null,null,null,null,null,null,null,null,null,null,null,null,null,null,null,null,null,null,null,null,null,null,null,null,null,null,null,null,null,null,null,null,null,null,null,null,null,null,null,null,null,null,null,null,null,null,null,null,null,null,null,null,null,null,null,null,null,null,null,null,null,null,null,null,null,null,null,null,null,null,null,null,null,null,null,null,null,null,null,null,null,null,null,null,null,null,null,null,null,null,null,null,null,null,null,null,null,null,null,null,null,null,null,null,null,null,null,null,null,null,null,null,null,null,null,null,null,null,null,null,null,null,null,null,null,null,null,null,358,"岸和田","岸 和 田"]
[null,null,null,null,null,null,"ふりがな",null,null,null,null,null,null,null,null,null,null,null,null,null,null,null,null,null,null,null,null,null,null,null,null,null,null,null,null,null,null,null,null,null,null,null,null,null,null,null,null,null,null,null,null,null,null,null,null,null,null,null,"・",null,null,null,"・",null,null,null,null,null,null,null,null,null,null,null,null,null,null,null,null,null,null,null,null,null,null,null,null,null,null,null,null,null,null,null,null,null,null,null,null,null,null,null,null,null,null,null,null,null,null,null,null,null,null,null,null,null,null,null,null,null,null,null,null,null,null,null,null,null,null,null,null,null,null,null,null,null,null,null,null,null,null,null,null,null,null,null,null,null,null,null,null,null,null,null,null,null,null,null,null,null,null,null,null,null,null,null,null,null,null,null,null,null,null,null,null,null,null,null,null,null,null,null,null,null,null,null,null,null,null,null,null,null,null,null,359,"港南造形","港南造形"]
[null,null,null,null,null,null,"（姓）",null,null,null,null,null,null,null,null,null,null,null,null,null,null,null,"（名）",null,null,null,null,null,null,null,null,null,null,null,null,null,null,null,null,null,null,null,null,null,null,null,null,null,null,null,null,null,null,null,null,null,null,null,null,null,null,null,null,null,null,null,null,null,null,null,null,null,null,null,null,null,null,null,null,null,null,null,null,null,null,null,null,null,null,null,null,null,null,null,null,null,null,null,null,null,null,null,null,null,null,null,null,null,null,null,null,null,null,null,null,null,null,null,null,null,null,null,null,null,null,null,null,null,null,null,null,null,null,null,null,null,null,null,null,null,null,null,null,null,null,null,null,null,null,null,null,null,null,null,null,null,null,null,null,null,null,null,null,null,null,null,null,null,null,null,null,null,null,null,null,null,null,null,null,null,null,null,null,null,null,null,null,null,null,null,null,null,null,null,360,"久米田","久 米 田"]
[null,null,null,null,null,null,null,null,null,null,null,null,null,null,null,null,null,null,null,null,null,null,null,null,null,null,null,null,null,null,null,null,null,null,null,null,null,null,null,null,null,null,null,null,null,null,null,null,null,null,null,null,null,null,null,null,null,null,null,null,null,null,null,null,null,null,null,null,null,null,null,null,null,null,null,null,null,null,null,null,null,null,null,null,null,null,null,null,null,null,null,null,null,null,null,null,null,null,null,null,null,null,null,null,null,null,null,null,null,null,null,null,null,null,null,null,null,null,null,null,null,null,null,null,null,null,null,null,null,null,null,null,null,null,null,null,null,null,null,null,null,null,null,null,null,null,null,null,null,null,null,null,null,null,null,null,null,null,null,null,null,null,null,null,null,null,null,null,null,null,null,null,null,null,null,null,null,null,null,null,null,null,null,null,null,null,null,null,null,null,null,null,null,null,361,"堺上","堺　　上"]
[null,null,null,null,null,null,null,null,null,null,null,null,null,null,null,null,null,null,null,null,null,null,null,null,null,null,null,null,null,null,null,null,null,null,null,null,null,null,null,null,null,null,null,null,null,null,null,null,null,null,null,null,null,null,null,null,null,null,null,null,null,null,null,null,null,null,null,null,null,null,null,null,null,null,null,null,null,null,null,null,null,null,null,null,null,null,null,null,null,null,null,null,null,null,null,null,null,null,null,null,null,null,null,null,null,null,null,null,null,null,null,null,null,null,null,null,null,null,null,null,null,null,null,null,null,null,null,null,null,null,null,null,null,null,null,null,null,null,null,null,null,null,null,null,null,null,null,null,null,null,null,null,null,null,null,null,null,null,null,null,null,null,null,null,null,null,null,null,null,null,null,null,null,null,null,null,null,null,null,null,null,null,null,null,null,null,null,null,null,null,null,null,null,null,362,"堺西","堺　　西"]
[null,null,null,null,null,null,"ふりがな",null,null,null,null,null,null,null,null,null,null,null,null,null,null,null,null,null,null,null,null,null,null,null,null,null,null,null,null,null,null,null,null,null,null,null,null,null,null,null,null,null,null,null,null,null,null,null,null,null,null,null,"・",null,null,null,"・",null,null,null,null,null,null,null,null,null,null,null,null,null,null,null,null,null,null,null,null,null,null,null,null,null,null,null,null,null,null,null,null,null,null,null,null,null,null,null,null,null,null,null,null,null,null,null,null,null,null,null,null,null,null,null,null,null,null,null,null,null,null,null,null,null,null,null,null,null,null,null,null,null,null,null,null,null,null,null,null,null,null,null,null,null,null,null,null,null,null,null,null,null,null,null,null,null,null,null,null,null,null,null,null,null,null,null,null,null,null,null,null,null,null,null,null,null,null,null,null,null,null,null,null,null,null,null,null,null,null,null,363,"堺東","堺　　東"]
[null,null,null,null,null,null,"（姓）",null,null,null,null,null,null,null,null,null,null,null,null,null,null,null,"（名）",null,null,null,null,null,null,null,null,null,null,null,null,null,null,null,null,null,null,null,null,null,null,null,null,null,null,null,null,null,null,null,null,null,null,null,null,null,null,null,null,null,null,null,null,null,null,null,null,null,null,null,null,null,null,null,null,null,null,null,null,null,null,null,null,null,null,null,null,null,null,null,null,null,null,null,null,null,null,null,null,null,null,null,null,null,null,null,null,null,null,null,null,null,null,null,null,null,null,null,null,null,null,null,null,null,null,null,null,null,null,null,null,null,null,null,null,null,null,null,null,null,null,null,null,null,null,null,null,null,null,null,null,null,null,null,null,null,null,null,null,null,null,null,null,null,null,null,null,null,null,null,null,null,null,null,null,null,null,null,null,null,null,null,null,null,null,null,null,null,null,null,364,"佐野","佐　　野"]
[null,null,null,null,null,null,null,null,null,null,null,null,null,null,null,null,null,null,null,null,null,null,null,null,null,null,null,null,null,null,null,null,null,null,null,null,null,null,null,null,null,null,null,null,null,null,null,null,null,null,null,null,null,null,null,null,null,null,null,null,null,null,null,null,null,null,null,null,null,null,null,null,null,null,null,null,null,null,null,null,null,null,null,null,null,null,null,null,null,null,null,null,null,null,null,null,null,null,null,null,null,null,null,null,null,null,null,null,null,null,null,null,null,null,null,null,null,null,null,null,null,null,null,null,null,null,null,null,null,null,null,null,null,null,null,null,null,null,null,null,null,null,null,null,null,null,null,null,null,null,null,null,null,null,null,null,null,null,null,null,null,null,null,null,null,null,null,null,null,null,null,null,null,null,null,null,null,null,null,null,null,null,null,null,null,null,null,null,null,null,null,null,null,null,365,"狭山","狭　　山"]
[null,null,null,null,null,null,null,null,null,null,null,null,null,null,null,null,null,null,null,null,null,null,null,null,null,null,null,null,null,null,null,null,null,null,null,null,null,null,null,null,null,null,null,null,null,null,null,null,null,null,null,null,null,null,null,null,null,null,null,null,null,null,null,null,null,null,null,null,null,null,null,null,null,null,null,null,null,null,null,null,null,null,null,null,null,null,null,null,null,null,null,null,null,null,null,null,null,null,null,null,null,null,null,null,null,null,null,null,null,null,null,null,null,null,null,null,null,null,null,null,null,null,null,null,null,null,null,null,null,null,null,null,null,null,null,null,null,null,null,null,null,null,null,null,null,null,null,null,null,null,null,null,null,null,null,null,null,null,null,null,null,null,null,null,null,null,null,null,null,null,null,null,null,null,null,null,null,null,null,null,null,null,null,null,null,null,null,null,null,null,null,null,null,null,366,"信太","信　　太"]
[null,null,null,null,null,null,"ふりがな",null,null,null,null,null,null,null,null,null,null,null,null,null,null,null,null,null,null,null,null,null,null,null,null,null,null,null,null,null,null,null,null,null,null,null,null,null,null,null,null,null,null,null,null,null,null,null,null,null,null,null,"・",null,null,null,"・",null,null,null,null,null,null,null,null,null,null,null,null,null,null,null,null,null,null,null,null,null,null,null,null,null,null,null,null,null,null,null,null,null,null,null,null,null,null,null,null,null,null,null,null,null,null,null,null,null,null,null,null,null,null,null,null,null,null,null,null,null,null,null,null,null,null,null,null,null,null,null,null,null,null,null,null,null,null,null,null,null,null,null,null,null,null,null,null,null,null,null,null,null,null,null,null,null,null,null,null,null,null,null,null,null,null,null,null,null,null,null,null,null,null,null,null,null,null,null,null,null,null,null,null,null,null,null,null,null,null,null,367,"咲洲","咲　　洲"]
[null,null,null,null,null,null,"（姓）",null,null,null,null,null,null,null,null,null,null,null,null,null,null,null,"（名）",null,null,null,null,null,null,null,null,null,null,null,null,null,null,null,null,null,null,null,null,null,null,null,null,null,null,null,null,null,null,null,null,null,null,null,null,null,null,null,null,null,null,null,null,null,null,null,null,null,null,null,null,null,null,null,null,null,null,null,null,null,null,null,null,null,null,null,null,null,null,null,null,null,null,null,null,null,null,null,null,null,null,null,null,null,null,null,null,null,null,null,null,null,null,null,null,null,null,null,null,null,null,null,null,null,null,null,null,null,null,null,null,null,null,null,null,null,null,null,null,null,null,null,null,null,null,null,null,null,null,null,null,null,null,null,null,null,null,null,null,null,null,null,null,null,null,null,null,null,null,null,null,null,null,null,null,null,null,null,null,null,null,null,null,null,null,null,null,null,null,null,368,"りんくう翔南","りんくう"]
[null,null,null,null,null,null,null,null,null,null,null,null,null,null,null,null,null,null,null,null,null,null,null,null,null,null,null,null,null,null,null,null,null,null,null,null,null,null,null,null,null,null,null,null,null,null,null,null,null,null,null,null,null,null,null,null,null,null,null,null,null,null,null,null,null,null,null,null,null,null,null,null,null,null,null,null,null,null,null,null,null,null,null,null,null,null,null,null,null,null,null,null,null,null,null,null,null,null,null,null,null,null,null,null,null,null,null,null,null,null,null,null,null,null,null,null,null,null,null,null,null,null,null,null,null,null,null,null,null,null,null,null,null,null,null,null,null,null,null,null,null,null,null,null,null,null,null,null,null,null,null,null,null,null,null,null,null,null,null,null,null,null,null,null,null,null,null,null,null,null,null,null,null,null,null,null,null,null,null,null,null,null,null,null,null,null,null,null,null,null,null,null,null,null,369,"泉北","泉　　北"]
[null,null,null,null,null,null,null,null,null,null,null,null,null,null,null,null,null,null,null,null,null,null,null,null,null,null,null,null,null,null,null,null,null,null,null,null,null,null,null,null,null,null,null,null,null,null,null,null,null,null,null,null,null,null,null,null,null,null,null,null,null,null,null,null,null,null,null,null,null,null,null,null,null,null,null,null,null,null,null,null,null,null,null,null,null,null,null,null,null,null,null,null,null,null,null,null,null,null,null,null,null,null,null,null,null,null,null,null,null,null,null,null,null,null,null,null,null,null,null,null,null,null,null,null,null,null,null,null,null,null,null,null,null,null,null,null,null,null,null,null,null,null,null,null,null,null,null,null,null,null,null,null,null,null,null,null,null,null,null,null,null,null,null,null,null,null,null,null,null,null,null,null,null,null,null,null,null,null,null,null,null,null,null,null,null,null,null,null,null,null,null,null,null,null,370,"泉陽","泉　　陽"]
[null,null,null,null,null,null,"ふりがな",null,null,null,null,null,null,null,null,null,null,null,null,null,null,null,null,null,null,null,null,null,null,null,null,null,null,null,null,null,null,null,null,null,null,null,null,null,null,null,null,null,null,null,null,null,null,null,null,null,null,null,"・",null,null,null,"・",null,null,null,null,null,null,null,null,null,null,null,null,null,null,null,null,null,null,null,null,null,null,null,null,null,null,null,null,null,null,null,null,null,null,null,null,null,null,null,null,null,null,null,null,null,null,null,null,null,null,null,null,null,null,null,null,null,null,null,null,null,null,null,null,null,null,null,null,null,null,null,null,null,null,null,null,null,null,null,null,null,null,null,null,null,null,null,null,null,null,null,null,null,null,null,null,null,null,null,null,null,null,null,null,null,null,null,null,null,null,null,null,null,null,null,null,null,null,null,null,null,null,null,null,null,null,null,null,null,null,null,371,"大正","大　　正"]
[null,null,null,null,null,null,"（姓）",null,null,null,null,null,null,null,null,null,null,null,null,null,null,null,"（名）",null,null,null,null,null,null,null,null,null,null,null,null,null,null,null,null,null,null,null,null,null,null,null,null,null,null,null,null,null,null,null,null,null,null,null,null,null,null,null,null,null,null,null,null,null,null,null,null,null,null,null,null,null,null,null,null,null,null,null,null,null,null,null,null,null,null,null,null,null,null,null,null,null,null,null,null,null,null,null,null,null,null,null,null,null,null,null,null,null,null,null,null,null,null,null,null,null,null,null,null,null,null,null,null,null,null,null,null,null,null,null,null,null,null,null,null,null,null,null,null,null,null,null,null,null,null,null,null,null,null,null,null,null,null,null,null,null,null,null,null,null,null,null,null,null,null,null,null,null,null,null,null,null,null,null,null,null,null,null,null,null,null,null,null,null,null,null,null,null,null,null,372,"高石","高　　石"]
[null,null,null,null,null,null,null,null,null,null,null,null,null,null,null,null,null,null,null,null,null,null,null,null,null,null,null,null,null,null,null,null,null,null,null,null,null,null,null,null,null,null,null,null,null,null,null,null,null,null,null,null,null,null,null,null,null,null,null,null,null,null,null,null,null,null,null,null,null,null,null,null,null,null,null,null,null,null,null,null,null,null,null,null,null,null,null,null,null,null,null,null,null,null,null,null,null,null,null,null,null,null,null,null,null,null,null,null,null,null,null,null,null,null,null,null,null,null,null,null,null,null,null,null,null,null,null,null,null,null,null,null,null,null,null,null,null,null,null,null,null,null,null,null,null,null,null,null,null,null,null,null,null,null,null,null,null,null,null,null,null,null,null,null,null,null,null,null,null,null,null,null,null,null,null,null,null,null,null,null,null,null,null,null,null,null,null,null,null,null,null,null,null,null,373,"登美丘","登 美 丘"]
[null,null,null,null,null,null,null,null,null,null,null,null,null,null,null,null,null,null,null,null,null,null,null,null,null,null,null,null,null,null,null,null,null,null,null,null,null,null,null,null,null,null,null,null,null,null,null,null,null,null,null,null,null,null,null,null,null,null,null,null,null,null,null,null,null,null,null,null,null,null,null,null,null,null,null,null,null,null,null,null,null,null,null,null,null,null,null,null,null,null,null,null,null,null,null,null,null,null,null,null,null,null,null,null,null,null,null,null,null,null,null,null,null,null,null,null,null,null,null,null,null,null,null,null,null,null,null,null,null,null,null,null,null,null,null,null,null,null,null,null,null,null,null,null,null,null,null,null,null,null,null,null,null,null,null,null,null,null,null,null,null,null,null,null,null,null,null,null,null,null,null,null,null,null,null,null,null,null,null,null,null,null,null,null,null,null,null,null,null,null,null,null,null,null,374,"西成","西　　成"]
[null,null,null,null,null,null,"ふりがな",null,null,null,null,null,null,null,null,null,null,null,null,null,null,null,null,null,null,null,null,null,null,null,null,null,null,null,null,null,null,null,null,null,null,null,null,null,null,null,null,null,null,null,null,null,null,null,null,null,null,null,"・",null,null,null,"・",null,null,null,null,null,null,null,null,null,null,null,null,null,null,null,null,null,null,null,null,null,null,null,null,null,null,null,null,null,null,null,null,null,null,null,null,null,null,null,null,null,null,null,null,null,null,null,null,null,null,null,null,null,null,null,null,null,null,null,null,null,null,null,null,null,null,null,null,null,null,null,null,null,null,null,null,null,null,null,null,null,null,null,null,null,null,null,null,null,null,null,null,null,null,null,null,null,null,null,null,null,null,null,null,null,null,null,null,null,null,null,null,null,null,null,null,null,null,null,null,null,null,null,null,null,null,null,null,null,null,null,376,"伯太","伯　　太"]
[null,null,null,null,null,null,"（姓）",null,null,null,null,null,null,null,null,null,null,null,null,null,null,null,"（名）",null,null,null,null,null,null,null,null,null,null,null,null,null,null,null,null,null,null,null,null,null,null,null,null,null,null,null,null,null,null,null,null,null,null,null,null,null,null,null,null,null,null,null,null,null,null,null,null,null,null,null,null,null,null,null,null,null,null,null,null,null,null,null,null,null,null,null,null,null,null,null,null,null,null,null,null,null,null,null,null,null,null,null,null,null,null,null,null,null,null,null,null,null,null,null,null,null,null,null,null,null,null,null,null,null,null,null,null,null,null,null,null,null,null,null,null,null,null,null,null,null,null,null,null,null,null,null,null,null,null,null,null,null,null,null,null,null,null,null,null,null,null,null,null,null,null,null,null,null,null,null,null,null,null,null,null,null,null,null,null,null,null,null,null,null,null,null,null,null,null,null,377,"阪南大学","阪南大学"]
[null,null,null,null,null,null,null,null,null,null,null,null,null,null,null,null,null,null,null,null,null,null,null,null,null,null,null,null,null,null,null,null,null,null,null,null,null,null,null,null,null,null,null,null,null,null,null,null,null,null,null,null,null,null,null,null,null,null,null,null,null,null,null,null,null,null,null,null,null,null,null,null,null,null,null,null,null,null,null,null,null,null,null,null,null,null,null,null,null,null,null,null,null,null,null,null,null,null,null,null,null,null,null,null,null,null,null,null,null,null,null,null,null,null,null,null,null,null,null,null,null,null,null,null,null,null,null,null,null,null,null,null,null,null,null,null,null,null,null,null,null,null,null,null,null,null,null,null,null,null,null,null,null,null,null,null,null,null,null,null,null,null,null,null,null,null,null,null,null,null,null,null,null,null,null,null,null,null,null,null,null,null,null,null,null,null,null,null,null,null,null,null,null,null,378,"東百舌鳥","東百舌鳥"]
[null,null,null,null,null,null,null,null,null,null,null,null,null,null,null,null,null,null,null,null,null,null,null,null,null,null,null,null,null,null,null,null,null,null,null,null,null,null,null,null,null,null,null,null,null,null,null,null,null,null,null,null,null,null,null,null,null,null,null,null,null,null,null,null,null,null,null,null,null,null,null,null,null,null,null,null,null,null,null,null,null,null,null,null,null,null,null,null,null,null,null,null,null,null,null,null,null,null,null,null,null,null,null,null,null,null,null,null,null,null,null,null,null,null,null,null,null,null,null,null,null,null,null,null,null,null,null,null,null,null,null,null,null,null,null,null,null,null,null,null,null,null,null,null,null,null,null,null,null,null,null,null,null,null,null,null,null,null,null,null,null,null,null,null,null,null,null,null,null,null,null,null,null,null,null,null,null,null,null,null,null,null,null,null,null,null,null,null,null,null,null,null,null,null,379,"福泉","福　　泉"]
[null,null,null,null,null,null,"ふりがな",null,null,null,null,null,null,null,null,null,null,null,null,null,null,null,null,null,null,null,null,null,null,null,null,null,null,null,null,null,null,null,null,null,null,null,null,null,null,null,null,null,null,null,null,null,null,null,null,null,null,null,"・",null,null,null,"・",null,null,null,null,null,null,null,null,null,null,null,null,null,null,null,null,null,null,null,null,null,null,null,null,null,null,null,null,null,null,null,null,null,null,null,null,null,null,null,null,null,null,null,null,null,null,null,null,null,null,null,null,null,null,null,null,null,null,null,null,null,null,null,null,null,null,null,null,null,null,null,null,null,null,null,null,null,null,null,null,null,null,null,null,null,null,null,null,null,null,null,null,null,null,null,null,null,null,null,null,null,null,null,null,null,null,null,null,null,null,null,null,null,null,null,null,null,null,null,null,null,null,null,null,null,null,null,null,null,null,null,380,"成美","成　　美"]
[null,null,null,null,null,null,"（姓）",null,null,null,null,null,null,null,null,null,null,null,null,null,null,null,"（名）",null,null,null,null,null,null,null,null,null,null,null,null,null,null,null,null,null,null,null,null,null,null,null,null,null,null,null,null,null,null,null,null,null,null,null,null,null,null,null,null,null,null,null,null,null,null,null,null,null,null,null,null,null,null,null,null,null,null,null,null,null,null,null,null,null,null,null,null,null,null,null,null,null,null,null,null,null,null,null,null,null,null,null,null,null,null,null,null,null,null,null,null,null,null,null,null,null,null,null,null,null,null,null,null,null,null,null,null,null,null,null,null,null,null,null,null,null,null,null,null,null,null,null,null,null,null,null,null,null,null,null,null,null,null,null,null,null,null,null,null,null,null,null,null,null,null,null,null,null,null,null,null,null,null,null,null,null,null,null,null,null,null,null,null,null,null,null,null,null,null,null,381,"三国丘","三 国 丘"]
[null,null,null,null,null,null,null,null,null,null,null,null,null,null,null,null,null,null,null,null,null,null,null,null,null,null,null,null,null,null,null,null,null,null,null,null,null,null,null,null,null,null,null,null,null,null,null,null,null,null,null,null,null,null,null,null,null,null,null,null,null,null,null,null,null,null,null,null,null,null,null,null,null,null,null,null,null,null,null,null,null,null,null,null,null,null,null,null,null,null,null,null,null,null,null,null,null,null,null,null,null,null,null,null,null,null,null,null,null,null,null,null,null,null,null,null,null,null,null,null,null,null,null,null,null,null,null,null,null,null,null,null,null,null,null,null,null,null,null,null,null,null,null,null,null,null,null,null,null,null,null,null,null,null,null,null,null,null,null,null,null,null,null,null,null,null,null,null,null,null,null,null,null,null,null,null,null,null,null,null,null,null,null,null,null,null,null,null,null,null,null,null,null,null,382,"岬","　 岬　 "]
[null,null,null,null,null,null,null,null,null,null,null,null,null,null,null,null,null,null,null,null,null,null,null,null,null,null,null,null,null,null,null,null,null,null,null,null,null,null,null,null,null,null,null,null,null,null,null,null,null,null,null,null,null,null,null,null,null,null,null,null,null,null,null,null,null,null,null,null,null,null,null,null,null,null,null,null,null,null,null,null,null,null,null,null,null,null,null,null,null,null,null,null,null,null,null,null,null,null,null,null,null,null,null,null,null,null,null,null,null,null,null,null,null,null,null,null,null,null,null,null,null,null,null,null,null,null,null,null,null,null,null,null,null,null,null,null,null,null,null,null,null,null,null,null,null,null,null,null,null,null,null,null,null,null,null,null,null,null,null,null,null,null,null,null,null,null,null,null,null,null,null,null,null,null,null,null,null,null,null,null,null,null,null,null,null,null,null,null,null,null,null,null,null,null,383,"港","   港　 "]
[null,null,null,null,null,null,"ふりがな",null,null,null,null,null,null,null,null,null,null,null,null,null,null,null,null,null,null,null,null,null,null,null,null,null,null,null,null,null,null,null,null,null,null,null,null,null,null,null,null,null,null,null,null,null,null,null,null,null,null,null,"・",null,null,null,"・",null,null,null,null,null,null,null,null,null,null,null,null,null,null,null,null,null,null,null,null,null,null,null,null,null,null,null,null,null,null,null,null,null,null,null,null,null,null,null,null,null,null,null,null,null,null,null,null,null,null,null,null,null,null,null,null,null,null,null,null,null,null,null,null,null,null,null,null,null,null,null,null,null,null,null,null,null,null,null,null,null,null,null,null,null,null,null,null,null,null,null,null,null,null,null,null,null,null,null,null,null,null,null,null,null,null,null,null,null,null,null,null,null,null,null,null,null,null,null,null,null,null,null,null,null,null,null,null,null,null,null,384,"センター附属","センター"]
[null,null,null,null,null,null,"（姓）",null,null,null,null,null,null,null,null,null,null,null,null,null,null,null,"（名）",null,null,null,null,null,null,null,null,null,null,null,null,null,null,null,null,null,null,null,null,null,null,null,null,null,null,null,null,null,null,null,null,null,null,null,null,null,null,null,null,null,null,null,null,null,null,null,null,null,null,null,null,null,null,null,null,null,null,null,null,null,null,null,null,null,null,null,null,null,null,null,null,null,null,null,null,null,null,null,null,null,null,null,null,null,null,null,null,null,null,null,null,null,null,null,null,null,null,null,null,null,null,null,null,null,null,null,null,null,null,null,null,null,null,null,null,null,null,null,null,null,null,null,null,null,null,null,null,null,null,null,null,null,null,null,null,null,null,null,null,null,null,null,null,null,null,null,null,null,null,null,null,null,null,null,null,null,null,null,null,null,null,null,null,null,null,null,null,null,null,null,386,"和泉総合","和泉総合"]
[null,null,null,null,null,null,null,null,null,null,null,null,null,null,null,null,null,null,null,null,null,null,null,null,null,null,null,null,null,null,null,null,null,null,null,null,null,null,null,null,null,null,null,null,null,null,null,null,null,null,null,null,null,null,null,null,null,null,null,null,null,null,null,null,null,null,null,null,null,null,null,null,null,null,null,null,null,null,null,null,null,null,null,null,null,null,null,null,null,null,null,null,null,null,null,null,null,null,null,null,null,null,null,null,null,null,null,null,null,null,null,null,null,null,null,null,null,null,null,null,null,null,null,null,null,null,null,null,null,null,null,null,null,null,null,null,null,null,null,null,null,null,null,null,null,null,null,null,null,null,null,null,null,null,null,null,null,null,null,null,null,null,null,null,null,null,null,null,null,null,null,null,null,null,null,null,null,null,null,null,null,null,null,null,null,null,null,null,null,null,null,null,null,null,387,"今宮工科","今宮工科"]
[null,null,null,null,null,null,null,null,null,null,null,null,null,null,null,null,null,null,null,null,null,null,null,null,null,null,null,null,null,null,null,null,null,null,null,null,null,null,null,null,null,null,null,null,null,null,null,null,null,null,null,null,null,null,null,null,null,null,null,null,null,null,null,null,null,null,null,null,null,null,null,null,null,null,null,null,null,null,null,null,null,null,null,null,null,null,null,null,null,null,null,null,null,null,null,null,null,null,null,null,null,null,null,null,null,null,null,null,null,null,null,null,null,null,null,null,null,null,null,null,null,null,null,null,null,null,null,null,null,null,null,null,null,null,null,null,null,null,null,null,null,null,null,null,null,null,null,null,null,null,null,null,null,null,null,null,null,null,null,null,null,null,null,null,null,null,null,null,null,null,null,null,null,null,null,null,null,null,null,null,null,null,null,null,null,null,null,null,null,null,null,null,null,null,388,"堺工科","堺 工 科"]
[null,null,null,null,null,null,"ふりがな",null,null,null,null,null,null,null,null,null,null,null,null,null,null,null,null,null,null,null,null,null,null,null,null,null,null,null,null,null,null,null,null,null,null,null,null,null,null,null,null,null,null,null,null,null,null,null,null,null,null,null,"・",null,null,null,"・",null,null,null,null,null,null,null,null,null,null,null,null,null,null,null,null,null,null,null,null,null,null,null,null,null,null,null,null,null,null,null,null,null,null,null,null,null,null,null,null,null,null,null,null,null,null,null,null,null,null,null,null,null,null,null,null,null,null,null,null,null,null,null,null,null,null,null,null,null,null,null,null,null,null,null,null,null,null,null,null,null,null,null,null,null,null,null,null,null,null,null,null,null,null,null,null,null,null,null,null,null,null,null,null,null,null,null,null,null,null,null,null,null,null,null,null,null,null,null,null,null,null,null,null,null,null,null,null,null,null,null,389,"佐野工科","佐野工科"]
[null,null,null,null,null,null,"（姓）",null,null,null,null,null,null,null,null,null,null,null,null,null,null,null,"（名）",null,null,null,null,null,null,null,null,null,null,null,null,null,null,null,null,null,null,null,null,null,null,null,null,null,null,null,null,null,null,null,null,null,null,null,null,null,null,null,null,null,null,null,null,null,null,null,null,null,null,null,null,null,null,null,null,null,null,null,null,null,null,null,null,null,null,null,null,null,null,null,null,null,null,null,null,null,null,null,null,null,null,null,null,null,null,null,null,null,null,null,null,null,null,null,null,null,null,null,null,null,null,null,null,null,null,null,null,null,null,null,null,null,null,null,null,null,null,null,null,null,null,null,null,null,null,null,null,null,null,null,null,null,null,null,null,null,null,null,null,null,null,null,null,null,null,null,null,null,null,null,null,null,null,null,null,null,null,null,null,null,null,null,null,null,null,null,null,null,null,null,390,"西野田工科","西野田工"]
[null,null,null,null,null,null,null,null,null,null,null,null,null,null,null,null,null,null,null,null,null,null,null,null,null,null,null,null,null,null,null,null,null,null,null,null,null,null,null,null,null,null,null,null,null,null,null,null,null,null,null,null,null,null,null,null,null,null,null,null,null,null,null,null,null,null,null,null,null,null,null,null,null,null,null,null,null,null,null,null,null,null,null,null,null,null,null,null,null,null,null,null,null,null,null,null,null,null,null,null,null,null,null,null,null,null,null,null,null,null,null,null,null,null,null,null,null,null,null,null,null,null,null,null,null,null,null,null,null,null,null,null,null,null,null,null,null,null,null,null,null,null,null,null,null,null,null,null,null,null,null,null,null,null,null,null,null,null,null,null,null,null,null,null,null,null,null,null,null,null,null,null,null,null,null,null,null,null,null,null,null,null,null,null,null,null,null,null,null,null,null,null,null,null,391,"日根野","日 根 野"]
[null,null,null,null,null,null,null,null,null,null,null,null,null,null,null,null,null,null,null,null,null,null,null,null,null,null,null,null,null,null,null,null,null,null,null,null,null,null,null,null,null,null,null,null,null,null,null,null,null,null,null,null,null,null,null,null,null,null,null,null,null,null,null,null,null,null,null,null,null,null,null,null,null,null,null,null,null,null,null,null,null,null,null,null,null,null,null,null,null,null,null,null,null,null,null,null,null,null,null,null,null,null,null,null,null,null,null,null,null,null,null,null,null,null,null,null,null,null,null,null,null,null,null,null,null,null,null,null,null,null,null,null,null,null,null,null,null,null,null,null,null,null,null,null,null,null,null,null,null,null,null,null,null,null,null,null,null,null,null,null,null,null,null,null,null,null,null,null,null,null,null,null,null,null,null,null,null,null,null,null,null,null,null,null,null,null,null,null,null,null,null,null,null,null,394,"泉尾工業","泉尾工業"]
[null,null,null,null,null,null,"ふりがな",null,null,null,null,null,null,null,null,null,null,null,null,null,null,null,null,null,null,null,null,null,null,null,null,null,null,null,null,null,null,null,null,null,null,null,null,null,null,null,null,null,null,null,null,null,null,null,null,null,null,null,"・",null,null,null,"・",null,null,null,null,null,null,null,null,null,null,null,null,null,null,null,null,null,null,null,null,null,null,null,null,null,null,null,null,null,null,null,null,null,null,null,null,null,null,null,null,null,null,null,null,null,null,null,null,null,null,null,null,null,null,null,null,null,null,null,null,null,null,null,null,null,null,null,null,null,null,null,null,null,null,null,null,null,null,null,null,null,null,null,null,null,null,null,null,null,null,null,null,null,null,null,null,null,null,null,null,null,null,null,null,null,null,null,null,null,null,null,null,null,null,null,null,null,null,null,null,null,null,null,null,null,null,null,null,null,null,null,395,"岸和田市立産業","岸和田産"]
[null,null,null,null,null,null,"（姓）",null,null,null,null,null,null,null,null,null,null,null,null,null,null,null,"（名）",null,null,null,null,null,null,null,null,null,null,null,null,null,null,null,null,null,null,null,null,null,null,null,null,null,null,null,null,null,null,null,null,null,null,null,null,null,null,null,null,null,null,null,null,null,null,null,null,null,null,null,null,null,null,null,null,null,null,null,null,null,null,null,null,null,null,null,null,null,null,null,null,null,null,null,null,null,null,null,null,null,null,null,null,null,null,null,null,null,null,null,null,null,null,null,null,null,null,null,null,null,null,null,null,null,null,null,null,null,null,null,null,null,null,null,null,null,null,null,null,null,null,null,null,null,null,null,null,null,null,null,null,null,null,null,null,null,null,null,null,null,null,null,null,null,null,null,null,null,null,null,null,null,null,null,null,null,null,null,null,null,null,null,null,null,null,null,null,null,null,null,396,"咲くやこの花","咲　　花"]
[null,null,null,null,null,null,null,null,null,null,null,null,null,null,null,null,null,null,null,null,null,null,null,null,null,null,null,null,null,null,null,null,null,null,null,null,null,null,null,null,null,null,null,null,null,null,null,null,null,null,null,null,null,null,null,null,null,null,null,null,null,null,null,null,null,null,null,null,null,null,null,null,null,null,null,null,null,null,null,null,null,null,null,null,null,null,null,null,null,null,null,null,null,null,null,null,null,null,null,null,null,null,null,null,null,null,null,null,null,null,null,null,null,null,null,null,null,null,null,null,null,null,null,null,null,null,null,null,null,null,null,null,null,null,null,null,null,null,null,null,null,null,null,null,null,null,null,null,null,null,null,null,null,null,null,null,null,null,null,null,null,null,null,null,null,null,null,null,null,null,null,null,null,null,null,null,null,null,null,null,null,null,null,null,null,null,null,null,null,null,null,null,null,null,397,"堺市立堺","堺市立堺"]
[null,null,null,null,null,null,null,null,null,null,null,null,null,null,null,null,null,null,null,null,null,null,null,null,null,null,null,null,null,null,null,null,null,null,null,null,null,null,null,null,null,null,null,null,null,null,null,null,null,null,null,null,null,null,null,null,null,null,null,null,null,null,null,null,null,null,null,null,null,null,null,null,null,null,null,null,null,null,null,null,null,null,null,null,null,null,null,null,null,null,null,null,null,null,null,null,null,null,null,null,null,null,null,null,null,null,null,null,null,null,null,null,null,null,null,null,null,null,null,null,null,null,null,null,null,null,null,null,null,null,null,null,null,null,null,null,null,null,null,null,null,null,null,null,null,null,null,null,null,null,null,null,null,null,null,null,null,null,null,null,null,null,null,null,null,null,null,null,null,null,null,null,null,null,null,null,null,null,null,null,null,null,null,null,null,null,null,null,null,null,null,null,null,null,398,"大阪商業大学堺","商 大 堺　"]
[null,null,null,null,null,null,"ふりがな",null,null,null,null,null,null,null,null,null,null,null,null,null,null,null,null,null,null,null,null,null,null,null,null,null,null,null,null,null,null,null,null,null,null,null,null,null,null,null,null,null,null,null,null,null,null,null,null,null,null,null,"・",null,null,null,"・",null,null,null,null,null,null,null,null,null,null,null,null,null,null,null,null,null,null,null,null,null,null,null,null,null,null,null,null,null,null,null,null,null,null,null,null,null,null,null,null,null,null,null,null,null,null,null,null,null,null,null,null,null,null,null,null,null,null,null,null,null,null,null,null,null,null,null,null,null,null,null,null,null,null,null,null,null,null,null,null,null,null,null,null,null,null,null,null,null,null,null,null,null,null,null,null,null,null,null,null,null,null,null,null,null,null,null,null,null,null,null,null,null,null,null,null,null,null,null,null,null,null,null,null,null,null,null,null,null,null,null,399,"大阪学芸","大阪学芸"]
[null,null,null,null,null,null,"（姓）",null,null,null,null,null,null,null,null,null,null,null,null,null,null,null,"（名）",null,null,null,null,null,null,null,null,null,null,null,null,null,null,null,null,null,null,null,null,null,null,null,null,null,null,null,null,null,null,null,null,null,null,null,null,null,null,null,null,null,null,null,null,null,null,null,null,null,null,null,null,null,null,null,null,null,null,null,null,null,null,null,null,null,null,null,null,null,null,null,null,null,null,null,null,null,null,null,null,null,null,null,null,null,null,null,null,null,null,null,null,null,null,null,null,null,null,null,null,null,null,null,null,null,null,null,null,null,null,null,null,null,null,null,null,null,null,null,null,null,null,null,null,null,null,null,null,null,null,null,null,null,null,null,null,null,null,null,null,null,null,null,null,null,null,null,null,null,null,null,null,null,null,null,null,null,null,null,null,null,null,null,null,null,null,null,null,null,null,null,400,"清教学園","清教学園"]
[null,null,null,null,null,null,null,null,null,null,null,null,null,null,null,null,null,null,null,null,null,null,null,null,null,null,null,null,null,null,null,null,null,null,null,null,null,null,null,null,null,null,null,null,null,null,null,null,null,null,null,null,null,null,null,null,null,null,null,null,null,null,null,null,null,null,null,null,null,null,null,null,null,null,null,null,null,null,null,null,null,null,null,null,null,null,null,null,null,null,null,null,null,null,null,null,null,null,null,null,null,null,null,null,null,null,null,null,null,null,null,null,null,null,null,null,null,null,null,null,null,null,null,null,null,null,null,null,null,null,null,null,null,null,null,null,null,null,null,null,null,null,null,null,null,null,null,null,null,null,null,null,null,null,null,null,null,null,null,null,null,null,null,null,null,null,null,null,null,null,null,null,null,null,null,null,null,null,null,null,null,null,null,null,null,null,null,null,null,null,null,null,null,null,401,"浪速","浪　　速"]
[null,null,null,null,null,null,null,null,null,null,null,null,null,null,null,null,null,null,null,null,null,null,null,null,null,null,null,null,null,null,null,null,null,null,null,null,null,null,null,null,null,null,null,null,null,null,null,null,null,null,null,null,null,null,null,null,null,null,null,null,null,null,null,null,null,null,null,null,null,null,null,null,null,null,null,null,null,null,null,null,null,null,null,null,null,null,null,null,null,null,null,null,null,null,null,null,null,null,null,null,null,null,null,null,null,null,null,null,null,null,null,null,null,null,null,null,null,null,null,null,null,null,null,null,null,null,null,null,null,null,null,null,null,null,null,null,null,null,null,null,null,null,null,null,null,null,null,null,null,null,null,null,null,null,null,null,null,null,null,null,null,null,null,null,null,null,null,null,null,null,null,null,null,null,null,null,null,null,null,null,null,null,null,null,null,null,null,null,null,null,null,null,null,null,402,"初芝立命館","初芝立命"]
[null,null,null,null,null,null,"ふりがな",null,null,null,null,null,null,null,null,null,null,null,null,null,null,null,null,null,null,null,null,null,null,null,null,null,null,null,null,null,null,null,null,null,null,null,null,null,null,null,null,null,null,null,null,null,null,null,null,null,null,null,"・",null,null,null,"・",null,null,null,null,null,null,null,null,null,null,null,null,null,null,null,null,null,null,null,null,null,null,null,null,null,null,null,null,null,null,null,null,null,null,null,null,null,null,null,null,null,null,null,null,null,null,null,null,null,null,null,null,null,null,null,null,null,null,null,null,null,null,null,null,null,null,null,null,null,null,null,null,null,null,null,null,null,null,null,null,null,null,null,null,null,null,null,null,null,null,null,null,null,null,null,null,null,null,null,null,null,null,null,null,null,null,null,null,null,null,null,null,null,null,null,null,null,null,null,null,null,null,null,null,null,null,null,null,null,null,null,403,"清風南海","清風南海"]
[null,null,null,null,null,null,"（姓）",null,null,null,null,null,null,null,null,null,null,null,null,null,null,null,"（名）",null,null,null,null,null,null,null,null,null,null,null,null,null,null,null,null,null,null,null,null,null,null,null,null,null,null,null,null,null,null,null,null,null,null,null,null,null,null,null,null,null,null,null,null,null,null,null,null,null,null,null,null,null,null,null,null,null,null,null,null,null,null,null,null,null,null,null,null,null,null,null,null,null,null,null,null,null,null,null,null,null,null,null,null,null,null,null,null,null,null,null,null,null,null,null,null,null,null,null,null,null,null,null,null,null,null,null,null,null,null,null,null,null,null,null,null,null,null,null,null,null,null,null,null,null,null,null,null,null,null,null,null,null,null,null,null,null,null,null,null,null,null,null,null,null,null,null,null,null,null,null,null,null,null,null,null,null,null,null,null,null,null,null,null,null,null,null,null,null,null,null,404,"帝塚山泉ヶ丘","帝塚山泉"]
[null,null,null,null,null,null,null,null,null,null,null,null,null,null,null,null,null,null,null,null,null,null,null,null,null,null,null,null,null,null,null,null,null,null,null,null,null,null,null,null,null,null,null,null,null,null,null,null,null,null,null,null,null,null,null,null,null,null,null,null,null,null,null,null,null,null,null,null,null,null,null,null,null,null,null,null,null,null,null,null,null,null,null,null,null,null,null,null,null,null,null,null,null,null,null,null,null,null,null,null,null,null,null,null,null,null,null,null,null,null,null,null,null,null,null,null,null,null,null,null,null,null,null,null,null,null,null,null,null,null,null,null,null,null,null,null,null,null,null,null,null,null,null,null,null,null,null,null,null,null,null,null,null,null,null,null,null,null,null,null,null,null,null,null,null,null,null,null,null,null,null,null,null,null,null,null,null,null,null,null,null,null,null,null,null,null,null,null,null,null,null,null,null,null,405,"金剛学園","金剛学園"]
[null,null,null,null,null,null,null,null,null,null,null,null,null,null,null,null,null,null,null,null,null,null,null,null,null,null,null,null,null,null,null,null,null,null,null,null,null,null,null,null,null,null,null,null,null,null,null,null,null,null,null,null,null,null,null,null,null,null,null,null,null,null,null,null,null,null,null,null,null,null,null,null,null,null,null,null,null,null,null,null,null,null,null,null,null,null,null,null,null,null,null,null,null,null,null,null,null,null,null,null,null,null,null,null,null,null,null,null,null,null,null,null,null,null,null,null,null,null,null,null,null,null,null,null,null,null,null,null,null,null,null,null,null,null,null,null,null,null,null,null,null,null,null,null,null,null,null,null,null,null,null,null,null,null,null,null,null,null,null,null,null,null,null,null,null,null,null,null,null,null,null,null,null,null,null,null,null,null,null,null,null,null,null,null,null,null,null,null,null,null,null,null,null,null,406,"大体大浪商","体大浪商"]
[null,null,null,null,null,null,"ふりがな",null,null,null,null,null,null,null,null,null,null,null,null,null,null,null,null,null,null,null,null,null,null,null,null,null,null,null,null,null,null,null,null,null,null,null,null,null,null,null,null,null,null,null,null,null,null,null,null,null,null,null,"・",null,null,null,"・",null,null,null,null,null,null,null,null,null,null,null,null,null,null,null,null,null,null,null,null,null,null,null,null,null,null,null,null,null,null,null,null,null,null,null,null,null,null,null,null,null,null,null,null,null,null,null,null,null,null,null,null,null,null,null,null,null,null,null,null,null,null,null,null,null,null,null,null,null,null,null,null,null,null,null,null,null,null,null,null,null,null,null,null,null,null,null,null,null,null,null,null,null,null,null,null,null,null,null,null,null,null,null,null,null,null,null,null,null,null,null,null,null,null,null,null,null,null,null,null,null,null,null,null,null,null,null,null,null,null,null,407,"教育大天王寺","教大天王"]
[null,null,null,null,null,null,"（姓）",null,null,null,null,null,null,null,null,null,null,null,null,null,null,null,"（名）",null,null,null,null,null,null,null,null,null,null,null,null,null,null,null,null,null,null,null,null,null,null,null,null,null,null,null,null,null,null,null,null,null,null,null,null,null,null,null,null,null,null,null,null,null,null,null,null,null,null,null,null,null,null,null,null,null,null,null,null,null,null,null,null,null,null,null,null,null,null,null,null,null,null,null,null,null,null,null,null,null,null,null,null,null,null,null,null,null,null,null,null,null,null,null,null,null,null,null,null,null,null,null,null,null,null,null,null,null,null,null,null,null,null,null,null,null,null,null,null,null,null,null,null,null,null,null,null,null,null,null,null,null,null,null,null,null,null,null,null,null,null,null,null,null,null,null,null,null,null,null,null,null,null,null,null,null,null,null,null,null,null,null,null,null,null,null,null,null,null,null,408,"教育大附平野","教大平野"]
[null,null,null,null,null,null,null,null,null,null,null,null,null,null,null,null,null,null,null,null,null,null,null,null,null,null,null,null,null,null,null,null,null,null,null,null,null,null,null,null,null,null,null,null,null,null,null,null,null,null,null,null,null,null,null,null,null,null,null,null,null,null,null,null,null,null,null,null,null,null,null,null,null,null,null,null,null,null,null,null,null,null,null,null,null,null,null,null,null,null,null,null,null,null,null,null,null,null,null,null,null,null,null,null,null,null,null,null,null,null,null,null,null,null,null,null,null,null,null,null,null,null,null,null,null,null,null,null,null,null,null,null,null,null,null,null,null,null,null,null,null,null,null,null,null,null,null,null,null,null,null,null,null,null,null,null,null,null,null,null,null,null,null,null,null,null,null,null,null,null,null,null,null,null,null,null,null,null,null,null,null,null,null,null,null,null,null,null,null,null,null,null,null,null,409,"阿倍野","阿 倍 野"]
[null,null,null,null,null,null,null,null,null,null,null,null,null,null,null,null,null,null,null,null,null,null,null,null,null,null,null,null,null,null,null,null,null,null,null,null,null,null,null,null,null,null,null,null,null,null,null,null,null,null,null,null,null,null,null,null,null,null,null,null,null,null,null,null,null,null,null,null,null,null,null,null,null,null,null,null,null,null,null,null,null,null,null,null,null,null,null,null,null,null,null,null,null,null,null,null,null,null,null,null,null,null,null,null,null,null,null,null,null,null,null,null,null,null,null,null,null,null,null,null,null,null,null,null,null,null,null,null,null,null,null,null,null,null,null,null,null,null,null,null,null,null,null,null,null,null,null,null,null,null,null,null,null,null,null,null,null,null,null,null,null,null,null,null,null,null,null,null,null,null,null,null,null,null,null,null,null,null,null,null,null,null,null,null,null,null,null,null,null,null,null,null,null,null,410,"生野","生　　野"]
[null,null,null,null,null,null,"ふりがな",null,null,null,null,null,null,null,null,null,null,null,null,null,null,null,null,null,null,null,null,null,null,null,null,null,null,null,null,null,null,null,null,null,null,null,null,null,null,null,null,null,null,null,null,null,null,null,null,null,null,null,"・",null,null,null,"・",null,null,null,null,null,null,null,null,null,null,null,null,null,null,null,null,null,null,null,null,null,null,null,null,null,null,null,null,null,null,null,null,null,null,null,null,null,null,null,null,null,null,null,null,null,null,null,null,null,null,null,null,null,null,null,null,null,null,null,null,null,null,null,null,null,null,null,null,null,null,null,null,null,null,null,null,null,null,null,null,null,null,null,null,null,null,null,null,null,null,null,null,null,null,null,null,null,null,null,null,null,null,null,null,null,null,null,null,null,null,null,null,null,null,null,null,null,null,null,null,null,null,null,null,null,null,null,null,null,null,null,411,"みどり清朋","み ど り"]
[null,null,null,null,null,null,"（姓）",null,null,null,null,null,null,null,null,null,null,null,null,null,null,null,"（名）",null,null,null,null,null,null,null,null,null,null,null,null,null,null,null,null,null,null,null,null,null,null,null,null,null,null,null,null,null,null,null,null,null,null,null,null,null,null,null,null,null,null,null,null,null,null,null,null,null,null,null,null,null,null,null,null,null,null,null,null,null,null,null,null,null,null,null,null,null,null,null,null,null,null,null,null,null,null,null,null,null,null,null,null,null,null,null,null,null,null,null,null,null,null,null,null,null,null,null,null,null,null,null,null,null,null,null,null,null,null,null,null,null,null,null,null,null,null,null,null,null,null,null,null,null,null,null,null,null,null,null,null,null,null,null,null,null,null,null,null,null,null,null,null,null,null,null,null,null,null,null,null,null,null,null,null,null,null,null,null,null,null,null,null,null,null,null,null,null,null,null,412,"大塚","大　　塚"]
[null,null,null,null,null,null,null,null,null,null,null,null,null,null,null,null,null,null,null,null,null,null,null,null,null,null,null,null,null,null,null,null,null,null,null,null,null,null,null,null,null,null,null,null,null,null,null,null,null,null,null,null,null,null,null,null,null,null,null,null,null,null,null,null,null,null,null,null,null,null,null,null,null,null,null,null,null,null,null,null,null,null,null,null,null,null,null,null,null,null,null,null,null,null,null,null,null,null,null,null,null,null,null,null,null,null,null,null,null,null,null,null,null,null,null,null,null,null,null,null,null,null,null,null,null,null,null,null,null,null,null,null,null,null,null,null,null,null,null,null,null,null,null,null,null,null,null,null,null,null,null,null,null,null,null,null,null,null,null,null,null,null,null,null,null,null,null,null,null,null,null,null,null,null,null,null,null,null,null,null,null,null,null,null,null,null,null,null,null,null,null,null,null,null,413,"柏原東","柏 原 東"]
[null,null,null,null,null,null,null,null,null,null,null,null,null,null,null,null,null,null,null,null,null,null,null,null,null,null,null,null,null,null,null,null,null,null,null,null,null,null,null,null,null,null,null,null,null,null,null,null,null,null,null,null,null,null,null,null,null,null,null,null,null,null,null,null,null,null,null,null,null,null,null,null,null,null,null,null,null,null,null,null,null,null,null,null,null,null,null,null,null,null,null,null,null,null,null,null,null,null,null,null,null,null,null,null,null,null,null,null,null,null,null,null,null,null,null,null,null,null,null,null,null,null,null,null,null,null,null,null,null,null,null,null,null,null,null,null,null,null,null,null,null,null,null,null,null,null,null,null,null,null,null,null,null,null,null,null,null,null,null,null,null,null,null,null,null,null,null,null,null,null,null,null,null,null,null,null,null,null,null,null,null,null,null,null,null,null,null,null,null,null,null,null,null,null,414,"河南","河　　南"]
[null,null,null,null,null,null,"ふりがな",null,null,null,null,null,null,null,null,null,null,null,null,null,null,null,null,null,null,null,null,null,null,null,null,null,null,null,null,null,null,null,null,null,null,null,null,null,null,null,null,null,null,null,null,null,null,null,null,null,null,null,"・",null,null,null,"・",null,null,null,null,null,null,null,null,null,null,null,null,null,null,null,null,null,null,null,null,null,null,null,null,null,null,null,null,null,null,null,null,null,null,null,null,null,null,null,null,null,null,null,null,null,null,null,null,null,null,null,null,null,null,null,null,null,null,null,null,null,null,null,null,null,null,null,null,null,null,null,null,null,null,null,null,null,null,null,null,null,null,null,null,null,null,null,null,null,null,null,null,null,null,null,null,null,null,null,null,null,null,null,null,null,null,null,null,null,null,null,null,null,null,null,null,null,null,null,null,null,null,null,null,null,null,null,null,null,null,null,416,"金剛","金　　剛"]
[null,null,null,null,null,null,"（姓）",null,null,null,null,null,null,null,null,null,null,null,null,null,null,null,"（名）",null,null,null,null,null,null,null,null,null,null,null,null,null,null,null,null,null,null,null,null,null,null,null,null,null,null,null,null,null,null,null,null,null,null,null,null,null,null,null,null,null,null,null,null,null,null,null,null,null,null,null,null,null,null,null,null,null,null,null,null,null,null,null,null,null,null,null,null,null,null,null,null,null,null,null,null,null,null,null,null,null,null,null,null,null,null,null,null,null,null,null,null,null,null,null,null,null,null,null,null,null,null,null,null,null,null,null,null,null,null,null,null,null,null,null,null,null,null,null,null,null,null,null,null,null,null,null,null,null,null,null,null,null,null,null,null,null,null,null,null,null,null,null,null,null,null,null,null,null,null,null,null,null,null,null,null,null,null,null,null,null,null,null,null,null,null,null,null,null,null,null,417,"住吉","住　　吉"]
[null,null,null,null,null,null,null,null,null,null,null,null,null,null,null,null,null,null,null,null,null,null,null,null,null,null,null,null,null,null,null,null,null,null,null,null,null,null,null,null,null,null,null,null,null,null,null,null,null,null,null,null,null,null,null,null,null,null,null,null,null,null,null,null,null,null,null,null,null,null,null,null,null,null,null,null,null,null,null,null,null,null,null,null,null,null,null,null,null,null,null,null,null,null,null,null,null,null,null,null,null,null,null,null,null,null,null,null,null,null,null,null,null,null,null,null,null,null,null,null,null,null,null,null,null,null,null,null,null,null,null,null,null,null,null,null,null,null,null,null,null,null,null,null,null,null,null,null,null,null,null,null,null,null,null,null,null,null,null,null,null,null,null,null,null,null,null,null,null,null,null,null,null,null,null,null,null,null,null,null,null,null,null,null,null,null,null,null,null,null,null,null,null,null,419,"天王寺","天 王 寺"]
[null,null,null,null,null,null,null,null,null,null,null,null,null,null,null,null,null,null,null,null,null,null,null,null,null,null,null,null,null,null,null,null,null,null,null,null,null,null,null,null,null,null,null,null,null,null,null,null,null,null,null,null,null,null,null,null,null,null,null,null,null,null,null,null,null,null,null,null,null,null,null,null,null,null,null,null,null,null,null,null,null,null,null,null,null,null,null,null,null,null,null,null,null,null,null,null,null,null,null,null,null,null,null,null,null,null,null,null,null,null,null,null,null,null,null,null,null,null,null,null,null,null,null,null,null,null,null,null,null,null,null,null,null,null,null,null,null,null,null,null,null,null,null,null,null,null,null,null,null,null,null,null,null,null,null,null,null,null,null,null,null,null,null,null,null,null,null,null,null,null,null,null,null,null,null,null,null,null,null,null,null,null,null,null,null,null,null,null,null,null,null,null,null,null,420,"富田林","富 田 林"]
[null,null,null,null,null,null,"ふりがな",null,null,null,null,null,null,null,null,null,null,null,null,null,null,null,null,null,null,null,null,null,null,null,null,null,null,null,null,null,null,null,null,null,null,null,null,null,null,null,null,null,null,null,null,null,null,null,null,null,null,null,"・",null,null,null,"・",null,null,null,null,null,null,null,null,null,null,null,null,null,null,null,null,null,null,null,null,null,null,null,null,null,null,null,null,null,null,null,null,null,null,null,null,null,null,null,null,null,null,null,null,null,null,null,null,null,null,null,null,null,null,null,null,null,null,null,null,null,null,null,null,null,null,null,null,null,null,null,null,null,null,null,null,null,null,null,null,null,null,null,null,null,null,null,null,null,null,null,null,null,null,null,null,null,null,null,null,null,null,null,null,null,null,null,null,null,null,null,null,null,null,null,null,null,null,null,null,null,null,null,null,null,null,null,null,null,null,null,421,"長野","長　　野"]
[null,null,null,null,null,null,"（姓）",null,null,null,null,null,null,null,null,null,null,null,null,null,null,null,"（名）",null,null,null,null,null,null,null,null,null,null,null,null,null,null,null,null,null,null,null,null,null,null,null,null,null,null,null,null,null,null,null,null,null,null,null,null,null,null,null,null,null,null,null,null,null,null,null,null,null,null,null,null,null,null,null,null,null,null,null,null,null,null,null,null,null,null,null,null,null,null,null,null,null,null,null,null,null,null,null,null,null,null,null,null,null,null,null,null,null,null,null,null,null,null,null,null,null,null,null,null,null,null,null,null,null,null,null,null,null,null,null,null,null,null,null,null,null,null,null,null,null,null,null,null,null,null,null,null,null,null,null,null,null,null,null,null,null,null,null,null,null,null,null,null,null,null,null,null,null,null,null,null,null,null,null,null,null,null,null,null,null,null,null,null,null,null,null,null,null,null,null,422,"長野北","長 野 北"]
[null,null,null,null,null,null,null,null,null,null,null,null,null,null,null,null,null,null,null,null,null,null,null,null,null,null,null,null,null,null,null,null,null,null,null,null,null,null,null,null,null,null,null,null,null,null,null,null,null,null,null,null,null,null,null,null,null,null,null,null,null,null,null,null,null,null,null,null,null,null,null,null,null,null,null,null,null,null,null,null,null,null,null,null,null,null,null,null,null,null,null,null,null,null,null,null,null,null,null,null,null,null,null,null,null,null,null,null,null,null,null,null,null,null,null,null,null,null,null,null,null,null,null,null,null,null,null,null,null,null,null,null,null,null,null,null,null,null,null,null,null,null,null,null,null,null,null,null,null,null,null,null,null,null,null,null,null,null,null,null,null,null,null,null,null,null,null,null,null,null,null,null,null,null,null,null,null,null,null,null,null,null,null,null,null,null,null,null,null,null,null,null,null,null,423,"長吉","長　　吉"]
[null,null,null,null,null,null,null,null,null,null,null,null,null,null,null,null,null,null,null,null,null,null,null,null,null,null,null,null,null,null,null,null,null,null,null,null,null,null,null,null,null,null,null,null,null,null,null,null,null,null,null,null,null,null,null,null,null,null,null,null,null,null,null,null,null,null,null,null,null,null,null,null,null,null,null,null,null,null,null,null,null,null,null,null,null,null,null,null,null,null,null,null,null,null,null,null,null,null,null,null,null,null,null,null,null,null,null,null,null,null,null,null,null,null,null,null,null,null,null,null,null,null,null,null,null,null,null,null,null,null,null,null,null,null,null,null,null,null,null,null,null,null,null,null,null,null,null,null,null,null,null,null,null,null,null,null,null,null,null,null,null,null,null,null,null,null,null,null,null,null,null,null,null,null,null,null,null,null,null,null,null,null,null,null,null,null,null,null,null,null,null,null,null,null,425,"花園","花　　園"]
[null,null,null,null,null,null,"ふりがな",null,null,null,null,null,null,null,null,null,null,null,null,null,null,null,null,null,null,null,null,null,null,null,null,null,null,null,null,null,null,null,null,null,null,null,null,null,null,null,null,null,null,null,null,null,null,null,null,null,null,null,"・",null,null,null,"・",null,null,null,null,null,null,null,null,null,null,null,null,null,null,null,null,null,null,null,null,null,null,null,null,null,null,null,null,null,null,null,null,null,null,null,null,null,null,null,null,null,null,null,null,null,null,null,null,null,null,null,null,null,null,null,null,null,null,null,null,null,null,null,null,null,null,null,null,null,null,null,null,null,null,null,null,null,null,null,null,null,null,null,null,null,null,null,null,null,null,null,null,null,null,null,null,null,null,null,null,null,null,null,null,null,null,null,null,null,null,null,null,null,null,null,null,null,null,null,null,null,null,null,null,null,null,null,null,null,null,null,426,"懐風館","懐 風 館"]
[null,null,null,null,null,null,"（姓）",null,null,null,null,null,null,null,null,null,null,null,null,null,null,null,"（名）",null,null,null,null,null,null,null,null,null,null,null,null,null,null,null,null,null,null,null,null,null,null,null,null,null,null,null,null,null,null,null,null,null,null,null,null,null,null,null,null,null,null,null,null,null,null,null,null,null,null,null,null,null,null,null,null,null,null,null,null,null,null,null,null,null,null,null,null,null,null,null,null,null,null,null,null,null,null,null,null,null,null,null,null,null,null,null,null,null,null,null,null,null,null,null,null,null,null,null,null,null,null,null,null,null,null,null,null,null,null,null,null,null,null,null,null,null,null,null,null,null,null,null,null,null,null,null,null,null,null,null,null,null,null,null,null,null,null,null,null,null,null,null,null,null,null,null,null,null,null,null,null,null,null,null,null,null,null,null,null,null,null,null,null,null,null,null,null,null,null,null,427,"東住吉","東 住 吉"]
[null,null,null,null,null,null,null,null,null,null,null,null,null,null,null,null,null,null,null,null,null,null,null,null,null,null,null,null,null,null,null,null,null,null,null,null,null,null,null,null,null,null,null,null,null,null,null,null,null,null,null,null,null,null,null,null,null,null,null,null,null,null,null,null,null,null,null,null,null,null,null,null,null,null,null,null,null,null,null,null,null,null,null,null,null,null,null,null,null,null,null,null,null,null,null,null,null,null,null,null,null,null,null,null,null,null,null,null,null,null,null,null,null,null,null,null,null,null,null,null,null,null,null,null,null,null,null,null,null,null,null,null,null,null,null,null,null,null,null,null,null,null,null,null,null,null,null,null,null,null,null,null,null,null,null,null,null,null,null,null,null,null,null,null,null,null,null,null,null,null,null,null,null,null,null,null,null,null,null,null,null,null,null,null,null,null,null,null,null,null,null,null,null,null,428,"平野","平　　野"]
[null,null,null,null,null,null,null,null,null,null,null,null,null,null,null,null,null,null,null,null,null,null,null,null,null,null,null,null,null,null,null,null,null,null,null,null,null,null,null,null,null,null,null,null,null,null,null,null,null,null,null,null,null,null,null,null,null,null,null,null,null,null,null,null,null,null,null,null,null,null,null,null,null,null,null,null,null,null,null,null,null,null,null,null,null,null,null,null,null,null,null,null,null,null,null,null,null,null,null,null,null,null,null,null,null,null,null,null,null,null,null,null,null,null,null,null,null,null,null,null,null,null,null,null,null,null,null,null,null,null,null,null,null,null,null,null,null,null,null,null,null,null,null,null,null,null,null,null,null,null,null,null,null,null,null,null,null,null,null,null,null,null,null,null,null,null,null,null,null,null,null,null,null,null,null,null,null,null,null,null,null,null,null,null,null,null,null,null,null,null,null,null,null,null,429,"藤井寺","藤 井 寺"]
[null,null,null,null,null,null,"ふりがな",null,null,null,null,null,null,null,null,null,null,null,null,null,null,null,null,null,null,null,null,null,null,null,null,null,null,null,null,null,null,null,null,null,null,null,null,null,null,null,null,null,null,null,null,null,null,null,null,null,null,null,"・",null,null,null,"・",null,null,null,null,null,null,null,null,null,null,null,null,null,null,null,null,null,null,null,null,null,null,null,null,null,null,null,null,null,null,null,null,null,null,null,null,null,null,null,null,null,null,null,null,null,null,null,null,null,null,null,null,null,null,null,null,null,null,null,null,null,null,null,null,null,null,null,null,null,null,null,null,null,null,null,null,null,null,null,null,null,null,null,null,null,null,null,null,null,null,null,null,null,null,null,null,null,null,null,null,null,null,null,null,null,null,null,null,null,null,null,null,null,null,null,null,null,null,null,null,null,null,null,null,null,null,null,null,null,null,null,430,"布施","布　　施"]
[null,null,null,null,null,null,"（姓）",null,null,null,null,null,null,null,null,null,null,null,null,null,null,null,"（名）",null,null,null,null,null,null,null,null,null,null,null,null,null,null,null,null,null,null,null,null,null,null,null,null,null,null,null,null,null,null,null,null,null,null,null,null,null,null,null,null,null,null,null,null,null,null,null,null,null,null,null,null,null,null,null,null,null,null,null,null,null,null,null,null,null,null,null,null,null,null,null,null,null,null,null,null,null,null,null,null,null,null,null,null,null,null,null,null,null,null,null,null,null,null,null,null,null,null,null,null,null,null,null,null,null,null,null,null,null,null,null,null,null,null,null,null,null,null,null,null,null,null,null,null,null,null,null,null,null,null,null,null,null,null,null,null,null,null,null,null,null,null,null,null,null,null,null,null,null,null,null,null,null,null,null,null,null,null,null,null,null,null,null,null,null,null,null,null,null,null,null,431,"布施北","布 施 北"]
[null,null,null,null,null,null,null,null,null,null,null,null,null,null,null,null,null,null,null,null,null,null,null,null,null,null,null,null,null,null,null,null,null,null,null,null,null,null,null,null,null,null,null,null,null,null,null,null,null,null,null,null,null,null,null,null,null,null,null,null,null,null,null,null,null,null,null,null,null,null,null,null,null,null,null,null,null,null,null,null,null,null,null,null,null,null,null,null,null,null,null,null,null,null,null,null,null,null,null,null,null,null,null,null,null,null,null,null,null,null,null,null,null,null,null,null,null,null,null,null,null,null,null,null,null,null,null,null,null,null,null,null,null,null,null,null,null,null,null,null,null,null,null,null,null,null,null,null,null,null,null,null,null,null,null,null,null,null,null,null,null,null,null,null,null,null,null,null,null,null,null,null,null,null,null,null,null,null,null,null,null,null,null,null,null,null,null,null,null,null,null,null,null,null,432,"松原","松　　原"]
[null,null,null,null,null,null,null,null,null,null,null,null,null,null,null,null,null,null,null,null,null,null,null,null,null,null,null,null,null,null,null,null,null,null,null,null,null,null,null,null,null,null,null,null,null,null,null,null,null,null,null,null,null,null,null,null,null,null,null,null,null,null,null,null,null,null,null,null,null,null,null,null,null,null,null,null,null,null,null,null,null,null,null,null,null,null,null,null,null,null,null,null,null,null,null,null,null,null,null,null,null,null,null,null,null,null,null,null,null,null,null,null,null,null,null,null,null,null,null,null,null,null,null,null,null,null,null,null,null,null,null,null,null,null,null,null,null,null,null,null,null,null,null,null,null,null,null,null,null,null,null,null,null,null,null,null,null,null,null,null,null,null,null,null,null,null,null,null,null,null,null,null,null,null,null,null,null,null,null,null,null,null,null,null,null,null,null,null,null,null,null,null,null,null,433,"美原","美　　原"]
[null,null,null,null,null,null,"ふりがな",null,null,null,null,null,null,null,null,null,null,null,null,null,null,null,null,null,null,null,null,null,null,null,null,null,null,null,null,null,null,null,null,null,null,null,null,null,null,null,null,null,null,null,null,null,null,null,null,null,null,null,"・",null,null,null,"・",null,null,null,null,null,null,null,null,null,null,null,null,null,null,null,null,null,null,null,null,null,null,null,null,null,null,null,null,null,null,null,null,null,null,null,null,null,null,null,null,null,null,null,null,null,null,null,null,null,null,null,null,null,null,null,null,null,null,null,null,null,null,null,null,null,null,null,null,null,null,null,null,null,null,null,null,null,null,null,null,null,null,null,null,null,null,null,null,null,null,null,null,null,null,null,null,null,null,null,null,null,null,null,null,null,null,null,null,null,null,null,null,null,null,null,null,null,null,null,null,null,null,null,null,null,null,null,null,null,null,null,434,"八尾","八　　尾"]
[null,null,null,null,null,null,"（姓）",null,null,null,null,null,null,null,null,null,null,null,null,null,null,null,"（名）",null,null,null,null,null,null,null,null,null,null,null,null,null,null,null,null,null,null,null,null,null,null,null,null,null,null,null,null,null,null,null,null,null,null,null,null,null,null,null,null,null,null,null,null,null,null,null,null,null,null,null,null,null,null,null,null,null,null,null,null,null,null,null,null,null,null,null,null,null,null,null,null,null,null,null,null,null,null,null,null,null,null,null,null,null,null,null,null,null,null,null,null,null,null,null,null,null,null,null,null,null,null,null,null,null,null,null,null,null,null,null,null,null,null,null,null,null,null,null,null,null,null,null,null,null,null,null,null,null,null,null,null,null,null,null,null,null,null,null,null,null,null,null,null,null,null,null,null,null,null,null,null,null,null,null,null,null,null,null,null,null,null,null,null,null,null,null,null,null,null,null,435,"八尾北","八 尾 北"]
[null,null,null,null,null,null,null,null,null,null,null,null,null,null,null,null,null,null,null,null,null,null,null,null,null,null,null,null,null,null,null,null,null,null,null,null,null,null,null,null,null,null,null,null,null,null,null,null,null,null,null,null,null,null,null,null,null,null,null,null,null,null,null,null,null,null,null,null,null,null,null,null,null,null,null,null,null,null,null,null,null,null,null,null,null,null,null,null,null,null,null,null,null,null,null,null,null,null,null,null,null,null,null,null,null,null,null,null,null,null,null,null,null,null,null,null,null,null,null,null,null,null,null,null,null,null,null,null,null,null,null,null,null,null,null,null,null,null,null,null,null,null,null,null,null,null,null,null,null,null,null,null,null,null,null,null,null,null,null,null,null,null,null,null,null,null,null,null,null,null,null,null,null,null,null,null,null,null,null,null,null,null,null,null,null,null,null,null,null,null,null,null,null,null,436,"八尾翠翔","八尾翠翔"]
[null,null,null,null,null,null,null,null,null,null,null,null,null,null,null,null,null,null,null,null,null,null,null,null,null,null,null,null,null,null,null,null,null,null,null,null,null,null,null,null,null,null,null,null,null,null,null,null,null,null,null,null,null,null,null,null,null,null,null,null,null,null,null,null,null,null,null,null,null,null,null,null,null,null,null,null,null,null,null,null,null,null,null,null,null,null,null,null,null,null,null,null,null,null,null,null,null,null,null,null,null,null,null,null,null,null,null,null,null,null,null,null,null,null,null,null,null,null,null,null,null,null,null,null,null,null,null,null,null,null,null,null,null,null,null,null,null,null,null,null,null,null,null,null,null,null,null,null,null,null,null,null,null,null,null,null,null,null,null,null,null,null,null,null,null,null,null,null,null,null,null,null,null,null,null,null,null,null,null,null,null,null,null,null,null,null,null,null,null,null,null,null,null,null,438,"山本","山　　本"]
[null,null,null,null,null,null,"ふりがな",null,null,null,null,null,null,null,null,null,null,null,null,null,null,null,null,null,null,null,null,null,null,null,null,null,null,null,null,null,null,null,null,null,null,null,null,null,null,null,null,null,null,null,null,null,null,null,null,null,null,null,"・",null,null,null,"・",null,null,null,null,null,null,null,null,null,null,null,null,null,null,null,null,null,null,null,null,null,null,null,null,null,null,null,null,null,null,null,null,null,null,null,null,null,null,null,null,null,null,null,null,null,null,null,null,null,null,null,null,null,null,null,null,null,null,null,null,null,null,null,null,null,null,null,null,null,null,null,null,null,null,null,null,null,null,null,null,null,null,null,null,null,null,null,null,null,null,null,null,null,null,null,null,null,null,null,null,null,null,null,null,null,null,null,null,null,null,null,null,null,null,null,null,null,null,null,null,null,null,null,null,null,null,null,null,null,null,null,439,"枚岡樟風","牧岡樟風"]
[null,null,null,null,null,null,"（姓）",null,null,null,null,null,null,null,null,null,null,null,null,null,null,null,"（名）",null,null,null,null,null,null,null,null,null,null,null,null,null,null,null,null,null,null,null,null,null,null,null,null,null,null,null,null,null,null,null,null,null,null,null,null,null,null,null,null,null,null,null,null,null,null,null,null,null,null,null,null,null,null,null,null,null,null,null,null,null,null,null,null,null,null,null,null,null,null,null,null,null,null,null,null,null,null,null,null,null,null,null,null,null,null,null,null,null,null,null,null,null,null,null,null,null,null,null,null,null,null,null,null,null,null,null,null,null,null,null,null,null,null,null,null,null,null,null,null,null,null,null,null,null,null,null,null,null,null,null,null,null,null,null,null,null,null,null,null,null,null,null,null,null,null,null,null,null,null,null,null,null,null,null,null,null,null,null,null,null,null,null,null,null,null,null,null,null,null,null,440,"農芸","農　　芸"]
[null,null,null,null,null,null,null,null,null,null,null,null,null,null,null,null,null,null,null,null,null,null,null,null,null,null,null,null,null,null,null,null,null,null,null,null,null,null,null,null,null,null,null,null,null,null,null,null,null,null,null,null,null,null,null,null,null,null,null,null,null,null,null,null,null,null,null,null,null,null,null,null,null,null,null,null,null,null,null,null,null,null,null,null,null,null,null,null,null,null,null,null,null,null,null,null,null,null,null,null,null,null,null,null,null,null,null,null,null,null,null,null,null,null,null,null,null,null,null,null,null,null,null,null,null,null,null,null,null,null,null,null,null,null,null,null,null,null,null,null,null,null,null,null,null,null,null,null,null,null,null,null,null,null,null,null,null,null,null,null,null,null,null,null,null,null,null,null,null,null,null,null,null,null,null,null,null,null,null,null,null,null,null,null,null,null,null,null,null,null,null,null,null,null,441,"東住吉総合","東住吉総"]
[null,null,null,null,null,null,null,null,null,null,null,null,null,null,null,null,null,null,null,null,null,null,null,null,null,null,null,null,null,null,null,null,null,null,null,null,null,null,null,null,null,null,null,null,null,null,null,null,null,null,null,null,null,null,null,null,null,null,null,null,null,null,null,null,null,null,null,null,null,null,null,null,null,null,null,null,null,null,null,null,null,null,null,null,null,null,null,null,null,null,null,null,null,null,null,null,null,null,null,null,null,null,null,null,null,null,null,null,null,null,null,null,null,null,null,null,null,null,null,null,null,null,null,null,null,null,null,null,null,null,null,null,null,null,null,null,null,null,null,null,null,null,null,null,null,null,null,null,null,null,null,null,null,null,null,null,null,null,null,null,null,null,null,null,null,null,null,null,null,null,null,null,null,null,null,null,null,null,null,null,null,null,null,null,null,null,null,null,null,null,null,null,null,null,442,"藤井寺工科","藤井寺工"]
[null,null,null,null,null,null,null,null,null,null,null,null,null,null,null,null,null,null,null,null,null,null,null,null,null,null,null,null,null,null,null,null,null,null,null,null,null,null,null,null,null,null,null,null,null,null,null,null,null,null,null,null,null,null,null,null,null,null,null,null,null,null,null,null,null,null,null,null,null,null,null,null,null,null,null,null,null,null,null,null,null,null,null,null,null,null,null,null,null,null,null,null,null,null,null,null,null,null,null,null,null,null,null,null,null,null,null,null,null,null,null,null,null,null,null,null,null,null,null,null,null,null,null,null,null,null,null,null,null,null,null,null,null,null,null,null,null,null,null,null,null,null,null,null,null,null,null,null,null,null,null,null,null,null,null,null,null,null,null,null,null,null,null,null,null,null,null,null,null,null,null,null,null,null,null,null,null,null,null,null,null,null,null,null,null,null,null,null,null,null,null,null,null,null,443,"布施工科","布施工科"]
[null,null,null,null,null,null,null,null,null,null,null,null,null,null,null,null,null,null,null,null,null,null,null,null,null,null,null,null,null,null,null,null,null,null,null,null,null,null,null,null,null,null,null,null,null,null,null,null,null,null,null,null,null,null,null,null,null,null,null,null,null,null,null,null,null,null,null,null,null,null,null,null,null,null,null,null,null,null,null,null,null,null,null,null,null,null,null,null,null,null,null,null,null,null,null,null,null,null,null,null,null,null,null,null,null,null,null,null,null,null,null,null,null,null,null,null,null,null,null,null,null,null,null,null,null,null,null,null,null,null,null,null,null,null,null,null,null,null,null,null,null,null,null,null,null,null,null,null,null,null,null,null,null,null,null,null,null,null,null,null,null,null,null,null,null,null,null,null,null,null,null,null,null,null,null,null,null,null,null,null,null,null,null,null,null,null,null,null,null,null,null,null,null,null,445,"日新","日　　新"]
[null,null,null,null,null,null,null,null,null,null,null,null,null,null,null,null,null,null,null,null,null,null,null,null,null,null,null,null,null,null,null,null,null,null,null,null,null,null,null,null,null,null,null,null,null,null,null,null,null,null,null,null,null,null,null,null,null,null,null,null,null,null,null,null,null,null,null,null,null,null,null,null,null,null,null,null,null,null,null,null,null,null,null,null,null,null,null,null,null,null,null,null,null,null,null,null,null,null,null,null,null,null,null,null,null,null,null,null,null,null,null,null,null,null,null,null,null,null,null,null,null,null,null,null,null,null,null,null,null,null,null,null,null,null,null,null,null,null,null,null,null,null,null,null,null,null,null,null,null,null,null,null,null,null,null,null,null,null,null,null,null,null,null,null,null,null,null,null,null,null,null,null,null,null,null,null,null,null,null,null,null,null,null,null,null,null,null,null,null,null,null,null,null,null,446,"上宮","上　　宮"]
[null,null,null,null,null,null,null,null,null,null,null,null,null,null,null,null,null,null,null,null,null,null,null,null,null,null,null,null,null,null,null,null,null,null,null,null,null,null,null,null,null,null,null,null,null,null,null,null,null,null,null,null,null,null,null,null,null,null,null,null,null,null,null,null,null,null,null,null,null,null,null,null,null,null,null,null,null,null,null,null,null,null,null,null,null,null,null,null,null,null,null,null,null,null,null,null,null,null,null,null,null,null,null,null,null,null,null,null,null,null,null,null,null,null,null,null,null,null,null,null,null,null,null,null,null,null,null,null,null,null,null,null,null,null,null,null,null,null,null,null,null,null,null,null,null,null,null,null,null,null,null,null,null,null,null,null,null,null,null,null,null,null,null,null,null,null,null,null,null,null,null,null,null,null,null,null,null,null,null,null,null,null,null,null,null,null,null,null,null,null,null,null,null,null,447,"金光八尾","金光八尾"]
[null,null,null,null,null,null,null,null,null,null,null,null,null,null,null,null,null,null,null,null,null,null,null,null,null,null,null,null,null,null,null,null,null,null,null,null,null,null,null,null,null,null,null,null,null,null,null,null,null,null,null,null,null,null,null,null,null,null,null,null,null,null,null,null,null,null,null,null,null,null,null,null,null,null,null,null,null,null,null,null,null,null,null,null,null,null,null,null,null,null,null,null,null,null,null,null,null,null,null,null,null,null,null,null,null,null,null,null,null,null,null,null,null,null,null,null,null,null,null,null,null,null,null,null,null,null,null,null,null,null,null,null,null,null,null,null,null,null,null,null,null,null,null,null,null,null,null,null,null,null,null,null,null,null,null,null,null,null,null,null,null,null,null,null,null,null,null,null,null,null,null,null,null,null,null,null,null,null,null,null,null,null,null,null,null,null,null,null,null,null,null,null,null,null,448,"阪南大学","阪南大学"]
[null,null,null,null,null,null,null,null,null,null,null,null,null,null,null,null,null,null,null,null,null,null,null,null,null,null,null,null,null,null,null,null,null,null,null,null,null,null,null,null,null,null,null,null,null,null,null,null,null,null,null,null,null,null,null,null,null,null,null,null,null,null,null,null,null,null,null,null,null,null,null,null,null,null,null,null,null,null,null,null,null,null,null,null,null,null,null,null,null,null,null,null,null,null,null,null,null,null,null,null,null,null,null,null,null,null,null,null,null,null,null,null,null,null,null,null,null,null,null,null,null,null,null,null,null,null,null,null,null,null,null,null,null,null,null,null,null,null,null,null,null,null,null,null,null,null,null,null,null,null,null,null,null,null,null,null,null,null,null,null,null,null,null,null,null,null,null,null,null,null,null,null,null,null,null,null,null,null,null,null,null,null,null,null,null,null,null,null,null,null,null,null,null,null,449,"大阪商業大学","大 商 大"]
[null,null,null,null,null,null,null,null,null,null,null,null,null,null,null,null,null,null,null,null,null,null,null,null,null,null,null,null,null,null,null,null,null,null,null,null,null,null,null,null,null,null,null,null,null,null,null,null,null,null,null,null,null,null,null,null,null,null,null,null,null,null,null,null,null,null,null,null,null,null,null,null,null,null,null,null,null,null,null,null,null,null,null,null,null,null,null,null,null,null,null,null,null,null,null,null,null,null,null,null,null,null,null,null,null,null,null,null,null,null,null,null,null,null,null,null,null,null,null,null,null,null,null,null,null,null,null,null,null,null,null,null,null,null,null,null,null,null,null,null,null,null,null,null,null,null,null,null,null,null,null,null,null,null,null,null,null,null,null,null,null,null,null,null,null,null,null,null,null,null,null,null,null,null,null,null,null,null,null,null,null,null,null,null,null,null,null,null,null,null,null,null,null,null,450,"東大阪大学柏原","東大柏原"]
[null,null,null,null,null,null,null,null,null,null,null,null,null,null,null,null,null,null,null,null,null,null,null,null,null,null,null,null,null,null,null,null,null,null,null,null,null,null,null,null,null,null,null,null,null,null,null,null,null,null,null,null,null,null,null,null,null,null,null,null,null,null,null,null,null,null,null,null,null,null,null,null,null,null,null,null,null,null,null,null,null,null,null,null,null,null,null,null,null,null,null,null,null,null,null,null,null,null,null,null,null,null,null,null,null,null,null,null,null,null,null,null,null,null,null,null,null,null,null,null,null,null,null,null,null,null,null,null,null,null,null,null,null,null,null,null,null,null,null,null,null,null,null,null,null,null,null,null,null,null,null,null,null,null,null,null,null,null,null,null,null,null,null,null,null,null,null,null,null,null,null,null,null,null,null,null,null,null,null,null,null,null,null,null,null,null,null,null,null,null,null,null,null,null,451,"近畿大学附属","近大附属"]
[null,null,null,null,null,null,null,null,null,null,null,null,null,null,null,null,null,null,null,null,null,null,null,null,null,null,null,null,null,null,null,null,null,null,null,null,null,null,null,null,null,null,null,null,null,null,null,null,null,null,null,null,null,null,null,null,null,null,null,null,null,null,null,null,null,null,null,null,null,null,null,null,null,null,null,null,null,null,null,null,null,null,null,null,null,null,null,null,null,null,null,null,null,null,null,null,null,null,null,null,null,null,null,null,null,null,null,null,null,null,null,null,null,null,null,null,null,null,null,null,null,null,null,null,null,null,null,null,null,null,null,null,null,null,null,null,null,null,null,null,null,null,null,null,null,null,null,null,null,null,null,null,null,null,null,null,null,null,null,null,null,null,null,null,null,null,null,null,null,null,null,null,null,null,null,null,null,null,null,null,null,null,null,null,null,null,null,null,null,null,null,null,null,null,452,"興國","興　　國"]
[null,null,null,null,null,null,null,null,null,null,null,null,null,null,null,null,null,null,null,null,null,null,null,null,null,null,null,null,null,null,null,null,null,null,null,null,null,null,null,null,null,null,null,null,null,null,null,null,null,null,null,null,null,null,null,null,null,null,null,null,null,null,null,null,null,null,null,null,null,null,null,null,null,null,null,null,null,null,null,null,null,null,null,null,null,null,null,null,null,null,null,null,null,null,null,null,null,null,null,null,null,null,null,null,null,null,null,null,null,null,null,null,null,null,null,null,null,null,null,null,null,null,null,null,null,null,null,null,null,null,null,null,null,null,null,null,null,null,null,null,null,null,null,null,null,null,null,null,null,null,null,null,null,null,null,null,null,null,null,null,null,null,null,null,null,null,null,null,null,null,null,null,null,null,null,null,null,null,null,null,null,null,null,null,null,null,null,null,null,null,null,null,null,null,453,"四天王寺羽曳丘","四天羽曳"]
[null,null,null,null,null,null,null,null,null,null,null,null,null,null,null,null,null,null,null,null,null,null,null,null,null,null,null,null,null,null,null,null,null,null,null,null,null,null,null,null,null,null,null,null,null,null,null,null,null,null,null,null,null,null,null,null,null,null,null,null,null,null,null,null,null,null,null,null,null,null,null,null,null,null,null,null,null,null,null,null,null,null,null,null,null,null,null,null,null,null,null,null,null,null,null,null,null,null,null,null,null,null,null,null,null,null,null,null,null,null,null,null,null,null,null,null,null,null,null,null,null,null,null,null,null,null,null,null,null,null,null,null,null,null,null,null,null,null,null,null,null,null,null,null,null,null,null,null,null,null,null,null,null,null,null,null,null,null,null,null,null,null,null,null,null,null,null,null,null,null,null,null,null,null,null,null,null,null,null,null,null,null,null,null,null,null,null,null,null,null,null,null,null,null,454,"大阪星光学院","星光学院"]
[null,null,null,null,null,null,null,null,null,null,null,null,null,null,null,null,null,null,null,null,null,null,null,null,null,null,null,null,null,null,null,null,null,null,null,null,null,null,null,null,null,null,null,null,null,null,null,null,null,null,null,null,null,null,null,null,null,null,null,null,null,null,null,null,null,null,null,null,null,null,null,null,null,null,null,null,null,null,null,null,null,null,null,null,null,null,null,null,null,null,null,null,null,null,null,null,null,null,null,null,null,null,null,null,null,null,null,null,null,null,null,null,null,null,null,null,null,null,null,null,null,null,null,null,null,null,null,null,null,null,null,null,null,null,null,null,null,null,null,null,null,null,null,null,null,null,null,null,null,null,null,null,null,null,null,null,null,null,null,null,null,null,null,null,null,null,null,null,null,null,null,null,null,null,null,null,null,null,null,null,null,null,null,null,null,null,null,null,null,null,null,null,null,null,455,"清風","清　　風"]
[null,null,null,null,null,null,null,null,null,null,null,null,null,null,null,null,null,null,null,null,null,null,null,null,null,null,null,null,null,null,null,null,null,null,null,null,null,null,null,null,null,null,null,null,null,null,null,null,null,null,null,null,null,null,null,null,null,null,null,null,null,null,null,null,null,null,null,null,null,null,null,null,null,null,null,null,null,null,null,null,null,null,null,null,null,null,null,null,null,null,null,null,null,null,null,null,null,null,null,null,null,null,null,null,null,null,null,null,null,null,null,null,null,null,null,null,null,null,null,null,null,null,null,null,null,null,null,null,null,null,null,null,null,null,null,null,null,null,null,null,null,null,null,null,null,null,null,null,null,null,null,null,null,null,null,null,null,null,null,null,null,null,null,null,null,null,null,null,null,null,null,null,null,null,null,null,null,null,null,null,null,null,null,null,null,null,null,null,null,null,null,null,null,null,456,"ＰＬ学園","ＰＬ学園"]
[null,null,null,null,null,null,null,null,null,null,null,null,null,null,null,null,null,null,null,null,null,null,null,null,null,null,null,null,null,null,null,null,null,null,null,null,null,null,null,null,null,null,null,null,null,null,null,null,null,null,null,null,null,null,null,null,null,null,null,null,null,null,null,null,null,null,null,null,null,null,null,null,null,null,null,null,null,null,null,null,null,null,null,null,null,null,null,null,null,null,null,null,null,null,null,null,null,null,null,null,null,null,null,null,null,null,null,null,null,null,null,null,null,null,null,null,null,null,null,null,null,null,null,null,null,null,null,null,null,null,null,null,null,null,null,null,null,null,null,null,null,null,null,null,null,null,null,null,null,null,null,null,null,null,null,null,null,null,null,null,null,null,null,null,null,null,null,null,null,null,null,null,null,null,null,null,null,null,null,null,null,null,null,null,null,null,null,null,null,null,null,null,null,null,457,"桃山学院","桃山学院"]
[null,null,null,null,null,null,null,null,null,null,null,null,null,null,null,null,null,null,null,null,null,null,null,null,null,null,null,null,null,null,null,null,null,null,null,null,null,null,null,null,null,null,null,null,null,null,null,null,null,null,null,null,null,null,null,null,null,null,null,null,null,null,null,null,null,null,null,null,null,null,null,null,null,null,null,null,null,null,null,null,null,null,null,null,null,null,null,null,null,null,null,null,null,null,null,null,null,null,null,null,null,null,null,null,null,null,null,null,null,null,null,null,null,null,null,null,null,null,null,null,null,null,null,null,null,null,null,null,null,null,null,null,null,null,null,null,null,null,null,null,null,null,null,null,null,null,null,null,null,null,null,null,null,null,null,null,null,null,null,null,null,null,null,null,null,null,null,null,null,null,null,null,null,null,null,null,null,null,null,null,null,null,null,null,null,null,null,null,null,null,null,null,null,null,458,"芥川","芥　　川"]
[null,null,null,null,null,null,null,null,null,null,null,null,null,null,null,null,null,null,null,null,null,null,null,null,null,null,null,null,null,null,null,null,null,null,null,null,null,null,null,null,null,null,null,null,null,null,null,null,null,null,null,null,null,null,null,null,null,null,null,null,null,null,null,null,null,null,null,null,null,null,null,null,null,null,null,null,null,null,null,null,null,null,null,null,null,null,null,null,null,null,null,null,null,null,null,null,null,null,null,null,null,null,null,null,null,null,null,null,null,null,null,null,null,null,null,null,null,null,null,null,null,null,null,null,null,null,null,null,null,null,null,null,null,null,null,null,null,null,null,null,null,null,null,null,null,null,null,null,null,null,null,null,null,null,null,null,null,null,null,null,null,null,null,null,null,null,null,null,null,null,null,null,null,null,null,null,null,null,null,null,null,null,null,null,null,null,null,null,null,null,null,null,null,null,459,"阿武野","阿 武 野"]
[null,null,null,null,null,null,null,null,null,null,null,null,null,null,null,null,null,null,null,null,null,null,null,null,null,null,null,null,null,null,null,null,null,null,null,null,null,null,null,null,null,null,null,null,null,null,null,null,null,null,null,null,null,null,null,null,null,null,null,null,null,null,null,null,null,null,null,null,null,null,null,null,null,null,null,null,null,null,null,null,null,null,null,null,null,null,null,null,null,null,null,null,null,null,null,null,null,null,null,null,null,null,null,null,null,null,null,null,null,null,null,null,null,null,null,null,null,null,null,null,null,null,null,null,null,null,null,null,null,null,null,null,null,null,null,null,null,null,null,null,null,null,null,null,null,null,null,null,null,null,null,null,null,null,null,null,null,null,null,null,null,null,null,null,null,null,null,null,null,null,null,null,null,null,null,null,null,null,null,null,null,null,null,null,null,null,null,null,null,null,null,null,null,null,460,"池田","池　　田"]
[null,null,null,null,null,null,null,null,null,null,null,null,null,null,null,null,null,null,null,null,null,null,null,null,null,null,null,null,null,null,null,null,null,null,null,null,null,null,null,null,null,null,null,null,null,null,null,null,null,null,null,null,null,null,null,null,null,null,null,null,null,null,null,null,null,null,null,null,null,null,null,null,null,null,null,null,null,null,null,null,null,null,null,null,null,null,null,null,null,null,null,null,null,null,null,null,null,null,null,null,null,null,null,null,null,null,null,null,null,null,null,null,null,null,null,null,null,null,null,null,null,null,null,null,null,null,null,null,null,null,null,null,null,null,null,null,null,null,null,null,null,null,null,null,null,null,null,null,null,null,null,null,null,null,null,null,null,null,null,null,null,null,null,null,null,null,null,null,null,null,null,null,null,null,null,null,null,null,null,null,null,null,null,null,null,null,null,null,null,null,null,null,null,null,461,"池田北","池 田 北"]
[null,null,null,null,null,null,null,null,null,null,null,null,null,null,null,null,null,null,null,null,null,null,null,null,null,null,null,null,null,null,null,null,null,null,null,null,null,null,null,null,null,null,null,null,null,null,null,null,null,null,null,null,null,null,null,null,null,null,null,null,null,null,null,null,null,null,null,null,null,null,null,null,null,null,null,null,null,null,null,null,null,null,null,null,null,null,null,null,null,null,null,null,null,null,null,null,null,null,null,null,null,null,null,null,null,null,null,null,null,null,null,null,null,null,null,null,null,null,null,null,null,null,null,null,null,null,null,null,null,null,null,null,null,null,null,null,null,null,null,null,null,null,null,null,null,null,null,null,null,null,null,null,null,null,null,null,null,null,null,null,null,null,null,null,null,null,null,null,null,null,null,null,null,null,null,null,null,null,null,null,null,null,null,null,null,null,null,null,null,null,null,null,null,null,462,"茨木","茨　　木"]
[null,null,null,null,null,null,null,null,null,null,null,null,null,null,null,null,null,null,null,null,null,null,null,null,null,null,null,null,null,null,null,null,null,null,null,null,null,null,null,null,null,null,null,null,null,null,null,null,null,null,null,null,null,null,null,null,null,null,null,null,null,null,null,null,null,null,null,null,null,null,null,null,null,null,null,null,null,null,null,null,null,null,null,null,null,null,null,null,null,null,null,null,null,null,null,null,null,null,null,null,null,null,null,null,null,null,null,null,null,null,null,null,null,null,null,null,null,null,null,null,null,null,null,null,null,null,null,null,null,null,null,null,null,null,null,null,null,null,null,null,null,null,null,null,null,null,null,null,null,null,null,null,null,null,null,null,null,null,null,null,null,null,null,null,null,null,null,null,null,null,null,null,null,null,null,null,null,null,null,null,null,null,null,null,null,null,null,null,null,null,null,null,null,null,463,"茨木西","茨 木 西"]
[null,null,null,null,null,null,null,null,null,null,null,null,null,null,null,null,null,null,null,null,null,null,null,null,null,null,null,null,null,null,null,null,null,null,null,null,null,null,null,null,null,null,null,null,null,null,null,null,null,null,null,null,null,null,null,null,null,null,null,null,null,null,null,null,null,null,null,null,null,null,null,null,null,null,null,null,null,null,null,null,null,null,null,null,null,null,null,null,null,null,null,null,null,null,null,null,null,null,null,null,null,null,null,null,null,null,null,null,null,null,null,null,null,null,null,null,null,null,null,null,null,null,null,null,null,null,null,null,null,null,null,null,null,null,null,null,null,null,null,null,null,null,null,null,null,null,null,null,null,null,null,null,null,null,null,null,null,null,null,null,null,null,null,null,null,null,null,null,null,null,null,null,null,null,null,null,null,null,null,null,null,null,null,null,null,null,null,null,null,null,null,null,null,null,464,"北摂つばさ","北摂つば"]
[null,null,null,null,null,null,null,null,null,null,null,null,null,null,null,null,null,null,null,null,null,null,null,null,null,null,null,null,null,null,null,null,null,null,null,null,null,null,null,null,null,null,null,null,null,null,null,null,null,null,null,null,null,null,null,null,null,null,null,null,null,null,null,null,null,null,null,null,null,null,null,null,null,null,null,null,null,null,null,null,null,null,null,null,null,null,null,null,null,null,null,null,null,null,null,null,null,null,null,null,null,null,null,null,null,null,null,null,null,null,null,null,null,null,null,null,null,null,null,null,null,null,null,null,null,null,null,null,null,null,null,null,null,null,null,null,null,null,null,null,null,null,null,null,null,null,null,null,null,null,null,null,null,null,null,null,null,null,null,null,null,null,null,null,null,null,null,null,null,null,null,null,null,null,null,null,null,null,null,null,null,null,null,null,null,null,null,null,null,null,null,null,null,null,465,"園芸","園　　芸"]
[null,null,null,null,null,null,null,null,null,null,null,null,null,null,null,null,null,null,null,null,null,null,null,null,null,null,null,null,null,null,null,null,null,null,null,null,null,null,null,null,null,null,null,null,null,null,null,null,null,null,null,null,null,null,null,null,null,null,null,null,null,null,null,null,null,null,null,null,null,null,null,null,null,null,null,null,null,null,null,null,null,null,null,null,null,null,null,null,null,null,null,null,null,null,null,null,null,null,null,null,null,null,null,null,null,null,null,null,null,null,null,null,null,null,null,null,null,null,null,null,null,null,null,null,null,null,null,null,null,null,null,null,null,null,null,null,null,null,null,null,null,null,null,null,null,null,null,null,null,null,null,null,null,null,null,null,null,null,null,null,null,null,null,null,null,null,null,null,null,null,null,null,null,null,null,null,null,null,null,null,null,null,null,null,null,null,null,null,null,null,null,null,null,null,466,"春日丘","春 日 丘"]
[null,null,null,null,null,null,null,null,null,null,null,null,null,null,null,null,null,null,null,null,null,null,null,null,null,null,null,null,null,null,null,null,null,null,null,null,null,null,null,null,null,null,null,null,null,null,null,null,null,null,null,null,null,null,null,null,null,null,null,null,null,null,null,null,null,null,null,null,null,null,null,null,null,null,null,null,null,null,null,null,null,null,null,null,null,null,null,null,null,null,null,null,null,null,null,null,null,null,null,null,null,null,null,null,null,null,null,null,null,null,null,null,null,null,null,null,null,null,null,null,null,null,null,null,null,null,null,null,null,null,null,null,null,null,null,null,null,null,null,null,null,null,null,null,null,null,null,null,null,null,null,null,null,null,null,null,null,null,null,null,null,null,null,null,null,null,null,null,null,null,null,null,null,null,null,null,null,null,null,null,null,null,null,null,null,null,null,null,null,null,null,null,null,null,467,"北千里","北 千 里"]
[null,null,null,null,null,null,null,null,null,null,null,null,null,null,null,null,null,null,null,null,null,null,null,null,null,null,null,null,null,null,null,null,null,null,null,null,null,null,null,null,null,null,null,null,null,null,null,null,null,null,null,null,null,null,null,null,null,null,null,null,null,null,null,null,null,null,null,null,null,null,null,null,null,null,null,null,null,null,null,null,null,null,null,null,null,null,null,null,null,null,null,null,null,null,null,null,null,null,null,null,null,null,null,null,null,null,null,null,null,null,null,null,null,null,null,null,null,null,null,null,null,null,null,null,null,null,null,null,null,null,null,null,null,null,null,null,null,null,null,null,null,null,null,null,null,null,null,null,null,null,null,null,null,null,null,null,null,null,null,null,null,null,null,null,null,null,null,null,null,null,null,null,null,null,null,null,null,null,null,null,null,null,null,null,null,null,null,null,null,null,null,null,null,null,468,"北野","北　　野"]
[null,null,null,null,null,null,null,null,null,null,null,null,null,null,null,null,null,null,null,null,null,null,null,null,null,null,null,null,null,null,null,null,null,null,null,null,null,null,null,null,null,null,null,null,null,null,null,null,null,null,null,null,null,null,null,null,null,null,null,null,null,null,null,null,null,null,null,null,null,null,null,null,null,null,null,null,null,null,null,null,null,null,null,null,null,null,null,null,null,null,null,null,null,null,null,null,null,null,null,null,null,null,null,null,null,null,null,null,null,null,null,null,null,null,null,null,null,null,null,null,null,null,null,null,null,null,null,null,null,null,null,null,null,null,null,null,null,null,null,null,null,null,null,null,null,null,null,null,null,null,null,null,null,null,null,null,null,null,null,null,null,null,null,null,null,null,null,null,null,null,null,null,null,null,null,null,null,null,null,null,null,null,null,null,null,null,null,null,null,null,null,null,null,null,469,"柴島","柴　　島"]
[null,null,null,null,null,null,null,null,null,null,null,null,null,null,null,null,null,null,null,null,null,null,null,null,null,null,null,null,null,null,null,null,null,null,null,null,null,null,null,null,null,null,null,null,null,null,null,null,null,null,null,null,null,null,null,null,null,null,null,null,null,null,null,null,null,null,null,null,null,null,null,null,null,null,null,null,null,null,null,null,null,null,null,null,null,null,null,null,null,null,null,null,null,null,null,null,null,null,null,null,null,null,null,null,null,null,null,null,null,null,null,null,null,null,null,null,null,null,null,null,null,null,null,null,null,null,null,null,null,null,null,null,null,null,null,null,null,null,null,null,null,null,null,null,null,null,null,null,null,null,null,null,null,null,null,null,null,null,null,null,null,null,null,null,null,null,null,null,null,null,null,null,null,null,null,null,null,null,null,null,null,null,null,null,null,null,null,null,null,null,null,null,null,null,470,"桜塚","桜　　塚"]
[null,null,null,null,null,null,null,null,null,null,null,null,null,null,null,null,null,null,null,null,null,null,null,null,null,null,null,null,null,null,null,null,null,null,null,null,null,null,null,null,null,null,null,null,null,null,null,null,null,null,null,null,null,null,null,null,null,null,null,null,null,null,null,null,null,null,null,null,null,null,null,null,null,null,null,null,null,null,null,null,null,null,null,null,null,null,null,null,null,null,null,null,null,null,null,null,null,null,null,null,null,null,null,null,null,null,null,null,null,null,null,null,null,null,null,null,null,null,null,null,null,null,null,null,null,null,null,null,null,null,null,null,null,null,null,null,null,null,null,null,null,null,null,null,null,null,null,null,null,null,null,null,null,null,null,null,null,null,null,null,null,null,null,null,null,null,null,null,null,null,null,null,null,null,null,null,null,null,null,null,null,null,null,null,null,null,null,null,null,null,null,null,null,null,471,"渋谷","渋　　谷"]
[null,null,null,null,null,null,null,null,null,null,null,null,null,null,null,null,null,null,null,null,null,null,null,null,null,null,null,null,null,null,null,null,null,null,null,null,null,null,null,null,null,null,null,null,null,null,null,null,null,null,null,null,null,null,null,null,null,null,null,null,null,null,null,null,null,null,null,null,null,null,null,null,null,null,null,null,null,null,null,null,null,null,null,null,null,null,null,null,null,null,null,null,null,null,null,null,null,null,null,null,null,null,null,null,null,null,null,null,null,null,null,null,null,null,null,null,null,null,null,null,null,null,null,null,null,null,null,null,null,null,null,null,null,null,null,null,null,null,null,null,null,null,null,null,null,null,null,null,null,null,null,null,null,null,null,null,null,null,null,null,null,null,null,null,null,null,null,null,null,null,null,null,null,null,null,null,null,null,null,null,null,null,null,null,null,null,null,null,null,null,null,null,null,null,472,"金蘭千里","金蘭千里"]
[null,null,null,null,null,null,null,null,null,null,null,null,null,null,null,null,null,null,null,null,null,null,null,null,null,null,null,null,null,null,null,null,null,null,null,null,null,null,null,null,null,null,null,null,null,null,null,null,null,null,null,null,null,null,null,null,null,null,null,null,null,null,null,null,null,null,null,null,null,null,null,null,null,null,null,null,null,null,null,null,null,null,null,null,null,null,null,null,null,null,null,null,null,null,null,null,null,null,null,null,null,null,null,null,null,null,null,null,null,null,null,null,null,null,null,null,null,null,null,null,null,null,null,null,null,null,null,null,null,null,null,null,null,null,null,null,null,null,null,null,null,null,null,null,null,null,null,null,null,null,null,null,null,null,null,null,null,null,null,null,null,null,null,null,null,null,null,null,null,null,null,null,null,null,null,null,null,null,null,null,null,null,null,null,null,null,null,null,null,null,null,null,null,null,473,"槻の木","規 の 木"]
[null,null,null,null,null,null,null,null,null,null,null,null,null,null,null,null,null,null,null,null,null,null,null,null,null,null,null,null,null,null,null,null,null,null,null,null,null,null,null,null,null,null,null,null,null,null,null,null,null,null,null,null,null,null,null,null,null,null,null,null,null,null,null,null,null,null,null,null,null,null,null,null,null,null,null,null,null,null,null,null,null,null,null,null,null,null,null,null,null,null,null,null,null,null,null,null,null,null,null,null,null,null,null,null,null,null,null,null,null,null,null,null,null,null,null,null,null,null,null,null,null,null,null,null,null,null,null,null,null,null,null,null,null,null,null,null,null,null,null,null,null,null,null,null,null,null,null,null,null,null,null,null,null,null,null,null,null,null,null,null,null,null,null,null,null,null,null,null,null,null,null,null,null,null,null,null,null,null,null,null,null,null,null,null,null,null,null,null,null,null,null,null,null,null,474,"島本","島　　本"]
[null,null,null,null,null,null,null,null,null,null,null,null,null,null,null,null,null,null,null,null,null,null,null,null,null,null,null,null,null,null,null,null,null,null,null,null,null,null,null,null,null,null,null,null,null,null,null,null,null,null,null,null,null,null,null,null,null,null,null,null,null,null,null,null,null,null,null,null,null,null,null,null,null,null,null,null,null,null,null,null,null,null,null,null,null,null,null,null,null,null,null,null,null,null,null,null,null,null,null,null,null,null,null,null,null,null,null,null,null,null,null,null,null,null,null,null,null,null,null,null,null,null,null,null,null,null,null,null,null,null,null,null,null,null,null,null,null,null,null,null,null,null,null,null,null,null,null,null,null,null,null,null,null,null,null,null,null,null,null,null,null,null,null,null,null,null,null,null,null,null,null,null,null,null,null,null,null,null,null,null,null,null,null,null,null,null,null,null,null,null,null,null,null,null,476,"吹田","吹　　田"]
[null,null,null,null,null,null,null,null,null,null,null,null,null,null,null,null,null,null,null,null,null,null,null,null,null,null,null,null,null,null,null,null,null,null,null,null,null,null,null,null,null,null,null,null,null,null,null,null,null,null,null,null,null,null,null,null,null,null,null,null,null,null,null,null,null,null,null,null,null,null,null,null,null,null,null,null,null,null,null,null,null,null,null,null,null,null,null,null,null,null,null,null,null,null,null,null,null,null,null,null,null,null,null,null,null,null,null,null,null,null,null,null,null,null,null,null,null,null,null,null,null,null,null,null,null,null,null,null,null,null,null,null,null,null,null,null,null,null,null,null,null,null,null,null,null,null,null,null,null,null,null,null,null,null,null,null,null,null,null,null,null,null,null,null,null,null,null,null,null,null,null,null,null,null,null,null,null,null,null,null,null,null,null,null,null,null,null,null,null,null,null,null,null,null,477,"吹田東","吹 田 東"]
[null,null,null,null,null,null,null,null,null,null,null,null,null,null,null,null,null,null,null,null,null,null,null,null,null,null,null,null,null,null,null,null,null,null,null,null,null,null,null,null,null,null,null,null,null,null,null,null,null,null,null,null,null,null,null,null,null,null,null,null,null,null,null,null,null,null,null,null,null,null,null,null,null,null,null,null,null,null,null,null,null,null,null,null,null,null,null,null,null,null,null,null,null,null,null,null,null,null,null,null,null,null,null,null,null,null,null,null,null,null,null,null,null,null,null,null,null,null,null,null,null,null,null,null,null,null,null,null,null,null,null,null,null,null,null,null,null,null,null,null,null,null,null,null,null,null,null,null,null,null,null,null,null,null,null,null,null,null,null,null,null,null,null,null,null,null,null,null,null,null,null,null,null,null,null,null,null,null,null,null,null,null,null,null,null,null,null,null,null,null,null,null,null,null,478,"摂津","摂　　津"]
[null,null,null,null,null,null,null,null,null,null,null,null,null,null,null,null,null,null,null,null,null,null,null,null,null,null,null,null,null,null,null,null,null,null,null,null,null,null,null,null,null,null,null,null,null,null,null,null,null,null,null,null,null,null,null,null,null,null,null,null,null,null,null,null,null,null,null,null,null,null,null,null,null,null,null,null,null,null,null,null,null,null,null,null,null,null,null,null,null,null,null,null,null,null,null,null,null,null,null,null,null,null,null,null,null,null,null,null,null,null,null,null,null,null,null,null,null,null,null,null,null,null,null,null,null,null,null,null,null,null,null,null,null,null,null,null,null,null,null,null,null,null,null,null,null,null,null,null,null,null,null,null,null,null,null,null,null,null,null,null,null,null,null,null,null,null,null,null,null,null,null,null,null,null,null,null,null,null,null,null,null,null,null,null,null,null,null,null,null,null,null,null,null,null,479,"千里","千　　里"]
[null,null,null,null,null,null,null,null,null,null,null,null,null,null,null,null,null,null,null,null,null,null,null,null,null,null,null,null,null,null,null,null,null,null,null,null,null,null,null,null,null,null,null,null,null,null,null,null,null,null,null,null,null,null,null,null,null,null,null,null,null,null,null,null,null,null,null,null,null,null,null,null,null,null,null,null,null,null,null,null,null,null,null,null,null,null,null,null,null,null,null,null,null,null,null,null,null,null,null,null,null,null,null,null,null,null,null,null,null,null,null,null,null,null,null,null,null,null,null,null,null,null,null,null,null,null,null,null,null,null,null,null,null,null,null,null,null,null,null,null,null,null,null,null,null,null,null,null,null,null,null,null,null,null,null,null,null,null,null,null,null,null,null,null,null,null,null,null,null,null,null,null,null,null,null,null,null,null,null,null,null,null,null,null,null,null,null,null,null,null,null,null,null,null,481,"高槻北","高 槻 北"]
[null,null,null,null,null,null,null,null,null,null,null,null,null,null,null,null,null,null,null,null,null,null,null,null,null,null,null,null,null,null,null,null,null,null,null,null,null,null,null,null,null,null,null,null,null,null,null,null,null,null,null,null,null,null,null,null,null,null,null,null,null,null,null,null,null,null,null,null,null,null,null,null,null,null,null,null,null,null,null,null,null,null,null,null,null,null,null,null,null,null,null,null,null,null,null,null,null,null,null,null,null,null,null,null,null,null,null,null,null,null,null,null,null,null,null,null,null,null,null,null,null,null,null,null,null,null,null,null,null,null,null,null,null,null,null,null,null,null,null,null,null,null,null,null,null,null,null,null,null,null,null,null,null,null,null,null,null,null,null,null,null,null,null,null,null,null,null,null,null,null,null,null,null,null,null,null,null,null,null,null,null,null,null,null,null,null,null,null,null,null,null,null,null,null,482,"豊島","豊　　島"]
[null,null,null,null,null,null,null,null,null,null,null,null,null,null,null,null,null,null,null,null,null,null,null,null,null,null,null,null,null,null,null,null,null,null,null,null,null,null,null,null,null,null,null,null,null,null,null,null,null,null,null,null,null,null,null,null,null,null,null,null,null,null,null,null,null,null,null,null,null,null,null,null,null,null,null,null,null,null,null,null,null,null,null,null,null,null,null,null,null,null,null,null,null,null,null,null,null,null,null,null,null,null,null,null,null,null,null,null,null,null,null,null,null,null,null,null,null,null,null,null,null,null,null,null,null,null,null,null,null,null,null,null,null,null,null,null,null,null,null,null,null,null,null,null,null,null,null,null,null,null,null,null,null,null,null,null,null,null,null,null,null,null,null,null,null,null,null,null,null,null,null,null,null,null,null,null,null,null,null,null,null,null,null,null,null,null,null,null,null,null,null,null,null,null,483,"豊中","豊　　中"]
[null,null,null,null,null,null,null,null,null,null,null,null,null,null,null,null,null,null,null,null,null,null,null,null,null,null,null,null,null,null,null,null,null,null,null,null,null,null,null,null,null,null,null,null,null,null,null,null,null,null,null,null,null,null,null,null,null,null,null,null,null,null,null,null,null,null,null,null,null,null,null,null,null,null,null,null,null,null,null,null,null,null,null,null,null,null,null,null,null,null,null,null,null,null,null,null,null,null,null,null,null,null,null,null,null,null,null,null,null,null,null,null,null,null,null,null,null,null,null,null,null,null,null,null,null,null,null,null,null,null,null,null,null,null,null,null,null,null,null,null,null,null,null,null,null,null,null,null,null,null,null,null,null,null,null,null,null,null,null,null,null,null,null,null,null,null,null,null,null,null,null,null,null,null,null,null,null,null,null,null,null,null,null,null,null,null,null,null,null,null,null,null,null,null,485,"西淀川","西 淀 川"]
[null,null,null,null,null,null,null,null,null,null,null,null,null,null,null,null,null,null,null,null,null,null,null,null,null,null,null,null,null,null,null,null,null,null,null,null,null,null,null,null,null,null,null,null,null,null,null,null,null,null,null,null,null,null,null,null,null,null,null,null,null,null,null,null,null,null,null,null,null,null,null,null,null,null,null,null,null,null,null,null,null,null,null,null,null,null,null,null,null,null,null,null,null,null,null,null,null,null,null,null,null,null,null,null,null,null,null,null,null,null,null,null,null,null,null,null,null,null,null,null,null,null,null,null,null,null,null,null,null,null,null,null,null,null,null,null,null,null,null,null,null,null,null,null,null,null,null,null,null,null,null,null,null,null,null,null,null,null,null,null,null,null,null,null,null,null,null,null,null,null,null,null,null,null,null,null,null,null,null,null,null,null,null,null,null,null,null,null,null,null,null,null,null,null,486,"千里青雲","千里青雲"]
[null,null,null,null,null,null,null,null,null,null,null,null,null,null,null,null,null,null,null,null,null,null,null,null,null,null,null,null,null,null,null,null,null,null,null,null,null,null,null,null,null,null,null,null,null,null,null,null,null,null,null,null,null,null,null,null,null,null,null,null,null,null,null,null,null,null,null,null,null,null,null,null,null,null,null,null,null,null,null,null,null,null,null,null,null,null,null,null,null,null,null,null,null,null,null,null,null,null,null,null,null,null,null,null,null,null,null,null,null,null,null,null,null,null,null,null,null,null,null,null,null,null,null,null,null,null,null,null,null,null,null,null,null,null,null,null,null,null,null,null,null,null,null,null,null,null,null,null,null,null,null,null,null,null,null,null,null,null,null,null,null,null,null,null,null,null,null,null,null,null,null,null,null,null,null,null,null,null,null,null,null,null,null,null,null,null,null,null,null,null,null,null,null,null,487,"東淀川","東 淀 川"]
[null,null,null,null,null,null,null,null,null,null,null,null,null,null,null,null,null,null,null,null,null,null,null,null,null,null,null,null,null,null,null,null,null,null,null,null,null,null,null,null,null,null,null,null,null,null,null,null,null,null,null,null,null,null,null,null,null,null,null,null,null,null,null,null,null,null,null,null,null,null,null,null,null,null,null,null,null,null,null,null,null,null,null,null,null,null,null,null,null,null,null,null,null,null,null,null,null,null,null,null,null,null,null,null,null,null,null,null,null,null,null,null,null,null,null,null,null,null,null,null,null,null,null,null,null,null,null,null,null,null,null,null,null,null,null,null,null,null,null,null,null,null,null,null,null,null,null,null,null,null,null,null,null,null,null,null,null,null,null,null,null,null,null,null,null,null,null,null,null,null,null,null,null,null,null,null,null,null,null,null,null,null,null,null,null,null,null,null,null,null,null,null,null,null,488,"福井","福　　井"]
[null,null,null,null,null,null,null,null,null,null,null,null,null,null,null,null,null,null,null,null,null,null,null,null,null,null,null,null,null,null,null,null,null,null,null,null,null,null,null,null,null,null,null,null,null,null,null,null,null,null,null,null,null,null,null,null,null,null,null,null,null,null,null,null,null,null,null,null,null,null,null,null,null,null,null,null,null,null,null,null,null,null,null,null,null,null,null,null,null,null,null,null,null,null,null,null,null,null,null,null,null,null,null,null,null,null,null,null,null,null,null,null,null,null,null,null,null,null,null,null,null,null,null,null,null,null,null,null,null,null,null,null,null,null,null,null,null,null,null,null,null,null,null,null,null,null,null,null,null,null,null,null,null,null,null,null,null,null,null,null,null,null,null,null,null,null,null,null,null,null,null,null,null,null,null,null,null,null,null,null,null,null,null,null,null,null,null,null,null,null,null,null,null,null,489,"三島","三　　島"]
[null,null,null,null,null,null,null,null,null,null,null,null,null,null,null,null,null,null,null,null,null,null,null,null,null,null,null,null,null,null,null,null,null,null,null,null,null,null,null,null,null,null,null,null,null,null,null,null,null,null,null,null,null,null,null,null,null,null,null,null,null,null,null,null,null,null,null,null,null,null,null,null,null,null,null,null,null,null,null,null,null,null,null,null,null,null,null,null,null,null,null,null,null,null,null,null,null,null,null,null,null,null,null,null,null,null,null,null,null,null,null,null,null,null,null,null,null,null,null,null,null,null,null,null,null,null,null,null,null,null,null,null,null,null,null,null,null,null,null,null,null,null,null,null,null,null,null,null,null,null,null,null,null,null,null,null,null,null,null,null,null,null,null,null,null,null,null,null,null,null,null,null,null,null,null,null,null,null,null,null,null,null,null,null,null,null,null,null,null,null,null,null,null,null,490,"箕面","箕　　面"]
[null,null,null,null,null,null,null,null,null,null,null,null,null,null,null,null,null,null,null,null,null,null,null,null,null,null,null,null,null,null,null,null,null,null,null,null,null,null,null,null,null,null,null,null,null,null,null,null,null,null,null,null,null,null,null,null,null,null,null,null,null,null,null,null,null,null,null,null,null,null,null,null,null,null,null,null,null,null,null,null,null,null,null,null,null,null,null,null,null,null,null,null,null,null,null,null,null,null,null,null,null,null,null,null,null,null,null,null,null,null,null,null,null,null,null,null,null,null,null,null,null,null,null,null,null,null,null,null,null,null,null,null,null,null,null,null,null,null,null,null,null,null,null,null,null,null,null,null,null,null,null,null,null,null,null,null,null,null,null,null,null,null,null,null,null,null,null,null,null,null,null,null,null,null,null,null,null,null,null,null,null,null,null,null,null,null,null,null,null,null,null,null,null,null,491,"箕面東","箕 面 東"]
[null,null,null,null,null,null,null,null,null,null,null,null,null,null,null,null,null,null,null,null,null,null,null,null,null,null,null,null,null,null,null,null,null,null,null,null,null,null,null,null,null,null,null,null,null,null,null,null,null,null,null,null,null,null,null,null,null,null,null,null,null,null,null,null,null,null,null,null,null,null,null,null,null,null,null,null,null,null,null,null,null,null,null,null,null,null,null,null,null,null,null,null,null,null,null,null,null,null,null,null,null,null,null,null,null,null,null,null,null,null,null,null,null,null,null,null,null,null,null,null,null,null,null,null,null,null,null,null,null,null,null,null,null,null,null,null,null,null,null,null,null,null,null,null,null,null,null,null,null,null,null,null,null,null,null,null,null,null,null,null,null,null,null,null,null,null,null,null,null,null,null,null,null,null,null,null,null,null,null,null,null,null,null,null,null,null,null,null,null,null,null,null,null,null,492,"茨木工科","茨木工科"]
[null,null,null,null,null,null,null,null,null,null,null,null,null,null,null,null,null,null,null,null,null,null,null,null,null,null,null,null,null,null,null,null,null,null,null,null,null,null,null,null,null,null,null,null,null,null,null,null,null,null,null,null,null,null,null,null,null,null,null,null,null,null,null,null,null,null,null,null,null,null,null,null,null,null,null,null,null,null,null,null,null,null,null,null,null,null,null,null,null,null,null,null,null,null,null,null,null,null,null,null,null,null,null,null,null,null,null,null,null,null,null,null,null,null,null,null,null,null,null,null,null,null,null,null,null,null,null,null,null,null,null,null,null,null,null,null,null,null,null,null,null,null,null,null,null,null,null,null,null,null,null,null,null,null,null,null,null,null,null,null,null,null,null,null,null,null,null,null,null,null,null,null,null,null,null,null,null,null,null,null,null,null,null,null,null,null,null,null,null,null,null,null,null,null,493,"大冠","大　　冠"]
[null,null,null,null,null,null,null,null,null,null,null,null,null,null,null,null,null,null,null,null,null,null,null,null,null,null,null,null,null,null,null,null,null,null,null,null,null,null,null,null,null,null,null,null,null,null,null,null,null,null,null,null,null,null,null,null,null,null,null,null,null,null,null,null,null,null,null,null,null,null,null,null,null,null,null,null,null,null,null,null,null,null,null,null,null,null,null,null,null,null,null,null,null,null,null,null,null,null,null,null,null,null,null,null,null,null,null,null,null,null,null,null,null,null,null,null,null,null,null,null,null,null,null,null,null,null,null,null,null,null,null,null,null,null,null,null,null,null,null,null,null,null,null,null,null,null,null,null,null,null,null,null,null,null,null,null,null,null,null,null,null,null,null,null,null,null,null,null,null,null,null,null,null,null,null,null,null,null,null,null,null,null,null,null,null,null,null,null,null,null,null,null,null,null,494,"北淀","北　　淀"]
[null,null,null,null,null,null,null,null,null,null,null,null,null,null,null,null,null,null,null,null,null,null,null,null,null,null,null,null,null,null,null,null,null,null,null,null,null,null,null,null,null,null,null,null,null,null,null,null,null,null,null,null,null,null,null,null,null,null,null,null,null,null,null,null,null,null,null,null,null,null,null,null,null,null,null,null,null,null,null,null,null,null,null,null,null,null,null,null,null,null,null,null,null,null,null,null,null,null,null,null,null,null,null,null,null,null,null,null,null,null,null,null,null,null,null,null,null,null,null,null,null,null,null,null,null,null,null,null,null,null,null,null,null,null,null,null,null,null,null,null,null,null,null,null,null,null,null,null,null,null,null,null,null,null,null,null,null,null,null,null,null,null,null,null,null,null,null,null,null,null,null,null,null,null,null,null,null,null,null,null,null,null,null,null,null,null,null,null,null,null,null,null,null,null,495,"淀商業","淀　　商"]
[null,null,null,null,null,null,null,null,null,null,null,null,null,null,null,null,null,null,null,null,null,null,null,null,null,null,null,null,null,null,null,null,null,null,null,null,null,null,null,null,null,null,null,null,null,null,null,null,null,null,null,null,null,null,null,null,null,null,null,null,null,null,null,null,null,null,null,null,null,null,null,null,null,null,null,null,null,null,null,null,null,null,null,null,null,null,null,null,null,null,null,null,null,null,null,null,null,null,null,null,null,null,null,null,null,null,null,null,null,null,null,null,null,null,null,null,null,null,null,null,null,null,null,null,null,null,null,null,null,null,null,null,null,null,null,null,null,null,null,null,null,null,null,null,null,null,null,null,null,null,null,null,null,null,null,null,null,null,null,null,null,null,null,null,null,null,null,null,null,null,null,null,null,null,null,null,null,null,null,null,null,null,null,null,null,null,null,null,null,null,null,null,null,null,496,"東淀工業","東淀工業"]
[null,null,null,null,null,null,null,null,null,null,null,null,null,null,null,null,null,null,null,null,null,null,null,null,null,null,null,null,null,null,null,null,null,null,null,null,null,null,null,null,null,null,null,null,null,null,null,null,null,null,null,null,null,null,null,null,null,null,null,null,null,null,null,null,null,null,null,null,null,null,null,null,null,null,null,null,null,null,null,null,null,null,null,null,null,null,null,null,null,null,null,null,null,null,null,null,null,null,null,null,null,null,null,null,null,null,null,null,null,null,null,null,null,null,null,null,null,null,null,null,null,null,null,null,null,null,null,null,null,null,null,null,null,null,null,null,null,null,null,null,null,null,null,null,null,null,null,null,null,null,null,null,null,null,null,null,null,null,null,null,null,null,null,null,null,null,null,null,null,null,null,null,null,null,null,null,null,null,null,null,null,null,null,null,null,null,null,null,null,null,null,null,null,null,497,"大阪学院","大阪学院"]
[null,null,null,null,null,null,null,null,null,null,null,null,null,null,null,null,null,null,null,null,null,null,null,null,null,null,null,null,null,null,null,null,null,null,null,null,null,null,null,null,null,null,null,null,null,null,null,null,null,null,null,null,null,null,null,null,null,null,null,null,null,null,null,null,null,null,null,null,null,null,null,null,null,null,null,null,null,null,null,null,null,null,null,null,null,null,null,null,null,null,null,null,null,null,null,null,null,null,null,null,null,null,null,null,null,null,null,null,null,null,null,null,null,null,null,null,null,null,null,null,null,null,null,null,null,null,null,null,null,null,null,null,null,null,null,null,null,null,null,null,null,null,null,null,null,null,null,null,null,null,null,null,null,null,null,null,null,null,null,null,null,null,null,null,null,null,null,null,null,null,null,null,null,null,null,null,null,null,null,null,null,null,null,null,null,null,null,null,null,null,null,null,null,null,498,"大阪","大　　阪"]
[null,null,null,null,null,null,null,null,null,null,null,null,null,null,null,null,null,null,null,null,null,null,null,null,null,null,null,null,null,null,null,null,null,null,null,null,null,null,null,null,null,null,null,null,null,null,null,null,null,null,null,null,null,null,null,null,null,null,null,null,null,null,null,null,null,null,null,null,null,null,null,null,null,null,null,null,null,null,null,null,null,null,null,null,null,null,null,null,null,null,null,null,null,null,null,null,null,null,null,null,null,null,null,null,null,null,null,null,null,null,null,null,null,null,null,null,null,null,null,null,null,null,null,null,null,null,null,null,null,null,null,null,null,null,null,null,null,null,null,null,null,null,null,null,null,null,null,null,null,null,null,null,null,null,null,null,null,null,null,null,null,null,null,null,null,null,null,null,null,null,null,null,null,null,null,null,null,null,null,null,null,null,null,null,null,null,null,null,null,null,null,null,null,null,499,"大商学園","大商学園"]
[null,null,null,null,null,null,null,null,null,null,null,null,null,null,null,null,null,null,null,null,null,null,null,null,null,null,null,null,null,null,null,null,null,null,null,null,null,null,null,null,null,null,null,null,null,null,null,null,null,null,null,null,null,null,null,null,null,null,null,null,null,null,null,null,null,null,null,null,null,null,null,null,null,null,null,null,null,null,null,null,null,null,null,null,null,null,null,null,null,null,null,null,null,null,null,null,null,null,null,null,null,null,null,null,null,null,null,null,null,null,null,null,null,null,null,null,null,null,null,null,null,null,null,null,null,null,null,null,null,null,null,null,null,null,null,null,null,null,null,null,null,null,null,null,null,null,null,null,null,null,null,null,null,null,null,null,null,null,null,null,null,null,null,null,null,null,null,null,null,null,null,null,null,null,null,null,null,null,null,null,null,null,null,null,null,null,null,null,null,null,null,null,null,null,500,"追手門学院","追手門学"]
[null,null,null,null,null,null,null,null,null,null,null,null,null,null,null,null,null,null,null,null,null,null,null,null,null,null,null,null,null,null,null,null,null,null,null,null,null,null,null,null,null,null,null,null,null,null,null,null,null,null,null,null,null,null,null,null,null,null,null,null,null,null,null,null,null,null,null,null,null,null,null,null,null,null,null,null,null,null,null,null,null,null,null,null,null,null,null,null,null,null,null,null,null,null,null,null,null,null,null,null,null,null,null,null,null,null,null,null,null,null,null,null,null,null,null,null,null,null,null,null,null,null,null,null,null,null,null,null,null,null,null,null,null,null,null,null,null,null,null,null,null,null,null,null,null,null,null,null,null,null,null,null,null,null,null,null,null,null,null,null,null,null,null,null,null,null,null,null,null,null,null,null,null,null,null,null,null,null,null,null,null,null,null,null,null,null,null,null,null,null,null,null,null,null,501,"関西大倉","関西大倉"]
[null,null,null,null,null,null,null,null,null,null,null,null,null,null,null,null,null,null,null,null,null,null,null,null,null,null,null,null,null,null,null,null,null,null,null,null,null,null,null,null,null,null,null,null,null,null,null,null,null,null,null,null,null,null,null,null,null,null,null,null,null,null,null,null,null,null,null,null,null,null,null,null,null,null,null,null,null,null,null,null,null,null,null,null,null,null,null,null,null,null,null,null,null,null,null,null,null,null,null,null,null,null,null,null,null,null,null,null,null,null,null,null,null,null,null,null,null,null,null,null,null,null,null,null,null,null,null,null,null,null,null,null,null,null,null,null,null,null,null,null,null,null,null,null,null,null,null,null,null,null,null,null,null,null,null,null,null,null,null,null,null,null,null,null,null,null,null,null,null,null,null,null,null,null,null,null,null,null,null,null,null,null,null,null,null,null,null,null,null,null,null,null,null,null,502,"関大一","関 大 一"]
[null,null,null,null,null,null,null,null,null,null,null,null,null,null,null,null,null,null,null,null,null,null,null,null,null,null,null,null,null,null,null,null,null,null,null,null,null,null,null,null,null,null,null,null,null,null,null,null,null,null,null,null,null,null,null,null,null,null,null,null,null,null,null,null,null,null,null,null,null,null,null,null,null,null,null,null,null,null,null,null,null,null,null,null,null,null,null,null,null,null,null,null,null,null,null,null,null,null,null,null,null,null,null,null,null,null,null,null,null,null,null,null,null,null,null,null,null,null,null,null,null,null,null,null,null,null,null,null,null,null,null,null,null,null,null,null,null,null,null,null,null,null,null,null,null,null,null,null,null,null,null,null,null,null,null,null,null,null,null,null,null,null,null,null,null,null,null,null,null,null,null,null,null,null,null,null,null,null,null,null,null,null,null,null,null,null,null,null,null,null,null,null,null,null,503,"金光大阪","金光大阪"]
[null,null,null,null,null,null,null,null,null,null,null,null,null,null,null,null,null,null,null,null,null,null,null,null,null,null,null,null,null,null,null,null,null,null,null,null,null,null,null,null,null,null,null,null,null,null,null,null,null,null,null,null,null,null,null,null,null,null,null,null,null,null,null,null,null,null,null,null,null,null,null,null,null,null,null,null,null,null,null,null,null,null,null,null,null,null,null,null,null,null,null,null,null,null,null,null,null,null,null,null,null,null,null,null,null,null,null,null,null,null,null,null,null,null,null,null,null,null,null,null,null,null,null,null,null,null,null,null,null,null,null,null,null,null,null,null,null,null,null,null,null,null,null,null,null,null,null,null,null,null,null,null,null,null,null,null,null,null,null,null,null,null,null,null,null,null,null,null,null,null,null,null,null,null,null,null,null,null,null,null,null,null,null,null,null,null,null,null,null,null,null,null,null,null,504,"高槻","高　　槻"]
[null,null,null,null,null,null,null,null,null,null,null,null,null,null,null,null,null,null,null,null,null,null,null,null,null,null,null,null,null,null,null,null,null,null,null,null,null,null,null,null,null,null,null,null,null,null,null,null,null,null,null,null,null,null,null,null,null,null,null,null,null,null,null,null,null,null,null,null,null,null,null,null,null,null,null,null,null,null,null,null,null,null,null,null,null,null,null,null,null,null,null,null,null,null,null,null,null,null,null,null,null,null,null,null,null,null,null,null,null,null,null,null,null,null,null,null,null,null,null,null,null,null,null,null,null,null,null,null,null,null,null,null,null,null,null,null,null,null,null,null,null,null,null,null,null,null,null,null,null,null,null,null,null,null,null,null,null,null,null,null,null,null,null,null,null,null,null,null,null,null,null,null,null,null,null,null,null,null,null,null,null,null,null,null,null,null,null,null,null,null,null,null,null,null,505,"星翔","星　　翔"]
[null,null,null,null,null,null,null,null,null,null,null,null,null,null,null,null,null,null,null,null,null,null,null,null,null,null,null,null,null,null,null,null,null,null,null,null,null,null,null,null,null,null,null,null,null,null,null,null,null,null,null,null,null,null,null,null,null,null,null,null,null,null,null,null,null,null,null,null,null,null,null,null,null,null,null,null,null,null,null,null,null,null,null,null,null,null,null,null,null,null,null,null,null,null,null,null,null,null,null,null,null,null,null,null,null,null,null,null,null,null,null,null,null,null,null,null,null,null,null,null,null,null,null,null,null,null,null,null,null,null,null,null,null,null,null,null,null,null,null,null,null,null,null,null,null,null,null,null,null,null,null,null,null,null,null,null,null,null,null,null,null,null,null,null,null,null,null,null,null,null,null,null,null,null,null,null,null,null,null,null,null,null,null,null,null,null,null,null,null,null,null,null,null,null,506,"履正社","履 正 社"]
[null,null,null,null,null,null,null,null,null,null,null,null,null,null,null,null,null,null,null,null,null,null,null,null,null,null,null,null,null,null,null,null,null,null,null,null,null,null,null,null,null,null,null,null,null,null,null,null,null,null,null,null,null,null,null,null,null,null,null,null,null,null,null,null,null,null,null,null,null,null,null,null,null,null,null,null,null,null,null,null,null,null,null,null,null,null,null,null,null,null,null,null,null,null,null,null,null,null,null,null,null,null,null,null,null,null,null,null,null,null,null,null,null,null,null,null,null,null,null,null,null,null,null,null,null,null,null,null,null,null,null,null,null,null,null,null,null,null,null,null,null,null,null,null,null,null,null,null,null,null,null,null,null,null,null,null,null,null,null,null,null,null,null,null,null,null,null,null,null,null,null,null,null,null,null,null,null,null,null,null,null,null,null,null,null,null,null,null,null,null,null,null,null,null,507,"関大北陽","関大北陽"]
[null,null,null,null,null,null,null,null,null,null,null,null,null,null,null,null,null,null,null,null,null,null,null,null,null,null,null,null,null,null,null,null,null,null,null,null,null,null,null,null,null,null,null,null,null,null,null,null,null,null,null,null,null,null,null,null,null,null,null,null,null,null,null,null,null,null,null,null,null,null,null,null,null,null,null,null,null,null,null,null,null,null,null,null,null,null,null,null,null,null,null,null,null,null,null,null,null,null,null,null,null,null,null,null,null,null,null,null,null,null,null,null,null,null,null,null,null,null,null,null,null,null,null,null,null,null,null,null,null,null,null,null,null,null,null,null,null,null,null,null,null,null,null,null,null,null,null,null,null,null,null,null,null,null,null,null,null,null,null,null,null,null,null,null,null,null,null,null,null,null,null,null,null,null,null,null,null,null,null,null,null,null,null,null,null,null,null,null,null,null,null,null,null,null,508,"箕面学園","箕面学園"]
[null,null,null,null,null,null,null,null,null,null,null,null,null,null,null,null,null,null,null,null,null,null,null,null,null,null,null,null,null,null,null,null,null,null,null,null,null,null,null,null,null,null,null,null,null,null,null,null,null,null,null,null,null,null,null,null,null,null,null,null,null,null,null,null,null,null,null,null,null,null,null,null,null,null,null,null,null,null,null,null,null,null,null,null,null,null,null,null,null,null,null,null,null,null,null,null,null,null,null,null,null,null,null,null,null,null,null,null,null,null,null,null,null,null,null,null,null,null,null,null,null,null,null,null,null,null,null,null,null,null,null,null,null,null,null,null,null,null,null,null,null,null,null,null,null,null,null,null,null,null,null,null,null,null,null,null,null,null,null,null,null,null,null,null,null,null,null,null,null,null,null,null,null,null,null,null,null,null,null,null,null,null,null,null,null,null,null,null,null,null,null,null,null,null,509,"箕面自由学園","箕面自由"]
[null,null,null,null,null,null,null,null,null,null,null,null,null,null,null,null,null,null,null,null,null,null,null,null,null,null,null,null,null,null,null,null,null,null,null,null,null,null,null,null,null,null,null,null,null,null,null,null,null,null,null,null,null,null,null,null,null,null,null,null,null,null,null,null,null,null,null,null,null,null,null,null,null,null,null,null,null,null,null,null,null,null,null,null,null,null,null,null,null,null,null,null,null,null,null,null,null,null,null,null,null,null,null,null,null,null,null,null,null,null,null,null,null,null,null,null,null,null,null,null,null,null,null,null,null,null,null,null,null,null,null,null,null,null,null,null,null,null,null,null,null,null,null,null,null,null,null,null,null,null,null,null,null,null,null,null,null,null,null,null,null,null,null,null,null,null,null,null,null,null,null,null,null,null,null,null,null,null,null,null,null,null,null,null,null,null,null,null,null,null,null,null,null,null,518,"堺工科(定","堺 工 科"]
[null,null,null,null,null,null,null,null,null,null,null,null,null,null,null,null,null,null,null,null,null,null,null,null,null,null,null,null,null,null,null,null,null,null,null,null,null,null,null,null,null,null,null,null,null,null,null,null,null,null,null,null,null,null,null,null,null,null,null,null,null,null,null,null,null,null,null,null,null,null,null,null,null,null,null,null,null,null,null,null,null,null,null,null,null,null,null,null,null,null,null,null,null,null,null,null,null,null,null,null,null,null,null,null,null,null,null,null,null,null,null,null,null,null,null,null,null,null,null,null,null,null,null,null,null,null,null,null,null,null,null,null,null,null,null,null,null,null,null,null,null,null,null,null,null,null,null,null,null,null,null,null,null,null,null,null,null,null,null,null,null,null,null,null,null,null,null,null,null,null,null,null,null,null,null,null,null,null,null,null,null,null,null,null,null,null,null,null,null,null,null,null,null,null,519,"三国丘(定","三 国 丘"]
[null,null,null,null,null,null,null,null,null,null,null,null,null,null,null,null,null,null,null,null,null,null,null,null,null,null,null,null,null,null,null,null,null,null,null,null,null,null,null,null,null,null,null,null,null,null,null,null,null,null,null,null,null,null,null,null,null,null,null,null,null,null,null,null,null,null,null,null,null,null,null,null,null,null,null,null,null,null,null,null,null,null,null,null,null,null,null,null,null,null,null,null,null,null,null,null,null,null,null,null,null,null,null,null,null,null,null,null,null,null,null,null,null,null,null,null,null,null,null,null,null,null,null,null,null,null,null,null,null,null,null,null,null,null,null,null,null,null,null,null,null,null,null,null,null,null,null,null,null,null,null,null,null,null,null,null,null,null,null,null,null,null,null,null,null,null,null,null,null,null,null,null,null,null,null,null,null,null,null,null,null,null,null,null,null,null,null,null,null,null,null,null,null,null,521,"大手前(定","大 手 前"]
[null,null,null,null,null,null,null,null,null,null,null,null,null,null,null,null,null,null,null,null,null,null,null,null,null,null,null,null,null,null,null,null,null,null,null,null,null,null,null,null,null,null,null,null,null,null,null,null,null,null,null,null,null,null,null,null,null,null,null,null,null,null,null,null,null,null,null,null,null,null,null,null,null,null,null,null,null,null,null,null,null,null,null,null,null,null,null,null,null,null,null,null,null,null,null,null,null,null,null,null,null,null,null,null,null,null,null,null,null,null,null,null,null,null,null,null,null,null,null,null,null,null,null,null,null,null,null,null,null,null,null,null,null,null,null,null,null,null,null,null,null,null,null,null,null,null,null,null,null,null,null,null,null,null,null,null,null,null,null,null,null,null,null,null,null,null,null,null,null,null,null,null,null,null,null,null,null,null,null,null,null,null,null,null,null,null,null,null,null,null,null,null,null,null,523,"都島第二工","都島第二"]
[null,null,null,null,null,null,null,null,null,null,null,null,null,null,null,null,null,null,null,null,null,null,null,null,null,null,null,null,null,null,null,null,null,null,null,null,null,null,null,null,null,null,null,null,null,null,null,null,null,null,null,null,null,null,null,null,null,null,null,null,null,null,null,null,null,null,null,null,null,null,null,null,null,null,null,null,null,null,null,null,null,null,null,null,null,null,null,null,null,null,null,null,null,null,null,null,null,null,null,null,null,null,null,null,null,null,null,null,null,null,null,null,null,null,null,null,null,null,null,null,null,null,null,null,null,null,null,null,null,null,null,null,null,null,null,null,null,null,null,null,null,null,null,null,null,null,null,null,null,null,null,null,null,null,null,null,null,null,null,null,null,null,null,null,null,null,null,null,null,null,null,null,null,null,null,null,null,null,null,null,null,null,null,null,null,null,null,null,null,null,null,null,null,null,525,"成城","成　　城"]
[null,null,null,null,null,null,null,null,null,null,null,null,null,null,null,null,null,null,null,null,null,null,null,null,null,null,null,null,null,null,null,null,null,null,null,null,null,null,null,null,null,null,null,null,null,null,null,null,null,null,null,null,null,null,null,null,null,null,null,null,null,null,null,null,null,null,null,null,null,null,null,null,null,null,null,null,null,null,null,null,null,null,null,null,null,null,null,null,null,null,null,null,null,null,null,null,null,null,null,null,null,null,null,null,null,null,null,null,null,null,null,null,null,null,null,null,null,null,null,null,null,null,null,null,null,null,null,null,null,null,null,null,null,null,null,null,null,null,null,null,null,null,null,null,null,null,null,null,null,null,null,null,null,null,null,null,null,null,null,null,null,null,null,null,null,null,null,null,null,null,null,null,null,null,null,null,null,null,null,null,null,null,null,null,null,null,null,null,null,null,null,null,null,null,528,"今宮工科(定","今宮工科"]
[null,null,null,null,null,null,null,null,null,null,null,null,null,null,null,null,null,null,null,null,null,null,null,null,null,null,null,null,null,null,null,null,null,null,null,null,null,null,null,null,null,null,null,null,null,null,null,null,null,null,null,null,null,null,null,null,null,null,null,null,null,null,null,null,null,null,null,null,null,null,null,null,null,null,null,null,null,null,null,null,null,null,null,null,null,null,null,null,null,null,null,null,null,null,null,null,null,null,null,null,null,null,null,null,null,null,null,null,null,null,null,null,null,null,null,null,null,null,null,null,null,null,null,null,null,null,null,null,null,null,null,null,null,null,null,null,null,null,null,null,null,null,null,null,null,null,null,null,null,null,null,null,null,null,null,null,null,null,null,null,null,null,null,null,null,null,null,null,null,null,null,null,null,null,null,null,null,null,null,null,null,null,null,null,null,null,null,null,null,null,null,null,null,null,530,"西野田工科(定","西野田工"]
[null,null,null,null,null,null,null,null,null,null,null,null,null,null,null,null,null,null,null,null,null,null,null,null,null,null,null,null,null,null,null,null,null,null,null,null,null,null,null,null,null,null,null,null,null,null,null,null,null,null,null,null,null,null,null,null,null,null,null,null,null,null,null,null,null,null,null,null,null,null,null,null,null,null,null,null,null,null,null,null,null,null,null,null,null,null,null,null,null,null,null,null,null,null,null,null,null,null,null,null,null,null,null,null,null,null,null,null,null,null,null,null,null,null,null,null,null,null,null,null,null,null,null,null,null,null,null,null,null,null,null,null,null,null,null,null,null,null,null,null,null,null,null,null,null,null,null,null,null,null,null,null,null,null,null,null,null,null,null,null,null,null,null,null,null,null,null,null,null,null,null,null,null,null,null,null,null,null,null,null,null,null,null,null,null,null,null,null,null,null,null,null,null,null,531,"岸和田産業(定","岸和田産"]
[null,null,null,null,null,null,null,null,null,null,null,null,null,null,null,null,null,null,null,null,null,null,null,null,null,null,null,null,null,null,null,null,null,null,null,null,null,null,null,null,null,null,null,null,null,null,null,null,null,null,null,null,null,null,null,null,null,null,null,null,null,null,null,null,null,null,null,null,null,null,null,null,null,null,null,null,null,null,null,null,null,null,null,null,null,null,null,null,null,null,null,null,null,null,null,null,null,null,null,null,null,null,null,null,null,null,null,null,null,null,null,null,null,null,null,null,null,null,null,null,null,null,null,null,null,null,null,null,null,null,null,null,null,null,null,null,null,null,null,null,null,null,null,null,null,null,null,null,null,null,null,null,null,null,null,null,null,null,null,null,null,null,null,null,null,null,null,null,null,null,null,null,null,null,null,null,null,null,null,null,null,null,null,null,null,null,null,null,null,null,null,null,null,null,532,"堺市立堺(定","堺市立堺"]
[null,null,null,null,null,null,null,null,null,null,null,null,null,null,null,null,null,null,null,null,null,null,null,null,null,null,null,null,null,null,null,null,null,null,null,null,null,null,null,null,null,null,null,null,null,null,null,null,null,null,null,null,null,null,null,null,null,null,null,null,null,null,null,null,null,null,null,null,null,null,null,null,null,null,null,null,null,null,null,null,null,null,null,null,null,null,null,null,null,null,null,null,null,null,null,null,null,null,null,null,null,null,null,null,null,null,null,null,null,null,null,null,null,null,null,null,null,null,null,null,null,null,null,null,null,null,null,null,null,null,null,null,null,null,null,null,null,null,null,null,null,null,null,null,null,null,null,null,null,null,null,null,null,null,null,null,null,null,null,null,null,null,null,null,null,null,null,null,null,null,null,null,null,null,null,null,null,null,null,null,null,null,null,null,null,null,null,null,null,null,null,null,null,null,534,"和泉総合","和泉総合"]
[null,null,null,null,null,null,null,null,null,null,null,null,null,null,null,null,null,null,null,null,null,null,null,null,null,null,null,null,null,null,null,null,null,null,null,null,null,null,null,null,null,null,null,null,null,null,null,null,null,null,null,null,null,null,null,null,null,null,null,null,null,null,null,null,null,null,null,null,null,null,null,null,null,null,null,null,null,null,null,null,null,null,null,null,null,null,null,null,null,null,null,null,null,null,null,null,null,null,null,null,null,null,null,null,null,null,null,null,null,null,null,null,null,null,null,null,null,null,null,null,null,null,null,null,null,null,null,null,null,null,null,null,null,null,null,null,null,null,null,null,null,null,null,null,null,null,null,null,null,null,null,null,null,null,null,null,null,null,null,null,null,null,null,null,null,null,null,null,null,null,null,null,null,null,null,null,null,null,null,null,null,null,null,null,null,null,null,null,null,null,null,null,null,null,535,"佐野工科(定","佐野工科"]
[null,null,null,null,null,null,null,null,null,null,null,null,null,null,null,null,null,null,null,null,null,null,null,null,null,null,null,null,null,null,null,null,null,null,null,null,null,null,null,null,null,null,null,null,null,null,null,null,null,null,null,null,null,null,null,null,null,null,null,null,null,null,null,null,null,null,null,null,null,null,null,null,null,null,null,null,null,null,null,null,null,null,null,null,null,null,null,null,null,null,null,null,null,null,null,null,null,null,null,null,null,null,null,null,null,null,null,null,null,null,null,null,null,null,null,null,null,null,null,null,null,null,null,null,null,null,null,null,null,null,null,null,null,null,null,null,null,null,null,null,null,null,null,null,null,null,null,null,null,null,null,null,null,null,null,null,null,null,null,null,null,null,null,null,null,null,null,null,null,null,null,null,null,null,null,null,null,null,null,null,null,null,null,null,null,null,null,null,null,null,null,null,null,null,542,"日新(定","日　　新"]
[null,null,null,null,null,null,null,null,null,null,null,null,null,null,null,null,null,null,null,null,null,null,null,null,null,null,null,null,null,null,null,null,null,null,null,null,null,null,null,null,null,null,null,null,null,null,null,null,null,null,null,null,null,null,null,null,null,null,null,null,null,null,null,null,null,null,null,null,null,null,null,null,null,null,null,null,null,null,null,null,null,null,null,null,null,null,null,null,null,null,null,null,null,null,null,null,null,null,null,null,null,null,null,null,null,null,null,null,null,null,null,null,null,null,null,null,null,null,null,null,null,null,null,null,null,null,null,null,null,null,null,null,null,null,null,null,null,null,null,null,null,null,null,null,null,null,null,null,null,null,null,null,null,null,null,null,null,null,null,null,null,null,null,null,null,null,null,null,null,null,null,null,null,null,null,null,null,null,null,null,null,null,null,null,null,null,null,null,null,null,null,null,null,null,544,"桜塚(定","桜　　塚"]
[null,null,null,null,null,null,null,null,null,null,null,null,null,null,null,null,null,null,null,null,null,null,null,null,null,null,null,null,null,null,null,null,null,null,null,null,null,null,null,null,null,null,null,null,null,null,null,null,null,null,null,null,null,null,null,null,null,null,null,null,null,null,null,null,null,null,null,null,null,null,null,null,null,null,null,null,null,null,null,null,null,null,null,null,null,null,null,null,null,null,null,null,null,null,null,null,null,null,null,null,null,null,null,null,null,null,null,null,null,null,null,null,null,null,null,null,null,null,null,null,null,null,null,null,null,null,null,null,null,null,null,null,null,null,null,null,null,null,null,null,null,null,null,null,null,null,null,null,null,null,null,null,null,null,null,null,null,null,null,null,null,null,null,null,null,null,null,null,null,null,null,null,null,null,null,null,null,null,null,null,null,null,null,null,null,null,null,null,null,null,null,null,null,null,545,"春日丘(定","春 日 丘"]
[null,null,null,null,null,null,null,null,null,null,null,null,null,null,null,null,null,null,null,null,null,null,null,null,null,null,null,null,null,null,null,null,null,null,null,null,null,null,null,null,null,null,null,null,null,null,null,null,null,null,null,null,null,null,null,null,null,null,null,null,null,null,null,null,null,null,null,null,null,null,null,null,null,null,null,null,null,null,null,null,null,null,null,null,null,null,null,null,null,null,null,null,null,null,null,null,null,null,null,null,null,null,null,null,null,null,null,null,null,null,null,null,null,null,null,null,null,null,null,null,null,null,null,null,null,null,null,null,null,null,null,null,null,null,null,null,null,null,null,null,null,null,null,null,null,null,null,null,null,null,null,null,null,null,null,null,null,null,null,null,null,null,null,null,null,null,null,null,null,null,null,null,null,null,null,null,null,null,null,null,null,null,null,null,null,null,null,null,null,null,null,null,null,null,546,"科学技術学園","科学技術"]
[null,null,null,null,null,null,null,null,null,null,null,null,null,null,null,null,null,null,null,null,null,null,null,null,null,null,null,null,null,null,null,null,null,null,null,null,null,null,null,null,null,null,null,null,null,null,null,null,null,null,null,null,null,null,null,null,null,null,null,null,null,null,null,null,null,null,null,null,null,null,null,null,null,null,null,null,null,null,null,null,null,null,null,null,null,null,null,null,null,null,null,null,null,null,null,null,null,null,null,null,null,null,null,null,null,null,null,null,null,null,null,null,null,null,null,null,null,null,null,null,null,null,null,null,null,null,null,null,null,null,null,null,null,null,null,null,null,null,null,null,null,null,null,null,null,null,null,null,null,null,null,null,null,null,null,null,null,null,null,null,null,null,null,null,null,null,null,null,null,null,null,null,null,null,null,null,null,null,null,null,null,null,null,null,null,null,null,null,null,null,null,null,null,null,550,"建国","建　　国"]
[null,null,null,null,null,null,null,null,null,null,null,null,null,null,null,null,null,null,null,null,null,null,null,null,null,null,null,null,null,null,null,null,null,null,null,null,null,null,null,null,null,null,null,null,null,null,null,null,null,null,null,null,null,null,null,null,null,null,null,null,null,null,null,null,null,null,null,null,null,null,null,null,null,null,null,null,null,null,null,null,null,null,null,null,null,null,null,null,null,null,null,null,null,null,null,null,null,null,null,null,null,null,null,null,null,null,null,null,null,null,null,null,null,null,null,null,null,null,null,null,null,null,null,null,null,null,null,null,null,null,null,null,null,null,null,null,null,null,null,null,null,null,null,null,null,null,null,null,null,null,null,null,null,null,null,null,null,null,null,null,null,null,null,null,null,null,null,null,null,null,null,null,null,null,null,null,null,null,null,null,null,null,null,null,null,null,null,null,null,null,null,null,null,null,551,"能勢","能　　勢"]
[null,null,null,null,null,null,null,null,null,null,null,null,null,null,null,null,null,null,null,null,null,null,null,null,null,null,null,null,null,null,null,null,null,null,null,null,null,null,null,null,null,null,null,null,null,null,null,null,null,null,null,null,null,null,null,null,null,null,null,null,null,null,null,null,null,null,null,null,null,null,null,null,null,null,null,null,null,null,null,null,null,null,null,null,null,null,null,null,null,null,null,null,null,null,null,null,null,null,null,null,null,null,null,null,null,null,null,null,null,null,null,null,null,null,null,null,null,null,null,null,null,null,null,null,null,null,null,null,null,null,null,null,null,null,null,null,null,null,null,null,null,null,null,null,null,null,null,null,null,null,null,null,null,null,null,null,null,null,null,null,null,null,null,null,null,null,null,null,null,null,null,null,null,null,null,null,null,null,null,null,null,null,null,null,null,null,null,null,null,null,null,null,null,null,553,"藤井寺工科","藤井寺工"]
[null,null,null,null,null,null,null,null,null,null,null,null,null,null,null,null,null,null,null,null,null,null,null,null,null,null,null,null,null,null,null,null,null,null,null,null,null,null,null,null,null,null,null,null,null,null,null,null,null,null,null,null,null,null,null,null,null,null,null,null,null,null,null,null,null,null,null,null,null,null,null,null,null,null,null,null,null,null,null,null,null,null,null,null,null,null,null,null,null,null,null,null,null,null,null,null,null,null,null,null,null,null,null,null,null,null,null,null,null,null,null,null,null,null,null,null,null,null,null,null,null,null,null,null,null,null,null,null,null,null,null,null,null,null,null,null,null,null,null,null,null,null,null,null,null,null,null,null,null,null,null,null,null,null,null,null,null,null,null,null,null,null,null,null,null,null,null,null,null,null,null,null,null,null,null,null,null,null,null,null,null,null,null,null,null,null,null,null,null,null,null,null,null,null,554,"四條畷北","四條畷北"]
[null,null,null,null,null,null,null,null,null,null,null,null,null,null,null,null,null,null,null,null,null,null,null,null,null,null,null,null,null,null,null,null,null,null,null,null,null,null,null,null,null,null,null,null,null,null,null,null,null,null,null,null,null,null,null,null,null,null,null,null,null,null,null,null,null,null,null,null,null,null,null,null,null,null,null,null,null,null,null,null,null,null,null,null,null,null,null,null,null,null,null,null,null,null,null,null,null,null,null,null,null,null,null,null,null,null,null,null,null,null,null,null,null,null,null,null,null,null,null,null,null,null,null,null,null,null,null,null,null,null,null,null,null,null,null,null,null,null,null,null,null,null,null,null,null,null,null,null,null,null,null,null,null,null,null,null,null,null,null,null,null,null,null,null,null,null,null,null,null,null,null,null,null,null,null,null,null,null,null,null,null,null,null,null,null,null,null,null,null,null,null,null,null,null,555,"野崎","野　　崎"]
[null,null,null,null,null,null,null,null,null,null,null,null,null,null,null,null,null,null,null,null,null,null,null,null,null,null,null,null,null,null,null,null,null,null,null,null,null,null,null,null,null,null,null,null,null,null,null,null,null,null,null,null,null,null,null,null,null,null,null,null,null,null,null,null,null,null,null,null,null,null,null,null,null,null,null,null,null,null,null,null,null,null,null,null,null,null,null,null,null,null,null,null,null,null,null,null,null,null,null,null,null,null,null,null,null,null,null,null,null,null,null,null,null,null,null,null,null,null,null,null,null,null,null,null,null,null,null,null,null,null,null,null,null,null,null,null,null,null,null,null,null,null,null,null,null,null,null,null,null,null,null,null,null,null,null,null,null,null,null,null,null,null,null,null,null,null,null,null,null,null,null,null,null,null,null,null,null,null,null,null,null,null,null,null,null,null,null,null,null,null,null,null,null,null,556,"関西創価","関西創価"]
[null,null,null,null,null,null,null,null,null,null,null,null,null,null,null,null,null,null,null,null,null,null,null,null,null,null,null,null,null,null,null,null,null,null,null,null,null,null,null,null,null,null,null,null,null,null,null,null,null,null,null,null,null,null,null,null,null,null,null,null,null,null,null,null,null,null,null,null,null,null,null,null,null,null,null,null,null,null,null,null,null,null,null,null,null,null,null,null,null,null,null,null,null,null,null,null,null,null,null,null,null,null,null,null,null,null,null,null,null,null,null,null,null,null,null,null,null,null,null,null,null,null,null,null,null,null,null,null,null,null,null,null,null,null,null,null,null,null,null,null,null,null,null,null,null,null,null,null,null,null,null,null,null,null,null,null,null,null,null,null,null,null,null,null,null,null,null,null,null,null,null,null,null,null,null,null,null,null,null,null,null,null,null,null,null,null,null,null,null,null,null,null,null,null,557,"プール学院","プール学"]
[null,null,null,null,null,null,null,null,null,null,null,null,null,null,null,null,null,null,null,null,null,null,null,null,null,null,null,null,null,null,null,null,null,null,null,null,null,null,null,null,null,null,null,null,null,null,null,null,null,null,null,null,null,null,null,null,null,null,null,null,null,null,null,null,null,null,null,null,null,null,null,null,null,null,null,null,null,null,null,null,null,null,null,null,null,null,null,null,null,null,null,null,null,null,null,null,null,null,null,null,null,null,null,null,null,null,null,null,null,null,null,null,null,null,null,null,null,null,null,null,null,null,null,null,null,null,null,null,null,null,null,null,null,null,null,null,null,null,null,null,null,null,null,null,null,null,null,null,null,null,null,null,null,null,null,null,null,null,null,null,null,null,null,null,null,null,null,null,null,null,null,null,null,null,null,null,null,null,null,null,null,null,null,null,null,null,null,null,null,null,null,null,null,null,558,"清明学院","清明学院"]
[null,null,null,null,null,null,null,null,null,null,null,null,null,null,null,null,null,null,null,null,null,null,null,null,null,null,null,null,null,null,null,null,null,null,null,null,null,null,null,null,null,null,null,null,null,null,null,null,null,null,null,null,null,null,null,null,null,null,null,null,null,null,null,null,null,null,null,null,null,null,null,null,null,null,null,null,null,null,null,null,null,null,null,null,null,null,null,null,null,null,null,null,null,null,null,null,null,null,null,null,null,null,null,null,null,null,null,null,null,null,null,null,null,null,null,null,null,null,null,null,null,null,null,null,null,null,null,null,null,null,null,null,null,null,null,null,null,null,null,null,null,null,null,null,null,null,null,null,null,null,null,null,null,null,null,null,null,null,null,null,null,null,null,null,null,null,null,null,null,null,null,null,null,null,null,null,null,null,null,null,null,null,null,null,null,null,null,null,null,null,null,null,null,null,560,"大阪ビジネス","Ｏ Ｂ Ｆ"]
[null,null,null,null,null,null,null,null,null,null,null,null,null,null,null,null,null,null,null,null,null,null,null,null,null,null,null,null,null,null,null,null,null,null,null,null,null,null,null,null,null,null,null,null,null,null,null,null,null,null,null,null,null,null,null,null,null,null,null,null,null,null,null,null,null,null,null,null,null,null,null,null,null,null,null,null,null,null,null,null,null,null,null,null,null,null,null,null,null,null,null,null,null,null,null,null,null,null,null,null,null,null,null,null,null,null,null,null,null,null,null,null,null,null,null,null,null,null,null,null,null,null,null,null,null,null,null,null,null,null,null,null,null,null,null,null,null,null,null,null,null,null,null,null,null,null,null,null,null,null,null,null,null,null,null,null,null,null,null,null,null,null,null,null,null,null,null,null,null,null,null,null,null,null,null,null,null,null,null,null,null,null,null,null,null,null,null,null,null,null,null,null,null,null,562,"上宮太子","上宮太子"]
[null,null,null,null,null,null,null,null,null,null,null,null,null,null,null,null,null,null,null,null,null,null,null,null,null,null,null,null,null,null,null,null,null,null,null,null,null,null,null,null,null,null,null,null,null,null,null,null,null,null,null,null,null,null,null,null,null,null,null,null,null,null,null,null,null,null,null,null,null,null,null,null,null,null,null,null,null,null,null,null,null,null,null,null,null,null,null,null,null,null,null,null,null,null,null,null,null,null,null,null,null,null,null,null,null,null,null,null,null,null,null,null,null,null,null,null,null,null,null,null,null,null,null,null,null,null,null,null,null,null,null,null,null,null,null,null,null,null,null,null,null,null,null,null,null,null,null,null,null,null,null,null,null,null,null,null,null,null,null,null,null,null,null,null,null,null,null,null,null,null,null,null,null,null,null,null,null,null,null,null,null,null,null,null,null,null,null,null,null,null,null,null,null,null,563,"中央","中　　央"]
[null,null,null,null,null,null,null,null,null,null,null,null,null,null,null,null,null,null,null,null,null,null,null,null,null,null,null,null,null,null,null,null,null,null,null,null,null,null,null,null,null,null,null,null,null,null,null,null,null,null,null,null,null,null,null,null,null,null,null,null,null,null,null,null,null,null,null,null,null,null,null,null,null,null,null,null,null,null,null,null,null,null,null,null,null,null,null,null,null,null,null,null,null,null,null,null,null,null,null,null,null,null,null,null,null,null,null,null,null,null,null,null,null,null,null,null,null,null,null,null,null,null,null,null,null,null,null,null,null,null,null,null,null,null,null,null,null,null,null,null,null,null,null,null,null,null,null,null,null,null,null,null,null,null,null,null,null,null,null,null,null,null,null,null,null,null,null,null,null,null,null,null,null,null,null,null,null,null,null,null,null,null,null,null,null,null,null,null,null,null,null,null,null,null,564,"大阪学芸中等教育","学芸中等"]
[null,null,null,null,null,null,null,null,null,null,null,null,null,null,null,null,null,null,null,null,null,null,null,null,null,null,null,null,null,null,null,null,null,null,null,null,null,null,null,null,null,null,null,null,null,null,null,null,null,null,null,null,null,null,null,null,null,null,null,null,null,null,null,null,null,null,null,null,null,null,null,null,null,null,null,null,null,null,null,null,null,null,null,null,null,null,null,null,null,null,null,null,null,null,null,null,null,null,null,null,null,null,null,null,null,null,null,null,null,null,null,null,null,null,null,null,null,null,null,null,null,null,null,null,null,null,null,null,null,null,null,null,null,null,null,null,null,null,null,null,null,null,null,null,null,null,null,null,null,null,null,null,null,null,null,null,null,null,null,null,null,null,null,null,null,null,null,null,null,null,null,null,null,null,null,null,null,null,null,null,null,null,null,null,null,null,null,null,null,null,null,null,null,null,565,"鶴見商業","鶴見商業"]
[null,null,null,null,null,null,null,null,null,null,null,null,null,null,null,null,null,null,null,null,null,null,null,null,null,null,null,null,null,null,null,null,null,null,null,null,null,null,null,null,null,null,null,null,null,null,null,null,null,null,null,null,null,null,null,null,null,null,null,null,null,null,null,null,null,null,null,null,null,null,null,null,null,null,null,null,null,null,null,null,null,null,null,null,null,null,null,null,null,null,null,null,null,null,null,null,null,null,null,null,null,null,null,null,null,null,null,null,null,null,null,null,null,null,null,null,null,null,null,null,null,null,null,null,null,null,null,null,null,null,null,null,null,null,null,null,null,null,null,null,null,null,null,null,null,null,null,null,null,null,null,null,null,null,null,null,null,null,null,null,null,null,null,null,null,null,null,null,null,null,null,null,null,null,null,null,null,null,null,null,null,null,null,null,null,null,null,null,null,null,null,null,null,null,569,"東大阪大学敬愛","東大敬愛"]
[null,null,null,null,null,null,null,null,null,null,null,null,null,null,null,null,null,null,null,null,null,null,null,null,null,null,null,null,null,null,null,null,null,null,null,null,null,null,null,null,null,null,null,null,null,null,null,null,null,null,null,null,null,null,null,null,null,null,null,null,null,null,null,null,null,null,null,null,null,null,null,null,null,null,null,null,null,null,null,null,null,null,null,null,null,null,null,null,null,null,null,null,null,null,null,null,null,null,null,null,null,null,null,null,null,null,null,null,null,null,null,null,null,null,null,null,null,null,null,null,null,null,null,null,null,null,null,null,null,null,null,null,null,null,null,null,null,null,null,null,null,null,null,null,null,null,null,null,null,null,null,null,null,null,null,null,null,null,null,null,null,null,null,null,null,null,null,null,null,null,null,null,null,null,null,null,null,null,null,null,null,null,null,null,null,null,null,null,null,null,null,null,null,null,570,"科技東朋","科技東朋"]
[null,null,null,null,null,null,null,null,null,null,null,null,null,null,null,null,null,null,null,null,null,null,null,null,null,null,null,null,null,null,null,null,null,null,null,null,null,null,null,null,null,null,null,null,null,null,null,null,null,null,null,null,null,null,null,null,null,null,null,null,null,null,null,null,null,null,null,null,null,null,null,null,null,null,null,null,null,null,null,null,null,null,null,null,null,null,null,null,null,null,null,null,null,null,null,null,null,null,null,null,null,null,null,null,null,null,null,null,null,null,null,null,null,null,null,null,null,null,null,null,null,null,null,null,null,null,null,null,null,null,null,null,null,null,null,null,null,null,null,null,null,null,null,null,null,null,null,null,null,null,null,null,null,null,null,null,null,null,null,null,null,null,null,null,null,null,null,null,null,null,null,null,null,null,null,null,null,null,null,null,null,null,null,null,null,null,null,null,null,null,null,null,null,null,571,"英真学園","英真学園"]
[null,null,null,null,null,null,null,null,null,null,null,null,null,null,null,null,null,null,null,null,null,null,null,null,null,null,null,null,null,null,null,null,null,null,null,null,null,null,null,null,null,null,null,null,null,null,null,null,null,null,null,null,null,null,null,null,null,null,null,null,null,null,null,null,null,null,null,null,null,null,null,null,null,null,null,null,null,null,null,null,null,null,null,null,null,null,null,null,null,null,null,null,null,null,null,null,null,null,null,null,null,null,null,null,null,null,null,null,null,null,null,null,null,null,null,null,null,null,null,null,null,null,null,null,null,null,null,null,null,null,null,null,null,null,null,null,null,null,null,null,null,null,null,null,null,null,null,null,null,null,null,null,null,null,null,null,null,null,null,null,null,null,null,null,null,null,null,null,null,null,null,null,null,null,null,null,null,null,null,null,null,null,null,null,null,null,null,null,null,null,null,null,null,null,572,"山田","山　　田"]
[null,null,null,null,null,null,null,null,null,null,null,null,null,null,null,null,null,null,null,null,null,null,null,null,null,null,null,null,null,null,null,null,null,null,null,null,null,null,null,null,null,null,null,null,null,null,null,null,null,null,null,null,null,null,null,null,null,null,null,null,null,null,null,null,null,null,null,null,null,null,null,null,null,null,null,null,null,null,null,null,null,null,null,null,null,null,null,null,null,null,null,null,null,null,null,null,null,null,null,null,null,null,null,null,null,null,null,null,null,null,null,null,null,null,null,null,null,null,null,null,null,null,null,null,null,null,null,null,null,null,null,null,null,null,null,null,null,null,null,null,null,null,null,null,null,null,null,null,null,null,null,null,null,null,null,null,null,null,null,null,null,null,null,null,null,null,null,null,null,null,null,null,null,null,null,null,null,null,null,null,null,null,null,null,null,null,null,null,null,null,null,null,null,null,573,"向陽台天王寺","光陽台天"]
[null,null,null,null,null,null,null,null,null,null,null,null,null,null,null,null,null,null,null,null,null,null,null,null,null,null,null,null,null,null,null,null,null,null,null,null,null,null,null,null,null,null,null,null,null,null,null,null,null,null,null,null,null,null,null,null,null,null,null,null,null,null,null,null,null,null,null,null,null,null,null,null,null,null,null,null,null,null,null,null,null,null,null,null,null,null,null,null,null,null,null,null,null,null,null,null,null,null,null,null,null,null,null,null,null,null,null,null,null,null,null,null,null,null,null,null,null,null,null,null,null,null,null,null,null,null,null,null,null,null,null,null,null,null,null,null,null,null,null,null,null,null,null,null,null,null,null,null,null,null,null,null,null,null,null,null,null,null,null,null,null,null,null,null,null,null,null,null,null,null,null,null,null,null,null,null,null,null,null,null,null,null,null,null,null,null,null,null,null,null,null,null,null,null,574,"向陽台","光 陽 台"]
[null,null,null,null,null,null,null,null,null,null,null,null,null,null,null,null,null,null,null,null,null,null,null,null,null,null,null,null,null,null,null,null,null,null,null,null,null,null,null,null,null,null,null,null,null,null,null,null,null,null,null,null,null,null,null,null,null,null,null,null,null,null,null,null,null,null,null,null,null,null,null,null,null,null,null,null,null,null,null,null,null,null,null,null,null,null,null,null,null,null,null,null,null,null,null,null,null,null,null,null,null,null,null,null,null,null,null,null,null,null,null,null,null,null,null,null,null,null,null,null,null,null,null,null,null,null,null,null,null,null,null,null,null,null,null,null,null,null,null,null,null,null,null,null,null,null,null,null,null,null,null,null,null,null,null,null,null,null,null,null,null,null,null,null,null,null,null,null,null,null,null,null,null,null,null,null,null,null,null,null,null,null,null,null,null,null,null,null,null,null,null,null,null,null,575,"交野","交　　野"]
[null,null,null,null,null,null,null,null,null,null,null,null,null,null,null,null,null,null,null,null,null,null,null,null,null,null,null,null,null,null,null,null,null,null,null,null,null,null,null,null,null,null,null,null,null,null,null,null,null,null,null,null,null,null,null,null,null,null,null,null,null,null,null,null,null,null,null,null,null,null,null,null,null,null,null,null,null,null,null,null,null,null,null,null,null,null,null,null,null,null,null,null,null,null,null,null,null,null,null,null,null,null,null,null,null,null,null,null,null,null,null,null,null,null,null,null,null,null,null,null,null,null,null,null,null,null,null,null,null,null,null,null,null,null,null,null,null,null,null,null,null,null,null,null,null,null,null,null,null,null,null,null,null,null,null,null,null,null,null,null,null,null,null,null,null,null,null,null,null,null,null,null,null,null,null,null,null,null,null,null,null,null,null,null,null,null,null,null,null,null,null,null,null,null,576,"中央学園","中央学園"]
[null,null,null,null,null,null,null,null,null,null,null,null,null,null,null,null,null,null,null,null,null,null,null,null,null,null,null,null,null,null,null,null,null,null,null,null,null,null,null,null,null,null,null,null,null,null,null,null,null,null,null,null,null,null,null,null,null,null,null,null,null,null,null,null,null,null,null,null,null,null,null,null,null,null,null,null,null,null,null,null,null,null,null,null,null,null,null,null,null,null,null,null,null,null,null,null,null,null,null,null,null,null,null,null,null,null,null,null,null,null,null,null,null,null,null,null,null,null,null,null,null,null,null,null,null,null,null,null,null,null,null,null,null,null,null,null,null,null,null,null,null,null,null,null,null,null,null,null,null,null,null,null,null,null,null,null,null,null,null,null,null,null,null,null,null,null,null,null,null,null,null,null,null,null,null,null,null,null,null,null,null,null,null,null,null,null,null,null,null,null,null,null,null,null,577,"西","　 西　 "]
[null,null,null,null,null,null,null,null,null,null,null,null,null,null,null,null,null,null,null,null,null,null,null,null,null,null,null,null,null,null,null,null,null,null,null,null,null,null,null,null,null,null,null,null,null,null,null,null,null,null,null,null,null,null,null,null,null,null,null,null,null,null,null,null,null,null,null,null,null,null,null,null,null,null,null,null,null,null,null,null,null,null,null,null,null,null,null,null,null,null,null,null,null,null,null,null,null,null,null,null,null,null,null,null,null,null,null,null,null,null,null,null,null,null,null,null,null,null,null,null,null,null,null,null,null,null,null,null,null,null,null,null,null,null,null,null,null,null,null,null,null,null,null,null,null,null,null,null,null,null,null,null,null,null,null,null,null,null,null,null,null,null,null,null,null,null,null,null,null,null,null,null,null,null,null,null,null,null,null,null,null,null,null,null,null,null,null,null,null,null,null,null,null,null,578,"布施","布　　施"]
[null,null,null,null,null,null,null,null,null,null,null,null,null,null,null,null,null,null,null,null,null,null,null,null,null,null,null,null,null,null,null,null,null,null,null,null,null,null,null,null,null,null,null,null,null,null,null,null,null,null,null,null,null,null,null,null,null,null,null,null,null,null,null,null,null,null,null,null,null,null,null,null,null,null,null,null,null,null,null,null,null,null,null,null,null,null,null,null,null,null,null,null,null,null,null,null,null,null,null,null,null,null,null,null,null,null,null,null,null,null,null,null,null,null,null,null,null,null,null,null,null,null,null,null,null,null,null,null,null,null,null,null,null,null,null,null,null,null,null,null,null,null,null,null,null,null,null,null,null,null,null,null,null,null,null,null,null,null,null,null,null,null,null,null,null,null,null,null,null,null,null,null,null,null,null,null,null,null,null,null,null,null,null,null,null,null,null,null,null,null,null,null,null,null,579,"昇陽","昇　　陽"]
[null,null,null,null,null,null,null,null,null,null,null,null,null,null,null,null,null,null,null,null,null,null,null,null,null,null,null,null,null,null,null,null,null,null,null,null,null,null,null,null,null,null,null,null,null,null,null,null,null,null,null,null,null,null,null,null,null,null,null,null,null,null,null,null,null,null,null,null,null,null,null,null,null,null,null,null,null,null,null,null,null,null,null,null,null,null,null,null,null,null,null,null,null,null,null,null,null,null,null,null,null,null,null,null,null,null,null,null,null,null,null,null,null,null,null,null,null,null,null,null,null,null,null,null,null,null,null,null,null,null,null,null,null,null,null,null,null,null,null,null,null,null,null,null,null,null,null,null,null,null,null,null,null,null,null,null,null,null,null,null,null,null,null,null,null,null,null,null,null,null,null,null,null,null,null,null,null,null,null,null,null,null,null,null,null,null,null,null,null,null,null,null,null,null,580,"金光藤蔭","金光藤蔭"]
[null,null,null,null,null,null,null,null,null,null,null,null,null,null,null,null,null,null,null,null,null,null,null,null,null,null,null,null,null,null,null,null,null,null,null,null,null,null,null,null,null,null,null,null,null,null,null,null,null,null,null,null,null,null,null,null,null,null,null,null,null,null,null,null,null,null,null,null,null,null,null,null,null,null,null,null,null,null,null,null,null,null,null,null,null,null,null,null,null,null,null,null,null,null,null,null,null,null,null,null,null,null,null,null,null,null,null,null,null,null,null,null,null,null,null,null,null,null,null,null,null,null,null,null,null,null,null,null,null,null,null,null,null,null,null,null,null,null,null,null,null,null,null,null,null,null,null,null,null,null,null,null,null,null,null,null,null,null,null,null,null,null,null,null,null,null,null,null,null,null,null,null,null,null,null,null,null,null,null,null,null,null,null,null,null,null,null,null,null,null,null,null,null,null,581,"八洲学園","八洲学園"]
[null,null,null,null,null,null,null,null,null,null,null,null,null,null,null,null,null,null,null,null,null,null,null,null,null,null,null,null,null,null,null,null,null,null,null,null,null,null,null,null,null,null,null,null,null,null,null,null,null,null,null,null,null,null,null,null,null,null,null,null,null,null,null,null,null,null,null,null,null,null,null,null,null,null,null,null,null,null,null,null,null,null,null,null,null,null,null,null,null,null,null,null,null,null,null,null,null,null,null,null,null,null,null,null,null,null,null,null,null,null,null,null,null,null,null,null,null,null,null,null,null,null,null,null,null,null,null,null,null,null,null,null,null,null,null,null,null,null,null,null,null,null,null,null,null,null,null,null,null,null,null,null,null,null,null,null,null,null,null,null,null,null,null,null,null,null,null,null,null,null,null,null,null,null,null,null,null,null,null,null,null,null,null,null,null,null,null,null,null,null,null,null,null,null,582,"長尾谷","長 尾 谷"]
[null,null,null,null,null,null,null,null,null,null,null,null,null,null,null,null,null,null,null,null,null,null,null,null,null,null,null,null,null,null,null,null,null,null,null,null,null,null,null,null,null,null,null,null,null,null,null,null,null,null,null,null,null,null,null,null,null,null,null,null,null,null,null,null,null,null,null,null,null,null,null,null,null,null,null,null,null,null,null,null,null,null,null,null,null,null,null,null,null,null,null,null,null,null,null,null,null,null,null,null,null,null,null,null,null,null,null,null,null,null,null,null,null,null,null,null,null,null,null,null,null,null,null,null,null,null,null,null,null,null,null,null,null,null,null,null,null,null,null,null,null,null,null,null,null,null,null,null,null,null,null,null,null,null,null,null,null,null,null,null,null,null,null,null,null,null,null,null,null,null,null,null,null,null,null,null,null,null,null,null,null,null,null,null,null,null,null,null,null,null,null,null,null,null,583,"好文学園女子","好文学園"]
[null,null,null,null,null,null,null,null,null,null,null,null,null,null,null,null,null,null,null,null,null,null,null,null,null,null,null,null,null,null,null,null,null,null,null,null,null,null,null,null,null,null,null,null,null,null,null,null,null,null,null,null,null,null,null,null,null,null,null,null,null,null,null,null,null,null,null,null,null,null,null,null,null,null,null,null,null,null,null,null,null,null,null,null,null,null,null,null,null,null,null,null,null,null,null,null,null,null,null,null,null,null,null,null,null,null,null,null,null,null,null,null,null,null,null,null,null,null,null,null,null,null,null,null,null,null,null,null,null,null,null,null,null,null,null,null,null,null,null,null,null,null,null,null,null,null,null,null,null,null,null,null,null,null,null,null,null,null,null,null,null,null,null,null,null,null,null,null,null,null,null,null,null,null,null,null,null,null,null,null,null,null,null,null,null,null,null,null,null,null,null,null,null,null,584,"羽衣学園","羽衣学園"]
[null,null,null,null,null,null,null,null,null,null,null,null,null,null,null,null,null,null,null,null,null,null,null,null,null,null,null,null,null,null,null,null,null,null,null,null,null,null,null,null,null,null,null,null,null,null,null,null,null,null,null,null,null,null,null,null,null,null,null,null,null,null,null,null,null,null,null,null,null,null,null,null,null,null,null,null,null,null,null,null,null,null,null,null,null,null,null,null,null,null,null,null,null,null,null,null,null,null,null,null,null,null,null,null,null,null,null,null,null,null,null,null,null,null,null,null,null,null,null,null,null,null,null,null,null,null,null,null,null,null,null,null,null,null,null,null,null,null,null,null,null,null,null,null,null,null,null,null,null,null,null,null,null,null,null,null,null,null,null,null,null,null,null,null,null,null,null,null,null,null,null,null,null,null,null,null,null,null,null,null,null,null,null,null,null,null,null,null,null,null,null,null,null,null,585,"国際滝井","国際滝井"]
[null,null,null,null,null,null,null,null,null,null,null,null,null,null,null,null,null,null,null,null,null,null,null,null,null,null,null,null,null,null,null,null,null,null,null,null,null,null,null,null,null,null,null,null,null,null,null,null,null,null,null,null,null,null,null,null,null,null,null,null,null,null,null,null,null,null,null,null,null,null,null,null,null,null,null,null,null,null,null,null,null,null,null,null,null,null,null,null,null,null,null,null,null,null,null,null,null,null,null,null,null,null,null,null,null,null,null,null,null,null,null,null,null,null,null,null,null,null,null,null,null,null,null,null,null,null,null,null,null,null,null,null,null,null,null,null,null,null,null,null,null,null,null,null,null,null,null,null,null,null,null,null,null,null,null,null,null,null,null,null,null,null,null,null,null,null,null,null,null,null,null,null,null,null,null,null,null,null,null,null,null,null,null,null,null,null,null,null,null,null,null,null,null,null,586,"天王寺学館","天王寺学"]
[null,null,null,null,null,null,null,null,null,null,null,null,null,null,null,null,null,null,null,null,null,null,null,null,null,null,null,null,null,null,null,null,null,null,null,null,null,null,null,null,null,null,null,null,null,null,null,null,null,null,null,null,null,null,null,null,null,null,null,null,null,null,null,null,null,null,null,null,null,null,null,null,null,null,null,null,null,null,null,null,null,null,null,null,null,null,null,null,null,null,null,null,null,null,null,null,null,null,null,null,null,null,null,null,null,null,null,null,null,null,null,null,null,null,null,null,null,null,null,null,null,null,null,null,null,null,null,null,null,null,null,null,null,null,null,null,null,null,null,null,null,null,null,null,null,null,null,null,null,null,null,null,null,null,null,null,null,null,null,null,null,null,null,null,null,null,null,null,null,null,null,null,null,null,null,null,null,null,null,null,null,null,null,null,null,null,null,null,null,null,null,null,null,null,587,"住吉商業","住吉商業"]
[null,null,null,null,null,null,null,null,null,null,null,null,null,null,null,null,null,null,null,null,null,null,null,null,null,null,null,null,null,null,null,null,null,null,null,null,null,null,null,null,null,null,null,null,null,null,null,null,null,null,null,null,null,null,null,null,null,null,null,null,null,null,null,null,null,null,null,null,null,null,null,null,null,null,null,null,null,null,null,null,null,null,null,null,null,null,null,null,null,null,null,null,null,null,null,null,null,null,null,null,null,null,null,null,null,null,null,null,null,null,null,null,null,null,null,null,null,null,null,null,null,null,null,null,null,null,null,null,null,null,null,null,null,null,null,null,null,null,null,null,null,null,null,null,null,null,null,null,null,null,null,null,null,null,null,null,null,null,null,null,null,null,null,null,null,null,null,null,null,null,null,null,null,null,null,null,null,null,null,null,null,null,null,null,null,null,null,null,null,null,null,null,null,null,588,"大阪信愛女学院","大阪信愛"]
[null,null,null,null,null,null,null,null,null,null,null,null,null,null,null,null,null,null,null,null,null,null,null,null,null,null,null,null,null,null,null,null,null,null,null,null,null,null,null,null,null,null,null,null,null,null,null,null,null,null,null,null,null,null,null,null,null,null,null,null,null,null,null,null,null,null,null,null,null,null,null,null,null,null,null,null,null,null,null,null,null,null,null,null,null,null,null,null,null,null,null,null,null,null,null,null,null,null,null,null,null,null,null,null,null,null,null,null,null,null,null,null,null,null,null,null,null,null,null,null,null,null,null,null,null,null,null,null,null,null,null,null,null,null,null,null,null,null,null,null,null,null,null,null,null,null,null,null,null,null,null,null,null,null,null,null,null,null,null,null,null,null,null,null,null,null,null,null,null,null,null,null,null,null,null,null,null,null,null,null,null,null,null,null,null,null,null,null,null,null,null,null,null,null,589,"クラーク国際","クラーク"]
[null,null,null,null,null,null,null,null,null,null,null,null,null,null,null,null,null,null,null,null,null,null,null,null,null,null,null,null,null,null,null,null,null,null,null,null,null,null,null,null,null,null,null,null,null,null,null,null,null,null,null,null,null,null,null,null,null,null,null,null,null,null,null,null,null,null,null,null,null,null,null,null,null,null,null,null,null,null,null,null,null,null,null,null,null,null,null,null,null,null,null,null,null,null,null,null,null,null,null,null,null,null,null,null,null,null,null,null,null,null,null,null,null,null,null,null,null,null,null,null,null,null,null,null,null,null,null,null,null,null,null,null,null,null,null,null,null,null,null,null,null,null,null,null,null,null,null,null,null,null,null,null,null,null,null,null,null,null,null,null,null,null,null,null,null,null,null,null,null,null,null,null,null,null,null,null,null,null,null,null,null,null,null,null,null,null,null,null,null,null,null,null,null,null,590,"ヒュ-マンアカデミー","ヒュ-マン"]
[null,null,null,null,null,null,null,null,null,null,null,null,null,null,null,null,null,null,null,null,null,null,null,null,null,null,null,null,null,null,null,null,null,null,null,null,null,null,null,null,null,null,null,null,null,null,null,null,null,null,null,null,null,null,null,null,null,null,null,null,null,null,null,null,null,null,null,null,null,null,null,null,null,null,null,null,null,null,null,null,null,null,null,null,null,null,null,null,null,null,null,null,null,null,null,null,null,null,null,null,null,null,null,null,null,null,null,null,null,null,null,null,null,null,null,null,null,null,null,null,null,null,null,null,null,null,null,null,null,null,null,null,null,null,null,null,null,null,null,null,null,null,null,null,null,null,null,null,null,null,null,null,null,null,null,null,null,null,null,null,null,null,null,null,null,null,null,null,null,null,null,null,null,null,null,null,null,null,null,null,null,null,null,null,null,null,null,null,null,null,null,null,null,null,591,"四條畷学園","四條畷学"]
[null,null,null,null,null,null,null,null,null,null,null,null,null,null,null,null,null,null,null,null,null,null,null,null,null,null,null,null,null,null,null,null,null,null,null,null,null,null,null,null,null,null,null,null,null,null,null,null,null,null,null,null,null,null,null,null,null,null,null,null,null,null,null,null,null,null,null,null,null,null,null,null,null,null,null,null,null,null,null,null,null,null,null,null,null,null,null,null,null,null,null,null,null,null,null,null,null,null,null,null,null,null,null,null,null,null,null,null,null,null,null,null,null,null,null,null,null,null,null,null,null,null,null,null,null,null,null,null,null,null,null,null,null,null,null,null,null,null,null,null,null,null,null,null,null,null,null,null,null,null,null,null,null,null,null,null,null,null,null,null,null,null,null,null,null,null,null,null,null,null,null,null,null,null,null,null,null,null,null,null,null,null,null,null,null,null,null,null,null,null,null,null,null,null,592,"YMCA学院","ＹＭＣＡ"]
[null,null,null,null,null,null,null,null,null,null,null,null,null,null,null,null,null,null,null,null,null,null,null,null,null,null,null,null,null,null,null,null,null,null,null,null,null,null,null,null,null,null,null,null,null,null,null,null,null,null,null,null,null,null,null,null,null,null,null,null,null,null,null,null,null,null,null,null,null,null,null,null,null,null,null,null,null,null,null,null,null,null,null,null,null,null,null,null,null,null,null,null,null,null,null,null,null,null,null,null,null,null,null,null,null,null,null,null,null,null,null,null,null,null,null,null,null,null,null,null,null,null,null,null,null,null,null,null,null,null,null,null,null,null,null,null,null,null,null,null,null,null,null,null,null,null,null,null,null,null,null,null,null,null,null,null,null,null,null,null,null,null,null,null,null,null,null,null,null,null,null,null,null,null,null,null,null,null,null,null,null,null,null,null,null,null,null,null,null,null,null,null,null,null,593,"香ケ丘リベルテ","リベルテ"]
[null,null,null,null,null,null,null,null,null,null,null,null,null,null,null,null,null,null,null,null,null,null,null,null,null,null,null,null,null,null,null,null,null,null,null,null,null,null,null,null,null,null,null,null,null,null,null,null,null,null,null,null,null,null,null,null,null,null,null,null,null,null,null,null,null,null,null,null,null,null,null,null,null,null,null,null,null,null,null,null,null,null,null,null,null,null,null,null,null,null,null,null,null,null,null,null,null,null,null,null,null,null,null,null,null,null,null,null,null,null,null,null,null,null,null,null,null,null,null,null,null,null,null,null,null,null,null,null,null,null,null,null,null,null,null,null,null,null,null,null,null,null,null,null,null,null,null,null,null,null,null,null,null,null,null,null,null,null,null,null,null,null,null,null,null,null,null,null,null,null,null,null,null,null,null,null,null,null,null,null,null,null,null,null,null,null,null,null,null,null,null,null,null,null,594,"鹿島学園","鹿島学園"]
[null,null,null,null,null,null,null,null,null,null,null,null,null,null,null,null,null,null,null,null,null,null,null,null,null,null,null,null,null,null,null,null,null,null,null,null,null,null,null,null,null,null,null,null,null,null,null,null,null,null,null,null,null,null,null,null,null,null,null,null,null,null,null,null,null,null,null,null,null,null,null,null,null,null,null,null,null,null,null,null,null,null,null,null,null,null,null,null,null,null,null,null,null,null,null,null,null,null,null,null,null,null,null,null,null,null,null,null,null,null,null,null,null,null,null,null,null,null,null,null,null,null,null,null,null,null,null,null,null,null,null,null,null,null,null,null,null,null,null,null,null,null,null,null,null,null,null,null,null,null,null,null,null,null,null,null,null,null,null,null,null,null,null,null,null,null,null,null,null,null,null,null,null,null,null,null,null,null,null,null,null,null,null,null,null,null,null,null,null,null,null,null,null,null,597,"大阪朝鮮高級","朝鮮高級"]
[null,null,null,null,null,null,null,null,null,null,null,null,null,null,null,null,null,null,null,null,null,null,null,null,null,null,null,null,null,null,null,null,null,null,null,null,null,null,null,null,null,null,null,null,null,null,null,null,null,null,null,null,null,null,null,null,null,null,null,null,null,null,null,null,null,null,null,null,null,null,null,null,null,null,null,null,null,null,null,null,null,null,null,null,null,null,null,null,null,null,null,null,null,null,null,null,null,null,null,null,null,null,null,null,null,null,null,null,null,null,null,null,null,null,null,null,null,null,null,null,null,null,null,null,null,null,null,null,null,null,null,null,null,null,null,null,null,null,null,null,null,null,null,null,null,null,null,null,null,null,null,null,null,null,null,null,null,null,null,null,null,null,null,null,null,null,null,null,null,null,null,null,null,null,null,null,null,null,null,null,null,null,null,null,null,null,null,null,null,null,null,null,null,null,598,"大阪府立大工業高専","府大工高"]

{"sheet":"申込","index":2,"n_rows":667,"n_cols":64,"rows_kept":667,"cut":false,"hidden":false,"merged":[[428,21,429,24],[458,22,458,23],[435,41,437,43],[435,44,437,48],[481,2,483,5],[481,22,481,23],[453,2,453,5],[457,44,457,48],[454,47,456,49],[457,2,457,5],[453,6,453,34],[454,35,456,46],[477,6,479,24],[477,25,479,34],[468,28,469,28],[474,25,475,65],[477,50,479,61],[477,47,479,49],[476,6,476,34],[474,6,475,12],[435,59,437,61],[477,62,479,65],[458,54,460,57],[476,50,476,65],[474,21,475,24],[435,49,437,53],[468,37,469,37],[428,2,429,5],[480,54,480,65],[480,49,480,53],[365,2,365,5],[435,22,435,23],[435,38,437,40],[436,6,437,7],[435,24,437,37],[435,8,437,21],[434,2,434,5],[428,6,429,12],[430,2,430,5],[434,6,434,7],[435,2,437,5],[435,62,437,62],[435,6,435,7],[435,54,437,57],[384,2,384,5],[365,24,365,37],[422,29,423,36],[412,2,414,5],[412,6,412,7],[385,62,387,65],[365,38,365,40],[385,47,387,49],[366,44,368,48],[365,41,365,43],[382,25,383,65],[366,24,368,37],[412,24,414,37],[435,63,437,65],[430,35,430,49],[428,25,429,65],[431,62,433,65],[431,6,433,24],[385,2,387,5],[411,2,411,5],[385,6,387,24],[411,38,411,40],[413,22,414,23],[413,6,414,7],[403,14,404,49],[389,41,391,43],[389,24,391,37],[408,50,410,61],[388,38,388,40],[388,41,388,43],[388,44,388,48],[388,49,388,53],[389,22,389,23],[389,59,391,61],[403,54,404,65],[407,2,407,5],[405,6,406,12],[407,6,407,34],[389,62,391,62],[408,2,410,5],[388,2,388,5],[405,2,406,5],[389,63,391,65],[389,8,391,21],[389,2,391,5],[405,13,406,20],[408,47,410,49],[389,6,389,7],[399,29,400,36],[399,37,400,37],[366,2,368,5],[412,54,414,57],[407,50,407,65],[412,63,414,65],[411,49,411,53],[412,58,414,58],[412,62,414,62],[408,62,410,65],[390,22,391,23],[389,38,391,40],[390,6,391,7],[411,6,411,7],[389,44,391,48],[411,41,411,43],[382,6,383,12],[380,14,381,49],[382,13,383,20],[367,22,368,23],[376,28,377,28],[366,22,366,23],[389,49,391,53],[388,6,388,7],[385,25,387,34],[408,6,410,24],[405,21,406,24],[407,35,407,49],[382,2,383,5],[366,6,366,7],[367,6,368,7],[385,50,387,61],[389,58,391,58],[412,8,414,21],[385,35,387,46],[376,29,377,36],[366,41,368,43],[366,49,368,53],[380,54,381,65],[366,58,368,58],[388,8,388,21],[389,54,391,57],[365,6,365,7],[365,8,365,21],[388,24,388,37],[366,38,368,40],[366,63,368,65],[376,37,377,37],[366,8,368,21],[384,35,384,49],[359,21,360,24],[362,25,364,34],[384,6,384,34],[382,21,383,24],[384,50,384,65],[366,59,368,61],[365,22,365,23],[388,54,388,65],[388,22,388,23],[366,62,368,62],[366,54,368,57],[336,25,337,65],[319,38,319,40],[320,54,322,57],[319,54,319,65],[334,54,335,65],[334,14,335,49],[330,29,331,36],[339,62,341,65],[361,35,361,49],[362,50,364,61],[365,49,365,53],[362,62,364,65],[353,29,354,36],[342,49,342,53],[339,35,341,46],[342,24,342,37],[361,50,361,65],[343,41,345,43],[339,47,341,49],[365,54,365,65],[362,35,364,46],[362,47,364,49],[343,58,345,58],[343,54,345,57],[343,62,345,62],[343,24,345,37],[343,59,345,61],[365,44,365,48],[320,2,322,5],[336,13,337,20],[336,2,337,5],[336,21,337,24],[321,6,322,7],[320,8,322,21],[320,6,320,7],[316,62,318,65],[320,49,322,53],[320,59,322,61],[319,49,319,53],[320,62,322,62],[316,47,318,49],[319,44,319,48],[361,6,361,34],[320,58,322,58],[343,49,345,53],[342,38,342,40],[330,37,331,37],[344,6,345,7],[357,54,358,65],[343,63,345,65],[342,54,342,65],[320,24,322,37],[330,28,331,28],[320,44,322,48],[320,38,322,40],[320,41,322,43],[343,44,345,48],[343,38,345,40],[338,50,338,65],[319,41,319,43],[362,2,364,5],[361,2,361,5],[319,2,319,5],[299,6,300,7],[339,6,341,24],[343,22,343,23],[344,22,345,23],[359,2,360,5],[319,8,319,21],[307,37,308,37],[307,28,308,28],[313,6,314,12],[307,29,308,36],[313,13,314,20],[316,35,318,46],[316,25,318,34],[342,22,342,23],[320,22,320,23],[339,25,341,34],[299,22,300,23],[298,41,300,43],[342,2,342,5],[336,6,337,12],[342,6,342,7],[343,2,345,5],[343,6,343,7],[343,8,345,21],[338,2,338,5],[338,6,338,34],[339,2,341,5],[342,8,342,21],[338,35,338,49],[297,44,297,48],[298,38,300,40],[359,6,360,12],[359,25,360,65],[319,24,319,37],[319,22,319,23],[319,6,319,7],[321,22,322,23],[357,14,358,49],[353,28,354,28],[353,37,354,37],[359,13,360,20],[311,54,312,65],[316,6,318,24],[316,50,318,61],[313,21,314,24],[315,50,315,65],[315,35,315,49],[313,25,314,65],[315,6,315,34],[311,14,312,49],[298,44,300,48],[298,22,298,23],[298,63,300,65],[298,62,300,62],[298,59,300,61],[298,54,300,57],[298,58,300,58],[339,50,341,61],[342,44,342,48],[342,41,342,43],[320,63,322,65],[297,22,297,23],[362,6,364,24],[298,2,300,5],[313,2,314,5],[316,2,318,5],[315,2,315,5],[297,2,297,5],[297,8,297,21],[480,6,480,7],[480,8,480,21],[480,22,480,23],[503,41,503,43],[491,28,492,28],[480,38,480,40],[480,41,480,43],[480,24,480,37],[495,14,496,49],[503,24,503,37],[500,2,502,5],[481,8,483,21],[482,6,483,7],[500,6,502,24],[503,6,503,7],[500,25,502,34],[481,6,481,7],[497,13,498,20],[503,22,503,23],[503,2,503,5],[298,24,300,37],[298,49,300,53],[297,41,297,43],[297,49,297,53],[526,2,526,5],[526,6,526,7],[504,2,506,5],[504,6,504,7],[522,2,522,5],[505,6,506,7],[520,2,521,5],[523,2,525,5],[500,35,502,46],[412,22,412,23],[434,38,434,40],[412,38,414,40],[422,28,423,28],[434,8,434,21],[491,37,492,37],[497,2,498,5],[503,38,503,40],[497,25,498,65],[458,44,460,48],[454,62,456,65],[454,6,456,24],[458,63,460,65],[436,22,437,23],[431,2,433,5],[431,35,433,46],[449,14,450,49],[457,41,457,43],[481,58,483,58],[458,58,460,58],[476,35,476,49],[431,25,433,34],[457,38,457,40],[526,54,526,65],[399,28,400,28],[411,8,411,21],[481,63,483,65],[474,2,475,5],[527,59,529,61],[527,54,529,57],[504,59,506,61],[504,8,506,21],[514,29,515,36],[522,35,522,49],[520,13,521,20],[514,37,515,37],[520,25,521,65],[522,50,522,65],[457,49,457,53],[454,50,456,61],[453,50,453,65],[457,54,457,65],[474,13,475,20],[477,35,479,46],[504,22,504,23],[454,25,456,34],[458,41,460,43],[457,24,457,37],[457,22,457,23],[453,35,453,49],[458,24,460,37],[472,54,473,65],[458,59,460,61],[499,2,499,5],[422,37,423,37],[526,24,526,37],[514,28,515,28],[458,49,460,53],[499,50,499,65],[481,62,483,62],[445,28,446,28],[445,37,446,37],[480,2,480,5],[434,54,434,65],[451,2,452,5],[451,13,452,20],[451,6,452,12],[435,58,437,58],[451,25,452,65],[458,2,460,5],[458,6,458,7],[445,29,446,36],[451,21,452,24],[449,54,450,65],[458,8,460,21],[480,44,480,48],[503,49,503,53],[523,47,525,49],[526,41,526,43],[526,44,526,48],[504,38,506,40],[477,2,479,5],[476,2,476,5],[520,6,521,12],[523,62,525,65],[526,38,526,40],[523,50,525,61],[500,47,502,49],[499,6,499,34],[481,49,483,53],[497,21,498,24],[500,62,502,65],[481,41,483,43],[481,59,483,61],[491,29,492,36],[426,54,427,65],[412,59,414,61],[459,6,460,7],[457,6,457,7],[408,35,410,46],[411,24,411,37],[408,25,410,34],[472,14,473,49],[458,62,460,62],[457,8,457,21],[434,44,434,48],[434,49,434,53],[431,50,433,61],[430,50,430,65],[411,44,411,48],[431,47,433,49],[434,41,434,43],[428,13,429,20],[430,6,430,34],[434,22,434,23],[434,24,434,37],[412,41,414,43],[412,44,414,48],[426,14,427,49],[527,2,529,5],[527,62,529,62],[528,6,529,7],[497,6,498,12],[527,6,527,7],[505,22,506,23],[520,21,521,24],[523,6,525,24],[526,8,526,21],[526,22,526,23],[291,25,292,65],[293,2,293,5],[527,49,529,53],[527,38,529,40],[528,22,529,23],[527,24,529,37],[527,8,529,21],[527,44,529,48],[527,63,529,65],[527,41,529,43],[481,54,483,57],[527,58,529,58],[504,44,506,48],[504,49,506,53],[527,22,527,23],[518,54,519,65],[522,6,522,34],[523,25,525,34],[523,35,525,46],[518,14,519,49],[504,41,506,43],[504,58,506,58],[298,6,298,7],[293,6,293,34],[276,8,278,21],[275,22,275,23],[272,2,274,5],[275,8,275,21],[275,49,275,53],[276,44,278,48],[285,37,286,37],[285,29,286,36],[482,22,483,23],[504,24,506,37],[481,38,483,40],[481,24,483,37],[481,44,483,48],[458,38,460,40],[459,22,460,23],[294,50,296,61],[291,6,292,12],[289,14,290,49],[289,54,290,65],[504,62,506,62],[504,54,506,57],[503,54,503,65],[504,63,506,65],[291,21,292,24],[291,13,292,20],[405,25,406,65],[454,2,456,5],[468,29,469,36],[411,54,411,65],[411,22,411,23],[526,49,526,53],[503,44,503,48],[275,2,275,5],[275,41,275,43],[276,62,278,62],[276,58,278,58],[276,63,278,65],[276,59,278,61],[277,6,278,7],[276,6,276,7],[276,41,278,43],[285,28,286,28],[293,35,293,49],[500,50,502,61],[495,54,496,65],[499,35,499,49],[412,49,414,53],[298,8,300,21],[297,6,297,7],[503,8,503,21],[294,2,296,5],[293,50,293,65],[291,2,292,5],[294,6,296,24],[294,25,296,34],[275,54,275,65],[294,62,296,65],[297,54,297,65],[294,35,296,46],[294,47,296,49],[297,24,297,37],[297,38,297,40],[272,50,274,61],[276,38,278,40],[276,22,276,23],[276,24,278,37],[277,22,278,23],[269,6,270,12],[272,6,274,24],[275,6,275,7],[272,25,274,34],[275,24,275,37],[276,54,278,57],[276,49,278,53],[272,35,274,46],[275,38,275,40],[275,44,275,48],[272,47,274,49],[276,2,278,5],[271,50,271,65],[271,35,271,49],[271,6,271,34],[271,2,271,5],[272,62,274,65],[267,14,268,49],[263,29,264,36],[254,22,254,23],[254,8,256,21],[255,22,256,23],[255,6,256,7],[254,24,256,37],[263,37,264,37],[269,2,270,5],[269,13,270,20],[269,25,270,65],[269,21,270,24],[254,59,256,61],[254,62,256,62],[253,49,253,53],[254,54,256,57],[267,54,268,65],[254,49,256,53],[263,28,264,28],[254,44,256,48],[254,38,256,40],[254,41,256,43],[249,2,249,5],[250,6,252,24],[250,50,252,61],[254,6,254,7],[247,25,248,65],[247,21,248,24],[247,6,248,12],[247,13,248,20],[250,25,252,34],[249,50,249,65],[249,35,249,49],[253,54,253,65],[250,35,252,46],[250,62,252,65],[253,6,253,7],[253,44,253,48],[253,22,253,23],[253,8,253,21],[250,47,252,49],[253,41,253,43],[253,24,253,37],[253,38,253,40],[254,63,256,65],[254,2,256,5],[254,58,256,58],[201,54,202,65],[205,50,205,65],[203,25,204,65],[227,2,227,5],[227,6,227,34],[228,6,230,24],[227,35,227,49],[228,47,230,49],[228,25,230,34],[228,35,230,46],[228,2,230,5],[231,8,231,21],[231,2,231,5],[231,54,231,65],[203,6,204,12],[231,49,231,53],[232,63,234,65],[232,2,234,5],[232,8,234,21],[231,6,231,7],[233,6,234,7],[231,38,231,40],[233,22,234,23],[232,24,234,37],[231,24,231,37],[231,41,231,43],[232,54,234,57],[232,6,232,7],[232,62,234,62],[232,58,234,58],[232,59,234,61],[205,35,205,49],[209,22,209,23],[209,54,209,65],[206,25,208,34],[203,21,204,24],[231,44,231,48],[231,22,231,23],[253,2,253,5],[245,14,246,49],[247,2,248,5],[232,41,234,43],[232,44,234,48],[241,37,242,37],[232,38,234,40],[232,22,232,23],[232,49,234,53],[225,2,226,5],[225,6,226,12],[225,13,226,20],[211,22,212,23],[209,8,209,21],[245,54,246,65],[241,29,242,36],[241,28,242,28],[205,2,205,5],[203,13,204,20],[203,2,204,5],[206,6,208,24],[206,2,208,5],[209,2,209,5],[250,2,252,5],[249,6,249,34],[210,2,212,5],[201,14,202,49],[188,24,190,37],[188,59,190,61],[188,54,190,57],[188,58,190,58],[228,62,230,65],[228,50,230,61],[188,62,190,62],[188,63,190,65],[188,49,190,53],[210,49,212,53],[223,14,224,49],[210,22,210,23],[225,25,226,65],[209,49,209,53],[209,44,209,48],[210,24,212,37],[210,41,212,43],[210,54,212,57],[210,59,212,61],[210,58,212,58],[210,62,212,62],[206,62,208,65],[206,47,208,49],[205,6,205,34],[227,50,227,65],[210,63,212,65],[206,50,208,61],[223,54,224,65],[206,35,208,46],[209,41,209,43],[209,38,209,40],[225,21,226,24],[210,44,212,48],[210,38,212,40],[219,28,220,28],[210,8,212,21],[211,6,212,7],[210,6,210,7],[209,6,209,7],[219,29,220,36],[219,37,220,37],[209,24,209,37],[197,29,198,36],[164,24,164,37],[165,24,167,37],[164,49,164,53],[174,28,175,28],[188,41,190,43],[165,44,167,48],[164,44,164,48],[165,41,167,43],[184,47,186,49],[184,35,186,46],[184,6,186,24],[187,49,187,53],[187,38,187,40],[188,44,190,48],[188,38,190,40],[181,25,182,65],[165,62,167,62],[165,59,167,61],[165,58,167,58],[165,49,167,53],[187,2,187,5],[188,2,190,5],[187,44,187,48],[165,38,167,40],[165,22,165,23],[174,29,175,36],[183,35,183,49],[197,28,198,28],[197,37,198,37],[188,22,188,23],[184,62,186,65],[187,54,187,65],[187,6,187,7],[164,22,164,23],[164,38,164,40],[164,41,164,43],[189,22,190,23],[165,63,167,65],[181,21,182,24],[187,24,187,37],[189,6,190,7],[188,8,190,21],[188,6,188,7],[187,8,187,21],[179,54,180,65],[179,14,180,49],[187,41,187,43],[184,50,186,61],[187,22,187,23],[184,25,186,34],[183,50,183,65],[181,13,182,20],[161,25,163,34],[160,2,160,5],[158,2,159,5],[165,2,167,5],[166,22,167,23],[165,8,167,21],[166,6,167,7],[161,2,163,5],[164,8,164,21],[184,2,186,5],[183,2,183,5],[181,2,182,5],[164,6,164,7],[165,6,165,7],[164,2,164,5],[183,6,183,34],[181,6,182,12],[165,54,167,57],[174,37,175,37],[143,6,143,7],[144,6,145,7],[136,2,137,5],[143,2,145,5],[138,2,138,5],[139,2,141,5],[142,2,142,5],[158,6,159,12],[142,6,142,7],[142,8,142,21],[136,21,137,24],[136,13,137,20],[114,2,115,5],[117,2,119,5],[121,6,121,7],[122,6,123,7],[114,6,115,12],[120,2,120,5],[121,2,123,5],[120,6,120,7],[116,2,116,5],[121,8,123,21],[134,14,135,49],[122,22,123,23],[121,38,123,40],[130,28,131,28],[116,6,116,34],[114,13,115,20],[117,47,119,49],[120,38,120,40],[121,62,123,62],[121,41,123,43],[121,44,123,48],[139,25,141,34],[164,54,164,65],[152,37,153,37],[143,38,145,40],[160,6,160,34],[152,29,153,36],[158,13,159,20],[160,35,160,49],[158,21,159,24],[152,28,153,28],[156,54,157,65],[144,22,145,23],[143,8,145,21],[143,22,143,23],[161,62,163,65],[142,49,142,53],[143,59,145,61],[161,50,163,61],[160,50,160,65],[156,14,157,49],[158,25,159,65],[143,44,145,48],[142,38,142,40],[143,49,145,53],[161,35,163,46],[143,24,145,37],[143,41,145,43],[161,47,163,49],[161,6,163,24],[121,59,123,61],[121,54,123,57],[117,6,119,24],[121,22,121,23],[143,63,145,65],[142,44,142,48],[142,54,142,65],[143,54,145,57],[139,6,141,24],[121,24,123,37],[139,62,141,65],[138,50,138,65],[136,6,137,12],[138,6,138,34],[143,58,145,58],[143,62,145,62],[139,50,141,61],[142,41,142,43],[138,35,138,49],[121,63,123,65],[121,49,123,53],[136,25,137,65],[130,37,131,37],[130,29,131,36],[142,22,142,23],[142,24,142,37],[139,47,141,49],[139,35,141,46],[120,41,120,43],[117,35,119,46],[134,54,135,65],[121,58,123,58],[120,8,120,21],[120,22,120,23],[116,35,116,49],[120,49,120,53],[120,44,120,48],[114,21,115,24],[117,50,119,61],[116,50,116,65],[117,62,119,65],[120,24,120,37],[120,54,120,65],[117,25,119,34],[99,58,101,58],[99,22,99,23],[99,8,101,21],[99,41,101,43],[99,38,101,40],[99,49,101,53],[100,22,101,23],[114,25,115,65],[112,54,113,65],[99,54,101,57],[99,62,101,62],[99,63,101,65],[99,59,101,61],[95,47,97,49],[100,6,101,7],[99,24,101,37],[112,14,113,49],[99,44,101,48],[108,29,109,36],[108,28,109,28],[108,37,109,37],[95,62,97,65],[98,44,98,48],[98,49,98,53],[98,54,98,65],[51,62,53,65],[6,50,6,65],[7,47,9,49],[7,50,9,61],[10,54,10,65],[32,44,32,48],[54,44,54,48],[33,63,35,65],[29,62,31,65],[29,50,31,61],[54,24,54,37],[33,38,35,40],[54,54,54,65],[99,6,99,7],[98,6,98,7],[95,6,97,24],[98,41,98,43],[98,8,98,21],[98,38,98,40],[95,25,97,34],[98,22,98,23],[98,24,98,37],[73,25,75,34],[95,35,97,46],[94,6,94,34],[76,44,76,48],[73,47,75,49],[86,28,87,28],[77,58,79,58],[78,22,79,23],[95,50,97,61],[76,41,76,43],[92,13,93,20],[73,62,75,65],[76,49,76,53],[2,54,3,65],[2,14,3,49],[6,35,6,49],[11,41,13,43],[11,44,13,48],[11,58,13,58],[33,58,35,58],[50,6,50,34],[54,22,54,23],[26,21,27,24],[28,6,28,34],[56,22,57,23],[55,22,55,23],[51,6,53,24],[32,6,32,7],[33,8,35,21],[48,13,49,20],[34,22,35,23],[51,50,53,61],[54,38,54,40],[77,24,79,37],[77,63,79,65],[29,2,31,5],[51,25,53,34],[10,49,10,53],[10,44,10,48],[10,38,10,40],[11,38,13,40],[11,24,13,37],[24,14,25,49],[51,47,53,49],[29,47,31,49],[28,35,28,49],[29,35,31,46],[32,24,32,37],[32,38,32,40],[32,41,32,43],[32,8,32,21],[32,49,32,53],[29,25,31,34],[50,50,50,65],[28,2,28,5],[11,2,13,5],[11,22,11,23],[12,22,13,23],[26,13,27,20],[33,6,33,7],[32,2,32,5],[24,54,25,65],[11,63,13,65],[33,59,35,61],[46,54,47,65],[51,35,53,46]],"merged_total":1409,"flags":["merged_cut"]}
[]
[]
[null,null,null,null,null,null,null,null,null,null,null,null,null,null,"個　人　試　合　申　込　書",null,null,null,null,null,null,null,null,null,null,null,null,null,null,null,null,null,null,null,null,null,null,null,null,null,null,null,null,null,null,null,null,null,null,null,null,null,null,null,{"$f":"NOW()","v":"2019-05-15T13:34:17.660"}]
[]
[null,null,"※抽選番号",null,null,null,null,null,null,null,null,null,null,{"$f":"入力シート!C13","v":0},null,null,null,null,null,null,null,"kg級",null,null,null,{"$f":"入力シート!P6","v":"第５０回　全国定通大会大阪府選考会"}]
[]
[null,null,"学校番号",null,null,null,"学　　　　校　　　　名",null,null,null,null,null,null,null,null,null,null,null,null,null,null,null,null,null,null,null,null,null,null,null,null,null,null,null,null,"監督名",null,null,null,null,null,null,null,null,null,null,null,null,null,null,"校長名"]
[null,null,{"$f":"入力シート!$C$9","v":0},null,null,null,{"$f":"入力シート!$G$9","v":""},null,null,null,null,null,null,null,null,null,null,null,null,null,null,null,null,null,null,"高等学校",null,null,null,null,null,null,null,null,null,{"$f":"入力シート!$AJ$9","v":0},null,null,null,null,null,null,null,null,null,null,null,"印",null,null,{"$f":"入力シート!$AY$9","v":0},null,null,null,null,null,null,null,null,null,null,null,"印"]
[]
[]
[null,null,"ふりがな",null,null,null,null,null,{"$f":"IF(入力シート!I13=\"\",\"\",入力シート!I13)","v":""},null,null,null,null,null,null,null,null,null,null,null,null,null,null,null,{"$f":"IF(入力シート!Y13=\"\",\"\",入力シート!Y13)","v":""},null,null,null,null,null,null,null,null,null,null,null,null,null,"学年",null,null,"段位",null,null,"体重（kg）",null,null,null,null,"身長（cm）",null,null,null,null,"生年月日（西暦）"]
[null,null,"選手名",null,null,null,"（姓）",null,{"$f":"IF(入力シート!I14=\"\",\"\",入力シート!I14)","v":""},null,null,null,null,null,null,null,null,null,null,null,null,null,"（名）",null,{"$f":"IF(入力シート!Y14=\"\",\"\",入力シート!Y14)","v":""},null,null,null,null,null,null,null,null,null,null,null,null,null,{"$f":"IF(入力シート!AM13=\"\",\"\",入力シート!AM13)","v":""},null,null,{"$f":"IF(入力シート!AP13=\"\",\"\",入力シート!AP13)","v":""},null,null,{"$f":"IF(入力シート!AS13=\"\",\"\",入力シート!AS13)","v":""},null,null,null,null,{"$f":"IF(入力シート!AX13=\"\",\"\",入力シート!AX13)","v":""},null,null,null,null,{"$f":"IF(入力シート!BC13=\"\",\"\",入力シート!BC13)","v":""},null,null,null,"・",{"$f":"IF(入力シート!BH13=\"\",\"\",入力シート!BH13)","v":""},null,null,"・",{"$f":"IF(入力シート!BL13=\"\",\"\",入力シート!BL13)","v":""}]
[]
[]
[]
[]
[]
[]
[]
[]
[null,null,null,null,null,null,null,null,null,null,null,null,null,null,null,null,null,null,null,null,null,null,null,null,null,null,null,null,"（","ｷ　ﾘ　ﾄ　ﾘ",null,null,null,null,null,null,null,"）"]
[]
[]
[]
[null,null,null,null,null,null,null,null,null,null,null,null,null,null,"個　人　試　合　申　込　書",null,null,null,null,null,null,null,null,null,null,null,null,null,null,null,null,null,null,null,null,null,null,null,null,null,null,null,null,null,null,null,null,null,null,null,null,null,null,null,{"$f":"NOW()","v":"2019-05-15T13:34:17.660"}]
[]
[null,null,"※抽選番号",null,null,null,null,null,null,null,null,null,null,{"$f":"入力シート!C17","v":0},null,null,null,null,null,null,null,"kg級",null,null,null,{"$f":"Z5","v":"第５０回　全国定通大会大阪府選考会"}]
[]
[null,null,"学校番号",null,null,null,"学　　　　校　　　　名",null,null,null,null,null,null,null,null,null,null,null,null,null,null,null,null,null,null,null,null,null,null,null,null,null,null,null,null,"監督名",null,null,null,null,null,null,null,null,null,null,null,null,null,null,"校長名"]
[null,null,{"$f":"入力シート!$C$9","v":0},null,null,null,{"$f":"入力シート!$G$9","v":""},null,null,null,null,null,null,null,null,null,null,null,null,null,null,null,null,null,null,"高等学校",null,null,null,null,null,null,null,null,null,{"$f":"入力シート!$AJ$9","v":0},null,null,null,null,null,null,null,null,null,null,null,"印",null,null,{"$f":"入力シート!$AY$9","v":0},null,null,null,null,null,null,null,null,null,null,null,"印"]
[]
[]
[null,null,"ふりがな",null,null,null,null,null,{"$f":"IF(入力シート!I17=\"\",\"\",入力シート!I17)","v":""},null,null,null,null,null,null,null,null,null,null,null,null,null,null,null,{"$f":"IF(入力シート!Y17=\"\",\"\",入力シート!Y17)","v":""},null,null,null,null,null,null,null,null,null,null,null,null,null,"学年",null,null,"段位",null,null,"体重（kg）",null,null,null,null,"身長（cm）",null,null,null,null,"生年月日（西暦）"]
[null,null,"選手名",null,null,null,"（姓）",null,{"$f":"IF(入力シート!I18=\"\",\"\",入力シート!I18)","v":""},null,null,null,null,null,null,null,null,null,null,null,null,null,"（名）",null,{"$f":"IF(入力シート!Y18=\"\",\"\",入力シート!Y18)","v":""},null,null,null,null,null,null,null,null,null,null,null,null,null,{"$f":"IF(入力シート!AM17=\"\",\"\",入力シート!AM17)","v":""},null,null,{"$f":"IF(入力シート!AP17=\"\",\"\",入力シート!AP17)","v":""},null,null,{"$f":"IF(入力シート!AS17=\"\",\"\",入力シート!AS17)","v":""},null,null,null,null,{"$f":"IF(入力シート!AX17=\"\",\"\",入力シート!AX17)","v":""},null,null,null,null,{"$f":"IF(入力シート!BC17=\"\",\"\",入力シート!BC17)","v":""},null,null,null,"・",{"$f":"IF(入力シート!BH17=\"\",\"\",入力シート!BH17)","v":""},null,null,"・",{"$f":"IF(入力シート!BL17=\"\",\"\",入力シート!BL17)","v":""}]
[]
[]
[]
[]
[]
[]
[]
[]
[]
[]
[]
[]
[null,null,null,null,null,null,null,null,null,null,null,null,null,null,"個　人　試　合　申　込　書",null,null,null,null,null,null,null,null,null,null,null,null,null,null,null,null,null,null,null,null,null,null,null,null,null,null,null,null,null,null,null,null,null,null,null,null,null,null,null,{"$f":"NOW()","v":"2019-05-15T13:34:17.660"}]
[]
[null,null,"※抽選番号",null,null,null,null,null,null,null,null,null,null,{"$f":"入力シート!C21","v":0},null,null,null,null,null,null,null,"kg級",null,null,null,{"$f":"Z5","v":"第５０回　全国定通大会大阪府選考会"}]
[]
[null,null,"学校番号",null,null,null,"学　　　　校　　　　名",null,null,null,null,null,null,null,null,null,null,null,null,null,null,null,null,null,null,null,null,null,null,null,null,null,null,null,null,"監督名",null,null,null,null,null,null,null,null,null,null,null,null,null,null,"校長名"]
[null,null,{"$f":"入力シート!$C$9","v":0},null,null,null,{"$f":"入力シート!$G$9","v":""},null,null,null,null,null,null,null,null,null,null,null,null,null,null,null,null,null,null,"高等学校",null,null,null,null,null,null,null,null,null,{"$f":"入力シート!$AJ$9","v":0},null,null,null,null,null,null,null,null,null,null,null,"印",null,null,{"$f":"入力シート!$AY$9","v":0},null,null,null,null,null,null,null,null,null,null,null,"印"]
[]
[]
[null,null,"ふりがな",null,null,null,null,null,{"$f":"IF(入力シート!I21=\"\",\"\",入力シート!I21)","v":""},null,null,null,null,null,null,null,null,null,null,null,null,null,null,null,{"$f":"IF(入力シート!Y21=\"\",\"\",入力シート!Y21)","v":""},null,null,null,null,null,null,null,null,null,null,null,null,null,"学年",null,null,"段位",null,null,"体重（kg）",null,null,null,null,"身長（cm）",null,null,null,null,"生年月日（西暦）"]
[null,null,"選手名",null,null,null,"（姓）",null,{"$f":"IF(入力シート!I22=\"\",\"\",入力シート!I22)","v":""},null,null,null,null,null,null,null,null,null,null,null,null,null,"（名）",null,{"$f":"IF(入力シート!Y22=\"\",\"\",入力シート!Y22)","v":""},null,null,null,null,null,null,null,null,null,null,null,null,null,{"$f":"IF(入力シート!AM21=\"\",\"\",入力シート!AM21)","v":""},null,null,{"$f":"IF(入力シート!AP21=\"\",\"\",入力シート!AP21)","v":""},null,null,{"$f":"IF(入力シート!AS21=\"\",\"\",入力シート!AS21)","v":""},null,null,null,null,{"$f":"IF(入力シート!AX21=\"\",\"\",入力シート!AX21)","v":""},null,null,null,null,{"$f":"IF(入力シート!BC21=\"\",\"\",入力シート!BC21)","v":""},null,null,null,"・",{"$f":"IF(入力シート!BH21=\"\",\"\",入力シート!BH21)","v":""},null,null,"・",{"$f":"IF(入力シート!BL21=\"\",\"\",入力シート!BL21)","v":""}]
[]
[]
[]
[]
[]
[]
[]
[]
[null,null,null,null,null,null,null,null,null,null,null,null,null,null,null,null,null,null,null,null,null,null,null,null,null,null,null,null,"（","ｷ　ﾘ　ﾄ　ﾘ",null,null,null,null,null,null,null,"）"]
[]
[]
[]
[null,null,null,null,null,null,null,null,null,null,null,null,null,null,"個　人　試　合　申　込　書",null,null,null,null,null,null,null,null,null,null,null,null,null,null,null,null,null,null,null,null,null,null,null,null,null,null,null,null,null,null,null,null,null,null,null,null,null,null,null,{"$f":"NOW()","v":"2019-05-15T13:34:17.660"}]
[]
[null,null,"※抽選番号",null,null,null,null,null,null,null,null,null,null,{"$f":"入力シート!C25","v":0},null,null,null,null,null,null,null,"kg級",null,null,null,{"$f":"Z5","v":"第５０回　全国定通大会大阪府選考会"}]
[]
[null,null,"学校番号",null,null,null,"学　　　　校　　　　名",null,null,null,null,null,null,null,null,null,null,null,null,null,null,null,null,null,null,null,null,null,null,null,null,null,null,null,null,"監督名",null,null,null,null,null,null,null,null,null,null,null,null,null,null,"校長名"]
[null,null,{"$f":"入力シート!$C$9","v":0},null,null,null,{"$f":"入力シート!$G$9","v":""},null,null,null,null,null,null,null,null,null,null,null,null,null,null,null,null,null,null,"高等学校",null,null,null,null,null,null,null,null,null,{"$f":"入力シート!$AJ$9","v":0},null,null,null,null,null,null,null,null,null,null,null,"印",null,null,{"$f":"入力シート!$AY$9","v":0},null,null,null,null,null,null,null,null,null,null,null,"印"]
[]
[]
[null,null,"ふりがな",null,null,null,null,null,{"$f":"IF(入力シート!I25=\"\",\"\",入力シート!I25)","v":""},null,null,null,null,null,null,null,null,null,null,null,null,null,null,null,{"$f":"IF(入力シート!Y25=\"\",\"\",入力シート!Y25)","v":""},null,null,null,null,null,null,null,null,null,null,null,null,null,"学年",null,null,"段位",null,null,"体重（kg）",null,null,null,null,"身長（cm）",null,null,null,null,"生年月日（西暦）"]
[null,null,"選手名",null,null,null,"（姓）",null,{"$f":"IF(入力シート!I26=\"\",\"\",入力シート!I26)","v":""},null,null,null,null,null,null,null,null,null,null,null,null,null,"（名）",null,{"$f":"IF(入力シート!Y26=\"\",\"\",入力シート!Y26)","v":""},null,null,null,null,null,null,null,null,null,null,null,null,null,{"$f":"IF(入力シート!AM25=\"\",\"\",入力シート!AM25)","v":""},null,null,{"$f":"IF(入力シート!AP25=\"\",\"\",入力シート!AP25)","v":""},null,null,{"$f":"IF(入力シート!AS25=\"\",\"\",入力シート!AS25)","v":""},null,null,null,null,{"$f":"IF(入力シート!AX25=\"\",\"\",入力シート!AX25)","v":""},null,null,null,null,{"$f":"IF(入力シート!BC25=\"\",\"\",入力シート!BC25)","v":""},null,null,null,"・",{"$f":"IF(入力シート!BH25=\"\",\"\",入力シート!BH25)","v":""},null,null,"・",{"$f":"IF(入力シート!BL25=\"\",\"\",入力シート!BL25)","v":""}]
[]
[]
[]
[]
[]
[]
[]
[]
[]
[]
[]
[]
[null,null,null,null,null,null,null,null,null,null,null,null,null,null,"個　人　試　合　申　込　書",null,null,null,null,null,null,null,null,null,null,null,null,null,null,null,null,null,null,null,null,null,null,null,null,null,null,null,null,null,null,null,null,null,null,null,null,null,null,null,{"$f":"NOW()","v":"2019-05-15T13:34:17.660"}]
[]
[null,null,"※抽選番号",null,null,null,null,null,null,null,null,null,null,{"$f":"入力シート!C29","v":0},null,null,null,null,null,null,null,"kg級",null,null,null,{"$f":"Z5","v":"第５０回　全国定通大会大阪府選考会"}]
[]
[null,null,"学校番号",null,null,null,"学　　　　校　　　　名",null,null,null,null,null,null,null,null,null,null,null,null,null,null,null,null,null,null,null,null,null,null,null,null,null,null,null,null,"監督名",null,null,null,null,null,null,null,null,null,null,null,null,null,null,"校長名"]
[null,null,{"$f":"入力シート!$C$9","v":0},null,null,null,{"$f":"入力シート!$G$9","v":""},null,null,null,null,null,null,null,null,null,null,null,null,null,null,null,null,null,null,"高等学校",null,null,null,null,null,null,null,null,null,{"$f":"入力シート!$AJ$9","v":0},null,null,null,null,null,null,null,null,null,null,null,"印",null,null,{"$f":"入力シート!$AY$9","v":0},null,null,null,null,null,null,null,null,null,null,null,"印"]
[]
[]
[null,null,"ふりがな",null,null,null,null,null,{"$f":"IF(入力シート!I29=\"\",\"\",入力シート!I29)","v":""},null,null,null,null,null,null,null,null,null,null,null,null,null,null,null,{"$f":"IF(入力シート!Y29=\"\",\"\",入力シート!Y29)","v":""},null,null,null,null,null,null,null,null,null,null,null,null,null,"学年",null,null,"段位",null,null,"体重（kg）",null,null,null,null,"身長（cm）",null,null,null,null,"生年月日（西暦）"]
[null,null,"選手名",null,null,null,"（姓）",null,{"$f":"IF(入力シート!I30=\"\",\"\",入力シート!I30)","v":""},null,null,null,null,null,null,null,null,null,null,null,null,null,"（名）",null,{"$f":"IF(入力シート!Y30=\"\",\"\",入力シート!Y30)","v":""},null,null,null,null,null,null,null,null,null,null,null,null,null,{"$f":"IF(入力シート!AM29=\"\",\"\",入力シート!AM29)","v":""},null,null,{"$f":"IF(入力シート!AP29=\"\",\"\",入力シート!AP29)","v":""},null,null,{"$f":"IF(入力シート!AS29=\"\",\"\",入力シート!AS29)","v":""},null,null,null,null,{"$f":"IF(入力シート!AX29=\"\",\"\",入力シート!AX29)","v":""},null,null,null,null,{"$f":"IF(入力シート!BC29=\"\",\"\",入力シート!BC29)","v":""},null,null,null,"・",{"$f":"IF(入力シート!BH29=\"\",\"\",入力シート!BH29)","v":""},null,null,"・",{"$f":"IF(入力シート!BL29=\"\",\"\",入力シート!BL29)","v":""}]
[]
[]
[]
[]
[]
[]
[]
[]
[null,null,null,null,null,null,null,null,null,null,null,null,null,null,null,null,null,null,null,null,null,null,null,null,null,null,null,null,"（","ｷ　ﾘ　ﾄ　ﾘ",null,null,null,null,null,null,null,"）"]
[]
[]
[]
[null,null,null,null,null,null,null,null,null,null,null,null,null,null,"個　人　試　合　申　込　書",null,null,null,null,null,null,null,null,null,null,null,null,null,null,null,null,null,null,null,null,null,null,null,null,null,null,null,null,null,null,null,null,null,null,null,null,null,null,null,{"$f":"NOW()","v":"2019-05-15T13:34:17.660"}]
[]
[null,null,"※抽選番号",null,null,null,null,null,null,null,null,null,null,{"$f":"入力シート!C33","v":0},null,null,null,null,null,null,null,"kg級",null,null,null,{"$f":"Z5","v":"第５０回　全国定通大会大阪府選考会"}]
[]
[null,null,"学校番号",null,null,null,"学　　　　校　　　　名",null,null,null,null,null,null,null,null,null,null,null,null,null,null,null,null,null,null,null,null,null,null,null,null,null,null,null,null,"監督名",null,null,null,null,null,null,null,null,null,null,null,null,null,null,"校長名"]
[null,null,{"$f":"入力シート!$C$9","v":0},null,null,null,{"$f":"入力シート!$G$9","v":""},null,null,null,null,null,null,null,null,null,null,null,null,null,null,null,null,null,null,"高等学校",null,null,null,null,null,null,null,null,null,{"$f":"入力シート!$AJ$9","v":0},null,null,null,null,null,null,null,null,null,null,null,"印",null,null,{"$f":"入力シート!$AY$9","v":0},null,null,null,null,null,null,null,null,null,null,null,"印"]
[]
[]
[null,null,"ふりがな",null,null,null,null,null,{"$f":"IF(入力シート!I33=\"\",\"\",入力シート!I33)","v":""},null,null,null,null,null,null,null,null,null,null,null,null,null,null,null,{"$f":"IF(入力シート!Y33=\"\",\"\",入力シート!Y33)","v":""},null,null,null,null,null,null,null,null,null,null,null,null,null,"学年",null,null,"段位",null,null,"体重（kg）",null,null,null,null,"身長（cm）",null,null,null,null,"生年月日（西暦）"]
[null,null,"選手名",null,null,null,"（姓）",null,{"$f":"IF(入力シート!I34=\"\",\"\",入力シート!I34)","v":""},null,null,null,null,null,null,null,null,null,null,null,null,null,"（名）",null,{"$f":"IF(入力シート!Y34=\"\",\"\",入力シート!Y34)","v":""},null,null,null,null,null,null,null,null,null,null,null,null,null,{"$f":"IF(入力シート!AM33=\"\",\"\",入力シート!AM33)","v":""},null,null,{"$f":"IF(入力シート!AP33=\"\",\"\",入力シート!AP33)","v":""},null,null,{"$f":"IF(入力シート!AS33=\"\",\"\",入力シート!AS33)","v":""},null,null,null,null,{"$f":"IF(入力シート!AX33=\"\",\"\",入力シート!AX33)","v":""},null,null,null,null,{"$f":"IF(入力シート!BC33=\"\",\"\",入力シート!BC33)","v":""},null,null,null,"・",{"$f":"IF(入力シート!BH33=\"\",\"\",入力シート!BH33)","v":""},null,null,"・",{"$f":"IF(入力シート!BL33=\"\",\"\",入力シート!BL33)","v":""}]
[]
[]
[]
[]
[]
[]
[]
[]
[]
[]
[]
[]
[null,null,null,null,null,null,null,null,null,null,null,null,null,null,"個　人　試　合　申　込　書",null,null,null,null,null,null,null,null,null,null,null,null,null,null,null,null,null,null,null,null,null,null,null,null,null,null,null,null,null,null,null,null,null,null,null,null,null,null,null,{"$f":"NOW()","v":"2019-05-15T13:34:17.660"}]
[]
[null,null,"※抽選番号",null,null,null,null,null,null,null,null,null,null,{"$f":"入力シート!C37","v":0},null,null,null,null,null,null,null,"kg級",null,null,null,{"$f":"Z5","v":"第５０回　全国定通大会大阪府選考会"}]
[]
[null,null,"学校番号",null,null,null,"学　　　　校　　　　名",null,null,null,null,null,null,null,null,null,null,null,null,null,null,null,null,null,null,null,null,null,null,null,null,null,null,null,null,"監督名",null,null,null,null,null,null,null,null,null,null,null,null,null,null,"校長名"]
[null,null,{"$f":"入力シート!$C$9","v":0},null,null,null,{"$f":"入力シート!$G$9","v":""},null,null,null,null,null,null,null,null,null,null,null,null,null,null,null,null,null,null,"高等学校",null,null,null,null,null,null,null,null,null,{"$f":"入力シート!$AJ$9","v":0},null,null,null,null,null,null,null,null,null,null,null,"印",null,null,{"$f":"入力シート!$AY$9","v":0},null,null,null,null,null,null,null,null,null,null,null,"印"]
[]
[]
[null,null,"ふりがな",null,null,null,null,null,{"$f":"IF(入力シート!I37=\"\",\"\",入力シート!I37)","v":""},null,null,null,null,null,null,null,null,null,null,null,null,null,null,null,{"$f":"IF(入力シート!Y37=\"\",\"\",入力シート!Y37)","v":""},null,null,null,null,null,null,null,null,null,null,null,null,null,"学年",null,null,"段位",null,null,"体重（kg）",null,null,null,null,"身長（cm）",null,null,null,null,"生年月日（西暦）"]
[null,null,"選手名",null,null,null,"（姓）",null,{"$f":"IF(入力シート!I38=\"\",\"\",入力シート!I38)","v":""},null,null,null,null,null,null,null,null,null,null,null,null,null,"（名）",null,{"$f":"IF(入力シート!Y38=\"\",\"\",入力シート!Y38)","v":""},null,null,null,null,null,null,null,null,null,null,null,null,null,{"$f":"IF(入力シート!AM37=\"\",\"\",入力シート!AM37)","v":""},null,null,{"$f":"IF(入力シート!AP37=\"\",\"\",入力シート!AP37)","v":""},null,null,{"$f":"IF(入力シート!AS37=\"\",\"\",入力シート!AS37)","v":""},null,null,null,null,{"$f":"IF(入力シート!AX37=\"\",\"\",入力シート!AX37)","v":""},null,null,null,null,{"$f":"IF(入力シート!BC37=\"\",\"\",入力シート!BC37)","v":""},null,null,null,"・",{"$f":"IF(入力シート!BH37=\"\",\"\",入力シート!BH37)","v":""},null,null,"・",{"$f":"IF(入力シート!BL37=\"\",\"\",入力シート!BL37)","v":""}]
[]
[]
[]
[]
[]
[]
[]
[]
[null,null,null,null,null,null,null,null,null,null,null,null,null,null,null,null,null,null,null,null,null,null,null,null,null,null,null,null,"（","ｷ　ﾘ　ﾄ　ﾘ",null,null,null,null,null,null,null,"）"]
[]
[]
[]
[null,null,null,null,null,null,null,null,null,null,null,null,null,null,"個　人　試　合　申　込　書",null,null,null,null,null,null,null,null,null,null,null,null,null,null,null,null,null,null,null,null,null,null,null,null,null,null,null,null,null,null,null,null,null,null,null,null,null,null,null,{"$f":"NOW()","v":"2019-05-15T13:34:17.660"}]
[]
[null,null,"※抽選番号",null,null,null,null,null,null,null,null,null,null,{"$f":"入力シート!C41","v":0},null,null,null,null,null,null,null,"kg級",null,null,null,{"$f":"Z5","v":"第５０回　全国定通大会大阪府選考会"}]
[]
[null,null,"学校番号",null,null,null,"学　　　　校　　　　名",null,null,null,null,null,null,null,null,null,null,null,null,null,null,null,null,null,null,null,null,null,null,null,null,null,null,null,null,"監督名",null,null,null,null,null,null,null,null,null,null,null,null,null,null,"校長名"]
[null,null,{"$f":"入力シート!$C$9","v":0},null,null,null,{"$f":"入力シート!$G$9","v":""},null,null,null,null,null,null,null,null,null,null,null,null,null,null,null,null,null,null,"高等学校",null,null,null,null,null,null,null,null,null,{"$f":"入力シート!$AJ$9","v":0},null,null,null,null,null,null,null,null,null,null,null,"印",null,null,{"$f":"入力シート!$AY$9","v":0},null,null,null,null,null,null,null,null,null,null,null,"印"]
[]
[]
[null,null,"ふりがな",null,null,null,null,null,{"$f":"IF(入力シート!I41=\"\",\"\",入力シート!I41)","v":""},null,null,null,null,null,null,null,null,null,null,null,null,null,null,null,{"$f":"IF(入力シート!Y41=\"\",\"\",入力シート!Y41)","v":""},null,null,null,null,null,null,null,null,null,null,null,null,null,"学年",null,null,"段位",null,null,"体重（kg）",null,null,null,null,"身長（cm）",null,null,null,null,"生年月日（西暦）"]
[null,null,"選手名",null,null,null,"（姓）",null,{"$f":"IF(入力シート!I42=\"\",\"\",入力シート!I42)","v":""},null,null,null,null,null,null,null,null,null,null,null,null,null,"（名）",null,{"$f":"IF(入力シート!Y42=\"\",\"\",入力シート!Y42)","v":""},null,null,null,null,null,null,null,null,null,null,null,null,null,{"$f":"IF(入力シート!AM41=\"\",\"\",入力シート!AM41)","v":""},null,null,{"$f":"IF(入力シート!AP41=\"\",\"\",入力シート!AP41)","v":""},null,null,{"$f":"IF(入力シート!AS41=\"\",\"\",入力シート!AS41)","v":""},null,null,null,null,{"$f":"IF(入力シート!AX41=\"\",\"\",入力シート!AX41)","v":""},null,null,null,null,{"$f":"IF(入力シート!BC41=\"\",\"\",入力シート!BC41)","v":""},null,null,null,"・",{"$f":"IF(入力シート!BH41=\"\",\"\",入力シート!BH41)","v":""},null,null,"・",{"$f":"IF(入力シート!BL41=\"\",\"\",入力シート!BL41)","v":""}]
[]
[]
[]
[]
[]
[]
[]
[]
[]
[]
[]
[]
[]
[null,null,null,null,null,null,null,null,null,null,null,null,null,null,"個　人　試　合　申　込　書",null,null,null,null,null,null,null,null,null,null,null,null,null,null,null,null,null,null,null,null,null,null,null,null,null,null,null,null,null,null,null,null,null,null,null,null,null,null,null,{"$f":"NOW()","v":"2019-05-15T13:34:17.660"}]
[]
[null,null,"※抽選番号",null,null,null,null,null,null,null,null,null,null,{"$f":"入力シート!C45","v":0},null,null,null,null,null,null,null,"kg級",null,null,null,{"$f":"Z5","v":"第５０回　全国定通大会大阪府選考会"}]
[]
[null,null,"学校番号",null,null,null,"学　　　　校　　　　名",null,null,null,null,null,null,null,null,null,null,null,null,null,null,null,null,null,null,null,null,null,null,null,null,null,null,null,null,"監督名",null,null,null,null,null,null,null,null,null,null,null,null,null,null,"校長名"]
[null,null,{"$f":"入力シート!$C$9","v":0},null,null,null,{"$f":"入力シート!$G$9","v":""},null,null,null,null,null,null,null,null,null,null,null,null,null,null,null,null,null,null,"高等学校",null,null,null,null,null,null,null,null,null,{"$f":"入力シート!$AJ$9","v":0},null,null,null,null,null,null,null,null,null,null,null,"印",null,null,{"$f":"入力シート!$AY$9","v":0},null,null,null,null,null,null,null,null,null,null,null,"印"]
[]
[]
[null,null,"ふりがな",null,null,null,null,null,{"$f":"IF(入力シート!I45=\"\",\"\",入力シート!I45)","v":""},null,null,null,null,null,null,null,null,null,null,null,null,null,null,null,{"$f":"IF(入力シート!Y45=\"\",\"\",入力シート!Y45)","v":""},null,null,null,null,null,null,null,null,null,null,null,null,null,"学年",null,null,"段位",null,null,"体重（kg）",null,null,null,null,"身長（cm）",null,null,null,null,"生年月日（西暦）"]
[null,null,"選手名",null,null,null,"（姓）",null,{"$f":"IF(入力シート!I46=\"\",\"\",入力シート!I46)","v":""},null,null,null,null,null,null,null,null,null,null,null,null,null,"（名）",null,{"$f":"IF(入力シート!Y46=\"\",\"\",入力シート!Y46)","v":""},null,null,null,null,null,null,null,null,null,null,null,null,null,{"$f":"IF(入力シート!AM45=\"\",\"\",入力シート!AM45)","v":""},null,null,{"$f":"IF(入力シート!AP45=\"\",\"\",入力シート!AP45)","v":""},null,null,{"$f":"IF(入力シート!AS45=\"\",\"\",入力シート!AS45)","v":""},null,null,null,null,{"$f":"IF(入力シート!AX45=\"\",\"\",入力シート!AX45)","v":""},null,null,null,null,{"$f":"IF(入力シート!BC45=\"\",\"\",入力シート!BC45)","v":""},null,null,null,"・",{"$f":"IF(入力シート!BH45=\"\",\"\",入力シート!BH45)","v":""},null,null,"・",{"$f":"IF(入力シート!BL45=\"\",\"\",入力シート!BL45)","v":""}]
[]
[]
[]
[]
[]
[]
[]
[]
[null,null,null,null,null,null,null,null,null,null,null,null,null,null,null,null,null,null,null,null,null,null,null,null,null,null,null,null,"（","ｷ　ﾘ　ﾄ　ﾘ",null,null,null,null,null,null,null,"）"]
[]
[]
[]
[null,null,null,null,null,null,null,null,null,null,null,null,null,null,"個　人　試　合　申　込　書",null,null,null,null,null,null,null,null,null,null,null,null,null,null,null,null,null,null,null,null,null,null,null,null,null,null,null,null,null,null,null,null,null,null,null,null,null,null,null,{"$f":"NOW()","v":"2019-05-15T13:34:17.660"}]
[]
[null,null,"※抽選番号",null,null,null,null,null,null,null,null,null,null,{"$f":"入力シート!C49","v":0},null,null,null,null,null,null,null,"kg級",null,null,null,{"$f":"Z5","v":"第５０回　全国定通大会大阪府選考会"}]
[]
[null,null,"学校番号",null,null,null,"学　　　　校　　　　名",null,null,null,null,null,null,null,null,null,null,null,null,null,null,null,null,null,null,null,null,null,null,null,null,null,null,null,null,"監督名",null,null,null,null,null,null,null,null,null,null,null,null,null,null,"校長名"]
[null,null,{"$f":"入力シート!$C$9","v":0},null,null,null,{"$f":"入力シート!$G$9","v":""},null,null,null,null,null,null,null,null,null,null,null,null,null,null,null,null,null,null,"高等学校",null,null,null,null,null,null,null,null,null,{"$f":"入力シート!$AJ$9","v":0},null,null,null,null,null,null,null,null,null,null,null,"印",null,null,{"$f":"入力シート!$AY$9","v":0},null,null,null,null,null,null,null,null,null,null,null,"印"]
[]
[]
[null,null,"ふりがな",null,null,null,null,null,{"$f":"IF(入力シート!I49=\"\",\"\",入力シート!I49)","v":""},null,null,null,null,null,null,null,null,null,null,null,null,null,null,null,{"$f":"IF(入力シート!Y49=\"\",\"\",入力シート!Y49)","v":""},null,null,null,null,null,null,null,null,null,null,null,null,null,"学年",null,null,"段位",null,null,"体重（kg）",null,null,null,null,"身長（cm）",null,null,null,null,"生年月日（西暦）"]
[null,null,"選手名",null,null,null,"（姓）",null,{"$f":"IF(入力シート!I50=\"\",\"\",入力シート!I50)","v":""},null,null,null,null,null,null,null,null,null,null,null,null,null,"（名）",null,{"$f":"IF(入力シート!Y50=\"\",\"\",入力シート!Y50)","v":""},null,null,null,null,null,null,null,null,null,null,null,null,null,{"$f":"IF(入力シート!AM49=\"\",\"\",入力シート!AM49)","v":""},null,null,{"$f":"IF(入力シート!AP49=\"\",\"\",入力シート!AP49)","v":""},null,null,{"$f":"IF(入力シート!AS49=\"\",\"\",入力シート!AS49)","v":""},null,null,null,null,{"$f":"IF(入力シート!AX49=\"\",\"\",入力シート!AX49)","v":""},null,null,null,null,{"$f":"IF(入力シート!BC49=\"\",\"\",入力シート!BC49)","v":""},null,null,null,"・",{"$f":"IF(入力シート!BH49=\"\",\"\",入力シート!BH49)","v":""},null,null,"・",{"$f":"IF(入力シート!BL49=\"\",\"\",入力シート!BL49)","v":""}]
[]
[]
[]
[]
[]
[]
[]
[]
[]
[]
[]
[]
[null,null,null,null,null,null,null,null,null,null,null,null,null,null,"個　人　試　合　申　込　書",null,null,null,null,null,null,null,null,null,null,null,null,null,null,null,null,null,null,null,null,null,null,null,null,null,null,null,null,null,null,null,null,null,null,null,null,null,null,null,{"$f":"NOW()","v":"2019-05-15T13:34:17.660"}]
[]
[null,null,"※抽選番号",null,null,null,null,null,null,null,null,null,null,{"$f":"入力シート!C53","v":0},null,null,null,null,null,null,null,"kg級",null,null,null,{"$f":"Z5","v":"第５０回　全国定通大会大阪府選考会"}]
[]
[null,null,"学校番号",null,null,null,"学　　　　校　　　　名",null,null,null,null,null,null,null,null,null,null,null,null,null,null,null,null,null,null,null,null,null,null,null,null,null,null,null,null,"監督名",null,null,null,null,null,null,null,null,null,null,null,null,null,null,"校長名"]
[null,null,{"$f":"入力シート!$C$9","v":0},null,null,null,{"$f":"入力シート!$G$9","v":""},null,null,null,null,null,null,null,null,null,null,null,null,null,null,null,null,null,null,"高等学校",null,null,null,null,null,null,null,null,null,{"$f":"入力シート!$AJ$9","v":0},null,null,null,null,null,null,null,null,null,null,null,"印",null,null,{"$f":"入力シート!$AY$9","v":0},null,null,null,null,null,null,null,null,null,null,null,"印"]
[]
[]
[null,null,"ふりがな",null,null,null,null,null,{"$f":"IF(入力シート!I53=\"\",\"\",入力シート!I53)","v":""},null,null,null,null,null,null,null,null,null,null,null,null,null,null,null,{"$f":"IF(入力シート!Y53=\"\",\"\",入力シート!Y53)","v":""},null,null,null,null,null,null,null,null,null,null,null,null,null,"学年",null,null,"段位",null,null,"体重（kg）",null,null,null,null,"身長（cm）",null,null,null,null,"生年月日（西暦）"]
[null,null,"選手名",null,null,null,"（姓）",null,{"$f":"IF(入力シート!I54=\"\",\"\",入力シート!I54)","v":""},null,null,null,null,null,null,null,null,null,null,null,null,null,"（名）",null,{"$f":"IF(入力シート!Y54=\"\",\"\",入力シート!Y54)","v":""},null,null,null,null,null,null,null,null,null,null,null,null,null,{"$f":"IF(入力シート!AM53=\"\",\"\",入力シート!AM53)","v":""},null,null,{"$f":"IF(入力シート!AP53=\"\",\"\",入力シート!AP53)","v":""},null,null,{"$f":"IF(入力シート!AS53=\"\",\"\",入力シート!AS53)","v":""},null,null,null,null,{"$f":"IF(入力シート!AX53=\"\",\"\",入力シート!AX53)","v":""},null,null,null,null,{"$f":"IF(入力シート!BC53=\"\",\"\",入力シート!BC53)","v":""},null,null,null,"・",{"$f":"IF(入力シート!BH53=\"\",\"\",入力シート!BH53)","v":""},null,null,"・",{"$f":"IF(入力シート!BL53=\"\",\"\",入力シート!BL53)","v":""}]
[]
[]
[]
[]
[]
[]
[]
[]
[null,null,null,null,null,null,null,null,null,null,null,null,null,null,null,null,null,null,null,null,null,null,null,null,null,null,null,null,"（","ｷ　ﾘ　ﾄ　ﾘ",null,null,null,null,null,null,null,"）"]
[]
[]
[]
[null,null,null,null,null,null,null,null,null,null,null,null,null,null,"個　人　試　合　申　込　書",null,null,null,null,null,null,null,null,null,null,null,null,null,null,null,null,null,null,null,null,null,null,null,null,null,null,null,null,null,null,null,null,null,null,null,null,null,null,null,{"$f":"NOW()","v":"2019-05-15T13:34:17.660"}]
[]
[null,null,"※抽選番号",null,null,null,null,null,null,null,null,null,null,{"$f":"入力シート!C57","v":0},null,null,null,null,null,null,null,"kg級",null,null,null,{"$f":"Z5","v":"第５０回　全国定通大会大阪府選考会"}]
[]
[null,null,"学校番号",null,null,null,"学　　　　校　　　　名",null,null,null,null,null,null,null,null,null,null,null,null,null,null,null,null,null,null,null,null,null,null,null,null,null,null,null,null,"監督名",null,null,null,null,null,null,null,null,null,null,null,null,null,null,"校長名"]
[null,null,{"$f":"入力シート!$C$9","v":0},null,null,null,{"$f":"入力シート!$G$9","v":""},null,null,null,null,null,null,null,null,null,null,null,null,null,null,null,null,null,null,"高等学校",null,null,null,null,null,null,null,null,null,{"$f":"入力シート!$AJ$9","v":0},null,null,null,null,null,null,null,null,null,null,null,"印",null,null,{"$f":"入力シート!$AY$9","v":0},null,null,null,null,null,null,null,null,null,null,null,"印"]
[]
[]
[null,null,"ふりがな",null,null,null,null,null,{"$f":"IF(入力シート!I57=\"\",\"\",入力シート!I57)","v":""},null,null,null,null,null,null,null,null,null,null,null,null,null,null,null,{"$f":"IF(入力シート!Y57=\"\",\"\",入力シート!Y57)","v":""},null,null,null,null,null,null,null,null,null,null,null,null,null,"学年",null,null,"段位",null,null,"体重（kg）",null,null,null,null,"身長（cm）",null,null,null,null,"生年月日（西暦）"]
[null,null,"選手名",null,null,null,"（姓）",null,{"$f":"IF(入力シート!I58=\"\",\"\",入力シート!I58)","v":""},null,null,null,null,null,null,null,null,null,null,null,null,null,"（名）",null,{"$f":"IF(入力シート!Y58=\"\",\"\",入力シート!Y58)","v":""},null,null,null,null,null,null,null,null,null,null,null,null,null,{"$f":"IF(入力シート!AM57=\"\",\"\",入力シート!AM57)","v":""},null,null,{"$f":"IF(入力シート!AP57=\"\",\"\",入力シート!AP57)","v":""},null,null,{"$f":"IF(入力シート!AS57=\"\",\"\",入力シート!AS57)","v":""},null,null,null,null,{"$f":"IF(入力シート!AX57=\"\",\"\",入力シート!AX57)","v":""},null,null,null,null,{"$f":"IF(入力シート!BC57=\"\",\"\",入力シート!BC57)","v":""},null,null,null,"・",{"$f":"IF(入力シート!BH57=\"\",\"\",入力シート!BH57)","v":""},null,null,"・",{"$f":"IF(入力シート!BL57=\"\",\"\",入力シート!BL57)","v":""}]
[]
[]
[]
[]
[]
[]
[]
[]
[]
[]
[]
[]
[null,null,null,null,null,null,null,null,null,null,null,null,null,null,"個　人　試　合　申　込　書",null,null,null,null,null,null,null,null,null,null,null,null,null,null,null,null,null,null,null,null,null,null,null,null,null,null,null,null,null,null,null,null,null,null,null,null,null,null,null,{"$f":"NOW()","v":"2019-05-15T13:34:17.660"}]
[]
[null,null,"※抽選番号",null,null,null,null,null,null,null,null,null,null,{"$f":"入力シート!C61","v":0},null,null,null,null,null,null,null,"kg級",null,null,null,{"$f":"Z5","v":"第５０回　全国定通大会大阪府選考会"}]
[]
[null,null,"学校番号",null,null,null,"学　　　　校　　　　名",null,null,null,null,null,null,null,null,null,null,null,null,null,null,null,null,null,null,null,null,null,null,null,null,null,null,null,null,"監督名",null,null,null,null,null,null,null,null,null,null,null,null,null,null,"校長名"]
[null,null,{"$f":"入力シート!$C$9","v":0},null,null,null,{"$f":"入力シート!$G$9","v":""},null,null,null,null,null,null,null,null,null,null,null,null,null,null,null,null,null,null,"高等学校",null,null,null,null,null,null,null,null,null,{"$f":"入力シート!$AJ$9","v":0},null,null,null,null,null,null,null,null,null,null,null,"印",null,null,{"$f":"入力シート!$AY$9","v":0},null,null,null,null,null,null,null,null,null,null,null,"印"]
[]
[]
[null,null,"ふりがな",null,null,null,null,null,{"$f":"IF(入力シート!I61=\"\",\"\",入力シート!I61)","v":""},null,null,null,null,null,null,null,null,null,null,null,null,null,null,null,{"$f":"IF(入力シート!Y61=\"\",\"\",入力シート!Y61)","v":""},null,null,null,null,null,null,null,null,null,null,null,null,null,"学年",null,null,"段位",null,null,"体重（kg）",null,null,null,null,"身長（cm）",null,null,null,null,"生年月日（西暦）"]
[null,null,"選手名",null,null,null,"（姓）",null,{"$f":"IF(入力シート!I62=\"\",\"\",入力シート!I62)","v":""},null,null,null,null,null,null,null,null,null,null,null,null,null,"（名）",null,{"$f":"IF(入力シート!Y62=\"\",\"\",入力シート!Y62)","v":""},null,null,null,null,null,null,null,null,null,null,null,null,null,{"$f":"IF(入力シート!AM61=\"\",\"\",入力シート!AM61)","v":""},null,null,{"$f":"IF(入力シート!AP61=\"\",\"\",入力シート!AP61)","v":""},null,null,{"$f":"IF(入力シート!AS61=\"\",\"\",入力シート!AS61)","v":""},null,null,null,null,{"$f":"IF(入力シート!AX61=\"\",\"\",入力シート!AX61)","v":""},null,null,null,null,{"$f":"IF(入力シート!BC61=\"\",\"\",入力シート!BC61)","v":""},null,null,null,"・",{"$f":"IF(入力シート!BH61=\"\",\"\",入力シート!BH61)","v":""},null,null,"・",{"$f":"IF(入力シート!BL61=\"\",\"\",入力シート!BL61)","v":""}]
[]
[]
[]
[]
[]
[]
[]
[]
[null,null,null,null,null,null,null,null,null,null,null,null,null,null,null,null,null,null,null,null,null,null,null,null,null,null,null,null,"（","ｷ　ﾘ　ﾄ　ﾘ",null,null,null,null,null,null,null,"）"]
[]
[]
[]
[null,null,null,null,null,null,null,null,null,null,null,null,null,null,"個　人　試　合　申　込　書",null,null,null,null,null,null,null,null,null,null,null,null,null,null,null,null,null,null,null,null,null,null,null,null,null,null,null,null,null,null,null,null,null,null,null,null,null,null,null,{"$f":"NOW()","v":"2019-05-15T13:34:17.660"}]
[]
[null,null,"※抽選番号",null,null,null,null,null,null,null,null,null,null,{"$f":"入力シート!C65","v":0},null,null,null,null,null,null,null,"kg級",null,null,null,{"$f":"Z5","v":"第５０回　全国定通大会大阪府選考会"}]
[]
[null,null,"学校番号",null,null,null,"学　　　　校　　　　名",null,null,null,null,null,null,null,null,null,null,null,null,null,null,null,null,null,null,null,null,null,null,null,null,null,null,null,null,"監督名",null,null,null,null,null,null,null,null,null,null,null,null,null,null,"校長名"]
[null,null,{"$f":"入力シート!$C$9","v":0},null,null,null,{"$f":"入力シート!$G$9","v":""},null,null,null,null,null,null,null,null,null,null,null,null,null,null,null,null,null,null,"高等学校",null,null,null,null,null,null,null,null,null,{"$f":"入力シート!$AJ$9","v":0},null,null,null,null,null,null,null,null,null,null,null,"印",null,null,{"$f":"入力シート!$AY$9","v":0},null,null,null,null,null,null,null,null,null,null,null,"印"]
[]
[]
[null,null,"ふりがな",null,null,null,null,null,{"$f":"IF(入力シート!I65=\"\",\"\",入力シート!I65)","v":""},null,null,null,null,null,null,null,null,null,null,null,null,null,null,null,{"$f":"IF(入力シート!Y65=\"\",\"\",入力シート!Y65)","v":""},null,null,null,null,null,null,null,null,null,null,null,null,null,"学年",null,null,"段位",null,null,"体重（kg）",null,null,null,null,"身長（cm）",null,null,null,null,"生年月日（西暦）"]
[null,null,"選手名",null,null,null,"（姓）",null,{"$f":"IF(入力シート!I66=\"\",\"\",入力シート!I66)","v":""},null,null,null,null,null,null,null,null,null,null,null,null,null,"（名）",null,{"$f":"IF(入力シート!Y66=\"\",\"\",入力シート!Y66)","v":""},null,null,null,null,null,null,null,null,null,null,null,null,null,{"$f":"IF(入力シート!AM65=\"\",\"\",入力シート!AM65)","v":""},null,null,{"$f":"IF(入力シート!AP65=\"\",\"\",入力シート!AP65)","v":""},null,null,{"$f":"IF(入力シート!AS65=\"\",\"\",入力シート!AS65)","v":""},null,null,null,null,{"$f":"IF(入力シート!AX65=\"\",\"\",入力シート!AX65)","v":""},null,null,null,null,{"$f":"IF(入力シート!BC65=\"\",\"\",入力シート!BC65)","v":""},null,null,null,"・",{"$f":"IF(入力シート!BH65=\"\",\"\",入力シート!BH65)","v":""},null,null,"・",{"$f":"IF(入力シート!BL65=\"\",\"\",入力シート!BL65)","v":""}]
[]
[]
[]
[]
[]
[]
[]
[]
[]
[]
[]
[]
[null,null,null,null,null,null,null,null,null,null,null,null,null,null,"個　人　試　合　申　込　書",null,null,null,null,null,null,null,null,null,null,null,null,null,null,null,null,null,null,null,null,null,null,null,null,null,null,null,null,null,null,null,null,null,null,null,null,null,null,null,{"$f":"NOW()","v":"2019-05-15T13:34:17.660"}]
[]
[null,null,"※抽選番号",null,null,null,null,null,null,null,null,null,null,{"$f":"IF(入力シート!C69=\"\",\"\",入力シート!C69)","v":""},null,null,null,null,null,null,null,"kg級",null,null,null,{"$f":"Z5","v":"第５０回　全国定通大会大阪府選考会"}]
[]
[null,null,"学校番号",null,null,null,"学　　　　校　　　　名",null,null,null,null,null,null,null,null,null,null,null,null,null,null,null,null,null,null,null,null,null,null,null,null,null,null,null,null,"監督名",null,null,null,null,null,null,null,null,null,null,null,null,null,null,"校長名"]
[null,null,{"$f":"入力シート!$C$9","v":0},null,null,null,{"$f":"入力シート!$G$9","v":""},null,null,null,null,null,null,null,null,null,null,null,null,null,null,null,null,null,null,"高等学校",null,null,null,null,null,null,null,null,null,{"$f":"入力シート!$AJ$9","v":0},null,null,null,null,null,null,null,null,null,null,null,"印",null,null,{"$f":"入力シート!$AY$9","v":0},null,null,null,null,null,null,null,null,null,null,null,"印"]
[]
[]
[null,null,"ふりがな",null,null,null,null,null,{"$f":"IF(入力シート!I69=\"\",\"\",入力シート!I69)","v":""},null,null,null,null,null,null,null,null,null,null,null,null,null,null,null,{"$f":"IF(入力シート!Y69=\"\",\"\",入力シート!Y69)","v":""},null,null,null,null,null,null,null,null,null,null,null,null,null,"学年",null,null,"段位",null,null,"体重（kg）",null,null,null,null,"身長（cm）",null,null,null,null,"生年月日（西暦）"]
[null,null,"選手名",null,null,null,"（姓）",null,{"$f":"IF(入力シート!I70=\"\",\"\",入力シート!I70)","v":""},null,null,null,null,null,null,null,null,null,null,null,null,null,"（名）",null,{"$f":"IF(入力シート!Y70=\"\",\"\",入力シート!Y70)","v":""},null,null,null,null,null,null,null,null,null,null,null,null,null,{"$f":"IF(入力シート!AM69=\"\",\"\",入力シート!AM69)","v":""},null,null,{"$f":"IF(入力シート!AP69=\"\",\"\",入力シート!AP69)","v":""},null,null,{"$f":"IF(入力シート!AS69=\"\",\"\",入力シート!AS69)","v":""},null,null,null,null,{"$f":"IF(入力シート!AX69=\"\",\"\",入力シート!AX69)","v":""},null,null,null,null,{"$f":"IF(入力シート!BC69=\"\",\"\",入力シート!BC69)","v":""},null,null,null,"・",{"$f":"IF(入力シート!BH69=\"\",\"\",入力シート!BH69)","v":""},null,null,"・",{"$f":"IF(入力シート!BL69=\"\",\"\",入力シート!BL69)","v":""}]
[]
[]
[]
[]
[]
[]
[]
[]
[]
[null,null,null,null,null,null,null,null,null,null,null,null,null,null,null,null,null,null,null,null,null,null,null,null,null,null,null,null,"（","ｷ　ﾘ　ﾄ　ﾘ",null,null,null,null,null,null,null,"）"]
[]
[]
[]
[null,null,null,null,null,null,null,null,null,null,null,null,null,null,"個　人　試　合　申　込　書",null,null,null,null,null,null,null,null,null,null,null,null,null,null,null,null,null,null,null,null,null,null,null,null,null,null,null,null,null,null,null,null,null,null,null,null,null,null,null,{"$f":"NOW()","v":"2019-05-15T13:34:17.660"}]
[]
[null,null,"※抽選番号",null,null,null,null,null,null,null,null,null,null,{"$f":"IF(入力シート!C73=\"\",\"\",入力シート!C73)","v":""},null,null,null,null,null,null,null,"kg級",null,null,null,{"$f":"Z5","v":"第５０回　全国定通大会大阪府選考会"}]
[]
[null,null,"学校番号",null,null,null,"学　　　　校　　　　名",null,null,null,null,null,null,null,null,null,null,null,null,null,null,null,null,null,null,null,null,null,null,null,null,null,null,null,null,"監督名",null,null,null,null,null,null,null,null,null,null,null,null,null,null,"校長名"]
[null,null,{"$f":"入力シート!$C$9","v":0},null,null,null,{"$f":"入力シート!$G$9","v":""},null,null,null,null,null,null,null,null,null,null,null,null,null,null,null,null,null,null,"高等学校",null,null,null,null,null,null,null,null,null,{"$f":"入力シート!$AJ$9","v":0},null,null,null,null,null,null,null,null,null,null,null,"印",null,null,{"$f":"入力シート!$AY$9","v":0},null,null,null,null,null,null,null,null,null,null,null,"印"]
[]
[]
[null,null,"ふりがな",null,null,null,null,null,{"$f":"IF(入力シート!I73=\"\",\"\",入力シート!I73)","v":""},null,null,null,null,null,null,null,null,null,null,null,null,null,null,null,{"$f":"IF(入力シート!Y73=\"\",\"\",入力シート!Y73)","v":""},null,null,null,null,null,null,null,null,null,null,null,null,null,"学年",null,null,"段位",null,null,"体重（kg）",null,null,null,null,"身長（cm）",null,null,null,null,"生年月日（西暦）"]
[null,null,"選手名",null,null,null,"（姓）",null,{"$f":"IF(入力シート!I74=\"\",\"\",入力シート!I74)","v":""},null,null,null,null,null,null,null,null,null,null,null,null,null,"（名）",null,{"$f":"IF(入力シート!Y74=\"\",\"\",入力シート!Y74)","v":""},null,null,null,null,null,null,null,null,null,null,null,null,null,{"$f":"IF(入力シート!AM73=\"\",\"\",入力シート!AM73)","v":""},null,null,{"$f":"IF(入力シート!AP73=\"\",\"\",入力シート!AP73)","v":""},null,null,{"$f":"IF(入力シート!AS73=\"\",\"\",入力シート!AS73)","v":""},null,null,null,null,{"$f":"IF(入力シート!AX73=\"\",\"\",入力シート!AX73)","v":""},null,null,null,null,{"$f":"IF(入力シート!BC73=\"\",\"\",入力シート!BC73)","v":""},null,null,null,"・",{"$f":"IF(入力シート!BH73=\"\",\"\",入力シート!BH73)","v":""},null,null,"・",{"$f":"IF(入力シート!BL73=\"\",\"\",入力シート!BL73)","v":""}]
[]
[]
[]
[]
[]
[]
[]
[]
[]
[]
[]
[]
[]
[null,null,null,null,null,null,null,null,null,null,null,null,null,null,"個　人　試　合　申　込　書",null,null,null,null,null,null,null,null,null,null,null,null,null,null,null,null,null,null,null,null,null,null,null,null,null,null,null,null,null,null,null,null,null,null,null,null,null,null,null,{"$f":"NOW()","v":"2019-05-15T13:34:17.660"}]
[]
[null,null,"※抽選番号",null,null,null,null,null,null,null,null,null,null,{"$f":"IF(入力シート!C77=\"\",\"\",入力シート!C77)","v":""},null,null,null,null,null,null,null,"kg級",null,null,null,{"$f":"Z5","v":"第５０回　全国定通大会大阪府選考会"}]
[]
[null,null,"学校番号",null,null,null,"学　　　　校　　　　名",null,null,null,null,null,null,null,null,null,null,null,null,null,null,null,null,null,null,null,null,null,null,null,null,null,null,null,null,"監督名",null,null,null,null,null,null,null,null,null,null,null,null,null,null,"校長名"]
[null,null,{"$f":"入力シート!$C$9","v":0},null,null,null,{"$f":"入力シート!$G$9","v":""},null,null,null,null,null,null,null,null,null,null,null,null,null,null,null,null,null,null,"高等学校",null,null,null,null,null,null,null,null,null,{"$f":"入力シート!$AJ$9","v":0},null,null,null,null,null,null,null,null,null,null,null,"印",null,null,{"$f":"入力シート!$AY$9","v":0},null,null,null,null,null,null,null,null,null,null,null,"印"]
[]
[]
[null,null,"ふりがな",null,null,null,null,null,{"$f":"IF(入力シート!I77=\"\",\"\",入力シート!I77)","v":""},null,null,null,null,null,null,null,null,null,null,null,null,null,null,null,{"$f":"IF(入力シート!Y77=\"\",\"\",入力シート!Y77)","v":""},null,null,null,null,null,null,null,null,null,null,null,null,null,"学年",null,null,"段位",null,null,"体重（kg）",null,null,null,null,"身長（cm）",null,null,null,null,"生年月日（西暦）"]
[null,null,"選手名",null,null,null,"（姓）",null,{"$f":"IF(入力シート!I78=\"\",\"\",入力シート!I78)","v":""},null,null,null,null,null,null,null,null,null,null,null,null,null,"（名）",null,{"$f":"IF(入力シート!Y78=\"\",\"\",入力シート!Y78)","v":""},null,null,null,null,null,null,null,null,null,null,null,null,null,{"$f":"IF(入力シート!AM77=\"\",\"\",入力シート!AM77)","v":""},null,null,{"$f":"IF(入力シート!AP77=\"\",\"\",入力シート!AP77)","v":""},null,null,{"$f":"IF(入力シート!AS77=\"\",\"\",入力シート!AS77)","v":""},null,null,null,null,{"$f":"IF(入力シート!AX77=\"\",\"\",入力シート!AX77)","v":""},null,null,null,null,{"$f":"IF(入力シート!BC77=\"\",\"\",入力シート!BC77)","v":""},null,null,null,"・",{"$f":"IF(入力シート!BH77=\"\",\"\",入力シート!BH77)","v":""},null,null,"・",{"$f":"IF(入力シート!BL77=\"\",\"\",入力シート!BL77)","v":""}]
[]
[]
[]
[]
[]
[]
[]
[]
[]
[null,null,null,null,null,null,null,null,null,null,null,null,null,null,null,null,null,null,null,null,null,null,null,null,null,null,null,null,"（","ｷ　ﾘ　ﾄ　ﾘ",null,null,null,null,null,null,null,"）"]
[]
[]
[]
[null,null,null,null,null,null,null,null,null,null,null,null,null,null,"個　人　試　合　申　込　書",null,null,null,null,null,null,null,null,null,null,null,null,null,null,null,null,null,null,null,null,null,null,null,null,null,null,null,null,null,null,null,null,null,null,null,null,null,null,null,{"$f":"NOW()","v":"2019-05-15T13:34:17.660"}]
[]
[null,null,"※抽選番号",null,null,null,null,null,null,null,null,null,null,{"$f":"IF(入力シート!C81=\"\",\"\",入力シート!C81)","v":""},null,null,null,null,null,null,null,"kg級",null,null,null,{"$f":"Z5","v":"第５０回　全国定通大会大阪府選考会"}]
[]
[null,null,"学校番号",null,null,null,"学　　　　校　　　　名",null,null,null,null,null,null,null,null,null,null,null,null,null,null,null,null,null,null,null,null,null,null,null,null,null,null,null,null,"監督名",null,null,null,null,null,null,null,null,null,null,null,null,null,null,"校長名"]
[null,null,{"$f":"入力シート!$C$9","v":0},null,null,null,{"$f":"入力シート!$G$9","v":""},null,null,null,null,null,null,null,null,null,null,null,null,null,null,null,null,null,null,"高等学校",null,null,null,null,null,null,null,null,null,{"$f":"入力シート!$AJ$9","v":0},null,null,null,null,null,null,null,null,null,null,null,"印",null,null,{"$f":"入力シート!$AY$9","v":0},null,null,null,null,null,null,null,null,null,null,null,"印"]
[]
[]
[null,null,"ふりがな",null,null,null,null,null,{"$f":"IF(入力シート!I81=\"\",\"\",入力シート!I81)","v":""},null,null,null,null,null,null,null,null,null,null,null,null,null,null,null,{"$f":"IF(入力シート!Y81=\"\",\"\",入力シート!Y81)","v":""},null,null,null,null,null,null,null,null,null,null,null,null,null,"学年",null,null,"段位",null,null,"体重（kg）",null,null,null,null,"身長（cm）",null,null,null,null,"生年月日（西暦）"]
[null,null,"選手名",null,null,null,"（姓）",null,{"$f":"IF(入力シート!I82=\"\",\"\",入力シート!I82)","v":""},null,null,null,null,null,null,null,null,null,null,null,null,null,"（名）",null,{"$f":"IF(入力シート!Y82=\"\",\"\",入力シート!Y82)","v":""},null,null,null,null,null,null,null,null,null,null,null,null,null,{"$f":"IF(入力シート!AM81=\"\",\"\",入力シート!AM81)","v":""},null,null,{"$f":"IF(入力シート!AP81=\"\",\"\",入力シート!AP81)","v":""},null,null,{"$f":"IF(入力シート!AS81=\"\",\"\",入力シート!AS81)","v":""},null,null,null,null,{"$f":"IF(入力シート!AX81=\"\",\"\",入力シート!AX81)","v":""},null,null,null,null,{"$f":"IF(入力シート!BC81=\"\",\"\",入力シート!BC81)","v":""},null,null,null,"・",{"$f":"IF(入力シート!BH81=\"\",\"\",入力シート!BH81)","v":""},null,null,"・",{"$f":"IF(入力シート!BL81=\"\",\"\",入力シート!BL81)","v":""}]
[]
[]
[]
[]
[]
[]
[]
[]
[]
[]
[]
[]
[]
[null,null,null,null,null,null,null,null,null,null,null,null,null,null,"個　人　試　合　申　込　書",null,null,null,null,null,null,null,null,null,null,null,null,null,null,null,null,null,null,null,null,null,null,null,null,null,null,null,null,null,null,null,null,null,null,null,null,null,null,null,{"$f":"NOW()","v":"2019-05-15T13:34:17.660"}]
[]
[null,null,"※抽選番号",null,null,null,null,null,null,null,null,null,null,{"$f":"IF(入力シート!C85=\"\",\"\",入力シート!C85)","v":""},null,null,null,null,null,null,null,"kg級",null,null,null,{"$f":"Z5","v":"第５０回　全国定通大会大阪府選考会"}]
[]
[null,null,"学校番号",null,null,null,"学　　　　校　　　　名",null,null,null,null,null,null,null,null,null,null,null,null,null,null,null,null,null,null,null,null,null,null,null,null,null,null,null,null,"監督名",null,null,null,null,null,null,null,null,null,null,null,null,null,null,"校長名"]
[null,null,{"$f":"入力シート!$C$9","v":0},null,null,null,{"$f":"入力シート!$G$9","v":""},null,null,null,null,null,null,null,null,null,null,null,null,null,null,null,null,null,null,"高等学校",null,null,null,null,null,null,null,null,null,{"$f":"入力シート!$AJ$9","v":0},null,null,null,null,null,null,null,null,null,null,null,"印",null,null,{"$f":"入力シート!$AY$9","v":0},null,null,null,null,null,null,null,null,null,null,null,"印"]
[]
[]
[null,null,"ふりがな",null,null,null,null,null,{"$f":"IF(入力シート!I85=\"\",\"\",入力シート!I85)","v":""},null,null,null,null,null,null,null,null,null,null,null,null,null,null,null,{"$f":"IF(入力シート!Y85=\"\",\"\",入力シート!Y85)","v":""},null,null,null,null,null,null,null,null,null,null,null,null,null,"学年",null,null,"段位",null,null,"体重（kg）",null,null,null,null,"身長（cm）",null,null,null,null,"生年月日（西暦）"]
[null,null,"選手名",null,null,null,"（姓）",null,{"$f":"IF(入力シート!I86=\"\",\"\",入力シート!I86)","v":""},null,null,null,null,null,null,null,null,null,null,null,null,null,"（名）",null,{"$f":"IF(入力シート!Y86=\"\",\"\",入力シート!Y86)","v":""},null,null,null,null,null,null,null,null,null,null,null,null,null,{"$f":"IF(入力シート!AM85=\"\",\"\",入力シート!AM85)","v":""},null,null,{"$f":"IF(入力シート!AP85=\"\",\"\",入力シート!AP85)","v":""},null,null,{"$f":"IF(入力シート!AS85=\"\",\"\",入力シート!AS85)","v":""},null,null,null,null,{"$f":"IF(入力シート!AX85=\"\",\"\",入力シート!AX85)","v":""},null,null,null,null,{"$f":"IF(入力シート!BC85=\"\",\"\",入力シート!BC85)","v":""},null,null,null,"・",{"$f":"IF(入力シート!BH85=\"\",\"\",入力シート!BH85)","v":""},null,null,"・",{"$f":"IF(入力シート!BL85=\"\",\"\",入力シート!BL85)","v":""}]
[]
[]
[]
[]
[]
[]
[]
[]
[]
[null,null,null,null,null,null,null,null,null,null,null,null,null,null,null,null,null,null,null,null,null,null,null,null,null,null,null,null,"（","ｷ　ﾘ　ﾄ　ﾘ",null,null,null,null,null,null,null,"）"]
[]
[]
[]
[null,null,null,null,null,null,null,null,null,null,null,null,null,null,"個　人　試　合　申　込　書",null,null,null,null,null,null,null,null,null,null,null,null,null,null,null,null,null,null,null,null,null,null,null,null,null,null,null,null,null,null,null,null,null,null,null,null,null,null,null,{"$f":"NOW()","v":"2019-05-15T13:34:17.660"}]
[]
[null,null,"※抽選番号",null,null,null,null,null,null,null,null,null,null,{"$f":"IF(入力シート!C89=\"\",\"\",入力シート!C89)","v":""},null,null,null,null,null,null,null,"kg級",null,null,null,{"$f":"Z5","v":"第５０回　全国定通大会大阪府選考会"}]
[]
[null,null,"学校番号",null,null,null,"学　　　　校　　　　名",null,null,null,null,null,null,null,null,null,null,null,null,null,null,null,null,null,null,null,null,null,null,null,null,null,null,null,null,"監督名",null,null,null,null,null,null,null,null,null,null,null,null,null,null,"校長名"]
[null,null,{"$f":"入力シート!$C$9","v":0},null,null,null,{"$f":"入力シート!$G$9","v":""},null,null,null,null,null,null,null,null,null,null,null,null,null,null,null,null,null,null,"高等学校",null,null,null,null,null,null,null,null,null,{"$f":"入力シート!$AJ$9","v":0},null,null,null,null,null,null,null,null,null,null,null,"印",null,null,{"$f":"入力シート!$AY$9","v":0},null,null,null,null,null,null,null,null,null,null,null,"印"]
[]
[]
[null,null,"ふりがな",null,null,null,null,null,{"$f":"IF(入力シート!I89=\"\",\"\",入力シート!I89)","v":""},null,null,null,null,null,null,null,null,null,null,null,null,null,null,null,{"$f":"IF(入力シート!Y89=\"\",\"\",入力シート!Y89)","v":""},null,null,null,null,null,null,null,null,null,null,null,null,null,"学年",null,null,"段位",null,null,"体重（kg）",null,null,null,null,"身長（cm）",null,null,null,null,"生年月日（西暦）"]
[null,null,"選手名",null,null,null,"（姓）",null,{"$f":"IF(入力シート!I90=\"\",\"\",入力シート!I90)","v":""},null,null,null,null,null,null,null,null,null,null,null,null,null,"（名）",null,{"$f":"IF(入力シート!Y90=\"\",\"\",入力シート!Y90)","v":""},null,null,null,null,null,null,null,null,null,null,null,null,null,{"$f":"IF(入力シート!AM89=\"\",\"\",入力シート!AM89)","v":""},null,null,{"$f":"IF(入力シート!AP89=\"\",\"\",入力シート!AP89)","v":""},null,null,{"$f":"IF(入力シート!AS89=\"\",\"\",入力シート!AS89)","v":""},null,null,null,null,{"$f":"IF(入力シート!AX89=\"\",\"\",入力シート!AX89)","v":""},null,null,null,null,{"$f":"IF(入力シート!BC89=\"\",\"\",入力シート!BC89)","v":""},null,null,null,"・",{"$f":"IF(入力シート!BH89=\"\",\"\",入力シート!BH89)","v":""},null,null,"・",{"$f":"IF(入力シート!BL89=\"\",\"\",入力シート!BL89)","v":""}]
[]
[]
[]
[]
[]
[]
[]
[]
[]
[]
[]
[]
[]
[null,null,null,null,null,null,null,null,null,null,null,null,null,null,"個　人　試　合　申　込　書",null,null,null,null,null,null,null,null,null,null,null,null,null,null,null,null,null,null,null,null,null,null,null,null,null,null,null,null,null,null,null,null,null,null,null,null,null,null,null,{"$f":"NOW()","v":"2019-05-15T13:34:17.660"}]
[]
[null,null,"※抽選番号",null,null,null,null,null,null,null,null,null,null,{"$f":"IF(入力シート!C93=\"\",\"\",入力シート!C93)","v":""},null,null,null,null,null,null,null,"kg級",null,null,null,{"$f":"Z5","v":"第５０回　全国定通大会大阪府選考会"}]
[]
[null,null,"学校番号",null,null,null,"学　　　　校　　　　名",null,null,null,null,null,null,null,null,null,null,null,null,null,null,null,null,null,null,null,null,null,null,null,null,null,null,null,null,"監督名",null,null,null,null,null,null,null,null,null,null,null,null,null,null,"校長名"]
[null,null,{"$f":"入力シート!$C$9","v":0},null,null,null,{"$f":"入力シート!$G$9","v":""},null,null,null,null,null,null,null,null,null,null,null,null,null,null,null,null,null,null,"高等学校",null,null,null,null,null,null,null,null,null,{"$f":"入力シート!$AJ$9","v":0},null,null,null,null,null,null,null,null,null,null,null,"印",null,null,{"$f":"入力シート!$AY$9","v":0},null,null,null,null,null,null,null,null,null,null,null,"印"]
[]
[]
[null,null,"ふりがな",null,null,null,null,null,{"$f":"IF(入力シート!I93=\"\",\"\",入力シート!I93)","v":""},null,null,null,null,null,null,null,null,null,null,null,null,null,null,null,{"$f":"IF(入力シート!Y93=\"\",\"\",入力シート!Y93)","v":""},null,null,null,null,null,null,null,null,null,null,null,null,null,"学年",null,null,"段位",null,null,"体重（kg）",null,null,null,null,"身長（cm）",null,null,null,null,"生年月日（西暦）"]
[null,null,"選手名",null,null,null,"（姓）",null,{"$f":"IF(入力シート!I94=\"\",\"\",入力シート!I94)","v":""},null,null,null,null,null,null,null,null,null,null,null,null,null,"（名）",null,{"$f":"IF(入力シート!Y94=\"\",\"\",入力シート!Y94)","v":""},null,null,null,null,null,null,null,null,null,null,null,null,null,{"$f":"IF(入力シート!AM93=\"\",\"\",入力シート!AM93)","v":""},null,null,{"$f":"IF(入力シート!AP93=\"\",\"\",入力シート!AP93)","v":""},null,null,{"$f":"IF(入力シート!AS93=\"\",\"\",入力シート!AS93)","v":""},null,null,null,null,{"$f":"IF(入力シート!AX93=\"\",\"\",入力シート!AX93)","v":""},null,null,null,null,{"$f":"IF(入力シート!BC93=\"\",\"\",入力シート!BC93)","v":""},null,null,null,"・",{"$f":"IF(入力シート!BH93=\"\",\"\",入力シート!BH93)","v":""},null,null,"・",{"$f":"IF(入力シート!BL93=\"\",\"\",入力シート!BL93)","v":""}]
[]
[]
[]
[]
[]
[]
[]
[]
[]
[null,null,null,null,null,null,null,null,null,null,null,null,null,null,null,null,null,null,null,null,null,null,null,null,null,null,null,null,"（","ｷ　ﾘ　ﾄ　ﾘ",null,null,null,null,null,null,null,"）"]
[]
[]
[]
[null,null,null,null,null,null,null,null,null,null,null,null,null,null,"個　人　試　合　申　込　書",null,null,null,null,null,null,null,null,null,null,null,null,null,null,null,null,null,null,null,null,null,null,null,null,null,null,null,null,null,null,null,null,null,null,null,null,null,null,null,{"$f":"NOW()","v":"2019-05-15T13:34:17.660"}]
[]
[null,null,"※抽選番号",null,null,null,null,null,null,null,null,null,null,{"$f":"IF(入力シート!C97=\"\",\"\",入力シート!C97)","v":""},null,null,null,null,null,null,null,"kg級",null,null,null,{"$f":"Z5","v":"第５０回　全国定通大会大阪府選考会"}]
[]
[null,null,"学校番号",null,null,null,"学　　　　校　　　　名",null,null,null,null,null,null,null,null,null,null,null,null,null,null,null,null,null,null,null,null,null,null,null,null,null,null,null,null,"監督名",null,null,null,null,null,null,null,null,null,null,null,null,null,null,"校長名"]
[null,null,{"$f":"入力シート!$C$9","v":0},null,null,null,{"$f":"入力シート!$G$9","v":""},null,null,null,null,null,null,null,null,null,null,null,null,null,null,null,null,null,null,"高等学校",null,null,null,null,null,null,null,null,null,{"$f":"入力シート!$AJ$9","v":0},null,null,null,null,null,null,null,null,null,null,null,"印",null,null,{"$f":"入力シート!$AY$9","v":0},null,null,null,null,null,null,null,null,null,null,null,"印"]
[]
[]
[null,null,"ふりがな",null,null,null,null,null,{"$f":"IF(入力シート!I97=\"\",\"\",入力シート!I97)","v":""},null,null,null,null,null,null,null,null,null,null,null,null,null,null,null,{"$f":"IF(入力シート!Y97=\"\",\"\",入力シート!Y97)","v":""},null,null,null,null,null,null,null,null,null,null,null,null,null,"学年",null,null,"段位",null,null,"体重（kg）",null,null,null,null,"身長（cm）",null,null,null,null,"生年月日（西暦）"]
[null,null,"選手名",null,null,null,"（姓）",null,{"$f":"IF(入力シート!I98=\"\",\"\",入力シート!I98)","v":""},null,null,null,null,null,null,null,null,null,null,null,null,null,"（名）",null,{"$f":"IF(入力シート!Y98=\"\",\"\",入力シート!Y98)","v":""},null,null,null,null,null,null,null,null,null,null,null,null,null,{"$f":"IF(入力シート!AM97=\"\",\"\",入力シート!AM97)","v":""},null,null,{"$f":"IF(入力シート!AP97=\"\",\"\",入力シート!AP97)","v":""},null,null,{"$f":"IF(入力シート!AS97=\"\",\"\",入力シート!AS97)","v":""},null,null,null,null,{"$f":"IF(入力シート!AX97=\"\",\"\",入力シート!AX97)","v":""},null,null,null,null,{"$f":"IF(入力シート!BC97=\"\",\"\",入力シート!BC97)","v":""},null,null,null,"・",{"$f":"IF(入力シート!BH97=\"\",\"\",入力シート!BH97)","v":""},null,null,"・",{"$f":"IF(入力シート!BL97=\"\",\"\",入力シート!BL97)","v":""}]
[]
[]
[]
[]
[]
[]
[]
[]
[]
[]
[]
[]
[]
[null,null,null,null,null,null,null,null,null,null,null,null,null,null,"個　人　試　合　申　込　書",null,null,null,null,null,null,null,null,null,null,null,null,null,null,null,null,null,null,null,null,null,null,null,null,null,null,null,null,null,null,null,null,null,null,null,null,null,null,null,{"$f":"NOW()","v":"2019-05-15T13:34:17.660"}]
[]
[null,null,"※抽選番号",null,null,null,null,null,null,null,null,null,null,{"$f":"IF(入力シート!C101=\"\",\"\",入力シート!C101)","v":""},null,null,null,null,null,null,null,"kg級",null,null,null,{"$f":"Z5","v":"第５０回　全国定通大会大阪府選考会"}]
[]
[null,null,"学校番号",null,null,null,"学　　　　校　　　　名",null,null,null,null,null,null,null,null,null,null,null,null,null,null,null,null,null,null,null,null,null,null,null,null,null,null,null,null,"監督名",null,null,null,null,null,null,null,null,null,null,null,null,null,null,"校長名"]
[null,null,{"$f":"入力シート!$C$9","v":0},null,null,null,{"$f":"入力シート!$G$9","v":""},null,null,null,null,null,null,null,null,null,null,null,null,null,null,null,null,null,null,"高等学校",null,null,null,null,null,null,null,null,null,{"$f":"入力シート!$AJ$9","v":0},null,null,null,null,null,null,null,null,null,null,null,"印",null,null,{"$f":"入力シート!$AY$9","v":0},null,null,null,null,null,null,null,null,null,null,null,"印"]
[]
[]
[null,null,"ふりがな",null,null,null,null,null,{"$f":"IF(入力シート!I101=\"\",\"\",入力シート!I101)","v":""},null,null,null,null,null,null,null,null,null,null,null,null,null,null,null,{"$f":"IF(入力シート!Y101=\"\",\"\",入力シート!Y101)","v":""},null,null,null,null,null,null,null,null,null,null,null,null,null,"学年",null,null,"段位",null,null,"体重（kg）",null,null,null,null,"身長（cm）",null,null,null,null,"生年月日（西暦）"]
[null,null,"選手名",null,null,null,"（姓）",null,{"$f":"IF(入力シート!I102=\"\",\"\",入力シート!I102)","v":""},null,null,null,null,null,null,null,null,null,null,null,null,null,"（名）",null,{"$f":"IF(入力シート!Y102=\"\",\"\",入力シート!Y102)","v":""},null,null,null,null,null,null,null,null,null,null,null,null,null,{"$f":"IF(入力シート!AM101=\"\",\"\",入力シート!AM101)","v":""},null,null,{"$f":"IF(入力シート!AP101=\"\",\"\",入力シート!AP101)","v":""},null,null,{"$f":"IF(入力シート!AS101=\"\",\"\",入力シート!AS101)","v":""},null,null,null,null,{"$f":"IF(入力シート!AX101=\"\",\"\",入力シート!AX101)","v":""},null,null,null,null,{"$f":"IF(入力シート!BC101=\"\",\"\",入力シート!BC101)","v":""},null,null,null,"・",{"$f":"IF(入力シート!BH101=\"\",\"\",入力シート!BH101)","v":""},null,null,"・",{"$f":"IF(入力シート!BL101=\"\",\"\",入力シート!BL101)","v":""}]
[]
[]
[]
[]
[]
[]
[]
[]
[]
[null,null,null,null,null,null,null,null,null,null,null,null,null,null,null,null,null,null,null,null,null,null,null,null,null,null,null,null,"（","ｷ　ﾘ　ﾄ　ﾘ",null,null,null,null,null,null,null,"）"]
[]
[]
[]
[null,null,null,null,null,null,null,null,null,null,null,null,null,null,"個　人　試　合　申　込　書",null,null,null,null,null,null,null,null,null,null,null,null,null,null,null,null,null,null,null,null,null,null,null,null,null,null,null,null,null,null,null,null,null,null,null,null,null,null,null,{"$f":"NOW()","v":"2019-05-15T13:34:17.660"}]
[]
[null,null,"※抽選番号",null,null,null,null,null,null,null,null,null,null,{"$f":"IF(入力シート!C105=\"\",\"\",入力シート!C105)","v":""},null,null,null,null,null,null,null,"kg級",null,null,null,{"$f":"Z5","v":"第５０回　全国定通大会大阪府選考会"}]
[]
[null,null,"学校番号",null,null,null,"学　　　　校　　　　名",null,null,null,null,null,null,null,null,null,null,null,null,null,null,null,null,null,null,null,null,null,null,null,null,null,null,null,null,"監督名",null,null,null,null,null,null,null,null,null,null,null,null,null,null,"校長名"]
[null,null,{"$f":"入力シート!$C$9","v":0},null,null,null,{"$f":"入力シート!$G$9","v":""},null,null,null,null,null,null,null,null,null,null,null,null,null,null,null,null,null,null,"高等学校",null,null,null,null,null,null,null,null,null,{"$f":"入力シート!$AJ$9","v":0},null,null,null,null,null,null,null,null,null,null,null,"印",null,null,{"$f":"入力シート!$AY$9","v":0},null,null,null,null,null,null,null,null,null,null,null,"印"]
[]
[]
[null,null,"ふりがな",null,null,null,null,null,{"$f":"IF(入力シート!I105=\"\",\"\",入力シート!I105)","v":""},null,null,null,null,null,null,null,null,null,null,null,null,null,null,null,{"$f":"IF(入力シート!Y105=\"\",\"\",入力シート!Y105)","v":""},null,null,null,null,null,null,null,null,null,null,null,null,null,"学年",null,null,"段位",null,null,"体重（kg）",null,null,null,null,"身長（cm）",null,null,null,null,"生年月日（西暦）"]
[null,null,"選手名",null,null,null,"（姓）",null,{"$f":"IF(入力シート!I106=\"\",\"\",入力シート!I106)","v":""},null,null,null,null,null,null,null,null,null,null,null,null,null,"（名）",null,{"$f":"IF(入力シート!Y106=\"\",\"\",入力シート!Y106)","v":""},null,null,null,null,null,null,null,null,null,null,null,null,null,{"$f":"IF(入力シート!AM105=\"\",\"\",入力シート!AM105)","v":""},null,null,{"$f":"IF(入力シート!AP105=\"\",\"\",入力シート!AP105)","v":""},null,null,{"$f":"IF(入力シート!AS105=\"\",\"\",入力シート!AS105)","v":""},null,null,null,null,{"$f":"IF(入力シート!AX105=\"\",\"\",入力シート!AX105)","v":""},null,null,null,null,{"$f":"IF(入力シート!BC105=\"\",\"\",入力シート!BC105)","v":""},null,null,null,"・",{"$f":"IF(入力シート!BH105=\"\",\"\",入力シート!BH105)","v":""},null,null,"・",{"$f":"IF(入力シート!BL105=\"\",\"\",入力シート!BL105)","v":""}]
[]
[]
[]
[]
[]
[]
[]
[]
[]
[]
[]
[]
[]
[]
[null,null,null,null,null,null,null,null,null,null,null,null,null,null,"個　人　試　合　申　込　書",null,null,null,null,null,null,null,null,null,null,null,null,null,null,null,null,null,null,null,null,null,null,null,null,null,null,null,null,null,null,null,null,null,null,null,null,null,null,null,{"$f":"NOW()","v":"2019-05-15T13:34:17.660"}]
[]
[null,null,"※抽選番号",null,null,null,null,null,null,null,null,null,null,{"$f":"IF(入力シート!C109=\"\",\"\",入力シート!C109)","v":""},null,null,null,null,null,null,null,"kg級",null,null,null,{"$f":"Z5","v":"第５０回　全国定通大会大阪府選考会"}]
[]
[null,null,"学校番号",null,null,null,"学　　　　校　　　　名",null,null,null,null,null,null,null,null,null,null,null,null,null,null,null,null,null,null,null,null,null,null,null,null,null,null,null,null,"監督名",null,null,null,null,null,null,null,null,null,null,null,null,null,null,"校長名"]
[null,null,{"$f":"入力シート!$C$9","v":0},null,null,null,{"$f":"入力シート!$G$9","v":""},null,null,null,null,null,null,null,null,null,null,null,null,null,null,null,null,null,null,"高等学校",null,null,null,null,null,null,null,null,null,{"$f":"入力シート!$AJ$9","v":0},null,null,null,null,null,null,null,null,null,null,null,"印",null,null,{"$f":"入力シート!$AY$9","v":0},null,null,null,null,null,null,null,null,null,null,null,"印"]
[]
[]
[null,null,"ふりがな",null,null,null,null,null,{"$f":"IF(入力シート!I109=\"\",\"\",入力シート!I109)","v":""},null,null,null,null,null,null,null,null,null,null,null,null,null,null,null,{"$f":"IF(入力シート!Y109=\"\",\"\",入力シート!Y109)","v":""},null,null,null,null,null,null,null,null,null,null,null,null,null,"学年",null,null,"段位",null,null,"体重（kg）",null,null,null,null,"身長（cm）",null,null,null,null,"生年月日（西暦）"]
[null,null,"選手名",null,null,null,"（姓）",null,{"$f":"IF(入力シート!I110=\"\",\"\",入力シート!I110)","v":""},null,null,null,null,null,null,null,null,null,null,null,null,null,"（名）",null,{"$f":"IF(入力シート!Y110=\"\",\"\",入力シート!Y110)","v":""},null,null,null,null,null,null,null,null,null,null,null,null,null,{"$f":"IF(入力シート!AM109=\"\",\"\",入力シート!AM109)","v":""},null,null,{"$f":"IF(入力シート!AP109=\"\",\"\",入力シート!AP109)","v":""},null,null,{"$f":"IF(入力シート!AS109=\"\",\"\",入力シート!AS109)","v":""},null,null,null,null,{"$f":"IF(入力シート!AX109=\"\",\"\",入力シート!AX109)","v":""},null,null,null,null,{"$f":"IF(入力シート!BC109=\"\",\"\",入力シート!BC109)","v":""},null,null,null,"・",{"$f":"IF(入力シート!BH109=\"\",\"\",入力シート!BH109)","v":""},null,null,"・",{"$f":"IF(入力シート!BL109=\"\",\"\",入力シート!BL109)","v":""}]
[]
[]
[]
[]
[]
[]
[]
[]
[]
[null,null,null,null,null,null,null,null,null,null,null,null,null,null,null,null,null,null,null,null,null,null,null,null,null,null,null,null,"（","ｷ　ﾘ　ﾄ　ﾘ",null,null,null,null,null,null,null,"）"]
[]
[]
[]
[null,null,null,null,null,null,null,null,null,null,null,null,null,null,"個　人　試　合　申　込　書",null,null,null,null,null,null,null,null,null,null,null,null,null,null,null,null,null,null,null,null,null,null,null,null,null,null,null,null,null,null,null,null,null,null,null,null,null,null,null,{"$f":"NOW()","v":"2019-05-15T13:34:17.660"}]
[]
[null,null,"※抽選番号",null,null,null,null,null,null,null,null,null,null,{"$f":"IF(入力シート!C113=\"\",\"\",入力シート!C113)","v":""},null,null,null,null,null,null,null,"kg級",null,null,null,{"$f":"Z5","v":"第５０回　全国定通大会大阪府選考会"}]
[]
[null,null,"学校番号",null,null,null,"学　　　　校　　　　名",null,null,null,null,null,null,null,null,null,null,null,null,null,null,null,null,null,null,null,null,null,null,null,null,null,null,null,null,"監督名",null,null,null,null,null,null,null,null,null,null,null,null,null,null,"校長名"]
[null,null,{"$f":"入力シート!$C$9","v":0},null,null,null,{"$f":"入力シート!$G$9","v":""},null,null,null,null,null,null,null,null,null,null,null,null,null,null,null,null,null,null,"高等学校",null,null,null,null,null,null,null,null,null,{"$f":"入力シート!$AJ$9","v":0},null,null,null,null,null,null,null,null,null,null,null,"印",null,null,{"$f":"入力シート!$AY$9","v":0},null,null,null,null,null,null,null,null,null,null,null,"印"]
[]
[]
[null,null,"ふりがな",null,null,null,null,null,{"$f":"IF(入力シート!I113=\"\",\"\",入力シート!I113)","v":""},null,null,null,null,null,null,null,null,null,null,null,null,null,null,null,{"$f":"IF(入力シート!Y113=\"\",\"\",入力シート!Y113)","v":""},null,null,null,null,null,null,null,null,null,null,null,null,null,"学年",null,null,"段位",null,null,"体重（kg）",null,null,null,null,"身長（cm）",null,null,null,null,"生年月日（西暦）"]
[null,null,"選手名",null,null,null,"（姓）",null,{"$f":"IF(入力シート!I114=\"\",\"\",入力シート!I114)","v":""},null,null,null,null,null,null,null,null,null,null,null,null,null,"（名）",null,{"$f":"IF(入力シート!Y114=\"\",\"\",入力シート!Y114)","v":""},null,null,null,null,null,null,null,null,null,null,null,null,null,{"$f":"IF(入力シート!AM113=\"\",\"\",入力シート!AM113)","v":""},null,null,{"$f":"IF(入力シート!AP113=\"\",\"\",入力シート!AP113)","v":""},null,null,{"$f":"IF(入力シート!AS113=\"\",\"\",入力シート!AS113)","v":""},null,null,null,null,{"$f":"IF(入力シート!AX113=\"\",\"\",入力シート!AX113)","v":""},null,null,null,null,{"$f":"IF(入力シート!BC113=\"\",\"\",入力シート!BC113)","v":""},null,null,null,"・",{"$f":"IF(入力シート!BH113=\"\",\"\",入力シート!BH113)","v":""},null,null,"・",{"$f":"IF(入力シート!BL113=\"\",\"\",入力シート!BL113)","v":""}]
[]
[]
[]
[]
[]
[]
[]
[]
[]
[]
[]
[]
[]
[null,null,null,null,null,null,null,null,null,null,null,null,null,null,"個　人　試　合　申　込　書",null,null,null,null,null,null,null,null,null,null,null,null,null,null,null,null,null,null,null,null,null,null,null,null,null,null,null,null,null,null,null,null,null,null,null,null,null,null,null,{"$f":"NOW()","v":"2019-05-15T13:34:17.660"}]
[]
[null,null,"※抽選番号",null,null,null,null,null,null,null,null,null,null,{"$f":"IF(入力シート!C117=\"\",\"\",入力シート!C117)","v":""},null,null,null,null,null,null,null,"kg級",null,null,null,{"$f":"Z5","v":"第５０回　全国定通大会大阪府選考会"}]
[]
[null,null,"学校番号",null,null,null,"学　　　　校　　　　名",null,null,null,null,null,null,null,null,null,null,null,null,null,null,null,null,null,null,null,null,null,null,null,null,null,null,null,null,"監督名",null,null,null,null,null,null,null,null,null,null,null,null,null,null,"校長名"]
[null,null,{"$f":"入力シート!$C$9","v":0},null,null,null,{"$f":"入力シート!$G$9","v":""},null,null,null,null,null,null,null,null,null,null,null,null,null,null,null,null,null,null,"高等学校",null,null,null,null,null,null,null,null,null,{"$f":"入力シート!$AJ$9","v":0},null,null,null,null,null,null,null,null,null,null,null,"印",null,null,{"$f":"入力シート!$AY$9","v":0},null,null,null,null,null,null,null,null,null,null,null,"印"]
[]
[]
[null,null,"ふりがな",null,null,null,null,null,{"$f":"IF(入力シート!I117=\"\",\"\",入力シート!I117)","v":""},null,null,null,null,null,null,null,null,null,null,null,null,null,null,null,{"$f":"IF(入力シート!Y117=\"\",\"\",入力シート!Y117)","v":""},null,null,null,null,null,null,null,null,null,null,null,null,null,"学年",null,null,"段位",null,null,"体重（kg）",null,null,null,null,"身長（cm）",null,null,null,null,"生年月日（西暦）"]
[null,null,"選手名",null,null,null,"（姓）",null,{"$f":"IF(入力シート!I118=\"\",\"\",入力シート!I118)","v":""},null,null,null,null,null,null,null,null,null,null,null,null,null,"（名）",null,{"$f":"IF(入力シート!Y118=\"\",\"\",入力シート!Y118)","v":""},null,null,null,null,null,null,null,null,null,null,null,null,null,{"$f":"IF(入力シート!AM117=\"\",\"\",入力シート!AM117)","v":""},null,null,{"$f":"IF(入力シート!AP117=\"\",\"\",入力シート!AP117)","v":""},null,null,{"$f":"IF(入力シート!AS117=\"\",\"\",入力シート!AS117)","v":""},null,null,null,null,{"$f":"IF(入力シート!AX117=\"\",\"\",入力シート!AX117)","v":""},null,null,null,null,{"$f":"IF(入力シート!BC117=\"\",\"\",入力シート!BC117)","v":""},null,null,null,"・",{"$f":"IF(入力シート!BH117=\"\",\"\",入力シート!BH117)","v":""},null,null,"・",{"$f":"IF(入力シート!BL117=\"\",\"\",入力シート!BL117)","v":""}]
[]
[]
[]
[]
[]
[]
[]
[]
[]
[null,null,null,null,null,null,null,null,null,null,null,null,null,null,null,null,null,null,null,null,null,null,null,null,null,null,null,null,"（","ｷ　ﾘ　ﾄ　ﾘ",null,null,null,null,null,null,null,"）"]
[]
[]
[]
[null,null,null,null,null,null,null,null,null,null,null,null,null,null,"個　人　試　合　申　込　書",null,null,null,null,null,null,null,null,null,null,null,null,null,null,null,null,null,null,null,null,null,null,null,null,null,null,null,null,null,null,null,null,null,null,null,null,null,null,null,{"$f":"NOW()","v":"2019-05-15T13:34:17.660"}]
[]
[null,null,"※抽選番号",null,null,null,null,null,null,null,null,null,null,{"$f":"IF(入力シート!C121=\"\",\"\",入力シート!C121)","v":""},null,null,null,null,null,null,null,"kg級",null,null,null,{"$f":"Z5","v":"第５０回　全国定通大会大阪府選考会"}]
[]
[null,null,"学校番号",null,null,null,"学　　　　校　　　　名",null,null,null,null,null,null,null,null,null,null,null,null,null,null,null,null,null,null,null,null,null,null,null,null,null,null,null,null,"監督名",null,null,null,null,null,null,null,null,null,null,null,null,null,null,"校長名"]
[null,null,{"$f":"入力シート!$C$9","v":0},null,null,null,{"$f":"入力シート!$G$9","v":""},null,null,null,null,null,null,null,null,null,null,null,null,null,null,null,null,null,null,"高等学校",null,null,null,null,null,null,null,null,null,{"$f":"入力シート!$AJ$9","v":0},null,null,null,null,null,null,null,null,null,null,null,"印",null,null,{"$f":"入力シート!$AY$9","v":0},null,null,null,null,null,null,null,null,null,null,null,"印"]
[]
[]
[null,null,"ふりがな",null,null,null,null,null,{"$f":"IF(入力シート!I121=\"\",\"\",入力シート!I121)","v":""},null,null,null,null,null,null,null,null,null,null,null,null,null,null,null,{"$f":"IF(入力シート!Y121=\"\",\"\",入力シート!Y121)","v":""},null,null,null,null,null,null,null,null,null,null,null,null,null,"学年",null,null,"段位",null,null,"体重（kg）",null,null,null,null,"身長（cm）",null,null,null,null,"生年月日（西暦）"]
[null,null,"選手名",null,null,null,"（姓）",null,{"$f":"IF(入力シート!I122=\"\",\"\",入力シート!I122)","v":""},null,null,null,null,null,null,null,null,null,null,null,null,null,"（名）",null,{"$f":"IF(入力シート!Y122=\"\",\"\",入力シート!Y122)","v":""},null,null,null,null,null,null,null,null,null,null,null,null,null,{"$f":"IF(入力シート!AM121=\"\",\"\",入力シート!AM121)","v":""},null,null,{"$f":"IF(入力シート!AP121=\"\",\"\",入力シート!AP121)","v":""},null,null,{"$f":"IF(入力シート!AS121=\"\",\"\",入力シート!AS121)","v":""},null,null,null,null,{"$f":"IF(入力シート!AX121=\"\",\"\",入力シート!AX121)","v":""},null,null,null,null,{"$f":"IF(入力シート!BC121=\"\",\"\",入力シート!BC121)","v":""},null,null,null,"・",{"$f":"IF(入力シート!BH121=\"\",\"\",入力シート!BH121)","v":""},null,null,"・",{"$f":"IF(入力シート!BL121=\"\",\"\",入力シート!BL121)","v":""}]
[]
[]
[]
[]
[]
[]
[]
[]
[]
[]
[]
[]
[]
[null,null,null,null,null,null,null,null,null,null,null,null,null,null,"個　人　試　合　申　込　書",null,null,null,null,null,null,null,null,null,null,null,null,null,null,null,null,null,null,null,null,null,null,null,null,null,null,null,null,null,null,null,null,null,null,null,null,null,null,null,{"$f":"NOW()","v":"2019-05-15T13:34:17.660"}]
[]
[null,null,"※抽選番号",null,null,null,null,null,null,null,null,null,null,{"$f":"IF(入力シート!C125=\"\",\"\",入力シート!C125)","v":""},null,null,null,null,null,null,null,"kg級",null,null,null,{"$f":"Z5","v":"第５０回　全国定通大会大阪府選考会"}]
[]
[null,null,"学校番号",null,null,null,"学　　　　校　　　　名",null,null,null,null,null,null,null,null,null,null,null,null,null,null,null,null,null,null,null,null,null,null,null,null,null,null,null,null,"監督名",null,null,null,null,null,null,null,null,null,null,null,null,null,null,"校長名"]
[null,null,{"$f":"入力シート!$C$9","v":0},null,null,null,{"$f":"入力シート!$G$9","v":""},null,null,null,null,null,null,null,null,null,null,null,null,null,null,null,null,null,null,"高等学校",null,null,null,null,null,null,null,null,null,{"$f":"入力シート!$AJ$9","v":0},null,null,null,null,null,null,null,null,null,null,null,"印",null,null,{"$f":"入力シート!$AY$9","v":0},null,null,null,null,null,null,null,null,null,null,null,"印"]
[]
[]
[null,null,"ふりがな",null,null,null,null,null,{"$f":"IF(入力シート!I125=\"\",\"\",入力シート!I125)","v":""},null,null,null,null,null,null,null,null,null,null,null,null,null,null,null,{"$f":"IF(入力シート!Y125=\"\",\"\",入力シート!Y125)","v":""},null,null,null,null,null,null,null,null,null,null,null,null,null,"学年",null,null,"段位",null,null,"体重（kg）",null,null,null,null,"身長（cm）",null,null,null,null,"生年月日（西暦）"]
[null,null,"選手名",null,null,null,"（姓）",null,{"$f":"IF(入力シート!I126=\"\",\"\",入力シート!I126)","v":""},null,null,null,null,null,null,null,null,null,null,null,null,null,"（名）",null,{"$f":"IF(入力シート!Y126=\"\",\"\",入力シート!Y126)","v":""},null,null,null,null,null,null,null,null,null,null,null,null,null,{"$f":"IF(入力シート!AM125=\"\",\"\",入力シート!AM125)","v":""},null,null,{"$f":"IF(入力シート!AP125=\"\",\"\",入力シート!AP125)","v":""},null,null,{"$f":"IF(入力シート!AS125=\"\",\"\",入力シート!AS125)","v":""},null,null,null,null,{"$f":"IF(入力シート!AX125=\"\",\"\",入力シート!AX125)","v":""},null,null,null,null,{"$f":"IF(入力シート!BC125=\"\",\"\",入力シート!BC125)","v":""},null,null,null,"・",{"$f":"IF(入力シート!BH125=\"\",\"\",入力シート!BH125)","v":""},null,null,"・",{"$f":"IF(入力シート!BL125=\"\",\"\",入力シート!BL125)","v":""}]
[]
[]
[]
[]
[]
[]
[]
[]
[]
[null,null,null,null,null,null,null,null,null,null,null,null,null,null,null,null,null,null,null,null,null,null,null,null,null,null,null,null,"（","ｷ　ﾘ　ﾄ　ﾘ",null,null,null,null,null,null,null,"）"]
[]
[]
[]
[null,null,null,null,null,null,null,null,null,null,null,null,null,null,"個　人　試　合　申　込　書",null,null,null,null,null,null,null,null,null,null,null,null,null,null,null,null,null,null,null,null,null,null,null,null,null,null,null,null,null,null,null,null,null,null,null,null,null,null,null,{"$f":"NOW()","v":"2019-05-15T13:34:17.660"}]
[]
[null,null,"※抽選番号",null,null,null,null,null,null,null,null,null,null,{"$f":"IF(入力シート!C129=\"\",\"\",入力シート!C129)","v":""},null,null,null,null,null,null,null,"kg級",null,null,null,{"$f":"Z5","v":"第５０回　全国定通大会大阪府選考会"}]
[]
[null,null,"学校番号",null,null,null,"学　　　　校　　　　名",null,null,null,null,null,null,null,null,null,null,null,null,null,null,null,null,null,null,null,null,null,null,null,null,null,null,null,null,"監督名",null,null,null,null,null,null,null,null,null,null,null,null,null,null,"校長名"]
[null,null,{"$f":"入力シート!$C$9","v":0},null,null,null,{"$f":"入力シート!$G$9","v":""},null,null,null,null,null,null,null,null,null,null,null,null,null,null,null,null,null,null,"高等学校",null,null,null,null,null,null,null,null,null,{"$f":"入力シート!$AJ$9","v":0},null,null,null,null,null,null,null,null,null,null,null,"印",null,null,{"$f":"入力シート!$AY$9","v":0},null,null,null,null,null,null,null,null,null,null,null,"印"]
[]
[]
[null,null,"ふりがな",null,null,null,null,null,{"$f":"IF(入力シート!I129=\"\",\"\",入力シート!I129)","v":""},null,null,null,null,null,null,null,null,null,null,null,null,null,null,null,{"$f":"IF(入力シート!Y129=\"\",\"\",入力シート!Y129)","v":""},null,null,null,null,null,null,null,null,null,null,null,null,null,"学年",null,null,"段位",null,null,"体重（kg）",null,null,null,null,"身長（cm）",null,null,null,null,"生年月日（西暦）"]
[null,null,"選手名",null,null,null,"（姓）",null,{"$f":"IF(入力シート!I130=\"\",\"\",入力シート!I130)","v":""},null,null,null,null,null,null,null,null,null,null,null,null,null,"（名）",null,{"$f":"IF(入力シート!Y130=\"\",\"\",入力シート!Y130)","v":""},null,null,null,null,null,null,null,null,null,null,null,null,null,{"$f":"IF(入力シート!AM129=\"\",\"\",入力シート!AM129)","v":""},null,null,{"$f":"IF(入力シート!AP129=\"\",\"\",入力シート!AP129)","v":""},null,null,{"$f":"IF(入力シート!AS129=\"\",\"\",入力シート!AS129)","v":""},null,null,null,null,{"$f":"IF(入力シート!AX129=\"\",\"\",入力シート!AX129)","v":""},null,null,null,null,{"$f":"IF(入力シート!BC129=\"\",\"\",入力シート!BC129)","v":""},null,null,null,"・",{"$f":"IF(入力シート!BH129=\"\",\"\",入力シート!BH129)","v":""},null,null,"・",{"$f":"IF(入力シート!BL129=\"\",\"\",入力シート!BL129)","v":""}]

{"sheet":"入力規則","index":3,"n_rows":198,"n_cols":19,"rows_kept":198,"cut":false,"hidden":true,"merged":[]}
["順序","学年","段位","西暦","月","日","個人戦年度","ランク","男子階級","入賞","女子階級","登録番号","校名",null,null,null,null,"大会名（女子）","大会名（男子）"]
["先鋒",1,"無",1996,1,1,25,"A",60,1,48,331,"桜宮",null,null,null,null,"全国大会大阪府予選会女子団体戦","全国大会大阪府予選会男子団体戦"]
["次鋒",2,"初",1997,2,2,26,"B",66,2,52,332,"汎愛",null,null,null,null,"全国大会大阪府予選会女子個人戦","全国大会大阪府予選会男子個人戦"]
["中堅",3,"弐",1998,3,3,27,"C",73,3,57,333,"東",null,null,null,null,"大阪高等学校女子体重別選手権大会","大阪高等学校総合体育大会柔道の部（男子団体戦）"]
["副将",4,"参",1999,4,4,28,"D",81,null,63,334,"南",null,null,null,null,"全国高等学校柔道選手権大会大阪府予選会","大阪高等学校総合体育大会柔道の部（男子個人戦）"]
["大将",null,null,2000,5,5,29,null,90,null,70,335,"生野工業",null,null,null,null,"全国高等学校柔道選手権大会女子個人試合大阪府一次予選会","全国高等学校柔道選手権大会大阪府予選会"]
["補欠1",null,null,2001,6,6,30,null,100,null,78,336,"都島工業",null,null,null,null,"全国高等学校柔道選手権大会男女個人試合大阪府予選会","全国高等学校柔道選手権大会男女個人試合大阪府予選会"]
["補欠2",null,null,2002,7,7,31,null,"+100",null,"+78",337,"東商"]
["補欠3",null,null,2003,8,8,32,null,55,null,44,338,"常翔学園"]
[null,null,null,2004,9,9,33,null,null,null,null,339,"大阪産業大学附属"]
[null,null,null,2005,10,10,34,null,null,null,null,340,"追手門大手前"]
[null,null,null,2006,11,11,35,null,null,null,null,341,"常翔啓光"]
[null,null,null,2007,12,12,36,null,null,null,null,342,"大阪偕星学園"]
[null,null,null,2008,null,13,37,null,null,null,null,343,"太成学院大学"]
[null,null,null,2009,null,14,38,null,null,null,null,344,"電通大"]
[null,null,null,2010,null,15,39,null,null,null,null,345,"同志社香里"]
[null,null,null,2011,null,16,40,null,null,null,null,346,"開明"]
[null,null,null,2012,null,17,41,null,null,null,null,347,"東海大学付属仰星"]
[null,null,null,2013,null,18,42,null,null,null,null,348,"泉尾"]
[null,null,null,2014,null,19,43,null,null,null,null,349,"和泉"]
[null,null,null,2015,null,20,44,null,null,null,null,350,"泉大津"]
[null,null,null,2016,null,21,45,null,null,null,null,351,"泉鳥取"]
[null,null,null,2017,null,22,46,null,null,null,null,352,"市岡"]
[null,null,null,2018,null,23,47,null,null,null,null,353,"今宮"]
[null,null,null,2019,null,24,48,null,null,null,null,354,"鳳"]
[null,null,null,2020,null,25,49,null,null,null,null,355,"貝塚"]
[null,null,null,null,null,26,50,null,null,null,null,356,"貝塚南"]
[null,null,null,null,null,27,51,null,null,null,null,357,"金岡"]
[null,null,null,null,null,28,52,null,null,null,null,358,"岸和田"]
[null,null,null,null,null,29,53,null,null,null,null,359,"港南造形"]
[null,null,null,null,null,30,54,null,null,null,null,360,"久米田"]
[null,null,null,null,null,31,55,null,null,null,null,361,"堺上"]
[null,null,null,null,null,null,null,null,null,null,null,362,"堺西"]
[null,null,null,null,null,null,null,null,null,null,null,363,"堺東"]
[null,null,null,null,null,null,null,null,null,null,null,364,"佐野"]
[null,null,null,null,null,null,null,null,null,null,null,365,"狭山"]
[null,null,null,null,null,null,null,null,null,null,null,366,"信太"]
[null,null,null,null,null,null,null,null,null,null,null,367,"咲洲"]
[null,null,null,null,null,null,null,null,null,null,null,368,"りんくう翔南"]
[null,null,null,null,null,null,null,null,null,null,null,369,"泉北"]
[null,null,null,null,null,null,null,null,null,null,null,370,"泉陽"]
[null,null,null,null,null,null,null,null,null,null,null,371,"大正"]
[null,null,null,null,null,null,null,null,null,null,null,372,"高石"]
[null,null,null,null,null,null,null,null,null,null,null,373,"登美丘"]
[null,null,null,null,null,null,null,null,null,null,null,374,"西成"]
[null,null,null,null,null,null,null,null,null,null,null,376,"伯太"]
[null,null,null,null,null,null,null,null,null,null,null,377,"阪南大学"]
[null,null,null,null,null,null,null,null,null,null,null,378,"東百舌鳥"]
[null,null,null,null,null,null,null,null,null,null,null,379,"福泉"]
[null,null,null,null,null,null,null,null,null,null,null,380,"成美"]
[null,null,null,null,null,null,null,null,null,null,null,381,"三国丘"]
[null,null,null,null,null,null,null,null,null,null,null,382,"岬"]
[null,null,null,null,null,null,null,null,null,null,null,383,"港"]
[null,null,null,null,null,null,null,null,null,null,null,384,"大和川"]
[null,null,null,null,null,null,null,null,null,null,null,385,"横山"]
[null,null,null,null,null,null,null,null,null,null,null,386,"和泉総合"]
[null,null,null,null,null,null,null,null,null,null,null,387,"今宮工科"]
[null,null,null,null,null,null,null,null,null,null,null,388,"堺工科"]
[null,null,null,null,null,null,null,null,null,null,null,389,"佐野工科"]
[null,null,null,null,null,null,null,null,null,null,null,390,"西野田工科"]
[null,null,null,null,null,null,null,null,null,null,null,391,"日根野"]
[null,null,null,null,null,null,null,null,null,null,null,392,"扇町"]
[null,null,null,null,null,null,null,null,null,null,null,393,"堺市商"]
[null,null,null,null,null,null,null,null,null,null,null,394,"泉尾工業"]
[null,null,null,null,null,null,null,null,null,null,null,395,"岸和田市立産業"]
[null,null,null,null,null,null,null,null,null,null,null,396,"咲くやこの花"]
[null,null,null,null,null,null,null,null,null,null,null,397,"堺市立堺"]
[null,null,null,null,null,null,null,null,null,null,null,398,"大阪商業大学堺　"]
[null,null,null,null,null,null,null,null,null,null,null,399,"大阪学芸"]
[null,null,null,null,null,null,null,null,null,null,null,400,"清教学園"]
[null,null,null,null,null,null,null,null,null,null,null,401,"浪速"]
[null,null,null,null,null,null,null,null,null,null,null,402,"初芝立命館"]
[null,null,null,null,null,null,null,null,null,null,null,404,"帝塚山泉ヶ丘"]
[null,null,null,null,null,null,null,null,null,null,null,405,"金剛学園"]
[null,null,null,null,null,null,null,null,null,null,null,406,"大体大浪商"]
[null,null,null,null,null,null,null,null,null,null,null,407,"教育大天王寺"]
[null,null,null,null,null,null,null,null,null,null,null,408,"教育大附平野"]
[null,null,null,null,null,null,null,null,null,null,null,409,"阿倍野"]
[null,null,null,null,null,null,null,null,null,null,null,410,"生野"]
[null,null,null,null,null,null,null,null,null,null,null,411,"池島"]
[null,null,null,null,null,null,null,null,null,null,null,412,"大塚"]
[null,null,null,null,null,null,null,null,null,null,null,413,"柏原東"]
[null,null,null,null,null,null,null,null,null,null,null,414,"河南"]
[null,null,null,null,null,null,null,null,null,null,null,416,"金剛"]
[null,null,null,null,null,null,null,null,null,null,null,417,"住吉"]
[null,null,null,null,null,null,null,null,null,null,null,418,"清友"]
[null,null,null,null,null,null,null,null,null,null,null,419,"天王寺"]
[null,null,null,null,null,null,null,null,null,null,null,420,"富田林"]
[null,null,null,null,null,null,null,null,null,null,null,421,"長野"]
[null,null,null,null,null,null,null,null,null,null,null,422,"長野北"]
[null,null,null,null,null,null,null,null,null,null,null,423,"長吉"]
[null,null,null,null,null,null,null,null,null,null,null,424,"西浦"]
[null,null,null,null,null,null,null,null,null,null,null,425,"花園"]
[null,null,null,null,null,null,null,null,null,null,null,426,"懐風館"]
[null,null,null,null,null,null,null,null,null,null,null,427,"東住吉"]
[null,null,null,null,null,null,null,null,null,null,null,428,"平野"]
[null,null,null,null,null,null,null,null,null,null,null,429,"藤井寺"]
[null,null,null,null,null,null,null,null,null,null,null,430,"布施"]
[null,null,null,null,null,null,null,null,null,null,null,431,"布施北"]
[null,null,null,null,null,null,null,null,null,null,null,432,"松原"]
[null,null,null,null,null,null,null,null,null,null,null,433,"美原"]
[null,null,null,null,null,null,null,null,null,null,null,434,"八尾"]
[null,null,null,null,null,null,null,null,null,null,null,435,"八尾北"]
[null,null,null,null,null,null,null,null,null,null,null,436,"八尾翠翔"]
[null,null,null,null,null,null,null,null,null,null,null,438,"山本"]
[null,null,null,null,null,null,null,null,null,null,null,439,"牧岡樟風"]
[null,null,null,null,null,null,null,null,null,null,null,440,"農芸"]
[null,null,null,null,null,null,null,null,null,null,null,441,"東住吉総"]
[null,null,null,null,null,null,null,null,null,null,null,442,"藤井寺工科"]
[null,null,null,null,null,null,null,null,null,null,null,443,"布施工科"]
[null,null,null,null,null,null,null,null,null,null,null,445,"日新"]
[null,null,null,null,null,null,null,null,null,null,null,446,"上宮"]
[null,null,null,null,null,null,null,null,null,null,null,447,"金光八尾"]
[null,null,null,null,null,null,null,null,null,null,null,448,"阪南大学"]
[null,null,null,null,null,null,null,null,null,null,null,449,"大阪商業大学"]
[null,null,null,null,null,null,null,null,null,null,null,450,"東大阪大学柏原"]
[null,null,null,null,null,null,null,null,null,null,null,451,"近畿大学附属"]
[null,null,null,null,null,null,null,null,null,null,null,452,"興國"]
[null,null,null,null,null,null,null,null,null,null,null,453,"四天王寺羽曳丘"]
[null,null,null,null,null,null,null,null,null,null,null,454,"大阪星光学園"]
[null,null,null,null,null,null,null,null,null,null,null,455,"清風"]
[null,null,null,null,null,null,null,null,null,null,null,456,"ＰＬ学園"]
[null,null,null,null,null,null,null,null,null,null,null,457,"桃山学院"]
[null,null,null,null,null,null,null,null,null,null,null,458,"芥川"]
[null,null,null,null,null,null,null,null,null,null,null,459,"阿武野"]
[null,null,null,null,null,null,null,null,null,null,null,460,"池田"]
[null,null,null,null,null,null,null,null,null,null,null,461,"池田北"]
[null,null,null,null,null,null,null,null,null,null,null,462,"茨木"]
[null,null,null,null,null,null,null,null,null,null,null,463,"茨木西"]
[null,null,null,null,null,null,null,null,null,null,null,464,"茨木東"]
[null,null,null,null,null,null,null,null,null,null,null,465,"園芸"]
[null,null,null,null,null,null,null,null,null,null,null,466,"春日丘"]
[null,null,null,null,null,null,null,null,null,null,null,467,"北千里"]
[null,null,null,null,null,null,null,null,null,null,null,468,"北野"]
[null,null,null,null,null,null,null,null,null,null,null,469,"柴島"]
[null,null,null,null,null,null,null,null,null,null,null,470,"桜塚"]
[null,null,null,null,null,null,null,null,null,null,null,471,"渋谷"]
[null,null,null,null,null,null,null,null,null,null,null,472,"少路"]
[null,null,null,null,null,null,null,null,null,null,null,473,"規の木"]
[null,null,null,null,null,null,null,null,null,null,null,474,"島本"]
[null,null,null,null,null,null,null,null,null,null,null,475,"城山"]
[null,null,null,null,null,null,null,null,null,null,null,476,"吹田"]
[null,null,null,null,null,null,null,null,null,null,null,477,"吹田東"]
[null,null,null,null,null,null,null,null,null,null,null,478,"摂津"]
[null,null,null,null,null,null,null,null,null,null,null,479,"千里"]
[null,null,null,null,null,null,null,null,null,null,null,481,"高槻北"]
[null,null,null,null,null,null,null,null,null,null,null,482,"豊島"]
[null,null,null,null,null,null,null,null,null,null,null,483,"豊中"]
[null,null,null,null,null,null,null,null,null,null,null,484,"鳥飼"]
[null,null,null,null,null,null,null,null,null,null,null,485,"西淀川"]
[null,null,null,null,null,null,null,null,null,null,null,486,"東豊中"]
[null,null,null,null,null,null,null,null,null,null,null,487,"東淀川"]
[null,null,null,null,null,null,null,null,null,null,null,488,"福井"]
[null,null,null,null,null,null,null,null,null,null,null,489,"三島"]
[null,null,null,null,null,null,null,null,null,null,null,490,"箕面"]
[null,null,null,null,null,null,null,null,null,null,null,491,"箕面東"]
[null,null,null,null,null,null,null,null,null,null,null,492,"茨木工科"]
[null,null,null,null,null,null,null,null,null,null,null,493,"大冠"]
[null,null,null,null,null,null,null,null,null,null,null,494,"北淀"]
[null,null,null,null,null,null,null,null,null,null,null,495,"淀商"]
[null,null,null,null,null,null,null,null,null,null,null,496,"東淀工業"]
[null,null,null,null,null,null,null,null,null,null,null,497,"大阪学院"]
[null,null,null,null,null,null,null,null,null,null,null,498,"大阪"]
[null,null,null,null,null,null,null,null,null,null,null,499,"大商学園"]
[null,null,null,null,null,null,null,null,null,null,null,500,"追手門学院"]
[null,null,null,null,null,null,null,null,null,null,null,501,"関西大倉"]
[null,null,null,null,null,null,null,null,null,null,null,502,"関大一"]
[null,null,null,null,null,null,null,null,null,null,null,503,"金光大阪"]
[null,null,null,null,null,null,null,null,null,null,null,504,"高槻"]
[null,null,null,null,null,null,null,null,null,null,null,505,"星翔"]
[null,null,null,null,null,null,null,null,null,null,null,506,"履正社"]
[null,null,null,null,null,null,null,null,null,null,null,507,"関大北陽"]
[null,null,null,null,null,null,null,null,null,null,null,508,"箕面学園"]
[null,null,null,null,null,null,null,null,null,null,null,509,"箕面自由学園"]
[null,null,null,null,null,null,null,null,null,null,null,550,"建国"]
[null,null,null,null,null,null,null,null,null,null,null,551,"能勢"]
[null,null,null,null,null,null,null,null,null,null,null,554,"四條畷北"]
[null,null,null,null,null,null,null,null,null,null,null,555,"野崎"]
[null,null,null,null,null,null,null,null,null,null,null,556,"関西創価"]
[null,null,null,null,null,null,null,null,null,null,null,557,"プール学院"]
[null,null,null,null,null,null,null,null,null,null,null,558,"清明学院"]
[null,null,null,null,null,null,null,null,null,null,null,562,"上宮太子"]
[null,null,null,null,null,null,null,null,null,null,null,564,"南寝屋川"]
[null,null,null,null,null,null,null,null,null,null,null,565,"鶴見商業"]
[null,null,null,null,null,null,null,null,null,null,null,569,"東大阪大学敬愛"]
[null,null,null,null,null,null,null,null,null,null,null,571,"英真学園"]
[null,null,null,null,null,null,null,null,null,null,null,597,"大阪朝鮮高級"]
[null,null,null,null,null,null,null,null,null,null,null,403,"清風南海"]
[null,null,null,null,null,null,null,null,null,null,null,560,"天王寺商業"]
[null,null,null,null,null,null,null,null,null,null,null,572,"山田"]
[null,null,null,null,null,null,null,null,null,null,null,575,"交野"]
[null,null,null,null,null,null,null,null,null,null,null,577,"西"]
[null,null,null,null,null,null,null,null,null,null,null,580,"金光藤蔭"]
[null,null,null,null,null,null,null,null,null,null,null,583,"福島女子"]
[null,null,null,null,null,null,null,null,null,null,null,584,"羽衣学園"]
[null,null,null,null,null,null,null,null,null,null,null,585,"国際滝井"]
[null,null,null,null,null,null,null,null,null,null,null,598,"大阪府立大工業高専"]
[null,null,null,null,null,null,null,null,null,null,null,587,"住吉商業"]

{"sheet":"申込選手一覧（個人）","index":4,"n_rows":31,"n_cols":6,"rows_kept":31,"cut":false,"hidden":false,"merged":[]}
[null,"階級","姓","名","ふりがな"]
[1,{"$f":"入力シート!C13","v":0},{"$f":"入力シート!I14","v":0},{"$f":"入力シート!Y14","v":0},{"$f":"入力シート!I13&\"　\"&入力シート!Y13","v":"　"},{"$f":"IF(C2=\"\",\"\",\"（\"&入力シート!$L$2&\"）\")","v":{"$error":"#N/A"}}]
[2,{"$f":"入力シート!C17","v":0},{"$f":"入力シート!I18","v":0},{"$f":"入力シート!Y18","v":0},{"$f":"入力シート!I17&\"　\"&入力シート!Y17","v":"　"},{"$f":"IF(C3=\"\",\"\",\"（\"&入力シート!$L$2&\"）\")","v":{"$error":"#N/A"}}]
[3,{"$f":"入力シート!C21","v":0},{"$f":"入力シート!I22","v":0},{"$f":"入力シート!Y22","v":0},{"$f":"入力シート!I21&\"　\"&入力シート!Y21","v":"　"},{"$f":"IF(C4=\"\",\"\",\"（\"&入力シート!$L$2&\"）\")","v":{"$error":"#N/A"}}]
[4,{"$f":"入力シート!C25","v":0},{"$f":"入力シート!I26","v":0},{"$f":"入力シート!Y26","v":0},{"$f":"入力シート!I25&\"　\"&入力シート!Y25","v":"　"},{"$f":"IF(C5=\"\",\"\",\"（\"&入力シート!$L$2&\"）\")","v":{"$error":"#N/A"}}]
[5,{"$f":"入力シート!C29","v":0},{"$f":"入力シート!I30","v":0},{"$f":"入力シート!Y30","v":0},{"$f":"入力シート!I29&\"　\"&入力シート!Y29","v":"　"},{"$f":"IF(C6=\"\",\"\",\"（\"&入力シート!$L$2&\"）\")","v":{"$error":"#N/A"}}]
[6,{"$f":"入力シート!C33","v":0},{"$f":"入力シート!I34","v":0},{"$f":"入力シート!Y34","v":0},{"$f":"入力シート!I33&\"　\"&入力シート!Y33","v":"　"},{"$f":"IF(C7=\"\",\"\",\"（\"&入力シート!$L$2&\"）\")","v":{"$error":"#N/A"}}]
[7,{"$f":"入力シート!C37","v":0},{"$f":"入力シート!I38","v":0},{"$f":"入力シート!Y38","v":0},{"$f":"入力シート!I37&\"　\"&入力シート!Y37","v":"　"},{"$f":"IF(C8=\"\",\"\",\"（\"&入力シート!$L$2&\"）\")","v":{"$error":"#N/A"}}]
[8,{"$f":"入力シート!C41","v":0},{"$f":"入力シート!I42","v":0},{"$f":"入力シート!Y42","v":0},{"$f":"入力シート!I41&\"　\"&入力シート!Y41","v":"　"},{"$f":"IF(C9=\"\",\"\",\"（\"&入力シート!$L$2&\"）\")","v":{"$error":"#N/A"}}]
[9,{"$f":"入力シート!C45","v":0},{"$f":"入力シート!I46","v":0},{"$f":"入力シート!Y46","v":0},{"$f":"入力シート!I45&\"　\"&入力シート!Y45","v":"　"},{"$f":"IF(C10=\"\",\"\",\"（\"&入力シート!$L$2&\"）\")","v":{"$error":"#N/A"}}]
[10,{"$f":"入力シート!C49","v":0},{"$f":"入力シート!I50","v":0},{"$f":"入力シート!Y50","v":0},{"$f":"入力シート!I49&\"　\"&入力シート!Y49","v":"　"},{"$f":"IF(C11=\"\",\"\",\"（\"&入力シート!$L$2&\"）\")","v":{"$error":"#N/A"}}]
[11,{"$f":"入力シート!C53","v":0},{"$f":"入力シート!I54","v":0},{"$f":"入力シート!Y54","v":0},{"$f":"入力シート!I53&\"　\"&入力シート!Y53","v":"　"},{"$f":"IF(C12=\"\",\"\",\"（\"&入力シート!$L$2&\"）\")","v":{"$error":"#N/A"}}]
[12,{"$f":"入力シート!C57","v":0},{"$f":"入力シート!I58","v":0},{"$f":"入力シート!Y58","v":0},{"$f":"入力シート!I57&\"　\"&入力シート!Y57","v":"　"},{"$f":"IF(C13=\"\",\"\",\"（\"&入力シート!$L$2&\"）\")","v":{"$error":"#N/A"}}]
[13,{"$f":"入力シート!C61","v":0},{"$f":"入力シート!I62","v":0},{"$f":"入力シート!Y62","v":0},{"$f":"入力シート!I61&\"　\"&入力シート!Y61","v":"　"},{"$f":"IF(C14=\"\",\"\",\"（\"&入力シート!$L$2&\"）\")","v":{"$error":"#N/A"}}]
[14,{"$f":"入力シート!C65","v":0},{"$f":"入力シート!I66","v":0},{"$f":"入力シート!Y66","v":0},{"$f":"入力シート!I65&\"　\"&入力シート!Y65","v":"　"},{"$f":"IF(C15=\"\",\"\",\"（\"&入力シート!$L$2&\"）\")","v":{"$error":"#N/A"}}]
[15,{"$f":"入力シート!C69","v":0},{"$f":"入力シート!I70","v":0},{"$f":"入力シート!Y70","v":0},{"$f":"入力シート!I69&\"　\"&入力シート!Y69","v":"　"},{"$f":"IF(C16=\"\",\"\",\"（\"&入力シート!$L$2&\"）\")","v":{"$error":"#N/A"}}]
[16,{"$f":"入力シート!C73","v":0},{"$f":"入力シート!I74","v":0},{"$f":"入力シート!Y74","v":0},{"$f":"入力シート!I73&\"　\"&入力シート!Y73","v":"　"},{"$f":"IF(C17=\"\",\"\",\"（\"&入力シート!$L$2&\"）\")","v":{"$error":"#N/A"}}]
[17,{"$f":"入力シート!C77","v":0},{"$f":"入力シート!I78","v":0},{"$f":"入力シート!Y78","v":0},{"$f":"入力シート!I77&\"　\"&入力シート!Y77","v":"　"},{"$f":"IF(C18=\"\",\"\",\"（\"&入力シート!$L$2&\"）\")","v":{"$error":"#N/A"}}]
[18,{"$f":"入力シート!C81","v":0},{"$f":"入力シート!I82","v":0},{"$f":"入力シート!Y82","v":0},{"$f":"入力シート!I81&\"　\"&入力シート!Y81","v":"　"},{"$f":"IF(C19=\"\",\"\",\"（\"&入力シート!$L$2&\"）\")","v":{"$error":"#N/A"}}]
[19,{"$f":"入力シート!C85","v":0},{"$f":"入力シート!I86","v":0},{"$f":"入力シート!Y86","v":0},{"$f":"入力シート!I85&\"　\"&入力シート!Y85","v":"　"},{"$f":"IF(C20=\"\",\"\",\"（\"&入力シート!$L$2&\"）\")","v":{"$error":"#N/A"}}]
[20,{"$f":"入力シート!C89","v":0},{"$f":"入力シート!I90","v":0},{"$f":"入力シート!Y90","v":0},{"$f":"入力シート!I89&\"　\"&入力シート!Y89","v":"　"},{"$f":"IF(C21=\"\",\"\",\"（\"&入力シート!$L$2&\"）\")","v":{"$error":"#N/A"}}]
[21,{"$f":"入力シート!C93","v":0},{"$f":"入力シート!I94","v":0},{"$f":"入力シート!Y94","v":0},{"$f":"入力シート!I93&\"　\"&入力シート!Y93","v":"　"},{"$f":"IF(C22=\"\",\"\",\"（\"&入力シート!$L$2&\"）\")","v":{"$error":"#N/A"}}]
[22,{"$f":"入力シート!C97","v":0},{"$f":"入力シート!I98","v":0},{"$f":"入力シート!Y98","v":0},{"$f":"入力シート!I97&\"　\"&入力シート!Y97","v":"　"},{"$f":"IF(C23=\"\",\"\",\"（\"&入力シート!$L$2&\"）\")","v":{"$error":"#N/A"}}]
[23,{"$f":"入力シート!C101","v":0},{"$f":"入力シート!I102","v":0},{"$f":"入力シート!Y102","v":0},{"$f":"入力シート!I101&\"　\"&入力シート!Y101","v":"　"},{"$f":"IF(C24=\"\",\"\",\"（\"&入力シート!$L$2&\"）\")","v":{"$error":"#N/A"}}]
[24,{"$f":"入力シート!C105","v":0},{"$f":"入力シート!I106","v":0},{"$f":"入力シート!Y106","v":0},{"$f":"入力シート!I105&\"　\"&入力シート!Y105","v":"　"},{"$f":"IF(C25=\"\",\"\",\"（\"&入力シート!$L$2&\"）\")","v":{"$error":"#N/A"}}]
[25,{"$f":"入力シート!C109","v":0},{"$f":"入力シート!I110","v":0},{"$f":"入力シート!Y110","v":0},{"$f":"入力シート!I109&\"　\"&入力シート!Y109","v":"　"},{"$f":"IF(C26=\"\",\"\",\"（\"&入力シート!$L$2&\"）\")","v":{"$error":"#N/A"}}]
[26,{"$f":"入力シート!C113","v":0},{"$f":"入力シート!I114","v":0},{"$f":"入力シート!Y114","v":0},{"$f":"入力シート!I113&\"　\"&入力シート!Y113","v":"　"},{"$f":"IF(C27=\"\",\"\",\"（\"&入力シート!$L$2&\"）\")","v":{"$error":"#N/A"}}]
[27,{"$f":"入力シート!C117","v":0},{"$f":"入力シート!I118","v":0},{"$f":"入力シート!Y118","v":0},{"$f":"入力シート!I117&\"　\"&入力シート!Y117","v":"　"},{"$f":"IF(C28=\"\",\"\",\"（\"&入力シート!$L$2&\"）\")","v":{"$error":"#N/A"}}]
[28,{"$f":"入力シート!C121","v":0},{"$f":"入力シート!I122","v":0},{"$f":"入力シート!Y122","v":0},{"$f":"入力シート!I121&\"　\"&入力シート!Y121","v":"　"},{"$f":"IF(C29=\"\",\"\",\"（\"&入力シート!$L$2&\"）\")","v":{"$error":"#N/A"}}]
[29,{"$f":"入力シート!C125","v":0},{"$f":"入力シート!I126","v":0},{"$f":"入力シート!Y126","v":0},{"$f":"入力シート!I125&\"　\"&入力シート!Y125","v":"　"},{"$f":"IF(C30=\"\",\"\",\"（\"&入力シート!$L$2&\"）\")","v":{"$error":"#N/A"}}]
[30,{"$f":"入力シート!C129","v":0},{"$f":"入力シート!I130","v":0},{"$f":"入力シート!Y130","v":0},{"$f":"入力シート!I129&\"　\"&入力シート!Y129","v":"　"},{"$f":"IF(C31=\"\",\"\",\"（\"&入力シート!$L$2&\"）\")","v":{"$error":"#N/A"}}]